Workbook

Sheet VKL
A1: Tel. +49 (0)711 8201-0 Fax: -720 | O1: Email: | P1: Info@LTG.de | AB1: =IF(AND(IF(OR(B36<B42,B37<B42,B38<B42,B39<B42,B36>B43,B37>B43,B38>B43,B39>B43),,),COUNT(B36:B39)=4),"Grenzwerte","") ->  | AE1: Volumenstrom | AF1: Drehzahl | AL1: Auslegung | AM1: 1 | AN1: 2 | AO1: 3 | AP1: 4 | AU1: y = | AV1: x = | AX1: y = | AY1: x = | BC1: Raumluft | BD1: Raumluft | BG1: =IF(BH1=BI1,1,IF(BH2=BI1,2,IF(BH3=BI1,3,IF(BH4=BI1,4,0)))) -> 1 | BH1: Deutsch | BI1: Deutsch | BK1: Akustik-Zielwertsuche ausführen | BL1: Volumenströme zurücksetzen | CB1: Vergleich, ob für Enthalphieberechnung Taupunkttemperatur Ansaug genommen werden kann
A2: LTG Aktiengesellschaft | AE2: [m³/h] | AF2: [1/min] | AI2: Sollwert Schallleistungspegel LWA [dB(A)] | AM2: 35 | AN2: 40 | AO2: 45 | AP2: 50 | AR2: 3D-Strömung | AS2: Schalldämpfer (30-35mm Polyestervlies) | AU2: L_WA | AV2: Drehzahl | AX2: Druck/rho | AY2: Drehzahl | BC2: Dialogaufforderung | BD2: In Inputbox eingetragener Text | BH2: Englisch | BK2: calculate: target value (acoustic) | BL2: reset flow rates | CB2: Wasservorlauf | CC2: 5
A3: =S3 -> Auslegetool: VKL-Deckengerät, 2L (3,2mm), mit Filter, | S3: =CONCATENATE(S5,": ",S6,", ",S7, S8,S9,S10) -> Auslegetool: VKL-Deckengerät, 2L (3,2mm), mit Filter, | BH3: Franzoesisch | BK3: calculate: target value (acoustic) | BL3: réinitialiser le volume des flux | CB3: rF | CC3: 50
BH4: Italienisch | BK4: calculate: target value (acoustic) | BL4: ripristino del volume dei flussi
G5: Kühlfall: | L5: Heizfall: | S5: Auslegetool | T5: mit Filter, | AU5: a | AV5: b | AW5: m | AX5: m | AY5: b | AZ5: Messung | CB5: Torr | CC5: 760
A6: Projekt: | H6: Ansaugtemperatur: | I6: 26 | J6: °C | M6: Ansaugtemperatur: | N6: 22 | O6: °C | S6: VKL-Deckengerät | T6: ohne Filter | V6: Auslegungsgrenzen | AE6: Auslegetool | AF6: Abfrage | AI6: Tabellenblatt | AR6: Nein | AS6: Ja | AT6: 1 | AU6: -1.916451778e-05 | AV6: 0.06784050057 | AW6: 3.740877077 | AX6: 8.767392823e-08 | AY6: 2.694091046
H7: Kühlwasservorlauf¹: | I7: 16 | J7: °C | M7: Heizwasservorlauf: | N7: 55 | O7: °C | S7: 2L (3,2mm), | T7: mit 3D-Strömung | W7: T_Ansaug | X7: T_Vorlauf | Y7: T_Vorlauf2 | Z7: rF [%] | AD7: 1 | AE7: Volumenstrom vorgeben | AF7: 1 | AI7: =MID(CELL("dateiname",A1),FIND("]",CELL("dateiname",A1))+1,255) -> VKL | AR7: Nein | AS7: Nein | AT7: 2 | AU7: -1.916451778e-05 | AV7: 0.06784050057 | AW7: 3.740877077 | AX7: 3.708668313e-08 | AY7: 2.827143496 | AZ7: hr5267.hlx; hr5269.hlx; hr5271.hlx; hr5273.hlx; | CB7: Volumenstrom | CC7: Taupunkt Ansaug | CD7: Taupunkt im Kasten
A8: Datum: | B8: =TODAY() -> 2026-06-23 | G8: Kühlwasservorlauf kondensierender Betrieb²: | I8: 6 | J8: °C | S8: =IF(AB8=TRUE,L_mitFilter,L_ohneFilter) -> mit Filter, | T8: ohne 3D-Strömung | U8: Taupunkt Ansaugbed. | V8: Kühlfall | AB8: TRUE | AC8: =IF(AB8=TRUE,1,2) -> 1 | AD8: 2 | AE8: Drehzahl vorgeben | AR8: Ja | AS8: Nein | AT8: 3 | AU8: -1.916451778e-05 | AV8: 0.06784050057 | AW8: 3.740877077 | AX8: 2.109535702e-05 | AY8: 1.928705131 | CB8: [m³/h] | CC8: [°C] | CD8: [°C]
A9: Bearbeiter: | H9: relative Feuchte²: | I9: 50 | J9: % | S9: =IF(AB9=TRUE,L_mit3D,"") ->  | T9: mit Schalldämmung | U9: [°C] | V9: Minimal | W9: =Auslegung_BG1000_kondensierend!O74 -> 21 | X9: 16 | Y9: =Auslegung_BG1000_kondensierend!Q74 -> 3 | Z9: =Auslegung_BG1000_kondensierend!R74 -> 1 | AB9: FALSE | AC9: =IF(AB9=TRUE,1,2) -> 2 | AE9: ='Master-Auswertung_V120-V127'!A136 -> BG | AF9: ='Master-Auswertung_V120-V127'!B136 -> WT bzw. Laufradlänge | AG9: ='Master-Auswertung_V120-V127'!C136 -> Verhältnis | AR9: Ja | AS9: Ja | AT9: 4 | AU9: -1.916451778e-05 | AV9: 0.06784050057 | AW9: 3.740877077 | AX9: 9.449876657e-07 | AY9: 2.347615202 | CB9: 55.342685 | CC9: 7.232929224 | CD9: 7.288735573
H10: projektierte Leistung: | I10: -800 | J10: W | M10: projektierte Leistung: | N10: 1000 | O10: W | S10: =IF(AB10=TRUE,L_mitSchalld,"") ->  | T10: ohne Schalldämmung | U10: =BE32 ->  | V10: Maximal | W10: =Auslegung_BG1000_kondensierend!O75 -> 28 | X10: 24 | Y10: =Auslegung_BG1000_kondensierend!Q75 -> 19 | Z10: =Auslegung_BG1000_kondensierend!R75 -> 99 | AB10: FALSE | AC10: =IF(AB10=TRUE,1,2) -> 2 | AE10: ='Master-Auswertung_V120-V127'!A137 -> Baugröße 1000 | AF10: ='Master-Auswertung_V120-V127'!B137 -> 1060 | AG10: ='Master-Auswertung_V120-V127'!C137 -> 1 | AR10: =IF($AC$9=2,"Nein","Ja") -> Nein | AS10: =IF($AC$10=2,"Nein","Ja") -> Nein | AT10: =IF(AND(AR10="Nein", AS10="JA"),1,IF(AND(AR10="Nein",AS10="Nein"),2,IF(AND(AR10="Ja",AS10="Nein"),3,4))) -> 2 | AU10: =VLOOKUP($AT$10,$AT$6:$AZ$9,2,0) -> -1.916451778e-05 | AV10: =VLOOKUP($AT$10,$AT$6:$AZ$9,3,0) -> 0.06784050057 | AW10: =VLOOKUP($AT$10,$AT$6:$AZ$9,4,0) -> 3.740877077 | AX10: =VLOOKUP($AT$10,$AT$6:$AZ$9,5,0) -> 3.708668313e-08 | AY10: =VLOOKUP($AT$10,$AT$6:$AZ$9,6,0) -> 2.827143496 | AZ10: =VLOOKUP($AT$10,$AT$6:$AZ$9,7,0) -> hr5267.hlx; hr5269.hlx; hr5271.hlx; hr5273.hlx; | CB10: 109.5249661 | CC10: 9.0297887 | CD10: 9.05981947
CB11: 163.2600707 | CC11: 10.20861136 | CD11: 10.22649143
H12: Nennwassermenge: | I12: 200 | J12: kg/h | M12: Nennwassermenge: | N12: 120 | O12: kg/h | V12: Heizfall | AE12: ='Master-Auswertung_V120-V127'!A139 -> Baugröße 630 | AF12: ='Master-Auswertung_V120-V127'!B139 -> 630 | AG12: ='Master-Auswertung_V120-V127'!C139 -> 0.5943396226 | CB12: 216.72807 | CC12: 11.02820352 | CD12: 11.03964151
H13: Wassermenge Kühlen: | I13: 200 | J13: kg/h | M13: Wassermenge Heizen: | N13: 110 | O13: kg/h | V13: Minimal | W13: 19 | X13: 30 | AE13: ='Master-Auswertung_V120-V127'!A140 -> Baugröße 800 | AF13: ='Master-Auswertung_V120-V127'!B140 -> 860 | AG13: ='Master-Auswertung_V120-V127'!C140 -> 0.8113207547
V14: Maximal | W14: 27 | X14: 80 | AE14: ='Master-Auswertung_V120-V127'!A141 -> Baugröße 1000 | AF14: ='Master-Auswertung_V120-V127'!B141 -> 1060 | AG14: ='Master-Auswertung_V120-V127'!C141 -> 1
AR15: y = | AS15: mLN(x) + b
A18: Baugröße 630 | S18: lt. Wikipedia 15-20ml / Tropfen | AE18: ='Master-Auswertung_V120-V127'!A142 -> Baugröße 1200 | AF18: ='Master-Auswertung_V120-V127'!B142 -> 1260 | AG18: ='Master-Auswertung_V120-V127'!C142 -> 1.188679245 | AU18: =AU10*E22^2+AV10*E22^1+AW10+10*LOG($AF$12/$AF$10) -> 35.00008422 | BH18: =Torr_in_Pa(760) -> 
A20: Auslegung | B20: =IF($AF$7=1,$AE$1,$AF$1) -> Volumenstrom | C20: =IF($AF$7=2,$AE$1,$AF$1) -> Drehzahl | D20: =L_Volumenstrom -> Volumenstrom | E20: =L_Drehzahl -> Drehzahl | F20: Steuerspannung (mit Filter) | G20: LWA | H20: LA18 | I20: QSK1) | J20: QTotal2) | K20: QSensibel,K2) | L20: QSH | M20: tKWRL | N20: tKWRL2) | O20: tWWRL | P20: Kondensat² | Q20: Zulufttemp.² | S20: Tropfen | T20: Zulufttemp. | U20: Taupunkt nach WT | V20: qSK1) | W20: qSH1) | X20: qSK2) | Y20: qtotal2) | Z20: Steuerspannung (mit Filter) | AA20: dp / rho | BD20: Randparameter: | BI20: Wassermenge Gesamt in der Luft | BJ20: latente Leistung | BK20: Verdampfungsenthalpie | BN20: Kondensatmenge | BO20: Volumenstrom Wasser (Ansaug) | BP20: Volumenstrom Luft (Ansaug) | BQ20: Masse Luft | BR20: Masse Wasser (im Volumenstrom) - Kasten | BS20: Zulufttemperatur | BT20: Dichte Luft (Kasten) | BU20: Dichte Wasser (Kasten) | BV20: Volumenstrom Luft | BW20: Volumenstrom Wasser | BX20: Massenstrom Kasten | BY20: Volumenstrom Kasten | BZ20: Dichte Misch(Kasten) | CA20: phi_x (kg_H20/kg_Gesamt Wassergehalt) | CB20: Feuchte nach WT (Kasten) | CC20: Taupunkt im Kasten
B21: =IF($AF$7=1,$AE$2,$AF$2) -> [m³/h] | C21: =IF($AF$7=2,$AE$2,$AF$2) -> [1/min] | D21: [m³/h] | E21: [1/min] | F21: [V] | G21: [dB(A)] | H21: [dB(A)] | I21: [W] | J21: [W] | K21: [W] | L21: [W] | M21: [°C] | N21: [°C] | O21: [°C] | P21: [kg/h] bzw. [l / h] | Q21: [°C] | S21: [Anzahl / min] | T21: =BS21 -> [°C] | U21: [°C] | V21: [W] | W21: [W] | X21: [W] | Y21: [W] | Z21: [V] | AA21: [(Pa*m³)/kg] | AB21: Grenzen der Auslegung | AE21: Abhängig von Abfrage | AH21: heizen | BD21: rel. Feuchte | BE21: =I9 -> 50 | BF21: % | BI21: kg H20 / h | BJ21: W bzw. J / s | BK21: kJ/mol | BL21: kJ/g | BM21: J/kg | BN21: kg / h bzw.l / h | BO21: [m³/h] | BP21: [m³/h] | BQ21: [kg/h] | BR21: [kg/h] | BS21: [°C] | BT21: [kg/m³] | BU21: [kg/m³] | BV21: [m³/h] | BW21: [m³/h] | BX21: [kg/h] | BY21: [m³/h] | BZ21: [kg/m³] | CB21: rF [%] | CC21: [°C]
A22: =IF(B22="","",1) -> 1 | B22: 137.3379337 | C22: =IF(B22="","",'Master-Auswertung_V120-V127'!C252) -> 593.6347557 | D22: =IF(B22="","",IF($AF$7=1,B22,C22)) -> 137.3379337 | E22: =IF(B22="","",IF($AF$7=1,C22,B22)) -> 593.6347557 | F22: =Z22 -> 4.774119237 | G22: =IFERROR(IF(OR(B22="",B22=0,$AU$10*E22^2+$AV$10*E22^1+$AW$10+10*LOG($AF$12/$AF$10)<20),"<20",$AU$10*E22^2+$AV$10*E22^1+$AW$10+10*LOG($AF$12/$AF$10)),"") -> 35.00008422 | H22: =IFERROR(IF(B22="","",G22-6.5),"") -> 28.50008422 | I22: =IF(OR(B22<$AE$23,B22>$AE$24),"",IF(B22="","",IF(B22=0,,IFERROR((V22*($I$7-$I$6)),"")))) -> -335.0617565 | J22: =IF(OR(B22<$AE$23,B22>$AE$24),"",IFERROR(Y22*($I$8-$I$6),"")) -> -914.5243907 | K22: =IF(OR(B22<$AE$23,B22>$AE$24),"",IFERROR(X22*($I$8-$I$6),"")) -> -610.9836846 | L22: =IF(OR(B22<$AE$23,B22>$AE$24),"",IF(D22=0,,IFERROR((W22*($N$7-$N$6)),""))) -> 882.4953351 | M22: =IF(OR(B22<$AE$23,B22>$AE$24),"",IF(IFERROR(IF(I22=0,,$I$7-((I22/(4.2*$I$13/3.6)))),)=0,"",IFERROR(IF(I22=0,,$I$7-((I22/(4.2*$I$13/3.6)))),))) -> 17.43597896 | N22: =IF(OR(B22<$AE$23,B22>$AE$24),"",IF(IFERROR(IF(J22=0,,$I$8-((J22/(4.2*$I$13/3.6)))),)=0,"",IFERROR(IF(J22=0,,$I$8-((J22/(4.2*$I$13/3.6)))),))) -> 9.919390246 | O22: =IF(OR(B22<$AE$23,B22>$AE$24),"",IF(B22="","",IFERROR(IF(L22=0,,($N$7-((L22/(4.2*$N$13/3.6))))),))) -> 48.12341297 | P22: =IFERROR(BN22,"") -> 0.4400236394 | Q22: =T22 -> 12.65371609 | S22: =IFERROR(P22*1000/15/60,"") -> 0.4889151549 | T22: =IFERROR(BS22,"") -> 12.65371609 | U22: =IFERROR(CC22,"") ->  | V22: ='Master-Auswertung_V120-V127'!W252 -> 33.50617565 | W22: ='Heizen_Auswertung_V120-V127'!W252 -> 26.74228288 | X22: ='Master-Auswertung_V120-V127'!N252 -> 30.54918423 | Y22: ='Master-Auswertung_V120-V127'!O252 -> 45.72621954 | Z22: ='Master-Auswertung_V120-V127'!Q252 -> 4.774119237 | AA22: =IF(B22="","",$AX$10*E22^$AY$10) -> 2.572498324 | AB22: =$AB$72 -> Drehzahl [1/min] | AC22: =$AC$72 -> Volumenstrom [m³/h] | AD22: =$AD$72 -> Wasser-Massenstrom [kg/h] kühlen | AE22: =IF($AF$7=1,AC22,AB22) -> Volumenstrom [m³/h] | AF22: Einheit | AH22: =$AD$72 -> Wasser-Massenstrom [kg/h] kühlen | BD22: Druck | BE22: 760 | BF22: Torr | BI22: =$BE$34*(D22*$BE$24) ->  | BJ22: =J22-K22 -> -303.5407062 | BK22: =50.09-0.9298*(273.15+$I$8)/1000-65.19*((273.15+$I$8)/1000)^2 -> 44.75053367 | BL22: =BK22/$BE$27 -> 2.483381447 | BM22: =BL22*1000000 -> 2483381.447 | BN22: =ABS(BJ22)/BM22*3600 -> 0.4400236394 | BO22: =BI22/$BE$39 ->  | BP22: =D22-BO22 ->  | BQ22: =BP22*$BE$38 ->  | BR22: =BI22-BN22 ->  | BS22: =K22*3/D22+$BE$23 -> 12.65371609 | BT22: =dichteLuft(0,Torr_in_Pa($BE$22),BS22) ->  | BU22: =999.972-7*10^(-3)*(BS22-4)^2 -> 999.4477924 | BV22: =BQ22/BT22*$BE$38 ->  | BW22: =BR22/BU22*$BE$38 ->  | BX22: =BR22+BQ22 ->  | BY22: =BV22+BW22 ->  | BZ22: =BX22/BY22 ->  | CA22: =BR22/BY22/BZ22 ->  | CB22: =rf_prozent_von_T_grad_x_hf_gH2O_kg_trLuft(BS22,CA22*1000) ->  | CC22: =td_T_grad_rf_prozent(BS22,CB22) -> 
A23: =IF(B23="","",2) -> 2 | B23: 169.7880986 | C23: =IF(B23="","",'Master-Auswertung_V120-V127'!C253) -> 710.3321111 | D23: =IF(B23="","",IF($AF$7=1,B23,C23)) -> 169.7880986 | E23: =IF(B23="","",IF($AF$7=1,C23,B23)) -> 710.3321111 | F23: =Z23 -> 5.823639423 | G23: =IFERROR(IF(OR(B23="",B23=0,$AU$10*E23^2+$AV$10*E23^1+$AW$10+10*LOG($AF$12/$AF$10)<20),"<20",$AU$10*E23^2+$AV$10*E23^1+$AW$10+10*LOG($AF$12/$AF$10)),"") -> 40.00063643 | H23: =IFERROR(IF(B23="","",G23-6.5),"") -> 33.50063643 | I23: =IF(OR(B23<$AE$23,B23>$AE$24),"",IF(B23="","",IF(B23=0,,IFERROR((V23*($I$7-$I$6)),"")))) -> -405.5936205 | J23: =IF(OR(B23<$AE$23,B23>$AE$24),"",IFERROR(Y23*($I$8-$I$6),"")) -> -1056.153008 | K23: =IF(OR(B23<$AE$23,B23>$AE$24),"",IFERROR(X23*($I$8-$I$6),"")) -> -727.2811548 | L23: =IF(OR(B23<$AE$23,B23>$AE$24),"",IF(D23=0,,IFERROR((W23*($N$7-$N$6)),""))) -> 1064.564172 | M23: =IF(OR(B23<$AE$23,B23>$AE$24),"",IF(IFERROR(IF(I23=0,,$I$7-((I23/(4.2*$I$13/3.6)))),)=0,"",IFERROR(IF(I23=0,,$I$7-((I23/(4.2*$I$13/3.6)))),))) -> 17.73825837 | N23: =IF(OR(B23<$AE$23,B23>$AE$24),"",IF(IFERROR(IF(J23=0,,$I$8-((J23/(4.2*$I$13/3.6)))),)=0,"",IFERROR(IF(J23=0,,$I$8-((J23/(4.2*$I$13/3.6)))),))) -> 10.52637003 | O23: =IF(OR(B23<$AE$23,B23>$AE$24),"",IF(B23="","",IFERROR(IF(L23=0,,($N$7-((L23/(4.2*$N$13/3.6))))),))) -> 46.70469476 | P23: =IFERROR(BN23,"") -> 0.4767445909 | Q23: =T23 -> 13.14960894 | S23: =IFERROR(P23*1000/15/60,"") -> 0.5297162122 | T23: =IFERROR(BS23,"") -> 13.14960894 | U23: =IFERROR(CC23,"") ->  | V23: ='Master-Auswertung_V120-V127'!W253 -> 40.55936205 | W23: ='Heizen_Auswertung_V120-V127'!W253 -> 32.25952037 | X23: ='Master-Auswertung_V120-V127'!N253 -> 36.36405774 | Y23: ='Master-Auswertung_V120-V127'!O253 -> 52.8076504 | Z23: ='Master-Auswertung_V120-V127'!Q253 -> 5.823639423 | AA23: =IF(B23="","",$AX$10*E23^$AY$10) -> 4.272761784 | AB23: =AB73 -> 263.2148627 | AC23: =AC73*$AG$12 -> 52.54458288 | AD23: =AD73 -> 51.93565267 | AE23: =IF($AF$7=1,AC23,AB23) -> 52.54458288 | AF23: =IF($AF$7=1,"m³/h","1/min") -> m³/h | AH23: =AH73 -> 38.88526167 | BD23: (Ansaug) Temperatur | BE23: =I6 -> 26 | BF23: °C | BI23: =$BE$34*(D23*$BE$24) ->  | BJ23: =J23-K23 -> -328.8718533 | BK23: =50.09-0.9298*(273.15+$I$8)/1000-65.19*((273.15+$I$8)/1000)^2 -> 44.75053367 | BL23: =BK23/$BE$27 -> 2.483381447 | BM23: =BL23*1000000 -> 2483381.447 | BN23: =ABS(BJ23)/BM23*3600 -> 0.4767445909 | BO23: =BI23/$BE$39 ->  | BP23: =D23-BO23 ->  | BQ23: =BP23*$BE$38 ->  | BR23: =BI23-BN23 ->  | BS23: =K23*3/D23+$BE$23 -> 13.14960894 | BT23: =dichteLuft(0,Torr_in_Pa($BE$22),BS23) ->  | BU23: =999.972-7*10^(-3)*(BS23-4)^2 -> 999.3859926 | BV23: =BQ23/BT23*$BE$38 ->  | BW23: =BR23/BU23*$BE$38 ->  | BX23: =BR23+BQ23 ->  | BY23: =BV23+BW23 ->  | BZ23: =BX23/BY23 ->  | CA23: =BR23/BY23/BZ23 ->  | CB23: =rf_prozent_von_T_grad_x_hf_gH2O_kg_trLuft(BS23,CA23*1000) ->  | CC23: =td_T_grad_rf_prozent(BS23,CB23) -> 
A24: =IF(B24="","",3) -> 3 | B24: 207.4453849 | C24: =IF(B24="","",'Master-Auswertung_V120-V127'!C254) -> 841.5331946 | D24: =IF(B24="","",IF($AF$7=1,B24,C24)) -> 207.4453849 | E24: =IF(B24="","",IF($AF$7=1,C24,B24)) -> 841.5331946 | F24: 7.025847816 | G24: 44.99936495 | H24: =IFERROR(IF(B24="","",G24-6.5),"") -> 38.49936495 | I24: =IF(OR(B24<$AE$23,B24>$AE$24),"",IF(B24="","",IF(B24=0,,IFERROR((V24*($I$7-$I$6)),"")))) -> -484.0028537 | J24: =IF(OR(B24<$AE$23,B24>$AE$24),"",IFERROR(Y24*($I$8-$I$6),"")) -> -1201.692031 | K24: =IF(OR(B24<$AE$23,B24>$AE$24),"",IFERROR(X24*($I$8-$I$6),"")) -> -858.5762412 | L24: =IF(OR(B24<$AE$23,B24>$AE$24),"",IF(D24=0,,IFERROR((W24*($N$7-$N$6)),""))) -> 1252.139598 | M24: =IF(OR(B24<$AE$23,B24>$AE$24),"",IF(IFERROR(IF(I24=0,,$I$7-((I24/(4.2*$I$13/3.6)))),)=0,"",IFERROR(IF(I24=0,,$I$7-((I24/(4.2*$I$13/3.6)))),))) -> 18.07429794 | N24: 11.15010871 | O24: =IF(OR(B24<$AE$23,B24>$AE$24),"",IF(B24="","",IFERROR(IF(L24=0,,($N$7-((L24/(4.2*$N$13/3.6))))),))) -> 45.24306807 | P24: =IFERROR(BN24,"") -> 0.4973931192 | Q24: 13.58358146 | S24: =IFERROR(P24*1000/15/60,"") -> 0.5526590214 | T24: =IFERROR(BS24,"") -> 13.58358146 | U24: =IFERROR(CC24,"") ->  | V24: ='Master-Auswertung_V120-V127'!W254 -> 48.40028537 | W24: ='Heizen_Auswertung_V120-V127'!W254 -> 37.94362418 | X24: ='Master-Auswertung_V120-V127'!N254 -> 42.92881206 | Y24: ='Master-Auswertung_V120-V127'!O254 -> 60.08460156 | Z24: ='Master-Auswertung_V120-V127'!Q254 -> 7.025847816 | AA24: 6.899445029 | AB24: =AB74 -> 1166.881725 | AC24: =AC74*$AG$12+4 -> 309.1956117 | AD24: =AD74 -> 276.2662937 | AE24: =IF($AF$7=1,AC24,AB24) -> 309.1956117 | AF24: =IF($AF$7=1,"m³/h","1/min") -> m³/h | AH24: =AH74 -> 358.943644 | BD24: Dichte | BE24: =dichteLuft(BE21,Torr_in_Pa(BE22),BE23) ->  | BF24: kg/m³ | BJ24: -343.11579 | BK24: 44.75053367 | BL24: 2.483381447 | BM24: 2483381.447 | BN24: 0.4973931192 | BS24: 13.58358146 | BT24: =dichteLuft(0,Torr_in_Pa($BE$22),BS24) ->  | BU24: 999.3290848
A25: =IF(B25="","",4) -> 4 | B25: 252.7705829 | C25: =IF(B25="","",'Master-Auswertung_V120-V127'!C255) -> 994.6903224 | D25: =IF(B25="","",IF($AF$7=1,B25,C25)) -> 252.7705829 | E25: =IF(B25="","",IF($AF$7=1,C25,B25)) -> 994.6903224 | F25: 8.454799689 | G25: 49.99997004 | H25: =IFERROR(IF(B25="","",G25-6.5),"") -> 43.49997004 | I25: =IF(OR(B25<$AE$23,B25>$AE$24),"",IF(B25="","",IF(B25=0,,IFERROR((V25*($I$7-$I$6)),"")))) -> -569.3411041 | J25: =IF(OR(B25<$AE$23,B25>$AE$24),"",IFERROR(Y25*($I$8-$I$6),"")) -> -1349.740904 | K25: =IF(OR(B25<$AE$23,B25>$AE$24),"",IFERROR(X25*($I$8-$I$6),"")) -> -1009.523607 | L25: =IF(OR(B25<$AE$23,B25>$AE$24),"",IF(D25=0,,IFERROR((W25*($N$7-$N$6)),""))) -> 1431.22695 | M25: =IF(OR(B25<$AE$23,B25>$AE$24),"",IF(IFERROR(IF(I25=0,,$I$7-((I25/(4.2*$I$13/3.6)))),)=0,"",IFERROR(IF(I25=0,,$I$7-((I25/(4.2*$I$13/3.6)))),))) -> 18.4400333 | N25: 11.78460387 | O25: =IF(OR(B25<$AE$23,B25>$AE$24),"",IF(B25="","",IFERROR(IF(L25=0,,($N$7-((L25/(4.2*$N$13/3.6))))),))) -> 43.84758221 | P25: =IFERROR(BN25,"") -> 0.493191359 | Q25: 14.01849968 | S25: =IFERROR(P25*1000/15/60,"") -> 0.5479903989 | T25: =IFERROR(BS25,"") -> 14.01849968 | U25: =IFERROR(CC25,"") ->  | V25: ='Master-Auswertung_V120-V127'!W255 -> 56.93411041 | W25: ='Heizen_Auswertung_V120-V127'!W255 -> 43.37051363 | X25: ='Master-Auswertung_V120-V127'!N255 -> 50.47618033 | Y25: ='Master-Auswertung_V120-V127'!O255 -> 67.48704521 | Z25: ='Master-Auswertung_V120-V127'!Q255 -> 8.454799689 | AA25: 11.06908757 | AE25: =AVERAGE(AE23:AE24) -> 180.8700973 | BD25: Verdampfungsenthalpie | BE25: =50.09-0.9298*(273.15+BE32)/1000-65.19*((273.15+BE32)/1000)^2 ->  | BF25: kJ/mol | BJ25: -340.2172974 | BK25: 44.75053367 | BL25: 2.483381447 | BM25: 2483381.447 | BN25: 0.493191359 | BS25: =K25*3/D25+$BE$23 -> 14.01849968 | BT25: =dichteLuft(0,Torr_in_Pa($BE$22),BS25) ->  | BU25: 999.2694076
A27: =IF(OR(B22<B28,B23<B28,B24<B28,B25<B28,B22>B29,B23>B29,B24>B29,B25>B29),"Grenzwerte","") ->  | J27: DpK = | K27: ='Master-Auswertung_V120-V127'!D247 -> 25.02356856 | L27: [kPa] | M27: DpH = | N27: ='Heizen_Auswertung_V120-V127'!D247 -> 8.06189617 | O27: [kPa] | BD27: molare Masse Wasser | BE27: 18.02 | BF27: g/mol
A28: Minimal | B28: =AE23 -> 52.54458288 | C28: =AF23 -> m³/h | BD28: Verdampfungsenthalpie | BE28: =BE25/BE27 ->  | BF28: kJ/g
A29: Maximal | B29: =AE24 -> 309.1956117 | C29: =AF24 -> m³/h | BD29: Verdampfungsenthalpie | BE29: =BE28*1000000 ->  | BF29: J/kg
A32: Baugröße 800 | BD32: Taupunkttemperatur | BE32: =td_T_grad_rf_prozent(BE23,BE21) ->  | BF32: °C
A34: =L_Auslegung -> Auslegung | B34: =IF($AF$7=1,$AE$1,$AF$1) -> Volumenstrom | C34: =IF($AF$7=2,$AE$1,$AF$1) -> Drehzahl | D34: =L_Volumenstrom -> Volumenstrom | E34: =L_Drehzahl -> Drehzahl | F34: =L_Steuerspannung -> Steuerspannung (mit Filter) | G34: LWA | H34: LA18 | I34: QSK1) | J34: QTotal2) | K34: QSensibel,K2) | L34: QSH | M34: tKWRL | N34: tKWRL2) | O34: tWWRL | P34: =P20 -> Kondensat² | Q34: =Q20 -> Zulufttemp.² | S34: Tropfen | T34: Zulufttemp. | U34: Taupunkt nach WT | V34: qSK1) | W34: qSH1) | X34: qSK2) | Y34: qtotal2) | Z34: Steuerspannung (mit Filter) | AA34: dp / rho | BD34: phi_x (kg_H20/kg_Gesamt Wassergehalt) | BE34: =phi_x($BE$21,Torr_in_Pa($BE$22),$BE$23) ->  | BF34: kg_H20/kg_Gesamt | BI34: Wassermenge Gesamt in der Luft | BJ34: latente Leistung | BN34: Kondensatmenge | BS34: Zulufttemperatur | CC34: Taupunkt im Kasten
B35: =IF($AF$7=1,$AE$2,$AF$2) -> [m³/h] | C35: =IF($AF$7=2,$AE$2,$AF$2) -> [1/min] | D35: [m³/h] | E35: [1/min] | F35: [V] | G35: [dB(A)] | H35: [dB(A)] | I35: [W] | J35: [W] | K35: [W] | L35: [W] | M35: [°C] | N35: [°C] | O35: [°C] | P35: [kg/h] bzw. [l / h] | Q35: [°C] | S35: [Anzahl / min] | T35: =BS35 -> [°C] | U35: [°C] | V35: [W] | W35: [W] | X35: [W] | Y35: [W] | Z35: [V] | AA35: [(Pa*m³)/kg] | AB35: Grenzen der Auslegung | AE35: Abhängig von Abfrage | AH35: heizen | BI35: kg H20 / h | BJ35: W bzw. J / s | BN35: kg / h bzw.l / h | BS35: [°C] | CC35: [°C]
A36: =IF(B36="","",1) -> 1 | B36: 176.4794262 | C36: =IF(B36="","",'Master-Auswertung_V120-V127'!C266) -> 564.0335249 | D36: =IF(B36="","",IF($AF$7=1,B36,C36)) -> 176.4794262 | E36: =IF(B36="","",IF($AF$7=1,C36,B36)) -> 564.0335249 | F36: =Z36 -> 4.511245108 | G36: =IFERROR(IF(OR(B36="",B36=0,$AU$10*E36^2+$AV$10*E36^1+$AW$10+10*LOG($AF$13/$AF$10)<20),"<20",$AU$10*E36^2+$AV$10*E36^1+$AW$10+10*LOG($AF$13/$AF$10)),"") -> 35.0002384 | H36: =IFERROR(IF(B36="","",G36-6.5),"") -> 28.5002384 | I36: =IF(OR(B36<$AE$73,B36>$AE$74),"",IF(B36="","",IF(B36=0,,IFERROR((V36*($I$7-$I$6)),"")))) -> -429.5075064 | J36: =IF(OR(B36<$AE$73,B36>$AE$74),"",IFERROR(Y36*($I$8-$I$6),"")) -> -1187.009306 | K36: =IF(OR(B36<$AE$73,B36>$AE$74),"",IFERROR(X36*($I$8-$I$6),"")) -> -787.3054323 | L36: =IF(OR(B36<$AE$73,B36>$AE$74),"",IF(D36=0,,IFERROR((W36*($N$7-$N$6)),""))) -> 1132.505227 | M36: =IF(OR(B36<$AE$73,B36>$AE$74),"",IF(IFERROR(IF(I36=0,,$I$7-((I36/(4.2*$I$13/3.6)))),)=0,"",IFERROR(IF(I36=0,,$I$7-((I36/(4.2*$I$13/3.6)))),))) -> 17.84074646 | N36: =IF(OR(B36<$AE$37,B36>$AE$38),"",IF(IFERROR(IF(J36=0,,$I$8-((J36/(4.2*$I$13/3.6)))),)=0,"",IFERROR(IF(J36=0,,$I$8-((J36/(4.2*$I$13/3.6)))),))) -> 11.08718274 | O36: =IF(OR(B36<$AE$73,B36>$AE$74),"",IF(B36="","",IFERROR(IF(L36=0,,($N$7-((L36/(4.2*$N$13/3.6))))),))) -> 46.17528394 | P36: =IFERROR(BN36,"") -> 0.5794252621 | Q36: =T36 -> 12.61647792 | S36: =IFERROR(P36*1000/15/60,"") -> 0.6438058468 | T36: =IFERROR(BS36,"") -> 12.61647792 | U36: =IFERROR(CC36,"") ->  | V36: ='Master-Auswertung_V120-V127'!W266 -> 42.95075064 | W36: ='Heizen_Auswertung_V120-V127'!W266 -> 34.31834022 | X36: ='Master-Auswertung_V120-V127'!N266 -> 39.36527162 | Y36: ='Master-Auswertung_V120-V127'!O266 -> 59.35046531 | Z36: ='Master-Auswertung_V120-V127'!Q266 -> 4.511245108 | AA36: =IF(B36="","",$AX$10*E36^$AY$10) -> 2.226136547 | AB36: =$AB$72 -> Drehzahl [1/min] | AC36: =$AC$72 -> Volumenstrom [m³/h] | AD36: =$AD$72 -> Wasser-Massenstrom [kg/h] kühlen | AE36: =IF($AF$7=1,AC36,AB36) -> Volumenstrom [m³/h] | AF36: Einheit | AH36: =$AD$72 -> Wasser-Massenstrom [kg/h] kühlen | BD36: universelle Gaskonstante | BE36: 8.3144598 | BF36: J/ mol K | BI36: =$BE$34*(D36*$BE$24) ->  | BJ36: =J36-K36 -> -399.7038738 | BK36: =50.09-0.9298*(273.15+$I$8)/1000-65.19*((273.15+$I$8)/1000)^2 -> 44.75053367 | BL36: =BK36/$BE$27 -> 2.483381447 | BM36: =BL36*1000000 -> 2483381.447 | BN36: =ABS(BJ36)/BM36*3600 -> 0.5794252621 | BO36: =BI36/$BE$39 ->  | BP36: =D36-BO36 ->  | BQ36: =BP36*$BE$38 ->  | BR36: =BI36-BN36 ->  | BS36: =K36*3/D36+$BE$23 -> 12.61647792 | BT36: =dichteLuft(0,Torr_in_Pa($BE$22),BS36) ->  | BU36: =999.972-7*10^(-3)*(BS36-4)^2 -> 999.4522942 | BV36: =BQ36/BT36*$BE$38 ->  | BW36: =BR36/BU36*$BE$38 ->  | BX36: =BR36+BQ36 ->  | BY36: =BV36+BW36 ->  | BZ36: =BX36/BY36 ->  | CA36: =BR36/BY36/BZ36 ->  | CB36: =rf_prozent_von_T_grad_x_hf_gH2O_kg_trLuft(BS36,CA36*1000) ->  | CC36: =td_T_grad_rf_prozent(BS36,CB36) -> 
A37: =IF(B37="","",2) -> 2 | B37: 219.1844193 | C37: =IF(B37="","",'Master-Auswertung_V120-V127'!C267) -> 677.5452867 | D37: =IF(B37="","",IF($AF$7=1,B37,C37)) -> 219.1844193 | E37: =IF(B37="","",IF($AF$7=1,C37,B37)) -> 677.5452867 | F37: 5.526756206 | G37: =IFERROR(IF(OR(B37="",B37=0,$AU$10*E37^2+$AV$10*E37^1+$AW$10+10*LOG($AF$13/$AF$10)<20),"<20",$AU$10*E37^2+$AV$10*E37^1+$AW$10+10*LOG($AF$13/$AF$10)),"") -> 40.00000486 | H37: =IFERROR(IF(B37="","",G37-6.5),"") -> 33.50000486 | I37: =IF(OR(B37<$AE$73,B37>$AE$74),"",IF(B37="","",IF(B37=0,,IFERROR((V37*($I$7-$I$6)),"")))) -> -521.7459747 | J37: =IF(OR(B37<$AE$73,B37>$AE$74),"",IFERROR(Y37*($I$8-$I$6),"")) -> -1376.165184 | K37: =IF(OR(B37<$AE$73,B37>$AE$74),"",IFERROR(X37*($I$8-$I$6),"")) -> -939.3766194 | L37: =IF(OR(B37<$AE$73,B37>$AE$74),"",IF(D37=0,,IFERROR((W37*($N$7-$N$6)),""))) -> 1374.995461 | M37: =IF(OR(B37<$AE$73,B37>$AE$74),"",IF(IFERROR(IF(I37=0,,$I$7-((I37/(4.2*$I$13/3.6)))),)=0,"",IFERROR(IF(I37=0,,$I$7-((I37/(4.2*$I$13/3.6)))),))) -> 18.23605418 | N37: =IF(OR(B37<$AE$37,B37>$AE$38),"",IF(IFERROR(IF(J37=0,,$I$8-((J37/(4.2*$I$13/3.6)))),)=0,"",IFERROR(IF(J37=0,,$I$8-((J37/(4.2*$I$13/3.6)))),))) -> 11.89785079 | O37: =IF(OR(B37<$AE$73,B37>$AE$74),"",IF(B37="","",IFERROR(IF(L37=0,,($N$7-((L37/(4.2*$N$13/3.6))))),))) -> 44.28574965 | P37: =IFERROR(BN37,"") -> 0.6331845778 | Q37: =T37 -> 13.14265427 | S37: =IFERROR(P37*1000/15/60,"") -> 0.7035384197 | T37: =IFERROR(BS37,"") -> 13.14265427 | U37: =IFERROR(CC37,"") ->  | V37: ='Master-Auswertung_V120-V127'!W267 -> 52.17459747 | W37: ='Heizen_Auswertung_V120-V127'!W267 -> 41.66652912 | X37: ='Master-Auswertung_V120-V127'!N267 -> 46.96883097 | Y37: ='Master-Auswertung_V120-V127'!O267 -> 68.8082592 | Z37: ='Master-Auswertung_V120-V127'!Q267 -> 5.526756206 | AA37: =IF(B37="","",$AX$10*E37^$AY$10) -> 3.73840955 | AB37: =AB73 -> 263.2148627 | AC37: =AC73*$AG$13 -> 71.72752583 | AD37: =AD73 -> 51.93565267 | AE37: =IF($AF$7=1,AC37,AB37) -> 71.72752583 | AF37: =IF($AF$7=1,"m³/h","1/min") -> m³/h | AH37: =AH73 -> 38.88526167 | BI37: =$BE$34*(D37*$BE$24) ->  | BJ37: =J37-K37 -> -436.7885647 | BK37: =50.09-0.9298*(273.15+$I$8)/1000-65.19*((273.15+$I$8)/1000)^2 -> 44.75053367 | BL37: =BK37/$BE$27 -> 2.483381447 | BM37: =BL37*1000000 -> 2483381.447 | BN37: =ABS(BJ37)/BM37*3600 -> 0.6331845778 | BO37: =BI37/$BE$39 ->  | BP37: =D37-BO37 ->  | BQ37: =BP37*$BE$38 ->  | BR37: =BI37-BN37 ->  | BS37: =K37*3/D37+$BE$23 -> 13.14265427 | BT37: =dichteLuft(0,Torr_in_Pa($BE$22),BS37) ->  | BU37: =999.972-7*10^(-3)*(BS37-4)^2 -> 999.3868831 | BV37: =BQ37/BT37*$BE$38 ->  | BW37: =BR37/BU37*$BE$38 ->  | BX37: =BR37+BQ37 ->  | BY37: =BV37+BW37 ->  | BZ37: =BX37/BY37 ->  | CA37: =BR37/BY37/BZ37 ->  | CB37: =rf_prozent_von_T_grad_x_hf_gH2O_kg_trLuft(BS37,CA37*1000) ->  | CC37: =td_T_grad_rf_prozent(BS37,CB37) -> 
A38: =IF(B38="","",3) -> 3 | B38: 268.4381876 | C38: =IF(B38="","",'Master-Auswertung_V120-V127'!C268) -> 804.3155803 | D38: =IF(B38="","",IF($AF$7=1,B38,C38)) -> 268.4381876 | E38: =IF(B38="","",IF($AF$7=1,C38,B38)) -> 804.3155803 | F38: 6.682625423 | G38: 44.99999658 | H38: =IFERROR(IF(B38="","",G38-6.5),"") -> 38.49999658 | I38: =IF(OR(B38<$AE$73,B38>$AE$74),"",IF(B38="","",IF(B38=0,,IFERROR((V38*($I$7-$I$6)),"")))) -> -621.301453 | J38: =IF(OR(B38<$AE$73,B38>$AE$74),"",IFERROR(Y38*($I$8-$I$6),"")) -> -1562.523929 | K38: =IF(OR(B38<$AE$73,B38>$AE$74),"",IFERROR(X38*($I$8-$I$6),"")) -> -1104.473326 | L38: =IF(OR(B38<$AE$73,B38>$AE$74),"",IF(D38=0,,IFERROR((W38*($N$7-$N$6)),""))) -> 1625.274382 | M38: =IF(OR(B38<$AE$73,B38>$AE$74),"",IF(IFERROR(IF(I38=0,,$I$7-((I38/(4.2*$I$13/3.6)))),)=0,"",IFERROR(IF(I38=0,,$I$7-((I38/(4.2*$I$13/3.6)))),))) -> 18.66272051 | N38: 12.69653112 | O38: =IF(OR(B38<$AE$73,B38>$AE$74),"",IF(B38="","",IFERROR(IF(L38=0,,($N$7-((L38/(4.2*$N$13/3.6))))),))) -> 42.3355243 | P38: =IFERROR(BN38,"") -> 0.664006801 | Q38: 13.6566743 | S38: =IFERROR(P38*1000/15/60,"") -> 0.7377853345 | T38: =IFERROR(BS38,"") -> 13.6566743 | U38: =IFERROR(CC38,"") ->  | V38: ='Master-Auswertung_V120-V127'!W268 -> 62.1301453 | W38: ='Heizen_Auswertung_V120-V127'!W268 -> 49.25073884 | X38: ='Master-Auswertung_V120-V127'!N268 -> 55.22366631 | Y38: ='Master-Auswertung_V120-V127'!O268 -> 78.12619645 | Z38: ='Master-Auswertung_V120-V127'!Q268 -> 6.682625423 | AA38: 6.071214467 | AB38: =AB74 -> 1166.881725 | AC38: =AC74*$AG$13 -> 416.6162319 | AD38: =AD74 -> 276.2662937 | AE38: =IF($AF$7=1,AC38,AB38) -> 416.6162319 | AF38: =IF($AF$7=1,"m³/h","1/min") -> m³/h | AH38: =AH74 -> 358.943644 | BD38: Dichte Luft_Trocken (T_Anszaug_Druck) | BE38: =dichteLuft(0,Torr_in_Pa(BE22),BE23) ->  | BF38: kg/m³ | BJ38: -458.0506028 | BK38: 44.75053367 | BL38: 2.483381447 | BM38: 2483381.447 | BN38: 0.664006801 | BS38: 13.6566743 | BT38: =dichteLuft(0,Torr_in_Pa($BE$22),BS38) ->  | BU38: 999.3192405
A39: =IF(B39="","",4) -> 4 | B39: 326.9878368 | C39: =IF(B39="","",'Master-Auswertung_V120-V127'!C269) -> 950.4483328 | D39: =IF(B39="","",IF($AF$7=1,B39,C39)) -> 326.9878368 | E39: =IF(B39="","",IF($AF$7=1,C39,B39)) -> 950.4483328 | F39: 8.039421558 | G39: 49.99938749 | H39: =IFERROR(IF(B39="","",G39-6.5),"") -> 43.49938749 | I39: =IF(OR(B39<$AE$73,B39>$AE$74),"",IF(B39="","",IF(B39=0,,IFERROR((V39*($I$7-$I$6)),"")))) -> -726.5310031 | J39: =IF(OR(B39<$AE$73,B39>$AE$74),"",IFERROR(Y39*($I$8-$I$6),"")) -> -1743.463076 | K39: =IF(OR(B39<$AE$73,B39>$AE$74),"",IFERROR(X39*($I$8-$I$6),"")) -> -1286.59328 | L39: =IF(OR(B39<$AE$73,B39>$AE$74),"",IF(D39=0,,IFERROR((W39*($N$7-$N$6)),""))) -> 1868.098302 | M39: =IF(OR(B39<$AE$73,B39>$AE$74),"",IF(IFERROR(IF(I39=0,,$I$7-((I39/(4.2*$I$13/3.6)))),)=0,"",IFERROR(IF(I39=0,,$I$7-((I39/(4.2*$I$13/3.6)))),))) -> 19.1137043 | N39: 13.47198461 | O39: =IF(OR(B39<$AE$73,B39>$AE$74),"",IF(B39="","",IFERROR(IF(L39=0,,($N$7-((L39/(4.2*$N$13/3.6))))),))) -> 40.44338985 | P39: =IFERROR(BN39,"") -> 0.6622950597 | Q39: 14.19595286 | S39: =IFERROR(P39*1000/15/60,"") -> 0.7358833997 | T39: =IFERROR(BS39,"") -> 14.19595286 | U39: =IFERROR(CC39,"") ->  | V39: ='Master-Auswertung_V120-V127'!W269 -> 72.65310031 | W39: ='Heizen_Auswertung_V120-V127'!W269 -> 56.60903947 | X39: ='Master-Auswertung_V120-V127'!N269 -> 64.32966401 | Y39: ='Master-Auswertung_V120-V127'!O269 -> 87.17315378 | Z39: ='Master-Auswertung_V120-V127'!Q269 -> 8.039421558 | AA39: 9.733056004 | AE39: =AVERAGE(AE37:AE38) -> 244.1718789 | BD39: Dichte Wasser (T_Ansuag_Druck) | BE39: =999.972-7*10^(-3)*(BE23-4)^2 -> 996.584 | BF39: kg/m³ | BJ39: -456.8697954 | BK39: 44.75053367 | BL39: 2.483381447 | BM39: 2483381.447 | BN39: 0.6622950597 | BS39: 14.19595286 | BT39: =dichteLuft(0,Torr_in_Pa($BE$22),BS39) ->  | BU39: 999.2442978
A41: =IF(OR(B36<B42,B37<B42,B38<B42,B39<B42,B36>B43,B37>B43,B38>B43,B39>B43),"Grenzwerte","") ->  | J41: DpK = | K41: ='Master-Auswertung_V120-V127'!D233 -> 36.59436998 | L41: [kPa] | M41: DpH = | N41: ='Heizen_Auswertung_V120-V127'!D261 -> 9.962227913 | O41: [kPa]
A42: Minimal | B42: =AE73 -> 88.40834579 | C42: =AF73 -> m³/h
A43: Maximal | B43: =AE74 -> 513.5037277 | C43: =AF74 -> m³/h
A46: Baugröße 1000
A48: =L_Auslegung -> Auslegung | B48: =IF($AF$7=1,$AE$1,$AF$1) -> Volumenstrom | C48: =IF($AF$7=2,$AE$1,$AF$1) -> Drehzahl | D48: =L_Volumenstrom -> Volumenstrom | E48: =L_Drehzahl -> Drehzahl | F48: =F34 -> Steuerspannung (mit Filter) | G48: LWA | H48: LA18 | I48: QSK1) | J48: QTotal2) | K48: QSensibel,K2) | L48: QSH | M48: tKWRL | N48: tKWRL2) | O48: tWWRL | P48: =P20 -> Kondensat² | Q48: =Q20 -> Zulufttemp.² | S48: Tropfen | T48: Zulufttemp. | U48: Taupunkt nach WT | V48: qSK1) | W48: qSH1) | X48: qSK2) | Y48: qtotal2) | Z48: Steuerspannung (mit Filter) | AA48: dp / rho | BI48: Wassermenge Gesamt in der Luft | BJ48: latente Leistung | BN48: Kondensatmenge | BS48: Zulufttemperatur | CC48: Taupunkt im Kasten
B49: =IF($AF$7=1,$AE$2,$AF$2) -> [m³/h] | C49: =IF($AF$7=2,$AE$2,$AF$2) -> [1/min] | D49: [m³/h] | E49: [1/min] | F49: [V] | G49: [dB(A)] | H49: [dB(A)] | I49: [W] | J49: [W] | K49: [W] | L49: [W] | M49: [°C] | N49: [°C] | O49: [°C] | P49: [kg/h] bzw. [l / h] | Q49: [°C] | S49: [Anzahl / min] | T49: =BS49 -> [°C] | U49: [°C] | V49: [W] | W49: [W] | X49: [W] | Y49: [W] | Z49: [V] | AA49: [(Pa*m³)/kg] | AB49: Grenzen der Auslegung | AE49: Abhängig von Abfrage | AH49: heizen | BI49: kg H20 / h | BJ49: W bzw. J / s | BN49: kg / h bzw.l / h | BS49: [°C] | CC49: [°C]
A50: =IF(B50="","",1) -> 1 | B50: 208.6644551 | C50: =IF(B50="","",'Master-Auswertung_V120-V127'!C280) -> 544.5400587 | D50: =IF(B50="","",IF($AF$7=1,B50,C50)) -> 208.6644551 | E50: =IF(B50="","",IF($AF$7=1,C50,B50)) -> 544.5400587 | F50: =Z50 -> 4.338934831 | G50: =IFERROR(IF(OR(B50="",B50=0,$AU$10*E50^2+$AV$10*E50^1+$AW$10+10*LOG($AF$14/$AF$10)<20),"<20",$AU$10*E50^2+$AV$10*E50^1+$AW$10+10*LOG($AF$14/$AF$10)),"") -> 35.00001015 | H50: =IFERROR(IF(B50="","",G50-6.5),"") -> 28.50001015 | I50: =IF(OR(B50<$AE$51,B50>$AE$52),"",IF(B50="","",IF(B50=0,,IFERROR((V50*($I$7-$I$6)),"")))) -> -490.7093374 | J50: =IF(OR(B50<$AE$51,B50>$AE$52),"",IFERROR(Y50*($I$8-$I$6),"")) -> -1367.454398 | K50: =IF(OR(B50<$AE$51,B50>$AE$52),"",IFERROR(X50*($I$8-$I$6),"")) -> -902.7650112 | L50: =IF(OR(B50<$AE$51,B50>$AE$52),"",IF(D50=0,,IFERROR((W50*($N$7-$N$6)),""))) -> 1303.498189 | M50: =IF(OR(B50<$AE$51,B50>$AE$52),"",IF(IFERROR(IF(I50=0,,$I$7-((I50/(4.2*$I$13/3.6)))),)=0,"",IFERROR(IF(I50=0,,$I$7-((I50/(4.2*$I$13/3.6)))),))) -> 18.10304002 | N50: =IF(OR(B50<$AE$51,B50>$AE$52),"",IF(IFERROR(IF(J50=0,,$I$8-((J50/(4.2*$I$13/3.6)))),)=0,"",IFERROR(IF(J50=0,,$I$8-((J50/(4.2*$I$13/3.6)))),))) -> 11.86051885 | O50: =IF(OR(B50<$AE$51,B50>$AE$52),"",IF(B50="","",IFERROR(IF(L50=0,,($N$7-((L50/(4.2*$N$13/3.6))))),))) -> 44.84287125 | P50: =IFERROR(BN50,"") -> 0.6736306232 | Q50: =T50 -> 13.02081276 | S50: =IFERROR(P50*1000/15/60,"") -> 0.7484784702 | T50: =IFERROR(BS50,"") -> 13.02081276 | U50: =IFERROR(CC50,"") ->  | V50: ='Master-Auswertung_V120-V127'!W280 -> 49.07093374 | W50: ='Heizen_Auswertung_V120-V127'!W280 -> 39.49994512 | X50: ='Master-Auswertung_V120-V127'!N280 -> 45.13825056 | Y50: ='Master-Auswertung_V120-V127'!O280 -> 68.37271989 | Z50: ='Master-Auswertung_V120-V127'!Q280 -> 4.338934831 | AA50: =IF(B50="","",$AX$10*E50^$AY$10) -> 2.015426405 | AB50: =$AB$72 -> Drehzahl [1/min] | AC50: =$AC$72 -> Volumenstrom [m³/h] | AD50: =$AD$72 -> Wasser-Massenstrom [kg/h] kühlen | AE50: =IF($AF$7=1,AC50,AB50) -> Volumenstrom [m³/h] | AF50: Einheit | AH50: =AH72 -> Wasser-Massenstrom [kg/h] heizen | BI50: =$BE$34*(D50*$BE$24) ->  | BJ50: =J50-K50 -> -464.6893866 | BK50: =50.09-0.9298*(273.15+$I$8)/1000-65.19*((273.15+$I$8)/1000)^2 -> 44.75053367 | BL50: =BK50/$BE$27 -> 2.483381447 | BM50: =BL50*1000000 -> 2483381.447 | BN50: =ABS(BJ50)/BM50*3600 -> 0.6736306232 | BO50: =BI50/$BE$39 ->  | BP50: =D50-BO50 ->  | BQ50: =BP50*$BE$38 ->  | BR50: =BI50-BN50 ->  | BS50: =K50*3/D50+$BE$23 -> 13.02081276 | BT50: =dichteLuft(0,Torr_in_Pa($BE$22),BS50) ->  | BU50: =999.972-7*10^(-3)*(BS50-4)^2 -> 999.4023746 | BV50: =BQ50/BT50*$BE$38 ->  | BW50: =BR50/BU50*$BE$38 ->  | BX50: =BR50+BQ50 ->  | BY50: =BV50+BW50 ->  | BZ50: =BX50/BY50 ->  | CA50: =BR50/BY50/BZ50 ->  | CB50: =rf_prozent_von_T_grad_x_hf_gH2O_kg_trLuft(BS50,CA50*1000) ->  | CC50: =td_T_grad_rf_prozent(BS50,CB50) -> 
A51: =IF(B51="","",2) -> 2 | B51: 260.0700126 | C51: =IF(B51="","",'Master-Auswertung_V120-V127'!C281) -> 656.0766838 | D51: =IF(B51="","",IF($AF$7=1,B51,C51)) -> 260.0700126 | E51: =IF(B51="","",IF($AF$7=1,C51,B51)) -> 656.0766838 | F51: 5.333187656 | G51: =IFERROR(IF(OR(B51="",B51=0,$AU$10*E51^2+$AV$10*E51^1+$AW$10+10*LOG($AF$14/$AF$10)<20),"<20",$AU$10*E51^2+$AV$10*E51^1+$AW$10+10*LOG($AF$14/$AF$10)),"") -> 40.00033755 | H51: =IFERROR(IF(B51="","",G51-6.5),"") -> 33.50033755 | I51: =IF(OR(B51<$AE$51,B51>$AE$52),"",IF(B51="","",IF(B51=0,,IFERROR((V51*($I$7-$I$6)),"")))) -> -590.5078176 | J51: =IF(OR(B51<$AE$51,B51>$AE$52),"",IFERROR(Y51*($I$8-$I$6),"")) -> -1570.951196 | K51: =IF(OR(B51<$AE$51,B51>$AE$52),"",IFERROR(X51*($I$8-$I$6),"")) -> -1066.317507 | L51: =IF(OR(B51<$AE$51,B51>$AE$52),"",IF(D51=0,,IFERROR((W51*($N$7-$N$6)),""))) -> 1578.166265 | M51: =IF(OR(B51<$AE$51,B51>$AE$52),"",IF(IFERROR(IF(I51=0,,$I$7-((I51/(4.2*$I$13/3.6)))),)=0,"",IFERROR(IF(I51=0,,$I$7-((I51/(4.2*$I$13/3.6)))),))) -> 18.53074779 | N51: =IF(OR(B51<$AE$51,B51>$AE$52),"",IF(IFERROR(IF(J51=0,,$I$8-((J51/(4.2*$I$13/3.6)))),)=0,"",IFERROR(IF(J51=0,,$I$8-((J51/(4.2*$I$13/3.6)))),))) -> 12.73264798 | O51: =IF(OR(B51<$AE$51,B51>$AE$52),"",IF(B51="","",IFERROR(IF(L51=0,,($N$7-((L51/(4.2*$N$13/3.6))))),))) -> 42.70260053 | P51: =IFERROR(BN51,"") -> 0.7315353352 | Q51: =T51 -> 13.69964868 | S51: =IFERROR(P51*1000/15/60,"") -> 0.8128170391 | T51: =IFERROR(BS51,"") -> 13.69964868 | U51: =IFERROR(CC51,"") ->  | V51: ='Master-Auswertung_V120-V127'!W281 -> 59.05078176 | W51: ='Heizen_Auswertung_V120-V127'!W281 -> 47.82322016 | X51: ='Master-Auswertung_V120-V127'!N281 -> 53.31587536 | Y51: ='Master-Auswertung_V120-V127'!O281 -> 78.54755979 | Z51: ='Master-Auswertung_V120-V127'!Q281 -> 5.333187656 | AA51: =IF(B51="","",$AX$10*E51^$AY$10) -> 3.4131304 | AB51: =AB73 -> 263.2148627 | AC51: =AC73*$AG$14 -> 88.40834579 | AD51: =AD73 -> 51.93565267 | AE51: =IF($AF$7=1,AC51,AB51) -> 88.40834579 | AF51: =IF($AF$7=1,"m³/h","1/min") -> m³/h | AH51: =AH73 -> 38.88526167 | BI51: =$BE$34*(D51*$BE$24) ->  | BJ51: =J51-K51 -> -504.6336886 | BK51: =50.09-0.9298*(273.15+$I$8)/1000-65.19*((273.15+$I$8)/1000)^2 -> 44.75053367 | BL51: =BK51/$BE$27 -> 2.483381447 | BM51: =BL51*1000000 -> 2483381.447 | BN51: =ABS(BJ51)/BM51*3600 -> 0.7315353352 | BO51: =BI51/$BE$39 ->  | BP51: =D51-BO51 ->  | BQ51: =BP51*$BE$38 ->  | BR51: =BI51-BN51 ->  | BS51: =K51*3/D51+$BE$23 -> 13.69964868 | BT51: =dichteLuft(0,Torr_in_Pa($BE$22),BS51) ->  | BU51: =999.972-7*10^(-3)*(BS51-4)^2 -> 999.3134177 | BV51: =BQ51/BT51*$BE$38 ->  | BW51: =BR51/BU51*$BE$38 ->  | BX51: =BR51+BQ51 ->  | BY51: =BV51+BW51 ->  | BZ51: =BX51/BY51 ->  | CA51: =BR51/BY51/BZ51 ->  | CB51: =rf_prozent_von_T_grad_x_hf_gH2O_kg_trLuft(BS51,CA51*1000) ->  | CC51: =td_T_grad_rf_prozent(BS51,CB51) -> 
A52: =IF(B52="","",3) -> 3 | B52: 319.1112601 | C52: =IF(B52="","",'Master-Auswertung_V120-V127'!C282) -> 780.071184 | D52: =IF(B52="","",IF($AF$7=1,B52,C52)) -> 319.1112601 | E52: =IF(B52="","",IF($AF$7=1,C52,B52)) -> 780.071184 | F52: 6.459952342 | G52: 44.9994758 | H52: 38.4994758 | I52: =IF(OR(B52<$AE$51,B52>$AE$52),"",IF(B52="","",IF(B52=0,,IFERROR((V52*($I$7-$I$6)),"")))) -> -693.7900643 | J52: =IF(OR(B52<$AE$51,B52>$AE$52),"",IFERROR(Y52*($I$8-$I$6),"")) -> -1760.015386 | K52: =IF(OR(B52<$AE$51,B52>$AE$52),"",IFERROR(X52*($I$8-$I$6),"")) -> -1235.542584 | L52: =IF(OR(B52<$AE$51,B52>$AE$52),"",IF(D52=0,,IFERROR((W52*($N$7-$N$6)),""))) -> 1856.668283 | M52: =IF(OR(B52<$AE$51,B52>$AE$52),"",IF(IFERROR(IF(I52=0,,$I$7-((I52/(4.2*$I$13/3.6)))),)=0,"",IFERROR(IF(I52=0,,$I$7-((I52/(4.2*$I$13/3.6)))),))) -> 18.97338599 | N52: 13.54292308 | O52: =IF(OR(B52<$AE$51,B52>$AE$52),"",IF(B52="","",IFERROR(IF(L52=0,,($N$7-((L52/(4.2*$N$13/3.6))))),))) -> 40.53245494 | P52: =IFERROR(BN52,"") -> 0.7602948356 | Q52: 14.38452849 | S52: =IFERROR(P52*1000/15/60,"") -> 0.8447720395 | T52: =IFERROR(BS52,"") -> 14.38452849 | U52: =IFERROR(CC52,"") ->  | V52: ='Master-Auswertung_V120-V127'!W282 -> 69.37900643 | W52: ='Heizen_Auswertung_V120-V127'!W282 -> 56.26267523 | X52: ='Master-Auswertung_V120-V127'!N282 -> 61.77712918 | Y52: ='Master-Auswertung_V120-V127'!O282 -> 88.00076931 | Z52: ='Master-Auswertung_V120-V127'!Q282 -> 6.459952342 | AA52: 5.56796488 | AB52: =AB74 -> 1166.881725 | AC52: =AC74*$AG$14 -> 513.5037277 | AD52: =AD74 -> 276.2662937 | AE52: =IF($AF$7=1,AC52,AB52) -> 513.5037277 | AF52: =IF($AF$7=1,"m³/h","1/min") -> m³/h | AH52: =AH74 -> 358.943644 | BJ52: -524.4728024 | BK52: 44.75053367 | BL52: 2.483381447 | BM52: 2483381.447 | BN52: 0.7602948356 | BS52: 14.38452849 | BT52: =dichteLuft(0,Torr_in_Pa($BE$22),BS52) ->  | BU52: 999.217131
A53: =IF(B53="","",4) -> 4 | B53: 388.8352286 | C53: =IF(B53="","",'Master-Auswertung_V120-V127'!C283) -> 922.043666 | D53: =IF(B53="","",IF($AF$7=1,B53,C53)) -> 388.8352286 | E53: =IF(B53="","",IF($AF$7=1,C53,B53)) -> 922.043666 | F53: 7.773821719 | G53: 49.99978782 | H53: 43.49978782 | I53: =IF(OR(B53<$AE$51,B53>$AE$52),"",IF(B53="","",IF(B53=0,,IFERROR((V53*($I$7-$I$6)),"")))) -> -799.3281221 | J53: =IF(OR(B53<$AE$51,B53>$AE$52),"",IFERROR(Y53*($I$8-$I$6),"")) -> -1934.210967 | K53: =IF(OR(B53<$AE$51,B53>$AE$52),"",IFERROR(X53*($I$8-$I$6),"")) -> -1415.204743 | L53: =IF(OR(B53<$AE$51,B53>$AE$52),"",IF(D53=0,,IFERROR((W53*($N$7-$N$6)),""))) -> 2123.547901 | M53: =IF(OR(B53<$AE$51,B53>$AE$52),"",IF(IFERROR(IF(I53=0,,$I$7-((I53/(4.2*$I$13/3.6)))),)=0,"",IFERROR(IF(I53=0,,$I$7-((I53/(4.2*$I$13/3.6)))),))) -> 19.42569195 | N53: 14.28947557 | O53: =IF(OR(B53<$AE$51,B53>$AE$52),"",IF(B53="","",IFERROR(IF(L53=0,,($N$7-((L53/(4.2*$N$13/3.6))))),))) -> 38.4528735 | P53: =IFERROR(BN53,"") -> 0.7523702857 | Q53: 15.08119965 | S53: =IFERROR(P53*1000/15/60,"") -> 0.8359669841 | T53: =IFERROR(BS53,"") -> 15.08119965 | U53: =IFERROR(CC53,"") ->  | V53: ='Master-Auswertung_V120-V127'!W283 -> 79.93281221 | W53: ='Heizen_Auswertung_V120-V127'!W283 -> 64.34993638 | X53: ='Master-Auswertung_V120-V127'!N283 -> 70.76023715 | Y53: ='Master-Auswertung_V120-V127'!O283 -> 96.71054837 | Z53: ='Master-Auswertung_V120-V127'!Q283 -> 7.773821719 | AA53: 8.932970163 | AE53: =AVERAGE(AE51:AE52) -> 300.9560367 | BJ53: -519.0062246 | BK53: 44.75053367 | BL53: 2.483381447 | BM53: 2483381.447 | BN53: 0.7523702857 | BS53: 15.08119965 | BT53: =dichteLuft(0,Torr_in_Pa($BE$22),BS53) ->  | BU53: 999.1124491
A55: =IF(OR(B50<B56,B51<B56,B52<B56,B53<B56,B50>B57,B51>B57,B52>B57,B53>B57),"Grenzwerte","") ->  | J55: DpK = | K55: ='Master-Auswertung_V120-V127'!D275 -> 36.59436998 | L55: [kPa] | M55: DpH = | N55: ='Heizen_Auswertung_V120-V127'!D275 -> 11.62840473 | O55: [kPa]
A56: Minimal | B56: =AE51 -> 88.40834579 | C56: =AF51 -> m³/h
A57: Maximal | B57: =AE52 -> 513.5037277 | C57: =AF52 -> m³/h
A60: Baugröße 1200
A62: Auslegung | B62: =IF($AF$7=1,$AE$1,$AF$1) -> Volumenstrom | C62: =IF($AF$7=2,$AE$1,$AF$1) -> Drehzahl | D62: Volumenstrom | E62: Drehzahl | F62: dp / rho | G62: LWA | H62: LA18 | I62: QSK1) | J62: QTotal2) | K62: QSensibel,K2) | L62: QSH | M62: tKWRL | N62: tKWRL2) | O62: tWWRL | V62: qSK1) | W62: qSH1) | X62: qSK2) | Y62: qtotal2) | Z62: Steuer-spannung
B63: =IF($AF$7=1,$AE$2,$AF$2) -> [m³/h] | C63: =IF($AF$7=2,$AE$2,$AF$2) -> [1/min] | D63: [m³/h] | E63: [1/min] | F63: [(Pa*m³)/kg] | G63: [dB(A)] | H63: [dB(A)] | I63: [W] | J63: [W] | K63: [W] | L63: [W] | M63: [°C] | N63: [°C] | O63: [°C] | V63: [W] | W63: [W] | X63: [W] | Y63: [W] | Z63: [V] | AB63: Grenzen der Auslegung | AE63: Abhängig von Abfrage | AH63: heizen
A64: =IF(B64="","",1) -> 1 | B64: 300.9560367 | C64: =IF(B64="","",'Master-Auswertung_V120-V127'!C294) -> 742.351589 | D64: =IF(B64="","",IF($AF$7=1,B64,C64)) -> 300.9560367 | E64: =IF(B64="","",IF($AF$7=1,C64,B64)) -> 742.351589 | F64: =IF(B64="","",$AX$10*E64^$AY$10) -> 4.839977857 | G64: =IFERROR(IF(OR(B64="",B64=0,$AU$10*LN(E64)+$AV$10+10*LOG($AF$18/$AF$10)<20),"<20",$AU$10*LN(E64)+$AV$10+10*LOG($AF$18/$AF$10)),"") -> <20 | H64: =IFERROR(IF(B64="","",G64-6.5),"") ->  | I64: =IF(OR(B64<$AE$51,B64>$AE$52),"",IF(B64="","",IF(B64=0,,IFERROR((V64*($I$7-$I$6)),"")))) -> -818.7067276 | J64: =IF(OR(B64<$AE$51,B64>$AE$52),"",IFERROR(Y64*($I$8-$I$6),"")) -> -2106.021613 | K64: =IF(OR(B64<$AE$51,B64>$AE$52),"",IFERROR(X64*($I$8-$I$6),"")) -> -1462.970506 | L64: =IF(OR(B64<$AE$51,B64>$AE$52),"",IF(D64=0,,IFERROR((W64*($N$7-$N$6)),""))) -> 2167.821507 | M64: =IF(OR(B64<$AE$51,B64>$AE$52),"",IF(IFERROR(IF(I64=0,,$I$7-((I64/(4.2*$I$13/3.6)))),)=0,"",IFERROR(IF(I64=0,,$I$7-((I64/(4.2*$I$13/3.6)))),))) -> 19.50874312 | N64: =IF(OR(B64<$AE$51,B64>$AE$52),"",IF(IFERROR(IF(K64=0,,$I$8-((K64/(4.2*$I$13/3.6)))),)=0,"",IFERROR(IF(K64=0,,$I$8-((K64/(4.2*$I$13/3.6)))),))) -> 12.2698736 | O64: =IF(OR(B64<$AE$51,B64>$AE$52),"",IF(B64="","",IFERROR(IF(L64=0,,($N$7-((L64/(4.2*$N$13/3.6))))),))) -> 38.10788436 | V64: ='Master-Auswertung_V120-V127'!M294 -> 81.87067276 | W64: ='Heizen_Auswertung_V120-V127'!M294 -> 65.69156083 | X64: ='Master-Auswertung_V120-V127'!N294 -> 73.1485253 | Y64: ='Master-Auswertung_V120-V127'!O294 -> 105.3010806 | Z64: ='Master-Auswertung_V120-V127'!Q294 -> 6.114997241 | AB64: =$AB$72 -> Drehzahl [1/min] | AC64: =$AC$72 -> Volumenstrom [m³/h] | AD64: =$AD$72 -> Wasser-Massenstrom [kg/h] kühlen | AE64: =IF($AF$7=1,AC64,AB64) -> Volumenstrom [m³/h] | AF64: Einheit | AH64: =AH50 -> Wasser-Massenstrom [kg/h] heizen
A65: =IF(B65="","",2) -> 2 | B65: 300.9560367 | C65: =IF(B65="","",'Master-Auswertung_V120-V127'!C295) -> 742.351589 | D65: =IF(B65="","",IF($AF$7=1,B65,C65)) -> 300.9560367 | E65: =IF(B65="","",IF($AF$7=1,C65,B65)) -> 742.351589 | F65: =IF(B65="","",$AX$10*E65^$AY$10) -> 4.839977857 | G65: =IFERROR(IF(OR(B65="",B65=0,$AU$10*LN(E65)+$AV$10+10*LOG($AF$18/$AF$10)<20),"<20",$AU$10*LN(E65)+$AV$10+10*LOG($AF$18/$AF$10)),"") -> <20 | H65: =IF(B65="","",G65-6.5) ->  | I65: =IF(OR(B65<$AE$51,B65>$AE$52),"",IF(B65="","",IF(B65=0,,IFERROR((V65*($I$7-$I$6)),"")))) -> -818.7067276 | J65: =IF(OR(B65<$AE$51,B65>$AE$52),"",IFERROR(Y65*($I$8-$I$6),"")) -> -2106.021613 | K65: =IF(OR(B65<$AE$51,B65>$AE$52),"",IFERROR(X65*($I$8-$I$6),"")) -> -1462.970506 | L65: =IF(OR(B65<$AE$51,B65>$AE$52),"",IF(D65=0,,IFERROR((W65*($N$7-$N$6)),""))) -> 2167.821507 | M65: =IF(OR(B65<$AE$51,B65>$AE$52),"",IF(IFERROR(IF(I65=0,,$I$7-((I65/(4.2*$I$13/3.6)))),)=0,"",IFERROR(IF(I65=0,,$I$7-((I65/(4.2*$I$13/3.6)))),))) -> 19.50874312 | N65: =IF(OR(B65<$AE$51,B65>$AE$52),"",IF(IFERROR(IF(K65=0,,$I$8-((K65/(4.2*$I$13/3.6)))),)=0,"",IFERROR(IF(K65=0,,$I$8-((K65/(4.2*$I$13/3.6)))),))) -> 12.2698736 | O65: =IF(OR(B65<$AE$51,B65>$AE$52),"",IF(B65="","",IFERROR(IF(L65=0,,($N$7-((L65/(4.2*$N$13/3.6))))),))) -> 38.10788436 | V65: ='Master-Auswertung_V120-V127'!M295 -> 81.87067276 | W65: ='Heizen_Auswertung_V120-V127'!M295 -> 65.69156083 | X65: ='Master-Auswertung_V120-V127'!N295 -> 73.1485253 | Y65: ='Master-Auswertung_V120-V127'!O295 -> 105.3010806 | Z65: ='Master-Auswertung_V120-V127'!Q295 -> 6.114997241 | AB65: =AB51 -> 263.2148627 | AC65: =AC51*$AG$14 -> 88.40834579 | AD65: =AD51 -> 51.93565267 | AE65: =IF($AF$7=1,AC65,AB65) -> 88.40834579 | AF65: =IF($AF$7=1,"m³/h","1/min") -> m³/h | AH65: =AH51 -> 38.88526167
A66: =IF(B66="","",3) -> 3 | B66: 300.9560367 | C66: =IF(B66="","",'Master-Auswertung_V120-V127'!C296) -> 742.351589 | D66: =IF(B66="","",IF($AF$7=1,B66,C66)) -> 300.9560367 | E66: =IF(B66="","",IF($AF$7=1,C66,B66)) -> 742.351589 | F66: =IF(B66="","",$AX$10*E66^$AY$10) -> 4.839977857 | G66: =IFERROR(IF(OR(B66="",B66=0,$AU$10*LN(E66)+$AV$10+10*LOG($AF$18/$AF$10)<20),"<20",$AU$10*LN(E66)+$AV$10+10*LOG($AF$18/$AF$10)),"") -> <20 | H66: =IF(B66="","",G66-6.5) ->  | I66: =IF(OR(B66<$AE$51,B66>$AE$52),"",IF(B66="","",IF(B66=0,,IFERROR((V66*($I$7-$I$6)),"")))) -> -818.7067276 | J66: =IF(OR(B66<$AE$51,B66>$AE$52),"",IFERROR(Y66*($I$8-$I$6),"")) -> -2106.021613 | K66: =IF(OR(B66<$AE$51,B66>$AE$52),"",IFERROR(X66*($I$8-$I$6),"")) -> -1462.970506 | L66: =IF(OR(B66<$AE$51,B66>$AE$52),"",IF(D66=0,,IFERROR((W66*($N$7-$N$6)),""))) -> 2167.821507 | M66: =IF(OR(B66<$AE$51,B66>$AE$52),"",IF(IFERROR(IF(I66=0,,$I$7-((I66/(4.2*$I$13/3.6)))),)=0,"",IFERROR(IF(I66=0,,$I$7-((I66/(4.2*$I$13/3.6)))),))) -> 19.50874312 | N66: =IF(OR(B66<$AE$51,B66>$AE$52),"",IF(IFERROR(IF(K66=0,,$I$8-((K66/(4.2*$I$13/3.6)))),)=0,"",IFERROR(IF(K66=0,,$I$8-((K66/(4.2*$I$13/3.6)))),))) -> 12.2698736 | O66: =IF(OR(B66<$AE$51,B66>$AE$52),"",IF(B66="","",IFERROR(IF(L66=0,,($N$7-((L66/(4.2*$N$13/3.6))))),))) -> 38.10788436 | V66: ='Master-Auswertung_V120-V127'!M296 -> 81.87067276 | W66: ='Heizen_Auswertung_V120-V127'!M296 -> 65.69156083 | X66: ='Master-Auswertung_V120-V127'!N296 -> 73.1485253 | Y66: ='Master-Auswertung_V120-V127'!O296 -> 105.3010806 | Z66: ='Master-Auswertung_V120-V127'!Q296 -> 6.114997241 | AB66: =AB52 -> 1166.881725 | AC66: =AC52*$AG$14 -> 513.5037277 | AD66: =AD52 -> 276.2662937 | AE66: =IF($AF$7=1,AC66,AB66) -> 513.5037277 | AF66: =IF($AF$7=1,"m³/h","1/min") -> m³/h | AH66: =AH52 -> 358.943644
A67: =IF(B67="","",4) -> 4 | B67: 300.9560367 | C67: =IF(B67="","",'Master-Auswertung_V120-V127'!C297) -> 742.351589 | D67: =IF(B67="","",IF($AF$7=1,B67,C67)) -> 300.9560367 | E67: =IF(B67="","",IF($AF$7=1,C67,B67)) -> 742.351589 | F67: =IF(B67="","",$AX$10*E67^$AY$10) -> 4.839977857 | G67: =IFERROR(IF(OR(B67="",B67=0,$AU$10*LN(E67)+$AV$10+10*LOG($AF$18/$AF$10)<20),"<20",$AU$10*LN(E67)+$AV$10+10*LOG($AF$18/$AF$10)),"") -> <20 | H67: =IF(B67="","",G67-6.5) ->  | I67: =IF(OR(B67<$AE$51,B67>$AE$52),"",IF(B67="","",IF(B67=0,,IFERROR((V67*($I$7-$I$6)),"")))) -> -818.7067276 | J67: =IF(OR(B67<$AE$51,B67>$AE$52),"",IFERROR(Y67*($I$8-$I$6),"")) -> -2106.021613 | K67: =IF(OR(B67<$AE$51,B67>$AE$52),"",IFERROR(X67*($I$8-$I$6),"")) -> -1462.970506 | L67: =IF(OR(B67<$AE$51,B67>$AE$52),"",IF(D67=0,,IFERROR((W67*($N$7-$N$6)),""))) -> 2167.821507 | M67: =IF(OR(B67<$AE$51,B67>$AE$52),"",IF(IFERROR(IF(I67=0,,$I$7-((I67/(4.2*$I$13/3.6)))),)=0,"",IFERROR(IF(I67=0,,$I$7-((I67/(4.2*$I$13/3.6)))),))) -> 19.50874312 | N67: =IF(OR(B67<$AE$51,B67>$AE$52),"",IF(IFERROR(IF(K67=0,,$I$8-((K67/(4.2*$I$13/3.6)))),)=0,"",IFERROR(IF(K67=0,,$I$8-((K67/(4.2*$I$13/3.6)))),))) -> 12.2698736 | O67: =IF(OR(B67<$AE$51,B67>$AE$52),"",IF(B67="","",IFERROR(IF(L67=0,,($N$7-((L67/(4.2*$N$13/3.6))))),))) -> 38.10788436 | V67: ='Master-Auswertung_V120-V127'!M297 -> 81.87067276 | W67: ='Heizen_Auswertung_V120-V127'!M297 -> 65.69156083 | X67: ='Master-Auswertung_V120-V127'!N297 -> 73.1485253 | Y67: ='Master-Auswertung_V120-V127'!O297 -> 105.3010806 | Z67: ='Master-Auswertung_V120-V127'!Q297 -> 6.114997241 | AE67: =AVERAGE(AE65:AE66) -> 300.9560367
A69: =IF(OR(B64<B70,B65<B70,B66<B70,B67<B70,B64>B71,B65>B71,B66>B71,B67>B71),"Grenzwerte","") ->  | J69: DpK = | K69: ='Master-Auswertung_V120-V127'!D289 -> 41.28240165 | L69: [kPa] | M69: DpH = | N69: ='Heizen_Auswertung_V120-V127'!D289 -> 13.15621726 | O69: [kPa]
A70: Minimal | B70: =AE51 -> 88.40834579 | C70: =AF51 -> m³/h
A71: Maximal | B71: =AE52 -> 513.5037277 | C71: =AF52 -> m³/h | AB71: Grenzen der Auslegung | AE71: Abhängig von Abfrage | AH71: heizen
AB72: ='Master-Auswertung_V120-V127'!A218 -> Drehzahl [1/min] | AC72: ='Master-Auswertung_V120-V127'!B218 -> Volumenstrom [m³/h] | AD72: ='Master-Auswertung_V120-V127'!C218 -> Wasser-Massenstrom [kg/h] kühlen | AE72: =IF($AF$7=1,AC72,AB72) -> Volumenstrom [m³/h] | AF72: Einheit | AH72: ='Master-Auswertung_V120-V127'!D218 -> Wasser-Massenstrom [kg/h] heizen
A73: © LTG Aktiengesellschaft - 18-02-2020, TT/EI, V2.5 | AB73: ='Master-Auswertung_V120-V127'!A219 -> 263.2148627 | AC73: ='Master-Auswertung_V120-V127'!B219 -> 88.40834579 | AD73: ='Master-Auswertung_V120-V127'!C219 -> 51.93565267 | AE73: =IF($AF$7=1,AC73,AB73) -> 88.40834579 | AF73: =IF($AF$7=1,"m³/h","1/min") -> m³/h | AH73: ='Master-Auswertung_V120-V127'!D219 -> 38.88526167
A74: Angaben zu Toleranzen sowie weitere Spezifikationen sind der aktuellen Technischen Dokumentation zu entnehmen. Diese finden Sie auf www.LTG.de. | S74: FALSE | AB74: ='Master-Auswertung_V120-V127'!A220 -> 1166.881725 | AC74: ='Master-Auswertung_V120-V127'!B220 -> 513.5037277 | AD74: ='Master-Auswertung_V120-V127'!C220 -> 276.2662937 | AE74: =IF($AF$7=1,AC74,AB74) -> 513.5037277 | AF74: =IF($AF$7=1,"m³/h","1/min") -> m³/h | AH74: ='Master-Auswertung_V120-V127'!D220 -> 358.943644
A75: Eine Fehlerfreiheit des Programms kann nicht zugesichert werden. | AE75: =AVERAGE(AE73:AE74) -> 300.9560367
A76: Aus Programmierfehlern entstandener Schaden geht nicht zu Lasten der LTG Aktiengesellschaft. Technische Änderungen im Rahmen der Weiterentwicklung vorbehalten.

Sheet Rohdaten (hidden)
B2: Kalorischer Prüfstand | Z2: LTG Aktiengesellschaft
H4: VKL800, Holz-Prototyp bzw. ISH-Prototyp, 4L bzw. VKL,2L,2,1mm Lamellenabstand | Q4: Prüfling: | R4: Gerät: | S4: VKL800, Prototyp, 4L bzw. 2L | V4: Wärmetauscher: | X4: 4 L bzw. 2 L | Z4: Ausblashals:
R5: Baugröße: | S5: 800 | V5: Lamellenabstand: | X5: 3,2 bzw. 2,1 | Z5: MQ Gitter: | AB5: nein
R6: Filter: | V6: Verrohrung: | X6: fluchtend | Z6: Sonstiges: | AB6: LDB12/M/3
A7: 1 | B7: 2 | C7: 3 | D7: 4 | E7: 5 | F7: 6 | H7: 8 | I7: 9 | J7: 10 | K7: 11 | L7: 12 | M7: 13 | N7: 14 | O7: 15 | P7: 16 | Q7: 17 | R7: 18 | S7: 19 | T7: 20 | U7: 21 | V7: 22 | W7: 23 | X7: 24 | Y7: 25 | Z7: 26 | AA7: 27 | AB7: 28 | AC7: 29 | AD7: 30 | AE7: 31 | AF7: 32 | AG7: 33
B8: Bemerkung | C8: Dp - Wasserseitig [kPa] | D8: Drehzahl [1/min] | E8: Dp - Kasten [Pa] | F8: Spannung [V] | G8: L wa | H8: Date | I8: Time | J8: Name | K8: Projekt | L8: Wassermenge [kg/h] | M8: T Wasser Vorlauf [°C] | N8: T Wasser Rücklauf [°C] | O8: T Wasser Spreizung [°C] | P8: Q Sek [W] | Q8: q Sek [W/K] | R8: V Sek [m³/h] | S8: i [-] | T8: T Ansaug mean [°C] | U8: T Ausblas mean [°C] | V8: T WT in [°C] | W8: T WT out [°C] | X8: Mess-strecke | Y8: Wirkdruck | Z8: V Prim [m³/h] | AA8: T Ansaug 1 | AB8: T Ansaug 2 | AC8: T Ansaug 3 | AD8: T Ausblas 1 | AE8: T Ausblas 2 | AF8: T Ausblas 3 | AG8: Halle
B10: VKL 800, Prototyp Holz - Vorstudie
B11: Drehzahlvariation
B13: Prototyp Holz, 3,2mm Lamellenabstand | C13: 22.7 | D13: 529 | E13: 3 | F13: 3.4 | H13: 2016-09-19 | I13: 11:24:13 | J13: TT | K13: LVC-neu, 800, 4L, LDB 12/M/3 1000 | L13: 197.804027 | M13: 15.911 | N13: 17.621 | O13: -1.71 | P13: -392.739896 | Q13: 35.597912 | R13: 146.617682 | S13: 0 | T13: 26.943667 | U13: 18.943667 | V13: 26.943667 | W13: 18.943667 | X13: - | Y13: 0 | Z13: 0 | AA13: 27 | AB13: 26.95 | AC13: 26.89 | AD13: 18.98 | AE13: 18.79 | AF13: 19.06 | AG13: 28.52 | AH13: 27.49
B14: =CONCATENATE("mit ",ROUND(L16,0)," kg/h wasserseitig, ",ROUND(D16,0)," 1/min Drehzahl") -> mit 198 kg/h wasserseitig, 529 1/min Drehzahl | C14: 22.7 | D14: 529 | E14: 3 | F14: 3.4 | H14: 2016-09-19 | I14: 11:36:03 | J14: TT | K14: LVC-neu, 800, 4L, LDB 12/M/3 1000 | L14: 196.874816 | M14: 15.903 | N14: 17.625 | O14: -1.722 | P14: -393.63807 | Q14: 35.517285 | R14: 146.391819 | S14: 0 | T14: 26.986 | U14: 18.955333 | V14: 26.986 | W14: 18.955333 | X14: - | Y14: 0 | Z14: 0 | AA14: 27.04 | AB14: 27 | AC14: 26.92 | AD14: 18.98 | AE14: 18.81 | AF14: 19.07 | AG14: 28.48 | AH14: 27.51
C15: 22.7 | D15: 529 | E15: 3 | F15: 3.4 | H15: 2016-09-19 | I15: 11:36:18 | J15: TT | K15: LVC-neu, 800, 4L, LDB 12/M/3 1000 | L15: 200.05263 | M15: 15.902 | N15: 17.624 | O15: -1.722 | P15: -399.991898 | Q15: 36.069968 | R15: 148.674548 | S15: 0 | T15: 26.991333 | U15: 18.956333 | V15: 26.991333 | W15: 18.956333 | X15: - | Y15: 0 | Z15: 0 | AA15: 27.04 | AB15: 27.01 | AC15: 26.92 | AD15: 18.99 | AE15: 18.81 | AF15: 19.07 | AG15: 28.45 | AH15: 27.49
A16: V1 | C16: =AVERAGE(C13:C15) -> 22.7 | D16: =AVERAGE(D13:D15) -> 529 | E16: =AVERAGE(E13:E15) -> 3 | F16: =AVERAGE(F13:F15) -> 3.4 | H16: =H15 -> 2016-09-19 | J16: =J15 -> TT | L16: =AVERAGE(L13:L15) -> 198.2438243 | M16: 15.90533333 | N16: 17.62333333 | O16: -1.718 | P16: -395.4566213 | Q16: 35.72838833 | R16: 147.2280163 | S16: 0 | T16: 26.97366667 | U16: 18.95177767 | Z16: =AVERAGE(Z13:Z15) -> 0 | AA16: 27.02666667 | AB16: 26.98666667 | AC16: 26.91 | AD16: 18.98333333 | AE16: 18.80333333 | AF16: 19.06666667
B18: Prototyp Holz, 3,2mm Lamellenabstand | C18: 22.5 | D18: 907 | E18: 11.3 | F18: 6 | H18: 2016-09-19 | I18: 11:51:02 | J18: TT | K18: LVC-neu, 800, 4L, LDB 12/M/3 1000 | L18: 197.803666 | M18: 15.921 | N18: 18.457 | O18: -2.536 | P18: -582.448278 | Q18: 52.312581 | R18: 260.888418 | S18: 0 | T18: 27.055 | U18: 20.387333 | V18: 27.055 | W18: 20.387333 | X18: - | Y18: 0 | Z18: 0 | AA18: 27.14 | AB18: 27.05 | AC18: 26.98 | AD18: 20.57 | AE18: 20.34 | AF18: 20.25 | AG18: 28.41 | AH18: 27.52
B19: =CONCATENATE("mit ",ROUND(L21,0)," kg/h wasserseitig, ",ROUND(D21,0)," 1/min Drehzahl") -> mit 199 kg/h wasserseitig, 908 1/min Drehzahl | C19: 22.5 | D19: 908 | E19: 11.3 | F19: 6 | H19: 2016-09-19 | I19: 11:51:31 | J19: TT | K19: LVC-neu, 800, 4L, LDB 12/M/3 1000 | L19: 199.127251 | M19: 15.929 | N19: 18.464 | O19: -2.535 | P19: -586.11447 | Q19: 52.652894 | R19: 262.307639 | S19: 0 | T19: 27.060667 | U19: 20.387333 | V19: 27.060667 | W19: 20.387333 | X19: - | Y19: 0 | Z19: 0 | AA19: 27.15 | AB19: 27.05 | AC19: 26.98 | AD19: 20.57 | AE19: 20.34 | AF19: 20.25 | AG19: 28.46 | AH19: 27.54
C20: 22.5 | D20: 908 | E20: 11.3 | F20: 6 | H20: 2016-09-19 | I20: 11:52:00 | J20: TT | K20: LVC-neu, 800, 4L, LDB 12/M/3 1000 | L20: 199.125804 | M20: 15.926 | N20: 18.47 | O20: -2.544 | P20: -588.191075 | Q20: 52.779386 | R20: 263.079306 | S20: 0 | T20: 27.070333 | U20: 20.393 | V20: 27.070333 | W20: 20.393 | X20: - | Y20: 0 | Z20: 0 | AA20: 27.16 | AB20: 27.07 | AC20: 26.98 | AD20: 20.58 | AE20: 20.34 | AF20: 20.25 | AG20: 28.55 | AH20: 27.54
A21: V2 | C21: =AVERAGE(C18:C20) -> 22.5 | D21: =AVERAGE(D18:D20) -> 907.6666667 | E21: =AVERAGE(E18:E20) -> 11.3 | F21: =AVERAGE(F18:F20) -> 6 | H21: =H20 -> 2016-09-19 | J21: =J20 -> TT | L21: =AVERAGE(L18:L20) -> 198.6855737 | M21: 15.92533333 | N21: 18.46366667 | O21: -2.538333333 | P21: -585.5846077 | Q21: 52.58162033 | R21: 262.0917877 | S21: 0 | T21: 27.062 | U21: 20.389222 | Z21: =AVERAGE(Z18:Z20) -> 0 | AA21: 27.15 | AB21: 27.05666667 | AC21: 26.98 | AD21: 20.57333333 | AE21: 20.34 | AF21: 20.25
B23: Prototyp Holz, 3,2mm Lamellenabstand | C23: 22.4 | D23: 1210 | E23: 20.6 | F23: 8 | H23: 2016-09-19 | I23: 12:43:49 | J23: TT | K23: LVC-neu, 800, 4L, LDB 12/M/3 1000 | L23: 198.594437 | M23: 15.924 | N23: 18.913 | O23: -2.989 | P23: -689.23413 | Q23: 61.469243 | R23: 354.251849 | S23: 0 | T23: 27.136667 | U23: 21.326 | V23: 27.136667 | W23: 21.326 | X23: - | Y23: 0 | Z23: 0 | AA23: 27.18 | AB23: 27.2 | AC23: 27.03 | AD23: 21.5 | AE23: 21.35 | AF23: 21.12 | AG23: 28.34 | AH23: 27.55
B24: =CONCATENATE("mit ",ROUND(L26,0)," kg/h wasserseitig, ",ROUND(D26,0)," 1/min Drehzahl") -> mit 199 kg/h wasserseitig, 1210 1/min Drehzahl | C24: 22.4 | D24: 1210 | E24: 20.6 | F24: 8 | H24: 2016-09-19 | I24: 12:44:03 | J24: TT | K24: LVC-neu, 800, 4L, LDB 12/M/3 1000 | L24: 199.124776 | M24: 15.93 | N24: 18.915 | O24: -2.985 | P24: -690.149878 | Q24: 61.63887 | R24: 355.272798 | S24: 0 | T24: 27.126667 | U24: 21.325 | V24: 27.126667 | W24: 21.325 | X24: - | Y24: 0 | Z24: 0 | AA24: 27.18 | AB24: 27.18 | AC24: 27.02 | AD24: 21.5 | AE24: 21.36 | AF24: 21.12 | AG24: 28.35 | AH24: 27.55
C25: 22.4 | D25: 1210 | E25: 20.6 | F25: 8 | H25: 2016-09-19 | I25: 12:44:18 | J25: TT | K25: LVC-neu, 800, 4L, LDB 12/M/3 1000 | L25: 198.796428 | M25: 15.933 | N25: 18.914 | O25: -2.981 | P25: -688.088555 | Q25: 61.430993 | R25: 353.683337 | S25: 0 | T25: 27.134 | U25: 21.323667 | V25: 27.134 | W25: 21.323667 | X25: - | Y25: 0 | Z25: 0 | AA25: 27.19 | AB25: 27.2 | AC25: 27.02 | AD25: 21.49 | AE25: 21.36 | AF25: 21.12 | AG25: 28.39 | AH25: 27.56
A26: V3 | C26: =AVERAGE(C23:C25) -> 22.4 | D26: =AVERAGE(D23:D25) -> 1210 | E26: =AVERAGE(E23:E25) -> 20.6 | F26: =AVERAGE(F23:F25) -> 8 | H26: =H25 -> 2016-09-19 | J26: =J25 -> TT | L26: =AVERAGE(L23:L25) -> 198.838547 | M26: 15.929 | N26: 18.914 | O26: -2.985 | P26: -689.157521 | Q26: 61.51303533 | R26: 354.4026613 | S26: 0 | T26: 27.13244467 | U26: 21.324889 | Z26: =AVERAGE(Z23:Z25) -> 0 | AA26: 27.18333333 | AB26: 27.19333333 | AC26: 27.02333333 | AD26: 21.49666667 | AE26: 21.35666667 | AF26: 21.12
B28: Prototyp Holz, 3,2mm Lamellenabstand | C28: 22.4 | D28: 1507 | E28: 32.5 | F28: 10 | H28: 2016-09-19 | I28: 12:59:46 | J28: TT | K28: LVC-neu, 800, 4L, LDB 12/M/3 1000 | L28: 198.593148 | M28: 15.924 | N28: 19.301 | O28: -3.377 | P28: -778.698078 | Q28: 69.742484 | R28: 453.958404 | S28: 0 | T28: 27.089333 | U28: 21.966333 | V28: 27.089333 | W28: 21.966333 | X28: - | Y28: 0 | Z28: 0 | AA28: 27.18 | AB28: 27.14 | AC28: 26.95 | AD28: 22.15 | AE28: 22.01 | AF28: 21.73 | AG28: 28.77 | AH28: 27.77
B29: =CONCATENATE("mit ",ROUND(L31,0)," kg/h wasserseitig, ",ROUND(D31,0)," 1/min Drehzahl") -> mit 199 kg/h wasserseitig, 1507 1/min Drehzahl | C29: 22.4 | D29: 1507 | E29: 32.5 | F29: 10 | H29: 2016-09-19 | I29: 13:00:15 | J29: TT | K29: LVC-neu, 800, 4L, LDB 12/M/3 1000 | L29: 199.12438 | M29: 15.929 | N29: 19.314 | O29: -3.385 | P29: -782.630719 | Q29: 70.044515 | R29: 455.450891 | S29: 0 | T29: 27.102333 | U29: 21.970333 | V29: 27.102333 | W29: 21.970333 | X29: - | Y29: 0 | Z29: 0 | AA29: 27.21 | AB29: 27.14 | AC29: 26.96 | AD29: 22.15 | AE29: 22.02 | AF29: 21.73 | AG29: 28.72 | AH29: 27.81
C30: 22.4 | D30: 1507 | E30: 32.5 | F30: 10 | H30: 2016-09-19 | I30: 13:00:58 | J30: TT | K30: LVC-neu, 800, 4L, LDB 12/M/3 1000 | L30: 198.593182 | M30: 15.939 | N30: 19.302 | O30: -3.363 | P30: -775.469968 | Q30: 69.418133 | R30: 450.376864 | S30: 0 | T30: 27.11 | U30: 21.967667 | V30: 27.11 | W30: 21.967667 | X30: - | Y30: 0 | Z30: 0 | AA30: 27.21 | AB30: 27.15 | AC30: 26.97 | AD30: 22.15 | AE30: 22.02 | AF30: 21.73 | AG30: 28.8 | AH30: 27.78
A31: V4 | C31: =AVERAGE(C28:C30) -> 22.4 | D31: =AVERAGE(D28:D30) -> 1507 | E31: =AVERAGE(E28:E30) -> 32.5 | F31: =AVERAGE(F28:F30) -> 10 | H31: =H30 -> 2016-09-19 | J31: =J30 -> TT | L31: =AVERAGE(L28:L30) -> 198.7702367 | M31: 15.93066667 | N31: 19.30566667 | O31: -3.375 | P31: -778.9329217 | Q31: 69.735044 | R31: 453.262053 | S31: 0 | T31: 27.10055533 | U31: 21.968111 | Z31: =AVERAGE(Z28:Z30) -> 0 | AA31: 27.2 | AB31: 27.14333333 | AC31: 26.96 | AD31: 22.15 | AE31: 22.01666667 | AF31: 21.73
B34: Wassermengenvariation
B35: Variation 1
B36: Prototyp Holz, 3,2mm Lamellenabstand | C36: 50 | D36: 1507 | E36: 32.5 | F36: 10 | H36: 2016-09-19 | I36: 13:13:14 | J36: TT | K36: LVC-neu, 800, 4L, LDB 12/M/3 1000 | L36: 310.612996 | M36: 15.885 | N36: 18.268 | O36: -2.383 | P36: -859.443728 | Q36: 76.410846 | R36: 459.557293 | S36: 0 | T36: 27.132667 | U36: 21.547333 | V36: 27.132667 | W36: 21.547333 | X36: - | Y36: 0 | Z36: 0 | AA36: 27.22 | AB36: 27.18 | AC36: 27 | AD36: 21.73 | AE36: 21.6 | AF36: 21.31 | AG36: 27.73
B37: =CONCATENATE("mit ",ROUND(L39,0)," kg/h wasserseitig, ",ROUND(D39,0)," 1/min Drehzahl ; ", ROUND(F39,0), " V Spannung") -> mit 310 kg/h wasserseitig, 1507 1/min Drehzahl ; 10 V Spannung | C37: 50 | D37: 1507 | E37: 32.5 | F37: 10 | H37: 2016-09-19 | I37: 13:13:43 | J37: TT | K37: LVC-neu, 800, 4L, LDB 12/M/3 1000 | L37: 310.300463 | M37: 15.882 | N37: 18.25 | O37: -2.368 | P37: -853.174572 | Q37: 75.878208 | R37: 456.668401 | S37: 0 | T37: 27.126 | U37: 21.546333 | V37: 27.126 | W37: 21.546333 | X37: - | Y37: 0 | Z37: 0 | AA37: 27.21 | AB37: 27.17 | AC37: 27 | AD37: 21.74 | AE37: 21.59 | AF37: 21.31 | AG37: 27.71
C38: 50 | D38: 1507 | E38: 32.5 | F38: 10 | H38: 2016-09-19 | I38: 13:14:41 | J38: TT | K38: LVC-neu, 800, 4L, LDB 12/M/3 1000 | L38: 309.988541 | M38: 15.883 | N38: 18.246 | O38: -2.363 | P38: -850.517281 | Q38: 75.702473 | R38: 455.191679 | S38: 0 | T38: 27.118 | U38: 21.537667 | V38: 27.118 | W38: 21.537667 | X38: - | Y38: 0 | Z38: 0 | AA38: 27.19 | AB38: 27.14 | AC38: 27.03 | AD38: 21.73 | AE38: 21.57 | AF38: 21.31 | AG38: 27.7
A39: V5 | C39: =AVERAGE(C36:C38) -> 50 | D39: =AVERAGE(D36:D38) -> 1507 | E39: =AVERAGE(E36:E38) -> 32.5 | F39: =AVERAGE(F36:F38) -> 10 | H39: =H38 -> 2016-09-19 | J39: =J38 -> TT | L39: =AVERAGE(L36:L38) -> 310.3006667 | M39: 15.88333333 | N39: 18.25466667 | O39: -2.371333333 | P39: -854.378527 | Q39: 75.99717567 | R39: 457.1391243 | S39: 0 | T39: 27.12555567 | U39: 21.54377767 | Z39: =AVERAGE(Z36:Z38) -> 0 | AA39: 27.20666667 | AB39: 27.16333333 | AC39: 27.01 | AD39: 21.73333333 | AE39: 21.58666667 | AF39: 21.31
B41: Prototyp Holz, 3,2mm Lamellenabstand | C41: 22.4 | D41: 1507 | E41: 32.5 | F41: 10 | H41: 2016-09-19 | I41: 12:59:46 | J41: TT | K41: LVC-neu, 800, 4L, LDB 12/M/3 1000 | L41: 198.593148 | M41: 15.924 | N41: 19.301 | O41: -3.377 | P41: -778.698078 | Q41: 69.742484 | R41: 453.958404 | S41: 0 | T41: 27.089333 | U41: 21.966333 | V41: 27.089333 | W41: 21.966333 | X41: - | Y41: 0 | Z41: 0 | AA41: 27.18 | AB41: 27.14 | AC41: 26.95 | AD41: 22.15 | AE41: 22.01 | AF41: 21.73 | AG41: 27.77
B42: =CONCATENATE("mit ",ROUND(L44,0)," kg/h wasserseitig, ",ROUND(D44,0)," 1/min Drehzahl ; ", ROUND(F44,0), " V Spannung") -> mit 199 kg/h wasserseitig, 1507 1/min Drehzahl ; 10 V Spannung | C42: 22.4 | D42: 1507 | E42: 32.5 | F42: 10 | H42: 2016-09-19 | I42: 13:00:15 | J42: TT | K42: LVC-neu, 800, 4L, LDB 12/M/3 1000 | L42: 199.12438 | M42: 15.929 | N42: 19.314 | O42: -3.385 | P42: -782.630719 | Q42: 70.044515 | R42: 455.450891 | S42: 0 | T42: 27.102333 | U42: 21.970333 | V42: 27.102333 | W42: 21.970333 | X42: - | Y42: 0 | Z42: 0 | AA42: 27.21 | AB42: 27.14 | AC42: 26.96 | AD42: 22.15 | AE42: 22.02 | AF42: 21.73 | AG42: 27.81
C43: 22.4 | D43: 1507 | E43: 32.5 | F43: 10 | H43: 2016-09-19 | I43: 13:00:58 | J43: TT | K43: LVC-neu, 800, 4L, LDB 12/M/3 1000 | L43: 198.593182 | M43: 15.939 | N43: 19.302 | O43: -3.363 | P43: -775.469968 | Q43: 69.418133 | R43: 450.376864 | S43: 0 | T43: 27.11 | U43: 21.967667 | V43: 27.11 | W43: 21.967667 | X43: - | Y43: 0 | Z43: 0 | AA43: 27.21 | AB43: 27.15 | AC43: 26.97 | AD43: 22.15 | AE43: 22.02 | AF43: 21.73 | AG43: 27.78
A44: V6 | C44: =AVERAGE(C41:C43) -> 22.4 | D44: =AVERAGE(D41:D43) -> 1507 | E44: =AVERAGE(E41:E43) -> 32.5 | F44: =AVERAGE(F41:F43) -> 10 | H44: =H43 -> 2016-09-19 | J44: =J43 -> TT | L44: =AVERAGE(L41:L43) -> 198.7702367 | M44: 15.93066667 | N44: 19.30566667 | O44: -3.375 | P44: -778.9329217 | Q44: 69.735044 | R44: 453.262053 | S44: 0 | T44: 27.10055533 | U44: 21.968111 | Z44: =AVERAGE(Z41:Z43) -> 0 | AA44: 27.2 | AB44: 27.14333333 | AC44: 26.96 | AD44: 22.15 | AE44: 22.01666667 | AF44: 21.73
B46: Prototyp Holz, 3,2mm Lamellenabstand | C46: 16.6 | D46: 1507 | E46: 32.5 | F46: 10 | H46: 2016-09-19 | I46: 13:29:25 | J46: TT | K46: LVC-neu, 800, 4L, LDB 12/M/3 1000 | L46: 167.624586 | M46: 15.964 | N46: 19.798 | O46: -3.834 | P46: -746.214368 | Q46: 66.6243 | R46: 450.376761 | S46: 0 | T46: 27.164333 | U46: 22.216 | V46: 27.164333 | W46: 22.216 | X46: - | Y46: 0 | Z46: 0 | AA46: 27.22 | AB46: 27.21 | AC46: 27.07 | AD46: 22.39 | AE46: 22.26 | AF46: 22 | AG46: 27.87
B47: =CONCATENATE("mit ",ROUND(L49,0)," kg/h wasserseitig, ",ROUND(D49,0)," 1/min Drehzahl ; ", ROUND(F49,0), " V Spannung") -> mit 168 kg/h wasserseitig, 1507 1/min Drehzahl ; 10 V Spannung | C47: 16.6 | D47: 1507 | E47: 32.5 | F47: 10 | H47: 2016-09-19 | I47: 13:30:09 | J47: TT | K47: LVC-neu, 800, 4L, LDB 12/M/3 1000 | L47: 167.624868 | M47: 15.943 | N47: 19.801 | O47: -3.858 | P47: -750.886772 | Q47: 66.81478 | R47: 452.861219 | S47: 0 | T47: 27.181333 | U47: 22.229333 | V47: 27.181333 | W47: 22.229333 | X47: - | Y47: 0 | Z47: 0 | AA47: 27.23 | AB47: 27.23 | AC47: 27.07 | AD47: 22.4 | AE47: 22.29 | AF47: 22 | AG47: 27.89
C48: 16.6 | D48: 1507 | E48: 32.5 | F48: 10 | H48: 2016-09-19 | I48: 13:30:38 | J48: TT | K48: LVC-neu, 800, 4L, LDB 12/M/3 1000 | L48: 167.29348 | M48: 15.934 | N48: 19.792 | O48: -3.858 | P48: -749.402297 | Q48: 66.751986 | R48: 454.10563 | S48: 0 | T48: 27.160667 | U48: 22.232 | V48: 27.160667 | W48: 22.232 | X48: - | Y48: 0 | Z48: 0 | AA48: 27.23 | AB48: 27.18 | AC48: 27.07 | AD48: 22.4 | AE48: 22.29 | AF48: 22.01 | AG48: 27.88
A49: V7 | C49: =AVERAGE(C46:C48) -> 16.6 | D49: =AVERAGE(D46:D48) -> 1507 | E49: =AVERAGE(E46:E48) -> 32.5 | F49: =AVERAGE(F46:F48) -> 10 | H49: =H48 -> 2016-09-19 | J49: =J48 -> TT | L49: =AVERAGE(L46:L48) -> 167.5143113 | M49: 15.947 | N49: 19.797 | O49: -3.85 | P49: -748.834479 | Q49: 66.73035533 | R49: 452.44787 | S49: 0 | T49: 27.16877767 | U49: 22.22577767 | Z49: =AVERAGE(Z46:Z48) -> 0 | AA49: 27.22666667 | AB49: 27.20666667 | AC49: 27.07 | AD49: 22.39666667 | AE49: 22.28 | AF49: 22.00333333
B51: Prototyp Holz, 3,2mm Lamellenabstand | C51: 6.6 | D51: 1507 | E51: 32.4 | F51: 10 | H51: 2016-09-19 | I51: 13:43:28 | J51: TT | K51: LVC-neu, 800, 4L, LDB 12/M/3 1000 | L51: 101.553014 | M51: 16.044 | N51: 21.375 | O51: -5.331 | P51: -628.60131 | Q51: 56.763709 | R51: 451.215149 | S51: 0 | T51: 27.118 | U51: 22.957333 | V51: 27.118 | W51: 22.957333 | X51: - | Y51: 0 | Z51: 0 | AA51: 27.17 | AB51: 27.14 | AC51: 27.05 | AD51: 23.12 | AE51: 23 | AF51: 22.75 | AG51: 27.81
B52: =CONCATENATE("mit ",ROUND(L54,0)," kg/h wasserseitig, ",ROUND(D54,0)," 1/min Drehzahl ; ", ROUND(F54,0), " V Spannung") -> mit 102 kg/h wasserseitig, 1507 1/min Drehzahl ; 10 V Spannung | C52: 6.6 | D52: 1507 | E52: 32.4 | F52: 10 | H52: 2016-09-19 | I52: 13:43:57 | J52: TT | K52: LVC-neu, 800, 4L, LDB 12/M/3 1000 | L52: 102.579308 | M52: 16.045 | N52: 21.371 | O52: -5.326 | P52: -634.358418 | Q52: 57.257732 | R52: 454.983136 | S52: 0 | T52: 27.124 | U52: 22.96 | V52: 27.124 | W52: 22.96 | X52: - | Y52: 0 | Z52: 0 | AA52: 27.16 | AB52: 27.15 | AC52: 27.06 | AD52: 23.12 | AE52: 23.01 | AF52: 22.75 | AG52: 27.8
C53: 6.6 | D53: 1507 | E53: 32.4 | F53: 10 | H53: 2016-09-19 | I53: 13:44:26 | J53: TT | K53: LVC-neu, 800, 4L, LDB 12/M/3 1000 | L53: 102.274744 | M53: 16.045 | N53: 21.382 | O53: -5.337 | P53: -633.781248 | Q53: 57.262491 | R53: 456.285904 | S53: 0 | T53: 27.113 | U53: 22.964667 | V53: 27.113 | W53: 22.964667 | X53: - | Y53: 0 | Z53: 0 | AA53: 27.16 | AB53: 27.13 | AC53: 27.05 | AD53: 23.12 | AE53: 23.01 | AF53: 22.76 | AG53: 27.78
A54: V8 | C54: =AVERAGE(C51:C53) -> 6.6 | D54: =AVERAGE(D51:D53) -> 1507 | E54: =AVERAGE(E51:E53) -> 32.4 | F54: =AVERAGE(F51:F53) -> 10 | H54: =H53 -> 2016-09-19 | J54: =J53 -> TT | L54: =AVERAGE(L51:L53) -> 102.1356887 | M54: 16.04466667 | N54: 21.376 | O54: -5.331333333 | P54: -632.246992 | Q54: 57.094644 | R54: 454.1613963 | S54: 0 | T54: 27.11833333 | U54: 22.96066667 | Z54: =AVERAGE(Z51:Z53) -> 0 | AA54: 27.16333333 | AB54: 27.14 | AC54: 27.05333333 | AD54: 23.12 | AE54: 23.00666667 | AF54: 22.75333333
B56: Prototyp Holz, 3,2mm Lamellenabstand | C56: 2.5 | D56: 1507 | E56: 32.3 | F56: 10 | H56: 2016-09-19 | I56: 13:57:02 | J56: TT | K56: LVC-neu, 800, 4L, LDB 12/M/3 1000 | L56: 61.93682 | M56: 16.193 | N56: 22.881 | O56: -6.688 | P56: -480.971066 | Q56: 43.849547 | R56: 451.146098 | S56: 0 | T56: 27.161667 | U56: 23.977667 | V56: 27.161667 | W56: 23.977667 | X56: - | Y56: 0 | Z56: 0 | AA56: 27.18 | AB56: 27.18 | AC56: 27.12 | AD56: 24.05 | AE56: 24.11 | AF56: 23.78 | AG56: 27.73
B57: =CONCATENATE("mit ",ROUND(L59,0)," kg/h wasserseitig, ",ROUND(D59,0)," 1/min Drehzahl ; ", ROUND(F59,0), " V Spannung") -> mit 62 kg/h wasserseitig, 1507 1/min Drehzahl ; 10 V Spannung | C57: 2.5 | D57: 1507 | E57: 32.3 | F57: 10 | H57: 2016-09-19 | I57: 13:58:15 | J57: TT | K57: LVC-neu, 800, 4L, LDB 12/M/3 1000 | L57: 61.998297 | M57: 16.182 | N57: 22.875 | O57: -6.693 | P57: -481.808399 | Q57: 43.949927 | R57: 454.836136 | S57: 0 | T57: 27.144667 | U57: 23.981 | V57: 27.144667 | W57: 23.981 | X57: - | Y57: 0 | Z57: 0 | AA57: 27.17 | AB57: 27.15 | AC57: 27.12 | AD57: 24.05 | AE57: 24.09 | AF57: 23.8 | AG57: 27.73
C58: 2.5 | D58: 1507 | E58: 32.3 | F58: 10 | H58: 2016-09-19 | I58: 13:58:44 | J58: TT | K58: LVC-neu, 800, 4L, LDB 12/M/3 1000 | L58: 61.507417 | M58: 16.19 | N58: 22.87 | O58: -6.68 | P58: -477.065198 | Q58: 43.492132 | R58: 449.364193 | S58: 0 | T58: 27.159 | U58: 23.988333 | V58: 27.159 | W58: 23.988333 | X58: - | Y58: 0 | Z58: 0 | AA58: 27.17 | AB58: 27.19 | AC58: 27.12 | AD58: 24.05 | AE58: 24.11 | AF58: 23.81 | AG58: 27.71
A59: V9 | C59: =AVERAGE(C56:C58) -> 2.5 | D59: =AVERAGE(D56:D58) -> 1507 | E59: =AVERAGE(E56:E58) -> 32.3 | F59: =AVERAGE(F56:F58) -> 10 | H59: =H58 -> 2016-09-19 | J59: =J58 -> TT | L59: =AVERAGE(L56:L58) -> 61.814178 | M59: 16.18833333 | N59: 22.87533333 | O59: -6.687 | P59: -479.948221 | Q59: 43.76386867 | R59: 451.7821423 | S59: 0 | T59: 27.15511133 | U59: 23.98233333 | Z59: =AVERAGE(Z56:Z58) -> 0 | AA59: 27.17333333 | AB59: 27.17333333 | AC59: 27.12 | AD59: 24.05 | AE59: 24.10333333 | AF59: 23.79666667
B63: Variation 2
B64: Prototyp Holz, 3,2mm Lamellenabstand | C64: 2.5 | D64: 922 | E64: 11.5 | F64: 6 | H64: 2016-09-19 | I64: 14:19:02 | J64: TT | K64: LVC-neu, 800, 4L, LDB 12/M/3 1000 | L64: 61.874993 | M64: 16.185 | N64: 21.816 | O64: -5.631 | P64: -404.552111 | Q64: 36.970158 | R64: 268.373911 | S64: 0 | T64: 27.127667 | U64: 22.625667 | V64: 27.127667 | W64: 22.625667 | X64: - | Y64: 0 | Z64: 0 | AA64: 27.17 | AB64: 27.13 | AC64: 27.08 | AD64: 22.73 | AE64: 22.67 | AF64: 22.48 | AG64: 27.78
B65: =CONCATENATE("mit ",ROUND(L67,0)," kg/h wasserseitig, ",ROUND(D67,0)," 1/min Drehzahl ; ", ROUND(F67,0), " V Spannung") -> mit 62 kg/h wasserseitig, 922 1/min Drehzahl ; 6 V Spannung | C65: 2.5 | D65: 922 | E65: 11.5 | F65: 6 | H65: 2016-09-19 | I65: 14:19:16 | J65: TT | K65: LVC-neu, 800, 4L, LDB 12/M/3 1000 | L65: 61.691291 | M65: 16.183 | N65: 21.813 | O65: -5.63 | P65: -403.279394 | Q65: 36.869573 | R65: 267.628687 | S65: 0 | T65: 27.121 | U65: 22.620667 | V65: 27.121 | W65: 22.620667 | X65: - | Y65: 0 | Z65: 0 | AA65: 27.17 | AB65: 27.11 | AC65: 27.08 | AD65: 22.73 | AE65: 22.66 | AF65: 22.47 | AG65: 27.78
C66: 2.5 | D66: 922 | E66: 11.5 | F66: 6 | H66: 2016-09-19 | I66: 14:19:31 | J66: TT | K66: LVC-neu, 800, 4L, LDB 12/M/3 1000 | L66: 61.691148 | M66: 16.178 | N66: 21.809 | O66: -5.631 | P66: -403.350093 | Q66: 36.85582 | R66: 267.398323 | S66: 0 | T66: 27.122 | U66: 22.617 | V66: 27.122 | W66: 22.617 | X66: - | Y66: 0 | Z66: 0 | AA66: 27.18 | AB66: 27.11 | AC66: 27.08 | AD66: 22.72 | AE66: 22.65 | AF66: 22.47 | AG66: 27.76
A67: V10 | C67: =AVERAGE(C64:C66) -> 2.5 | D67: =AVERAGE(D64:D66) -> 922 | E67: =AVERAGE(E64:E66) -> 11.5 | F67: =AVERAGE(F64:F66) -> 6 | H67: =H66 -> 2016-09-19 | J67: =J66 -> TT | L67: =AVERAGE(L64:L66) -> 61.75247733 | M67: 16.182 | N67: 21.81266667 | O67: -5.630666667 | P67: -403.7271993 | Q67: 36.898517 | R67: 267.800307 | S67: 0 | T67: 27.12355567 | U67: 22.62111133 | Z67: =AVERAGE(Z64:Z66) -> 0 | AA67: 27.17333333 | AB67: 27.11666667 | AC67: 27.08 | AD67: 22.72666667 | AE67: 22.66 | AF67: 22.47333333
B69: Prototyp Holz, 3,2mm Lamellenabstand | C69: 10.4 | D69: 922 | E69: 11.5 | F69: 6 | H69: 2016-09-19 | I69: 14:47:49 | J69: TT | K69: LVC-neu, 800, 4L, LDB 12/M/3 1000 | L69: 130.629951 | M69: 16.001 | N69: 19.545 | O69: -3.544 | P69: -537.539345 | Q69: 48.432786 | R69: 265.164416 | S69: 0 | T69: 27.099667 | U69: 21.045333 | V69: 27.099667 | W69: 21.045333 | X69: - | Y69: 0 | Z69: 0 | AA69: 27.17 | AB69: 27.1 | AC69: 27.03 | AD69: 21.23 | AE69: 21 | AF69: 20.9 | AG69: 27.81
B70: =CONCATENATE("mit ",ROUND(L72,0)," kg/h wasserseitig, ",ROUND(D72,0)," 1/min Drehzahl ; ", ROUND(F72,0), " V Spannung") -> mit 131 kg/h wasserseitig, 922 1/min Drehzahl ; 6 V Spannung | C70: 10.4 | D70: 922 | E70: 11.5 | F70: 6 | H70: 2016-09-19 | I70: 14:48:18 | J70: TT | K70: LVC-neu, 800, 4L, LDB 12/M/3 1000 | L70: 130.500068 | M70: 15.996 | N70: 19.569 | O70: -3.573 | P70: -541.399107 | Q70: 48.776159 | R70: 267.112529 | S70: 0 | T70: 27.095667 | U70: 21.042333 | V70: 27.095667 | W70: 21.042333 | X70: - | Y70: 0 | Z70: 0 | AA70: 27.18 | AB70: 27.09 | AC70: 27.02 | AD70: 21.23 | AE70: 20.99 | AF70: 20.91 | AG70: 27.82
C71: 10.4 | D71: 922 | E71: 11.5 | F71: 6 | H71: 2016-09-19 | I71: 14:50:29 | J71: TT | K71: LVC-neu, 800, 4L, LDB 12/M/3 1000 | L71: 130.370298 | M71: 15.999 | N71: 19.588 | O71: -3.589 | P71: -543.282727 | Q71: 48.876872 | R71: 268.189541 | S71: 0 | T71: 27.114333 | U71: 21.064333 | V71: 27.114333 | W71: 21.064333 | X71: - | Y71: 0 | Z71: 0 | AA71: 27.19 | AB71: 27.1 | AC71: 27.05 | AD71: 21.24 | AE71: 21.03 | AF71: 20.92 | AG71: 27.82
A72: V11 | C72: =AVERAGE(C69:C71) -> 10.4 | D72: =AVERAGE(D69:D71) -> 922 | E72: =AVERAGE(E69:E71) -> 11.5 | F72: =AVERAGE(F69:F71) -> 6 | H72: =H71 -> 2016-09-19 | J72: =J71 -> TT | L72: =AVERAGE(L69:L71) -> 130.5001057 | M72: 15.99866667 | N72: 19.56733333 | O72: -3.568666667 | P72: -540.740393 | Q72: 48.69527233 | R72: 266.822162 | S72: 0 | T72: 27.10322233 | U72: 21.05066633 | Z72: =AVERAGE(Z69:Z71) -> 0 | AA72: 27.18 | AB72: 27.09666667 | AC72: 27.03333333 | AD72: 21.23333333 | AE72: 21.00666667 | AF72: 20.91
B74: Prototyp Holz, 3,2mm Lamellenabstand | C74: 22 | D74: 922 | E74: 11.5 | F74: 6 | H74: 2016-09-19 | I74: 15:11:10 | J74: TT | K74: LVC-neu, 800, 4L, LDB 12/M/3 1000 | L74: 196.874579 | M74: 15.93 | N74: 18.533 | O74: -2.603 | P74: -595.028258 | Q74: 52.98717 | R74: 267.150914 | S74: 0 | T74: 27.159667 | U74: 20.507667 | V74: 27.159667 | W74: 20.507667 | X74: - | Y74: 0 | Z74: 0 | AA74: 27.25 | AB74: 27.16 | AC74: 27.07 | AD74: 20.7 | AE74: 20.45 | AF74: 20.37 | AG74: 27.83
B75: =CONCATENATE("mit ",ROUND(L77,0)," kg/h wasserseitig, ",ROUND(D77,0)," 1/min Drehzahl ; ", ROUND(F77,0), " V Spannung") -> mit 197 kg/h wasserseitig, 922 1/min Drehzahl ; 6 V Spannung | C75: 22 | D75: 922 | E75: 11.5 | F75: 6 | H75: 2016-09-19 | I75: 15:11:24 | J75: TT | K75: LVC-neu, 800, 4L, LDB 12/M/3 1000 | L75: 195.40498 | M75: 15.933 | N75: 18.526 | O75: -2.593 | P75: -588.317713 | Q75: 52.411378 | R75: 264.018998 | S75: 0 | T75: 27.158 | U75: 20.503 | V75: 27.158 | W75: 20.503 | X75: - | Y75: 0 | Z75: 0 | AA75: 27.26 | AB75: 27.15 | AC75: 27.07 | AD75: 20.7 | AE75: 20.45 | AF75: 20.36 | AG75: 27.83
C76: 22 | D76: 922 | E76: 11.5 | F76: 6 | H76: 2016-09-19 | I76: 15:11:39 | J76: TT | K76: LVC-neu, 800, 4L, LDB 12/M/3 1000 | L76: 197.268613 | M76: 15.938 | N76: 18.528 | O76: -2.59 | P76: -593.241518 | Q76: 52.894004 | R76: 266.175322 | S76: 0 | T76: 27.153667 | U76: 20.497333 | V76: 27.153667 | W76: 20.497333 | X76: - | Y76: 0 | Z76: 0 | AA76: 27.26 | AB76: 27.14 | AC76: 27.06 | AD76: 20.69 | AE76: 20.45 | AF76: 20.35 | AG76: 27.85
A77: V12 | C77: =AVERAGE(C74:C76) -> 22 | D77: =AVERAGE(D74:D76) -> 922 | E77: =AVERAGE(E74:E76) -> 11.5 | F77: =AVERAGE(F74:F76) -> 6 | H77: =H76 -> 2016-09-19 | J77: =J76 -> TT | L77: =AVERAGE(L74:L76) -> 196.5160573 | M77: 15.93366667 | N77: 18.529 | O77: -2.595333333 | P77: -592.1958297 | Q77: 52.764184 | R77: 265.7817447 | S77: 0 | T77: 27.15711133 | U77: 20.50266667 | Z77: =AVERAGE(Z74:Z76) -> 0 | AA77: 27.25666667 | AB77: 27.15 | AC77: 27.06666667 | AD77: 20.69666667 | AE77: 20.45 | AF77: 20.36
B79: Prototyp Holz, 3,2mm Lamellenabstand | C79: 51.3 | D79: 922 | E79: 11.5 | F79: 6 | H79: 2016-09-19 | I79: 15:22:33 | J79: TT | K79: LVC-neu, 800, 4L, LDB 12/M/3 1000 | L79: 314.188338 | M79: 15.904 | N79: 17.655 | O79: -1.751 | P79: -638.778056 | Q79: 56.682861 | R79: 268.067817 | S79: 0 | T79: 27.173333 | U79: 20.056667 | V79: 27.173333 | W79: 20.056667 | X79: - | Y79: 0 | Z79: 0 | AA79: 27.25 | AB79: 27.19 | AC79: 27.08 | AD79: 20.24 | AE79: 20.01 | AF79: 19.93 | AG79: 27.84
B80: =CONCATENATE("mit ",ROUND(L82,0)," kg/h wasserseitig, ",ROUND(D82,0)," 1/min Drehzahl ; ", ROUND(F82,0), " V Spannung") -> mit 314 kg/h wasserseitig, 922 1/min Drehzahl ; 6 V Spannung | C80: 51.3 | D80: 922 | E80: 11.5 | F80: 6 | H80: 2016-09-19 | I80: 15:22:48 | J80: TT | K80: LVC-neu, 800, 4L, LDB 12/M/3 1000 | L80: 313.997583 | M80: 15.901 | N80: 17.655 | O80: -1.754 | P80: -639.48399 | Q80: 56.732079 | R80: 268.439507 | S80: 0 | T80: 27.173 | U80: 20.058333 | V80: 27.173 | W80: 20.058333 | X80: - | Y80: 0 | Z80: 0 | AA80: 27.25 | AB80: 27.19 | AC80: 27.08 | AD80: 20.24 | AE80: 20.01 | AF80: 19.93 | AG80: 27.82
C81: 51.3 | D81: 922 | E81: 11.5 | F81: 6 | H81: 2016-09-19 | I81: 15:23:17 | J81: TT | K81: LVC-neu, 800, 4L, LDB 12/M/3 1000 | L81: 314.189164 | M81: 15.886 | N81: 17.643 | O81: -1.757 | P81: -640.968585 | Q81: 56.766421 | R81: 268.898925 | S81: 0 | T81: 27.177333 | U81: 20.058333 | V81: 27.177333 | W81: 20.058333 | X81: - | Y81: 0 | Z81: 0 | AA81: 27.27 | AB81: 27.19 | AC81: 27.07 | AD81: 20.24 | AE81: 20.01 | AF81: 19.93 | AG81: 27.85
A82: V13 | C82: =AVERAGE(C79:C81) -> 51.3 | D82: =AVERAGE(D79:D81) -> 922 | E82: =AVERAGE(E79:E81) -> 11.5 | F82: =AVERAGE(F79:F81) -> 6 | H82: =H81 -> 2016-09-19 | J82: =J81 -> TT | L82: =AVERAGE(L79:L81) -> 314.1250283 | M82: 15.897 | N82: 17.651 | O82: -1.754 | P82: -639.7435437 | Q82: 56.72712033 | R82: 268.4687497 | S82: 0 | T82: 27.17455533 | U82: 20.05777767 | Z82: =AVERAGE(Z79:Z81) -> 0 | AA82: 27.25666667 | AB82: 27.19 | AC82: 27.07666667 | AD82: 20.24 | AE82: 20.01 | AF82: 19.93
B86: Variation 3
B87: Prototyp Holz, 3,2mm Lamellenabstand | C87: 51.3 | D87: 547 | E87: 3.6 | F87: 3.5 | H87: 2016-09-19 | I87: 15:36:20 | J87: TT | K87: LVC-neu, 800, 4L, LDB 12/M/3 1000 | L87: 314.200129 | M87: 15.891 | N87: 17.085 | O87: -1.194 | P87: -435.596585 | Q87: 38.838225 | R87: 155.83799 | S87: 0 | T87: 27.106667 | U87: 18.758667 | V87: 27.106667 | W87: 18.758667 | X87: - | Y87: 0 | Z87: 0 | AA87: 27.21 | AB87: 27.09 | AC87: 27.02 | AD87: 18.79 | AE87: 18.59 | AF87: 18.9 | AG87: 27.79
B88: =CONCATENATE("mit ",ROUND(L90,0)," kg/h wasserseitig, ",ROUND(D90,0)," 1/min Drehzahl ; ", ROUND(F90,0), " V Spannung") -> mit 314 kg/h wasserseitig, 547 1/min Drehzahl ; 4 V Spannung | C88: 51.3 | D88: 547 | E88: 3.6 | F88: 3.5 | H88: 2016-09-19 | I88: 15:36:34 | J88: TT | K88: LVC-neu, 800, 4L, LDB 12/M/3 1000 | L88: 313.062675 | M88: 15.89 | N88: 17.084 | O88: -1.194 | P88: -434.019657 | Q88: 38.665448 | R88: 155.118986 | S88: 0 | T88: 27.115 | U88: 18.758667 | V88: 27.115 | W88: 18.758667 | X88: - | Y88: 0 | Z88: 0 | AA88: 27.22 | AB88: 27.11 | AC88: 27.02 | AD88: 18.79 | AE88: 18.59 | AF88: 18.89 | AG88: 27.78
C89: 51.3 | D89: 547 | E89: 3.6 | F89: 3.5 | H89: 2016-09-19 | I89: 15:37:03 | J89: TT | K89: LVC-neu, 800, 4L, LDB 12/M/3 1000 | L89: 314.504421 | M89: 15.884 | N89: 17.078 | O89: -1.194 | P89: -436.018446 | Q89: 38.805486 | R89: 155.647092 | S89: 0 | T89: 27.12 | U89: 18.753667 | V89: 27.12 | W89: 18.753667 | X89: - | Y89: 0 | Z89: 0 | AA89: 27.22 | AB89: 27.12 | AC89: 27.02 | AD89: 18.79 | AE89: 18.59 | AF89: 18.88 | AG89: 27.78
A90: V14 | C90: =AVERAGE(C87:C89) -> 51.3 | D90: =AVERAGE(D87:D89) -> 547 | E90: =AVERAGE(E87:E89) -> 3.6 | F90: =AVERAGE(F87:F89) -> 3.5 | H90: =H89 -> 2016-09-19 | J90: =J89 -> TT | L90: =AVERAGE(L87:L89) -> 313.9224083 | M90: 15.88833333 | N90: 17.08233333 | O90: -1.194 | P90: -435.2115627 | Q90: 38.76971967 | R90: 155.5346893 | S90: 0 | T90: 27.113889 | U90: 18.75700033 | Z90: =AVERAGE(Z87:Z89) -> 0 | AA90: 27.21666667 | AB90: 27.10666667 | AC90: 27.02 | AD90: 18.79 | AE90: 18.59 | AF90: 18.89
B92: Prototyp Holz, 3,2mm Lamellenabstand | C92: 22.6 | D92: 547 | E92: 3.6 | F92: 3.5 | H92: 2016-09-19 | I92: 15:44:43 | J92: TT | K92: LVC-neu, 800, 4L, LDB 12/M/3 1000 | L92: 200.250643 | M92: 15.926 | N92: 17.682 | O92: -1.756 | P92: -408.29326 | Q92: 36.489507 | R92: 150.753216 | S92: 0 | T92: 27.115333 | U92: 19.026667 | V92: 27.115333 | W92: 19.026667 | X92: - | Y92: 0 | Z92: 0 | AA92: 27.18 | AB92: 27.09 | AC92: 27.08 | AD92: 19.07 | AE92: 18.86 | AF92: 19.14 | AG92: 27.73
B93: =CONCATENATE("mit ",ROUND(L95,0)," kg/h wasserseitig, ",ROUND(D95,0)," 1/min Drehzahl ; ", ROUND(F95,0), " V Spannung") -> mit 201 kg/h wasserseitig, 547 1/min Drehzahl ; 4 V Spannung | C93: 22.6 | D93: 547 | E93: 3.6 | F93: 3.5 | H93: 2016-09-19 | I93: 15:45:12 | J93: TT | K93: LVC-neu, 800, 4L, LDB 12/M/3 1000 | L93: 201.051893 | M93: 15.932 | N93: 17.691 | O93: -1.759 | P93: -410.627269 | Q93: 36.721072 | R93: 151.596255 | S93: 0 | T93: 27.114333 | U93: 19.024667 | V93: 27.114333 | W93: 19.024667 | X93: - | Y93: 0 | Z93: 0 | AA93: 27.19 | AB93: 27.08 | AC93: 27.08 | AD93: 19.07 | AE93: 18.86 | AF93: 19.14 | AG93: 27.73
C94: 22.6 | D94: 547 | E94: 3.6 | F94: 3.5 | H94: 2016-09-19 | I94: 15:45:26 | J94: TT | K94: LVC-neu, 800, 4L, LDB 12/M/3 1000 | L94: 200.249241 | M94: 15.931 | N94: 17.696 | O94: -1.765 | P94: -410.383007 | Q94: 36.692666 | R94: 151.543544 | S94: 0 | T94: 27.115333 | U94: 19.027667 | V94: 27.115333 | W94: 19.027667 | X94: - | Y94: 0 | Z94: 0 | AA94: 27.19 | AB94: 27.08 | AC94: 27.08 | AD94: 19.07 | AE94: 18.86 | AF94: 19.15 | AG94: 27.73
A95: V15 | C95: =AVERAGE(C92:C94) -> 22.6 | D95: =AVERAGE(D92:D94) -> 547 | E95: =AVERAGE(E92:E94) -> 3.6 | F95: =AVERAGE(F92:F94) -> 3.5 | H95: =H94 -> 2016-09-19 | J95: =J94 -> TT | L95: =AVERAGE(L92:L94) -> 200.517259 | M95: 15.92966667 | N95: 17.68966667 | O95: -1.76 | P95: -409.7678453 | Q95: 36.634415 | R95: 151.2976717 | S95: 0 | T95: 27.11499967 | U95: 19.02633367 | Z95: =AVERAGE(Z92:Z94) -> 0 | AA95: 27.18666667 | AB95: 27.08333333 | AC95: 27.08 | AD95: 19.07 | AE95: 18.86 | AF95: 19.14333333
B97: Prototyp Holz, 3,2mm Lamellenabstand | C97: 9.2 | D97: 547 | E97: 3.6 | F97: 3.5 | H97: 2016-09-19 | I97: 15:53:43 | J97: TT | K97: LVC-neu, 800, 4L, LDB 12/M/3 1000 | L97: 120.735842 | M97: 15.996 | N97: 18.712 | O97: -2.716 | P97: -380.749869 | Q97: 34.141846 | R97: 150.39446 | S97: 0 | T97: 27.148 | U97: 19.587 | V97: 27.148 | W97: 19.587 | X97: - | Y97: 0 | Z97: 0 | AA97: 27.23 | AB97: 27.15 | AC97: 27.06 | AD97: 19.64 | AE97: 19.45 | AF97: 19.67 | AG97: 27.81
B98: =CONCATENATE("mit ",ROUND(L100,0)," kg/h wasserseitig, ",ROUND(D100,0)," 1/min Drehzahl ; ", ROUND(F100,0), " V Spannung") -> mit 121 kg/h wasserseitig, 547 1/min Drehzahl ; 4 V Spannung | C98: 9.2 | D98: 547 | E98: 3.6 | F98: 3.5 | H98: 2016-09-19 | I98: 15:54:12 | J98: TT | K98: LVC-neu, 800, 4L, LDB 12/M/3 1000 | L98: 121.138898 | M98: 15.997 | N98: 18.719 | O98: -2.722 | P98: -382.86487 | Q98: 34.351007 | R98: 151.430154 | S98: 0 | T98: 27.142667 | U98: 19.591667 | V98: 27.142667 | W98: 19.591667 | X98: - | Y98: 0 | Z98: 0 | AA98: 27.22 | AB98: 27.14 | AC98: 27.06 | AD98: 19.64 | AE98: 19.46 | AF98: 19.67 | AG98: 27.78
C99: 9.2 | D99: 547 | E99: 3.6 | F99: 3.5 | H99: 2016-09-19 | I99: 15:54:56 | J99: TT | K99: LVC-neu, 800, 4L, LDB 12/M/3 1000 | L99: 120.898789 | M99: 16.006 | N99: 18.717 | O99: -2.711 | P99: -380.561851 | Q99: 34.145399 | R99: 150.373228 | S99: 0 | T99: 27.151333 | U99: 19.593 | V99: 27.151333 | W99: 19.593 | X99: - | Y99: 0 | Z99: 0 | AA99: 27.24 | AB99: 27.15 | AC99: 27.06 | AD99: 19.64 | AE99: 19.45 | AF99: 19.68 | AG99: 27.76
A100: V16 | C100: =AVERAGE(C97:C99) -> 9.2 | D100: =AVERAGE(D97:D99) -> 547 | E100: =AVERAGE(E97:E99) -> 3.6 | F100: =AVERAGE(F97:F99) -> 3.5 | H100: =H99 -> 2016-09-19 | J100: =J99 -> TT | L100: =AVERAGE(L97:L99) -> 120.9245097 | M100: 15.99966667 | N100: 18.716 | O100: -2.716333333 | P100: -381.3921967 | Q100: 34.21275067 | R100: 150.732614 | S100: 0 | T100: 27.14733333 | U100: 19.59055567 | Z100: =AVERAGE(Z97:Z99) -> 0 | AA100: 27.23 | AB100: 27.14666667 | AC100: 27.06 | AD100: 19.64 | AE100: 19.45333333 | AF100: 19.67333333
B102: Prototyp Holz, 3,2mm Lamellenabstand | C102: 2.5 | D102: 547 | E102: 3.6 | F102: 3.5 | H102: 2016-09-19 | I102: 16:11:24 | J102: TT | K102: LVC-neu, 800, 4L, LDB 12/M/3 1000 | L102: 62.060278 | M102: 16.181 | N102: 20.51 | O102: -4.329 | P102: -311.942885 | Q102: 28.423042 | R102: 148.728654 | S102: 0 | T102: 27.156 | U102: 20.892 | V102: 27.156 | W102: 20.892 | X102: - | Y102: 0 | Z102: 0 | AA102: 27.23 | AB102: 27.16 | AC102: 27.09 | AD102: 20.92 | AE102: 20.84 | AF102: 20.92 | AG102: 27.69
B103: =CONCATENATE("mit ",ROUND(L105,0)," kg/h wasserseitig, ",ROUND(D105,0)," 1/min Drehzahl ; ", ROUND(F105,0), " V Spannung") -> mit 62 kg/h wasserseitig, 547 1/min Drehzahl ; 4 V Spannung | C103: 2.5 | D103: 547 | E103: 3.6 | F103: 3.5 | H103: 2016-09-19 | I103: 16:12:07 | J103: TT | K103: LVC-neu, 800, 4L, LDB 12/M/3 1000 | L103: 62.564261 | M103: 16.176 | N103: 20.496 | O103: -4.32 | P103: -313.822334 | Q103: 28.582137 | R103: 149.784154 | S103: 0 | T103: 27.155667 | U103: 20.898333 | V103: 27.155667 | W103: 20.898333 | X103: - | Y103: 0 | Z103: 0 | AA103: 27.23 | AB103: 27.15 | AC103: 27.09 | AD103: 20.93 | AE103: 20.85 | AF103: 20.92 | AG103: 27.68
C104: 2.5 | D104: 547 | E104: 3.6 | F104: 3.5 | H104: 2016-09-19 | I104: 16:12:22 | J104: TT | K104: LVC-neu, 800, 4L, LDB 12/M/3 1000 | L104: 62.565158 | M104: 16.174 | N104: 20.508 | O104: -4.334 | P104: -314.843862 | Q104: 28.683883 | R104: 150.391891 | S104: 0 | T104: 27.150333 | U104: 20.898 | V104: 27.150333 | W104: 20.898 | X104: - | Y104: 0 | Z104: 0 | AA104: 27.23 | AB104: 27.13 | AC104: 27.09 | AD104: 20.93 | AE104: 20.85 | AF104: 20.92 | AG104: 27.68
A105: V17 | C105: =AVERAGE(C102:C104) -> 2.5 | D105: =AVERAGE(D102:D104) -> 547 | E105: =AVERAGE(E102:E104) -> 3.6 | F105: =AVERAGE(F102:F104) -> 3.5 | H105: =H104 -> 2016-09-19 | J105: =J104 -> TT | L105: =AVERAGE(L102:L104) -> 62.39656567 | M105: 16.177 | N105: 20.50466667 | O105: -4.327666667 | P105: -313.5363603 | Q105: 28.56302067 | R105: 149.6348997 | S105: 0 | T105: 27.154 | U105: 20.896111 | Z105: =AVERAGE(Z102:Z104) -> 0 | AA105: 27.23 | AB105: 27.14666667 | AC105: 27.09 | AD105: 20.92666667 | AE105: 20.84666667 | AF105: 20.92
B110: VKL 800, ISH-Prototyp
AE111: Nur 1 Zulufttemperaturfühler innerhalb des Kastens (Ausblas 1 und 2 nicht korrekt --> außerhalb des Schlitzes nicht messbar)
B113: VKL800; ISH Prototyp; 3,2mm Lamellenabstand, ohne Filter, ohne Isolierung Kondensatwanne | C113: 25 | D113: 723 | E113: 8.2 | F113: 5.6 | G113: 45 | H113: 2017-02-17 | I113: 10:51:21 | J113: TT | K113: VKL 800, Prototyp, kühlen | L113: 200.85119 | M113: 13.661 | N113: 15.663 | O113: -2.002 | P113: -466.887518 | Q113: 55.266041 | R113: =P113*3/(AF113-T113) -> 249.272567 | S113: 0 | T113: 22.109 | U113: 18.150333 | V113: 22.109 | W113: 18.150333 | X113: - | Y113: 0 | Z113: 0 | AA113: 22.11 | AB113: 22.2 | AC113: 22.02 | AD113: 18.2 | AE113: 19.76 | AF113: 16.49 | AG113: 22.3
B114: =CONCATENATE("mit ",ROUND(L116,0)," kg/h wasserseitig, ",ROUND(D116,0)," 1/min Drehzahl") -> mit 201 kg/h wasserseitig, 723 1/min Drehzahl | C114: 25 | D114: 723 | E114: 8.2 | F114: 5.6 | G114: 45 | H114: 2017-02-17 | I114: 10:52:03 | J114: TT | K114: VKL 800, Prototyp, kühlen | L114: 200.648091 | M114: 13.661 | N114: 15.662 | O114: -2.001 | P114: -466.182431 | Q114: 55.276364 | R114: =P114*3/(AF114-T114) -> 249.0881994 | S114: 0 | T114: 22.094667 | U114: 18.147333 | V114: 22.094667 | W114: 18.147333 | X114: - | Y114: 0 | Z114: 0 | AA114: 22.11 | AB114: 22.15 | AC114: 22.02 | AD114: 18.19 | AE114: 19.77 | AF114: 16.48 | AG114: 22.32
C115: 25 | D115: 723 | E115: 8.2 | F115: 5.6 | G115: 45 | H115: 2017-02-17 | I115: 10:52:45 | J115: TT | K115: VKL 800, Prototyp, kühlen | L115: 201.052062 | M115: 13.676 | N115: 15.665 | O115: -1.989 | P115: -464.319685 | Q115: 55.322255 | R115: =P115*3/(AF115-T115) -> 248.7871147 | S115: 0 | T115: 22.069 | U115: 18.134667 | V115: 22.069 | W115: 18.134667 | X115: - | Y115: 0 | Z115: 0 | AA115: 22.13 | AB115: 22.07 | AC115: 22.02 | AD115: 18.18 | AE115: 19.75 | AF115: 16.47 | AG115: 22.32
A116: V18 | B116: =B113 -> VKL800; ISH Prototyp; 3,2mm Lamellenabstand, ohne Filter, ohne Isolierung Kondensatwanne | C116: =AVERAGE(C113:C115) -> 25 | D116: =AVERAGE(D113:D115) -> 723 | E116: =AVERAGE(E113:E115) -> 8.2 | F116: =AVERAGE(F113:F115) -> 5.6 | H116: =H115 -> 2017-02-17 | J116: =J115 -> TT | L116: =AVERAGE(L113:L115) -> 200.8504477 | M116: 13.666 | N116: 15.66333333 | O116: -1.997333333 | P116: -465.7965447 | Q116: 55.28822 | R116: 249.0492937 | S116: 0 | T116: 22.090889 | U116: 18.144111 | Z116: =AVERAGE(Z113:Z115) -> 0 | AA116: 22.11666667 | AB116: 22.14 | AC116: 22.02 | AD116: 18.19 | AE116: 19.76 | AF116: 16.48
R118: =P116*3/(T116-AF116) -> -249.0495952
B120: VKL800; ISH Prototyp; 3,2mm Lamellenabstand, ohne Filter, mit Isolierung der Kondensatwanne | C120: 25 | D120: 728 | E120: 10 | F120: 5.6 | G120: ca. 45 | H120: 2017-02-17 | I120: 14:12:34 | J120: TT | K120: VKL 800, Prototyp, kühlen | L120: 201.375639 | M120: 13.717 | N120: 15.903 | O120: -2.186 | P120: -511.12941 | Q120: 54.543742 | R120: =P120*3/(AF120-T120) -> 243.0862762 | S120: 0 | T120: 23.088 | U120: 18.496667 | V120: 23.088 | W120: 18.496667 | X120: - | Y120: 0 | Z120: 0 | AA120: 23.11 | AB120: 23.09 | AC120: 23.06 | AD120: 18.13 | AE120: 20.58 | AF120: 16.78 | AG120: 23.4
B121: =CONCATENATE("mit ",ROUND(L123,0)," kg/h wasserseitig, ",ROUND(D123,0)," 1/min Drehzahl") -> mit 201 kg/h wasserseitig, 728 1/min Drehzahl | C121: 25 | D121: 728 | E121: 10 | F121: 5.6 | G121: ca. 45 | H121: 2017-02-17 | I121: 14:13:44 | J121: TT | K121: VKL 800, Prototyp, kühlen | L121: 201.049044 | M121: 13.699 | N121: 15.892 | O121: -2.193 | P121: -511.934532 | Q121: 54.443745 | R121: =P121*3/(AF121-T121) -> 242.9300215 | S121: 0 | T121: 23.102 | U121: 18.502 | V121: 23.102 | W121: 18.502 | X121: - | Y121: 0 | Z121: 0 | AA121: 23.13 | AB121: 23.11 | AC121: 23.07 | AD121: 18.14 | AE121: 20.58 | AF121: 16.78 | AG121: 23.4
C122: 25 | D122: 728 | E122: 10 | F122: 5.6 | G122: ca. 45 | H122: 2017-02-17 | I122: 14:15:50 | J122: TT | K122: VKL 800, Prototyp, kühlen | L122: 201.575991 | M122: 13.709 | N122: 15.892 | O122: -2.183 | P122: -510.935785 | Q122: 54.318273 | R122: =P122*3/(AF122-T122) -> 241.1844281 | S122: 0 | T122: 23.115333 | U122: 18.550333 | V122: 23.115333 | W122: 18.550333 | X122: - | Y122: 0 | Z122: 0 | AA122: 23.16 | AB122: 23.12 | AC122: 23.07 | AD122: 18.16 | AE122: 20.73 | AF122: 16.76 | AG122: 23.41
A123: V19 | B123: =B120 -> VKL800; ISH Prototyp; 3,2mm Lamellenabstand, ohne Filter, mit Isolierung der Kondensatwanne | C123: =AVERAGE(C120:C122) -> 25 | D123: =AVERAGE(D120:D122) -> 728 | E123: =AVERAGE(E120:E122) -> 10 | F123: =AVERAGE(F120:F122) -> 5.6 | H123: =H122 -> 2017-02-17 | J123: =J122 -> TT | L123: =AVERAGE(L120:L122) -> 201.333558 | M123: 13.70833333 | N123: 15.89566667 | O123: -2.187333333 | P123: -511.3332423 | Q123: 54.43525333 | R123: 242.4002419 | S123: 0 | T123: 23.10177767 | U123: 18.51633333 | Z123: =AVERAGE(Z120:Z122) -> 0 | AA123: 23.13333333 | AB123: 23.10666667 | AC123: 23.06666667 | AD123: 18.14333333 | AE123: 20.63 | AF123: 16.77333333
B126: VKL800; ISH Prototyp; 3,2mm Lamellenabstand, mit Filter, mit Isolierung der Kondensatwanne | C126: 25 | D126: 728 | E126: 8 | F126: 5.5 | G126: ca. 45 | H126: 2017-02-17 | I126: 14:49:26 | J126: TT | K126: VKL 800, Prototyp, kühlen | L126: 202.179173 | M126: 13.706 | N126: 15.683 | O126: -1.977 | P126: -464.105661 | Q126: 48.825816 | R126: =P126*3/(AF126-T126) -> 206.8411982 | S126: 0 | T126: 23.211333 | U126: 18.529 | V126: 23.211333 | W126: 18.529 | X126: - | Y126: 0 | Z126: 0 | AA126: 23.18 | AB126: 23.14 | AC126: 23.32 | AD126: 17.61 | AE126: 21.5 | AF126: 16.48 | AG126: 23.55
B127: =CONCATENATE("mit ",ROUND(L129,0)," kg/h wasserseitig, ",ROUND(D129,0)," 1/min Drehzahl") -> mit 202 kg/h wasserseitig, 728 1/min Drehzahl | C127: 25 | D127: 728 | E127: 8 | F127: 5.5 | G127: ca. 45 | H127: 2017-02-17 | I127: 14:49:40 | J127: TT | K127: VKL 800, Prototyp, kühlen | L127: 201.175852 | M127: 13.709 | N127: 15.678 | O127: -1.969 | P127: -459.933822 | Q127: 48.381832 | R127: =P127*3/(AF127-T127) -> 204.8601704 | S127: 0 | T127: 23.215333 | U127: 18.522 | V127: 23.215333 | W127: 18.522 | X127: - | Y127: 0 | Z127: 0 | AA127: 23.18 | AB127: 23.14 | AC127: 23.32 | AD127: 17.61 | AE127: 21.48 | AF127: 16.48 | AG127: 23.55
C128: 25 | D128: 728 | E128: 8 | F128: 5.5 | G128: ca. 45 | H128: 2017-02-17 | I128: 14:49:54 | J128: TT | K128: VKL 800, Prototyp, kühlen | L128: 201.576229 | M128: 13.714 | N128: 15.679 | O128: -1.965 | P128: -459.912964 | Q128: 48.430583 | R128: =P128*3/(AF128-T128) -> 204.698921 | S128: 0 | T128: 23.210333 | U128: 18.517 | V128: 23.210333 | W128: 18.517 | X128: - | Y128: 0 | Z128: 0 | AA128: 23.17 | AB128: 23.14 | AC128: 23.32 | AD128: 17.62 | AE128: 21.46 | AF128: 16.47 | AG128: 23.56
A129: V20 | B129: =B126 -> VKL800; ISH Prototyp; 3,2mm Lamellenabstand, mit Filter, mit Isolierung der Kondensatwanne | C129: =AVERAGE(C126:C128) -> 25 | D129: =AVERAGE(D126:D128) -> 728 | E129: =AVERAGE(E126:E128) -> 8 | F129: =AVERAGE(F126:F128) -> 5.5 | H129: =H128 -> 2017-02-17 | J129: =J128 -> TT | L129: =AVERAGE(L126:L128) -> 201.6437513 | M129: 13.70966667 | N129: 15.68 | O129: -1.970333333 | P129: -461.3174823 | Q129: 48.546077 | R129: 205.4667632 | S129: 0 | T129: 23.212333 | U129: 18.52266667 | Z129: =AVERAGE(Z126:Z128) -> 0 | AA129: 23.17666667 | AB129: 23.14 | AC129: 23.32 | AD129: 17.61333333 | AE129: 21.48 | AF129: 16.47666667
S131: =1/Q123*Q129 -> 0.8918131914 | T131: =1/R123*R129 -> 0.8476343156
B133: VKL800; ISH Prototyp; 3,2mm Lamellenabstand, mit Filter, mit Isolierung der Kondensatwanne | C133: 25 | D133: 751 | E133: 8 | F133: 5.5 | G133: ca. 45 | H133: 2017-02-17 | I133: 15:13:00 | J133: TT | K133: VKL 800, Prototyp, kühlen | L133: 201.176056 | M133: 13.711 | N133: 15.748 | O133: -2.037 | P133: -475.818254 | Q133: 49.829119 | R133: =P133*3/(AF133-T133) -> 213.0529496 | S133: 0 | T133: 23.26 | U133: 18.585333 | V133: 23.26 | W133: 18.585333 | X133: - | Y133: 0 | Z133: 0 | AA133: 23.21 | AB133: 23.17 | AC133: 23.4 | AD133: 17.68 | AE133: 21.51 | AF133: 16.56 | AG133: 23.64
B134: =CONCATENATE("mit ",ROUND(L136,0)," kg/h wasserseitig, ",ROUND(D136,0)," 1/min Drehzahl") -> mit 201 kg/h wasserseitig, 751 1/min Drehzahl | C134: 25 | D134: 751 | E134: 8 | F134: 5.5 | G134: ca. 45 | H134: 2017-02-17 | I134: 15:13:14 | J134: TT | K134: VKL 800, Prototyp, kühlen | L134: 201.576161 | M134: 13.707 | N134: 15.746 | O134: -2.039 | P134: -477.232681 | Q134: 49.980731 | R134: =P134*3/(AF134-T134) -> 213.5163225 | S134: 0 | T134: 23.255333 | U134: 18.590667 | V134: 23.255333 | W134: 18.590667 | X134: - | Y134: 0 | Z134: 0 | AA134: 23.2 | AB134: 23.16 | AC134: 23.4 | AD134: 17.69 | AE134: 21.54 | AF134: 16.55 | AG134: 23.64
C135: 25 | D135: 751 | E135: 8 | F135: 5.5 | G135: ca. 45 | H135: 2017-02-17 | I135: 15:13:28 | J135: TT | K135: VKL 800, Prototyp, kühlen | L135: 200.849755 | M135: 13.706 | N135: 15.754 | O135: -2.048 | P135: -477.61179 | Q135: 50.034409 | R135: =P135*3/(AF135-T135) -> 213.80283 | S135: 0 | T135: 23.251667 | U135: 18.590667 | V135: 23.251667 | W135: 18.590667 | X135: - | Y135: 0 | Z135: 0 | AA135: 23.19 | AB135: 23.16 | AC135: 23.4 | AD135: 17.68 | AE135: 21.54 | AF135: 16.55 | AG135: 23.64
A136: V21 | B136: =B133 -> VKL800; ISH Prototyp; 3,2mm Lamellenabstand, mit Filter, mit Isolierung der Kondensatwanne | C136: =AVERAGE(C133:C135) -> 25 | D136: =AVERAGE(D133:D135) -> 751 | E136: =AVERAGE(E133:E135) -> 8 | F136: =AVERAGE(F133:F135) -> 5.5 | H136: =H135 -> 2017-02-17 | J136: =J135 -> TT | L136: =AVERAGE(L133:L135) -> 201.2006573 | M136: 13.708 | N136: 15.74933333 | O136: -2.041333333 | P136: -476.887575 | Q136: 49.94808633 | R136: 213.4573673 | S136: 0 | T136: 23.25566667 | U136: 18.588889 | Z136: =AVERAGE(Z133:Z135) -> 0 | AA136: 23.2 | AB136: 23.16333333 | AC136: 23.4 | AD136: 17.68333333 | AE136: 21.53 | AF136: 16.55333333
B140: Drehzahlvariation
B142: 2017-02-20
B143: Druck = 990,3 mbar
B144: Feuchtigkeit = 24,6%
B145: Taupunkt = 2,9 °C
B147: VKL800; ISH Prototyp; 3,2mm Lamellenabstand, mit Filter, mit Isolierung der Kondensatwanne | C147: 24.9 | D147: 488 | E147: 3 | F147: 3.5 | H147: 2017-02-20 | I147: 08:15:37 | J147: TT | K147: VKL800, 4L, ISH-Prototyp | L147: 199.922454 | M147: 13.607 | N147: 14.795 | O147: -1.188 | P147: -275.773032 | Q147: 34.256101 | R147: 136.224419 | S147: 0 | T147: 21.657333 | U147: 15.611333 | V147: 21.657333 | W147: 15.611333 | X147: - | Y147: 0 | Z147: 0 | AA147: 21.65 | AB147: 21.62 | AC147: 21.7 | AD147: 15.74 | AE147: 15.57 | AF147: 15.53 | AG147: 21.21
B148: =CONCATENATE("mit ",ROUND(L150,0)," kg/h wasserseitig, ",ROUND(D150,0)," 1/min Drehzahl") -> mit 200 kg/h wasserseitig, 488 1/min Drehzahl | C148: 24.9 | D148: 488 | E148: 3 | F148: 3.5 | H148: 2017-02-20 | I148: 08:16:33 | J148: TT | K148: VKL800, 4L, ISH-Prototyp | L148: 200.252892 | M148: 13.616 | N148: 14.808 | O148: -1.192 | P148: -277.158903 | Q148: 34.423976 | R148: 136.465103 | S148: 0 | T148: 21.667333 | U148: 15.601667 | V148: 21.667333 | W148: 15.601667 | X148: - | Y148: 0 | Z148: 0 | AA148: 21.66 | AB148: 21.64 | AC148: 21.71 | AD148: 15.72 | AE148: 15.56 | AF148: 15.52 | AG148: 21.23
C149: 24.9 | D149: 488 | E149: 3 | F149: 3.5 | H149: 2017-02-20 | I149: 08:17:15 | J149: TT | K149: VKL800, 4L, ISH-Prototyp | L149: 199.723243 | M149: 13.614 | N149: 14.81 | O149: -1.196 | P149: -277.353449 | Q149: 34.389764 | R149: 136.201619 | S149: 0 | T149: 21.679 | U149: 15.597333 | V149: 21.679 | W149: 15.597333 | X149: - | Y149: 0 | Z149: 0 | AA149: 21.68 | AB149: 21.65 | AC149: 21.71 | AD149: 15.72 | AE149: 15.56 | AF149: 15.52 | AG149: 21.24
A150: V22 | B150: =B147 -> VKL800; ISH Prototyp; 3,2mm Lamellenabstand, mit Filter, mit Isolierung der Kondensatwanne | C150: =AVERAGE(C147:C149) -> 24.9 | D150: =AVERAGE(D147:D149) -> 488 | E150: =AVERAGE(E147:E149) -> 3 | F150: =AVERAGE(F147:F149) -> 3.5 | H150: =H149 -> 2017-02-20 | J150: =J149 -> TT | L150: =AVERAGE(L147:L149) -> 199.9661963 | M150: 13.61233333 | N150: 14.80433333 | O150: -1.192 | P150: -276.7617947 | Q150: 34.35661367 | R150: 136.297047 | S150: 0 | T150: 21.66788867 | U150: 15.60344433 | Z150: =AVERAGE(Z147:Z149) -> 0 | AA150: 21.66333333 | AB150: 21.63666667 | AC150: 21.70666667 | AD150: 15.72666667 | AE150: 15.56333333 | AF150: 15.52333333 | AG150: 21.22666667
B153: VKL800; ISH Prototyp; 3,2mm Lamellenabstand, mit Filter, mit Isolierung der Kondensatwanne | C153: 24.9 | D153: 800 | E153: 9 | F153: 6 | H153: 2017-02-20 | I153: 08:28:13 | J153: TT | K153: VKL800, 4L, ISH-Prototyp | L153: 199.324642 | M153: 13.634 | N153: 15.454 | O153: -1.82 | P153: -421.217262 | Q153: 51.207675 | R153: 223.934758 | S153: 0 | T153: 21.859667 | U153: 16.242 | V153: 21.859667 | W153: 16.242 | X153: - | Y153: 0 | Z153: 0 | AA153: 21.84 | AB153: 21.86 | AC153: 21.88 | AD153: 16.32 | AE153: 16.25 | AF153: 16.17 | AG153: 21.41
B154: =CONCATENATE("mit ",ROUND(L156,0)," kg/h wasserseitig, ",ROUND(D156,0)," 1/min Drehzahl") -> mit 199 kg/h wasserseitig, 800 1/min Drehzahl | C154: 24.9 | D154: 800 | E154: 9 | F154: 6 | H154: 2017-02-20 | I154: 08:28:55 | J154: TT | K154: VKL800, 4L, ISH-Prototyp | L154: 199.12854 | M154: 13.644 | N154: 15.452 | O154: -1.808 | P154: -418.028331 | Q154: 50.797351 | R154: 221.818222 | S154: 0 | T154: 21.873333 | U154: 16.245 | V154: 21.873333 | W154: 16.245 | X154: - | Y154: 0 | Z154: 0 | AA154: 21.86 | AB154: 21.88 | AC154: 21.88 | AD154: 16.32 | AE154: 16.25 | AF154: 16.17 | AG154: 21.43
C155: 24.9 | D155: 800 | E155: 9 | F155: 6 | H155: 2017-02-20 | I155: 08:29:09 | J155: TT | K155: VKL800, 4L, ISH-Prototyp | L155: 199.72209 | M155: 13.636 | N155: 15.457 | O155: -1.821 | P155: -422.289059 | Q155: 51.263188 | R155: 224.07909 | S155: 0 | T155: 21.873667 | U155: 16.245333 | V155: 21.873667 | W155: 16.245333 | X155: - | Y155: 0 | Z155: 0 | AA155: 21.86 | AB155: 21.88 | AC155: 21.88 | AD155: 16.32 | AE155: 16.25 | AF155: 16.17 | AG155: 21.43
A156: V23 | B156: =B153 -> VKL800; ISH Prototyp; 3,2mm Lamellenabstand, mit Filter, mit Isolierung der Kondensatwanne | C156: =AVERAGE(C153:C155) -> 24.9 | D156: =AVERAGE(D153:D155) -> 800 | E156: =AVERAGE(E153:E155) -> 9 | F156: =AVERAGE(F153:F155) -> 6 | H156: =H155 -> 2017-02-20 | J156: =J155 -> TT | L156: =AVERAGE(L153:L155) -> 199.3917573 | M156: 13.638 | N156: 15.45433333 | O156: -1.816333333 | P156: -420.5115507 | Q156: 51.08940467 | R156: 223.2773567 | S156: 0 | T156: 21.868889 | U156: 16.244111 | Z156: =AVERAGE(Z153:Z155) -> 0 | AA156: 21.85333333 | AB156: 21.87333333 | AC156: 21.88 | AD156: 16.32 | AE156: 16.25 | AF156: 16.17 | AG156: 21.42333333
B159: VKL800; ISH Prototyp; 3,2mm Lamellenabstand, mit Filter, mit Isolierung der Kondensatwanne | C159: 24.5 | D159: 1050 | E159: 16 | F159: 8 | H159: 2017-02-20 | I159: 08:40:07 | J159: TT | K159: VKL800, 4L, ISH-Prototyp | L159: 198.793772 | M159: 13.629 | N159: 15.828 | O159: -2.199 | P159: -507.576824 | Q159: 62.545407 | R159: 307.258067 | S159: 0 | T159: 21.744333 | U159: 16.810667 | V159: 21.744333 | W159: 16.810667 | X159: - | Y159: 0 | Z159: 0 | AA159: 21.7 | AB159: 21.73 | AC159: 21.8 | AD159: 16.87 | AE159: 16.82 | AF159: 16.75 | AG159: 21.51
B160: =CONCATENATE("mit ",ROUND(L162,0)," kg/h wasserseitig, ",ROUND(D162,0)," 1/min Drehzahl") -> mit 199 kg/h wasserseitig, 1050 1/min Drehzahl | C160: 24.5 | D160: 1050 | E160: 16 | F160: 8 | H160: 2017-02-20 | I160: 08:39:39 | J160: TT | K160: VKL800, 4L, ISH-Prototyp | L160: 199.723187 | M160: 13.639 | N160: 15.851 | O160: -2.212 | P160: -512.964594 | Q160: 63.318539 | R160: 310.540497 | S160: 0 | T160: 21.740333 | U160: 16.807 | V160: 21.740333 | W160: 16.807 | X160: - | Y160: 0 | Z160: 0 | AA160: 21.7 | AB160: 21.72 | AC160: 21.8 | AD160: 16.87 | AE160: 16.81 | AF160: 16.74 | AG160: 21.52
C161: 24.5 | D161: 1050 | E161: 16 | F161: 8 | H161: 2017-02-20 | I161: 08:40:35 | J161: TT | K161: VKL800, 4L, ISH-Prototyp | L161: 199.521388 | M161: 13.63 | N161: 15.832 | O161: -2.202 | P161: -510.129633 | Q161: 62.744 | R161: 308.365875 | S161: 0 | T161: 21.760333 | U161: 16.819667 | V161: 21.760333 | W161: 16.819667 | X161: - | Y161: 0 | Z161: 0 | AA161: 21.68 | AB161: 21.79 | AC161: 21.81 | AD161: 16.88 | AE161: 16.82 | AF161: 16.75 | AG161: 21.52
A162: V24 | B162: =B159 -> VKL800; ISH Prototyp; 3,2mm Lamellenabstand, mit Filter, mit Isolierung der Kondensatwanne | C162: =AVERAGE(C159:C161) -> 24.5 | D162: =AVERAGE(D159:D161) -> 1050 | E162: =AVERAGE(E159:E161) -> 16 | F162: =AVERAGE(F159:F161) -> 8 | H162: =H161 -> 2017-02-20 | J162: =J161 -> TT | L162: =AVERAGE(L159:L161) -> 199.3461157 | M162: 13.63266667 | N162: 15.837 | O162: -2.204333333 | P162: -510.2236837 | Q162: 62.86931533 | R162: 308.7214797 | S162: 0 | T162: 21.748333 | U162: 16.81244467 | Z162: =AVERAGE(Z159:Z161) -> 0 | AA162: 21.69333333 | AB162: 21.74666667 | AC162: 21.80333333 | AD162: 16.87333333 | AE162: 16.81666667 | AF162: 16.74666667 | AG162: 21.51666667
B165: VKL800; ISH Prototyp; 3,2mm Lamellenabstand, mit Filter, mit Isolierung der Kondensatwanne | C165: 24.5 | D165: 1146 | E165: 19 | F165: 10 | H165: 2017-02-20 | I165: 08:48:46 | J165: TT | K165: VKL800, 4L, ISH-Prototyp | L165: 199.725278 | M165: 13.631 | N165: 15.96 | O165: -2.329 | P165: -540.102644 | Q165: 66.70679 | R165: 340.665092 | S165: 0 | T165: 21.727667 | U165: 16.992667 | V165: 21.727667 | W165: 16.992667 | X165: - | Y165: 0 | Z165: 0 | AA165: 21.7 | AB165: 21.76 | AC165: 21.73 | AD165: 17.06 | AE165: 17 | AF165: 16.92 | AG165: 21.57
B166: =CONCATENATE("mit ",ROUND(L168,0)," kg/h wasserseitig, ",ROUND(D168,0)," 1/min Drehzahl") -> mit 199 kg/h wasserseitig, 1146 1/min Drehzahl | C166: 24.5 | D166: 1146 | E166: 19 | F166: 10 | H166: 2017-02-20 | I166: 08:49:14 | J166: TT | K166: VKL800, 4L, ISH-Prototyp | L166: 198.79133 | M166: 13.645 | N166: 15.961 | O166: -2.316 | P166: -534.576392 | Q166: 65.915708 | R166: 335.24422 | S166: 0 | T166: 21.755 | U166: 16.992667 | V166: 21.755 | W166: 16.992667 | X166: - | Y166: 0 | Z166: 0 | AA166: 21.73 | AB166: 21.8 | AC166: 21.73 | AD166: 17.05 | AE166: 17 | AF166: 16.93 | AG166: 21.56
C167: 24.5 | D167: 1146 | E167: 19 | F167: 10 | H167: 2017-02-20 | I167: 08:49:56 | J167: TT | K167: VKL800, 4L, ISH-Prototyp | L167: 198.793376 | M167: 13.648 | N167: 15.979 | O167: -2.331 | P167: -538.044212 | Q167: 66.231695 | R167: 336.523891 | S167: 0 | T167: 21.771667 | U167: 16.996667 | V167: 21.771667 | W167: 16.996667 | X167: - | Y167: 0 | Z167: 0 | AA167: 21.76 | AB167: 21.8 | AC167: 21.76 | AD167: 17.05 | AE167: 17 | AF167: 16.93 | AG167: 21.56
A168: V25 | B168: =B165 -> VKL800; ISH Prototyp; 3,2mm Lamellenabstand, mit Filter, mit Isolierung der Kondensatwanne | C168: =AVERAGE(C165:C167) -> 24.5 | D168: =AVERAGE(D165:D167) -> 1146 | E168: =AVERAGE(E165:E167) -> 19 | F168: =AVERAGE(F165:F167) -> 10 | H168: =H167 -> 2017-02-20 | J168: =J167 -> TT | L168: =AVERAGE(L165:L167) -> 199.103328 | M168: 13.64133333 | N168: 15.96666667 | O168: -2.325333333 | P168: -537.574416 | Q168: 66.284731 | R168: 337.4777343 | S168: 0 | T168: 21.75144467 | U168: 16.99400033 | Z168: =AVERAGE(Z165:Z167) -> 0 | AA168: 21.73 | AB168: 21.78666667 | AC168: 21.74 | AD168: 17.05333333 | AE168: 17 | AF168: 16.92666667 | AG168: 21.56333333
B172: Wassermengenvariation
B175: VKL800; ISH Prototyp; 3,2mm Lamellenabstand, mit Filter, mit Isolierung der Kondensatwanne | C175: 2.8 | D175: 748 | E175: 8 | F175: 5.6 | H175: 2017-02-20 | I175: 09:51:41 | J175: TT | K175: VKL800, 4L, ISH-Prototyp | L175: 62.135165 | M175: 13.814 | N175: 17.716 | O175: -3.902 | P175: -281.51303 | Q175: 34.970563 | R175: 212.50881 | S175: 0 | T175: 21.864 | U175: 17.907667 | V175: 21.864 | W175: 17.907667 | X175: - | Y175: 0 | Z175: 0 | AA175: 21.75 | AB175: 21.84 | AC175: 22 | AD175: 17.95 | AE175: 17.93 | AF175: 17.84 | AG175: 22.11
B176: =CONCATENATE("mit ",ROUND(L178,0)," kg/h wasserseitig, ",ROUND(D178,0)," 1/min Drehzahl") -> mit 62 kg/h wasserseitig, 748 1/min Drehzahl | C176: 2.8 | D176: 748 | E176: 8 | F176: 5.6 | H176: 2017-02-20 | I176: 09:52:09 | J176: TT | K176: VKL800, 4L, ISH-Prototyp | L176: 61.999256 | M176: 13.812 | N176: 17.735 | O176: -3.923 | P176: -282.409021 | Q176: 34.96748 | R176: 212.469129 | S176: 0 | T176: 21.888333 | U176: 17.918667 | V176: 21.888333 | W176: 17.918667 | X176: - | Y176: 0 | Z176: 0 | AA176: 21.78 | AB176: 21.88 | AC176: 22.01 | AD176: 17.96 | AE176: 17.94 | AF176: 17.85 | AG176: 22.11
C177: 2.8 | D177: 748 | E177: 8 | F177: 5.6 | H177: 2017-02-20 | I177: 09:52:23 | J177: TT | K177: VKL800, 4L, ISH-Prototyp | L177: 61.999111 | M177: 13.816 | N177: 17.742 | O177: -3.926 | P177: -282.624325 | Q177: 34.94366 | R177: 212.008031 | S177: 0 | T177: 21.904 | U177: 17.922667 | V177: 21.904 | W177: 17.922667 | X177: - | Y177: 0 | Z177: 0 | AA177: 21.8 | AB177: 21.9 | AC177: 22.01 | AD177: 17.97 | AE177: 17.94 | AF177: 17.85 | AG177: 22.12
A178: V26 | B178: =B175 -> VKL800; ISH Prototyp; 3,2mm Lamellenabstand, mit Filter, mit Isolierung der Kondensatwanne | C178: =AVERAGE(C175:C177) -> 2.8 | D178: =AVERAGE(D175:D177) -> 748 | E178: =AVERAGE(E175:E177) -> 8 | F178: =AVERAGE(F175:F177) -> 5.6 | H178: =H177 -> 2017-02-20 | J178: =J177 -> TT | L178: =AVERAGE(L175:L177) -> 62.04451067 | M178: 13.814 | N178: 17.731 | O178: -3.917 | P178: -282.1821253 | Q178: 34.96056767 | R178: 212.3286567 | S178: 0 | T178: 21.88544433 | U178: 17.91633367 | Z178: =AVERAGE(Z175:Z177) -> 0 | AA178: 21.77666667 | AB178: 21.87333333 | AC178: 22.00666667 | AD178: 17.96 | AE178: 17.93666667 | AF178: 17.84666667 | AG178: 22.11333333
B181: VKL800; ISH Prototyp; 3,2mm Lamellenabstand, mit Filter, mit Isolierung der Kondensatwanne | C181: 8.7 | D181: 748 | E181: 8 | F181: 5.6 | H181: 2017-02-20 | I181: 09:24:55 | J181: TT | K181: VKL800, 4L, ISH-Prototyp | L181: 111.944007 | M181: 13.696 | N181: 16.397 | O181: -2.701 | P181: -351.074442 | Q181: 43.702213 | R181: 212.621006 | S181: 0 | T181: 21.729333 | U181: 16.798 | V181: 21.729333 | W181: 16.798 | X181: - | Y181: 0 | Z181: 0 | AA181: 21.71 | AB181: 21.71 | AC181: 21.77 | AD181: 16.87 | AE181: 16.8 | AF181: 16.73 | AG181: 21.85
B182: =CONCATENATE("mit ",ROUND(L184,0)," kg/h wasserseitig, ",ROUND(D184,0)," 1/min Drehzahl") -> mit 112 kg/h wasserseitig, 748 1/min Drehzahl | C182: 8.7 | D182: 748 | E182: 8 | F182: 5.6 | H182: 2017-02-20 | I182: 09:25:51 | J182: TT | K182: VKL800, 4L, ISH-Prototyp | L182: 111.81206 | M182: 13.705 | N182: 16.388 | O182: -2.683 | P182: -348.323762 | Q182: 43.430086 | R182: 211.069251 | S182: 0 | T182: 21.725333 | U182: 16.796667 | V182: 21.725333 | W182: 16.796667 | X182: - | Y182: 0 | Z182: 0 | AA182: 21.73 | AB182: 21.7 | AC182: 21.74 | AD182: 16.87 | AE182: 16.79 | AF182: 16.73 | AG182: 21.87
C183: 8.7 | D183: 748 | E183: 8 | F183: 5.6 | H183: 2017-02-20 | I183: 09:26:33 | J183: TT | K183: VKL800, 4L, ISH-Prototyp | L183: 112.05444 | M183: 13.705 | N183: 16.456 | O183: -2.751 | P183: -357.926161 | Q183: 44.464718 | R183: 215.982245 | S183: 0 | T183: 21.754667 | U183: 16.805333 | V183: 21.754667 | W183: 16.805333 | X183: - | Y183: 0 | Z183: 0 | AA183: 21.76 | AB183: 21.74 | AC183: 21.77 | AD183: 16.88 | AE183: 16.8 | AF183: 16.74 | AG183: 21.87
A184: V27 | B184: =B181 -> VKL800; ISH Prototyp; 3,2mm Lamellenabstand, mit Filter, mit Isolierung der Kondensatwanne | C184: =AVERAGE(C181:C183) -> 8.7 | D184: =AVERAGE(D181:D183) -> 748 | E184: =AVERAGE(E181:E183) -> 8 | F184: =AVERAGE(F181:F183) -> 5.6 | H184: =H183 -> 2017-02-20 | J184: =J183 -> TT | L184: =AVERAGE(L181:L183) -> 111.9368357 | M184: 13.702 | N184: 16.41366667 | O184: -2.711666667 | P184: -352.441455 | Q184: 43.86567233 | R184: 213.2241673 | S184: 0 | T184: 21.73644433 | U184: 16.8 | Z184: =AVERAGE(Z181:Z183) -> 0 | AA184: 21.73333333 | AB184: 21.71666667 | AC184: 21.76 | AD184: 16.87333333 | AE184: 16.79666667 | AF184: 16.73333333 | AG184: 21.86333333
B187: VKL800; ISH Prototyp; 3,2mm Lamellenabstand, mit Filter, mit Isolierung der Kondensatwanne | C187: 39.2 | D187: 748 | E187: 8 | F187: 5.6 | H187: 2017-02-20 | I187: 10:09:42 | J187: TT | K187: VKL800, 4L, ISH-Prototyp | L187: 257.525343 | M187: 13.63 | N187: 15.069 | O187: -1.439 | P187: -430.283358 | Q187: 50.941203 | R187: 213.112317 | S187: 0 | T187: 22.076667 | U187: 16.046667 | V187: 22.076667 | W187: 16.046667 | X187: - | Y187: 0 | Z187: 0 | AA187: 22.07 | AB187: 22.04 | AC187: 22.12 | AD187: 16.13 | AE187: 16.04 | AF187: 15.97 | AG187: 22.26
B188: =CONCATENATE("mit ",ROUND(L190,0)," kg/h wasserseitig, ",ROUND(D190,0)," 1/min Drehzahl") -> mit 258 kg/h wasserseitig, 748 1/min Drehzahl | C188: 39.2 | D188: 748 | E188: 8 | F188: 5.6 | H188: 2017-02-20 | I188: 10:10:24 | J188: TT | K188: VKL800, 4L, ISH-Prototyp | L188: 257.526632 | M188: 13.631 | N188: 15.046 | O188: -1.415 | P188: -423.109102 | Q188: 50.30625 | R188: 210.419781 | S188: 0 | T188: 22.041667 | U188: 16.036333 | V188: 22.041667 | W188: 16.036333 | X188: - | Y188: 0 | Z188: 0 | AA188: 22.01 | AB188: 22.01 | AC188: 22.11 | AD188: 16.13 | AE188: 16.02 | AF188: 15.96 | AG188: 22.26
C189: 39.2 | D189: 748 | E189: 8 | F189: 5.6 | H189: 2017-02-20 | I189: 10:12:16 | J189: TT | K189: VKL800, 4L, ISH-Prototyp | L189: 260.39492 | M189: 13.637 | N189: 15.049 | O189: -1.412 | P189: -426.914578 | Q189: 51.009389 | R189: 212.99803 | S189: 0 | T189: 22.006333 | U189: 16.020333 | V189: 22.006333 | W189: 16.020333 | X189: - | Y189: 0 | Z189: 0 | AA189: 21.87 | AB189: 22.07 | AC189: 22.08 | AD189: 16.11 | AE189: 16.01 | AF189: 15.94 | AG189: 22.25
A190: V28 | B190: =B187 -> VKL800; ISH Prototyp; 3,2mm Lamellenabstand, mit Filter, mit Isolierung der Kondensatwanne | C190: =AVERAGE(C187:C189) -> 39.2 | D190: =AVERAGE(D187:D189) -> 748 | E190: =AVERAGE(E187:E189) -> 8 | F190: =AVERAGE(F187:F189) -> 5.6 | H190: =H189 -> 2017-02-20 | J190: =J189 -> TT | L190: =AVERAGE(L187:L189) -> 258.4822983 | M190: 13.63266667 | N190: 15.05466667 | O190: -1.422 | P190: -426.7690127 | Q190: 50.75228067 | R190: 212.1767093 | S190: 0 | T190: 22.04155567 | U190: 16.03444433 | Z190: =AVERAGE(Z187:Z189) -> 0 | AA190: 21.98333333 | AB190: 22.04 | AC190: 22.10333333 | AD190: 16.12333333 | AE190: 16.02333333 | AF190: 15.95666667 | AG190: 22.25666667
B193: VKL800; ISH Prototyp; 3,2mm Lamellenabstand, mit Filter, mit Isolierung der Kondensatwanne | C193: 55.8 | D193: 748 | E193: 8 | F193: 5.6 | H193: 2017-02-20 | I193: 10:29:17 | J193: TT | K193: VKL800, 4L, ISH-Prototyp | L193: 314.814648 | M193: 13.639 | N193: 14.858 | O193: -1.219 | P193: -445.586904 | Q193: 53.769386 | R193: 220.083611 | S193: 0 | T193: 21.926 | U193: 15.879333 | V193: 21.926 | W193: 15.879333 | X193: - | Y193: 0 | Z193: 0 | AA193: 21.89 | AB193: 21.88 | AC193: 22 | AD193: 15.97 | AE193: 15.87 | AF193: 15.8 | AG193: 22.27
B194: =CONCATENATE("mit ",ROUND(L196,0)," kg/h wasserseitig, ",ROUND(D196,0)," 1/min Drehzahl") -> mit 314 kg/h wasserseitig, 748 1/min Drehzahl | C194: 55.8 | D194: 748 | E194: 8 | F194: 5.6 | H194: 2017-02-20 | I194: 10:29:31 | J194: TT | K194: VKL800, 4L, ISH-Prototyp | L194: 313.998216 | M194: 13.64 | N194: 14.865 | O194: -1.225 | P194: -446.618852 | Q194: 53.815984 | R194: 220.144283 | S194: 0 | T194: 21.939 | U194: 15.88 | V194: 21.939 | W194: 15.88 | X194: - | Y194: 0 | Z194: 0 | AA194: 21.91 | AB194: 21.9 | AC194: 22.01 | AD194: 15.97 | AE194: 15.87 | AF194: 15.8 | AG194: 22.27
C195: 55.8 | D195: 748 | E195: 8 | F195: 5.6 | H195: 2017-02-20 | I195: 10:29:59 | J195: TT | K195: VKL800, 4L, ISH-Prototyp | L195: 313.373207 | M195: 13.65 | N195: 14.862 | O195: -1.212 | P195: -440.999668 | Q195: 53.013264 | R195: 216.576219 | S195: 0 | T195: 21.968667 | U195: 15.887333 | V195: 21.968667 | W195: 15.887333 | X195: - | Y195: 0 | Z195: 0 | AA195: 21.94 | AB195: 21.93 | AC195: 22.03 | AD195: 15.97 | AE195: 15.88 | AF195: 15.81 | AG195: 22.29
A196: V29 | B196: =B193 -> VKL800; ISH Prototyp; 3,2mm Lamellenabstand, mit Filter, mit Isolierung der Kondensatwanne | C196: =AVERAGE(C193:C195) -> 55.8 | D196: =AVERAGE(D193:D195) -> 748 | E196: =AVERAGE(E193:E195) -> 8 | F196: =AVERAGE(F193:F195) -> 5.6 | H196: =H195 -> 2017-02-20 | J196: =J195 -> TT | L196: =AVERAGE(L193:L195) -> 314.0620237 | M196: 13.643 | N196: 14.86166667 | O196: -1.218666667 | P196: -444.401808 | Q196: 53.532878 | R196: 218.9347043 | S196: 0 | T196: 21.94455567 | U196: 15.882222 | Z196: =AVERAGE(Z193:Z195) -> 0 | AA196: 21.91333333 | AB196: 21.90333333 | AC196: 22.01333333 | AD196: 15.97 | AE196: 15.87333333 | AF196: 15.80333333 | AG196: 22.27666667
B200: Messungen mit Schalldämmung
B202: VKL800; ISH Prototyp; 3,2mm Lamellenabstand, mit Filter, mit Isolierung der Kondensatwanne | C202: 25.5 | D202: 755 | E202: 9 | F202: 5.6 | H202: 2017-02-20 | I202: 13:10:31 | J202: TT | K202: VKL800, 4L, ISH-Prototyp | L202: 203.107819 | M202: 13.683 | N202: 15.623 | O202: -1.94 | P202: -457.511646 | Q202: 50.42562 | R202: 217.565872 | S202: 0 | T202: 22.756 | U202: 16.475667 | V202: 22.756 | W202: 16.475667 | X202: - | Y202: 0 | Z202: 0 | AA202: 22.71 | AB202: 22.73 | AC202: 22.82 | AD202: 16.56 | AE202: 16.48 | AF202: 16.39 | AG202: 22.97
B203: =CONCATENATE("mit ",ROUND(L205,0)," kg/h wasserseitig, ",ROUND(D205,0)," 1/min Drehzahl") -> mit 204 kg/h wasserseitig, 755 1/min Drehzahl | C203: 25.5 | D203: 755 | E203: 9 | F203: 5.6 | H203: 2017-02-20 | I203: 13:10:45 | J203: TT | K203: VKL800, 4L, ISH-Prototyp | L203: 204.441431 | M203: 13.684 | N203: 15.614 | O203: -1.93 | P203: -458.141889 | Q203: 50.433938 | R203: 217.530757 | S203: 0 | T203: 22.768 | U203: 16.478 | V203: 22.768 | W203: 16.478 | X203: - | Y203: 0 | Z203: 0 | AA203: 22.73 | AB203: 22.74 | AC203: 22.83 | AD203: 16.57 | AE203: 16.47 | AF203: 16.4 | AG203: 22.97
C204: 25.5 | D204: 755 | E204: 9 | F204: 5.6 | H204: 2017-02-20 | I204: 13:14:29 | J204: TT | K204: VKL800, 4L, ISH-Prototyp | L204: 203.828709 | M204: 13.681 | N204: 15.575 | O204: -1.894 | P204: -448.248773 | Q204: 49.339436 | R204: 212.450604 | S204: 0 | T204: 22.766 | U204: 16.464667 | V204: 22.766 | W204: 16.464667 | X204: - | Y204: 0 | Z204: 0 | AA204: 22.73 | AB204: 22.76 | AC204: 22.81 | AD204: 16.55 | AE204: 16.46 | AF204: 16.38 | AG204: 22.99
A205: V30 | B205: =B202 -> VKL800; ISH Prototyp; 3,2mm Lamellenabstand, mit Filter, mit Isolierung der Kondensatwanne | C205: =AVERAGE(C202:C204) -> 25.5 | D205: =AVERAGE(D202:D204) -> 755 | E205: =AVERAGE(E202:E204) -> 9 | F205: =AVERAGE(F202:F204) -> 5.6 | H205: =H204 -> 2017-02-20 | J205: =J204 -> TT | L205: =AVERAGE(L202:L204) -> 203.792653 | M205: 13.68266667 | N205: 15.604 | O205: -1.921333333 | P205: -454.6341027 | Q205: 50.06633133 | R205: 215.8490777 | S205: 0 | T205: 22.76333333 | U205: 16.472778 | Z205: =AVERAGE(Z202:Z204) -> 0 | AA205: 22.72333333 | AB205: 22.74333333 | AC205: 22.82 | AD205: 16.56 | AE205: 16.47 | AF205: 16.39 | AG205: 22.97666667
B208: VKL800; ISH Prototyp; 3,2mm Lamellenabstand, mit Filter, mit Isolierung der Kondensatwanne, mit 1cm Schalldämmung | C208: 26.1 | D208: 755 | E208: 9 | F208: 5.6 | H208: 2017-02-20 | I208: 14:09:20 | J208: TT | K208: VKL800, 4L, ISH-Prototyp | L208: 206.49105 | M208: 13.678 | N208: 15.58 | O208: -1.902 | P208: -456.021717 | Q208: 49.953085 | R208: 215.496272 | S208: 0 | T208: 22.807 | U208: 16.487 | V208: 22.807 | W208: 16.487 | X208: - | Y208: 0 | Z208: 0 | AA208: 22.77 | AB208: 22.75 | AC208: 22.9 | AD208: 16.45 | AE208: 16.59 | AF208: 16.42 | AG208: 23.19
B209: =CONCATENATE("mit ",ROUND(L211,0)," kg/h wasserseitig, ",ROUND(D211,0)," 1/min Drehzahl") -> mit 206 kg/h wasserseitig, 755 1/min Drehzahl | C209: 26.1 | D209: 755 | E209: 9 | F209: 5.6 | H209: 2017-02-20 | I209: 14:10:02 | J209: TT | K209: VKL800, 4L, ISH-Prototyp | L209: 205.570768 | M209: 13.685 | N209: 15.6 | O209: -1.915 | P209: -457.092314 | Q209: 50.35905 | R209: 217.481893 | S209: 0 | T209: 22.761667 | U209: 16.484667 | V209: 22.761667 | W209: 16.484667 | X209: - | Y209: 0 | Z209: 0 | AA209: 22.74 | AB209: 22.65 | AC209: 22.89 | AD209: 16.45 | AE209: 16.58 | AF209: 16.42 | AG209: 23.17
C210: 26.1 | D210: 755 | E210: 9 | F210: 5.6 | H210: 2017-02-20 | I210: 14:16:48 | J210: TT | K210: VKL800, 4L, ISH-Prototyp | L210: 206.794879 | M210: 13.686 | N210: 15.602 | O210: -1.916 | P210: -460.054269 | Q210: 50.468527 | R210: 217.654435 | S210: 0 | T210: 22.801667 | U210: 16.489 | V210: 22.801667 | W210: 16.489 | X210: - | Y210: 0 | Z210: 0 | AA210: 22.75 | AB210: 22.78 | AC210: 22.88 | AD210: 16.46 | AE210: 16.57 | AF210: 16.43 | AG210: 23.19
A211: V31 | B211: =B208 -> VKL800; ISH Prototyp; 3,2mm Lamellenabstand, mit Filter, mit Isolierung der Kondensatwanne, mit 1cm Schalldämmung | C211: =AVERAGE(C208:C210) -> 26.1 | D211: =AVERAGE(D208:D210) -> 755 | E211: =AVERAGE(E208:E210) -> 9 | F211: =AVERAGE(F208:F210) -> 5.6 | H211: =H210 -> 2017-02-20 | J211: =J210 -> TT | L211: =AVERAGE(L208:L210) -> 206.2855657 | M211: 13.683 | N211: 15.594 | O211: -1.911 | P211: -457.7227667 | Q211: 50.26022067 | R211: 216.8775333 | S211: 0 | T211: 22.79011133 | U211: 16.486889 | Z211: =AVERAGE(Z208:Z210) -> 0 | AA211: 22.75333333 | AB211: 22.72666667 | AC211: 22.89 | AD211: 16.45333333 | AE211: 16.58 | AF211: 16.42333333 | AG211: 23.18333333
B214: Drehzahlvariation - mit 2-2,5cm Schalldämmung, 3,2mm Lamellenabstand, mit Isolierung der Kondensatwanne, mit Filter
B215: immer mit 3,2mm Lamellenabstand und Isolierung der Kondensatwanne
B217: VKL800; ISH Prototyp; mit Filter, mit 2-2,5cm Schalldämmung | C217: 26.1 | D217: 748 | E217: 9 | F217: 5.6 | H217: 2017-02-20 | I217: 14:42:14 | J217: TT | K217: VKL800, 4L, ISH-Prototyp | L217: 206.700479 | M217: 13.678 | N217: 15.545 | O217: -1.867 | P217: -448.08415 | Q217: 48.738351 | R217: 213.479275 | S217: 0 | T217: 22.871667 | U217: 16.603 | V217: 22.871667 | W217: 16.603 | X217: - | Y217: 0 | Z217: 0 | AA217: 22.85 | AB217: 22.86 | AC217: 22.9 | AD217: 16.68 | AE217: 16.62 | AF217: 16.5 | AG217: 23.27
B218: =CONCATENATE("mit ",ROUND(L220,0)," kg/h wasserseitig, ",ROUND(D220,0)," 1/min Drehzahl") -> mit 206 kg/h wasserseitig, 748 1/min Drehzahl | C218: 26.1 | D218: 748 | E218: 9 | F218: 5.6 | H218: 2017-02-20 | I218: 14:42:42 | J218: TT | K218: VKL800, 4L, ISH-Prototyp | L218: 205.573504 | M218: 13.682 | N218: 15.531 | O218: -1.849 | P218: -441.344614 | Q218: 48.047097 | R218: 210.357865 | S218: 0 | T218: 22.867667 | U218: 16.601667 | V218: 22.867667 | W218: 16.601667 | X218: - | Y218: 0 | Z218: 0 | AA218: 22.86 | AB218: 22.85 | AC218: 22.89 | AD218: 16.68 | AE218: 16.63 | AF218: 16.5 | AG218: 23.29
C219: 26.1 | D219: 748 | E219: 9 | F219: 5.6 | H219: 2017-02-20 | I219: 14:46:26 | J219: TT | K219: VKL800, 4L, ISH-Prototyp | L219: 206.490473 | M219: 13.681 | N219: 15.538 | O219: -1.857 | P219: -445.231317 | Q219: 48.872812 | R219: 213.45948 | S219: 0 | T219: 22.791 | U219: 16.561667 | V219: 22.791 | W219: 16.561667 | X219: - | Y219: 0 | Z219: 0 | AA219: 22.77 | AB219: 22.77 | AC219: 22.84 | AD219: 16.64 | AE219: 16.58 | AF219: 16.46 | AG219: 23.28
A220: V32 | B220: =B217 -> VKL800; ISH Prototyp; mit Filter, mit 2-2,5cm Schalldämmung | C220: =AVERAGE(C217:C219) -> 26.1 | D220: =AVERAGE(D217:D219) -> 748 | E220: =AVERAGE(E217:E219) -> 9 | F220: =AVERAGE(F217:F219) -> 5.6 | H220: =H219 -> 2017-02-20 | J220: =J219 -> TT | L220: =AVERAGE(L217:L219) -> 206.2548187 | M220: 13.68033333 | N220: 15.538 | O220: -1.857666667 | P220: -444.8866937 | Q220: 48.55275333 | R220: 212.4322067 | S220: 0 | T220: 22.84344467 | U220: 16.588778 | Z220: =AVERAGE(Z217:Z219) -> 0 | AA220: 22.82666667 | AB220: 22.82666667 | AC220: 22.87666667 | AD220: 16.66666667 | AE220: 16.61 | AF220: 16.48666667 | AG220: 23.28
B223: VKL800; ISH Prototyp; mit Filter, mit 2-2,5cm Schalldämmung | C223: 26.1 | D223: 488 | E223: 3.5 | F223: 3.5 | H223: 2017-02-20 | I223: 15:03:28 | J223: TT | K223: VKL800, 4L, ISH-Prototyp | L223: 207.208842 | M223: 13.691 | N223: 14.926 | O223: -1.235 | P223: -297.131724 | Q223: 33.014636 | R223: 133.210187 | S223: 0 | T223: 22.691 | U223: 16.029333 | V223: 22.691 | W223: 16.029333 | X223: - | Y223: 0 | Z223: 0 | AA223: 22.68 | AB223: 22.66 | AC223: 22.73 | AD223: 16.14 | AE223: 16.04 | AF223: 15.91 | AG223: 23.32
B224: =CONCATENATE("mit ",ROUND(L226,0)," kg/h wasserseitig, ",ROUND(D226,0)," 1/min Drehzahl") -> mit 206 kg/h wasserseitig, 488 1/min Drehzahl | C224: 26.1 | D224: 488 | E224: 3.5 | F224: 3.5 | H224: 2017-02-20 | I224: 15:03:56 | J224: TT | K224: VKL800, 4L, ISH-Prototyp | L224: 205.360435 | M224: 13.678 | N224: 14.932 | O224: -1.254 | P224: -299.011639 | Q224: 33.152299 | R224: 133.8922 | S224: 0 | T224: 22.697333 | U224: 16.027667 | V224: 22.697333 | W224: 16.027667 | X224: - | Y224: 0 | Z224: 0 | AA224: 22.69 | AB224: 22.67 | AC224: 22.73 | AD224: 16.14 | AE224: 16.04 | AF224: 15.91 | AG224: 23.33
C225: 26.1 | D225: 488 | E225: 3.5 | F225: 3.5 | H225: 2017-02-20 | I225: 15:06:02 | J225: TT | K225: VKL800, 4L, ISH-Prototyp | L225: 206.083631 | M225: 13.684 | N225: 14.903 | O225: -1.219 | P225: -291.689626 | Q225: 32.547381 | R225: 130.783472 | S225: 0 | T225: 22.646 | U225: 15.985 | V225: 22.646 | W225: 15.985 | X225: - | Y225: 0 | Z225: 0 | AA225: 22.61 | AB225: 22.62 | AC225: 22.71 | AD225: 16.09 | AE225: 15.99 | AF225: 15.87 | AG225: 23.33
A226: V33 | B226: =B223 -> VKL800; ISH Prototyp; mit Filter, mit 2-2,5cm Schalldämmung | C226: =AVERAGE(C223:C225) -> 26.1 | D226: =AVERAGE(D223:D225) -> 488 | E226: =AVERAGE(E223:E225) -> 3.5 | F226: =AVERAGE(F223:F225) -> 3.5 | H226: =H225 -> 2017-02-20 | J226: =J225 -> TT | L226: =AVERAGE(L223:L225) -> 206.217636 | M226: 13.68433333 | N226: 14.92033333 | O226: -1.236 | P226: -295.9443297 | Q226: 32.904772 | R226: 132.6286197 | S226: 0 | T226: 22.678111 | U226: 16.014 | Z226: =AVERAGE(Z223:Z225) -> 0 | AA226: 22.66 | AB226: 22.65 | AC226: 22.72333333 | AD226: 16.12333333 | AE226: 16.02333333 | AF226: 15.89666667 | AG226: 23.32666667
B229: VKL800; ISH Prototyp; mit Filter, mit 2-2,5cm Schalldämmung | C229: 25.2 | D229: 1037 | E229: 16 | F229: 8 | H229: 2017-02-20 | I229: 16:19:19 | J229: TT | K229: VKL800, 4L, ISH-Prototyp | L229: 201.777542 | M229: 13.688 | N229: 16.026 | O229: -2.338 | P229: -547.761009 | Q229: 62.644214 | R229: 309.20893 | S229: 0 | T229: 22.432 | U229: 17.141333 | V229: 22.432 | W229: 17.141333 | X229: - | Y229: 0 | Z229: 0 | AA229: 22.37 | AB229: 22.39 | AC229: 22.54 | AD229: 17.15 | AE229: 17.19 | AF229: 17.08 | AG229: 22.99
B230: =CONCATENATE("mit ",ROUND(L232,0)," kg/h wasserseitig, ",ROUND(D232,0)," 1/min Drehzahl") -> mit 202 kg/h wasserseitig, 1037 1/min Drehzahl | C230: 25.2 | D230: 1037 | E230: 16 | F230: 8 | H230: 2017-02-20 | I230: 16:19:47 | J230: TT | K230: VKL800, 4L, ISH-Prototyp | L230: 202.502128 | M230: 13.69 | N230: 16.032 | O230: -2.342 | P230: -550.668537 | Q230: 62.849747 | R230: 310.010347 | S230: 0 | T230: 22.451667 | U230: 17.146667 | V230: 22.451667 | W230: 17.146667 | X230: - | Y230: 0 | Z230: 0 | AA230: 22.38 | AB230: 22.4 | AC230: 22.58 | AD230: 17.15 | AE230: 17.19 | AF230: 17.09 | AG230: 23
B231: -> Ventilator läuft instabil (pumpt) | C231: 25.2 | D231: 1037 | E231: 16 | F231: 8 | H231: 2017-02-20 | I231: 16:20:15 | J231: TT | K231: VKL800, 4L, ISH-Prototyp | L231: 201.978629 | M231: 13.69 | N231: 16.019 | O231: -2.329 | P231: -546.196218 | Q231: 62.209136 | R231: 306.664 | S231: 0 | T231: 22.47 | U231: 17.150667 | V231: 22.47 | W231: 17.150667 | X231: - | Y231: 0 | Z231: 0 | AA231: 22.35 | AB231: 22.46 | AC231: 22.6 | AD231: 17.16 | AE231: 17.2 | AF231: 17.1 | AG231: 22.97
A232: V34 | B232: =B229 -> VKL800; ISH Prototyp; mit Filter, mit 2-2,5cm Schalldämmung | C232: =AVERAGE(C229:C231) -> 25.2 | D232: =AVERAGE(D229:D231) -> 1037 | E232: =AVERAGE(E229:E231) -> 16 | F232: =AVERAGE(F229:F231) -> 8 | H232: =H231 -> 2017-02-20 | J232: =J231 -> TT | L232: =AVERAGE(L229:L231) -> 202.0860997 | M232: 13.68933333 | N232: 16.02566667 | O232: -2.336333333 | P232: -548.208588 | Q232: 62.567699 | R232: 308.627759 | S232: 0 | T232: 22.45122233 | U232: 17.14622233 | Z232: =AVERAGE(Z229:Z231) -> 0 | AA232: 22.36666667 | AB232: 22.41666667 | AC232: 22.57333333 | AD232: 17.15333333 | AE232: 17.19333333 | AF232: 17.09 | AG232: 22.98666667
B235: VKL800; ISH Prototyp; mit Filter, mit 2-2,5cm Schalldämmung | C235: 26.1 | D235: 1146 | E235: 23 | F235: 10 | H235: 2017-02-20 | I235: 16:34:00 | J235: TT | K235: VKL800, 4L, ISH-Prototyp | L235: 201.575596 | M235: 13.679 | N235: 16.209 | O235: -2.53 | P235: -592.15071 | Q235: 67.119512 | R235: 347.285574 | S235: 0 | T235: 22.501333 | U235: 17.409 | V235: 22.501333 | W235: 17.409 | X235: - | Y235: 0 | Z235: 0 | AA235: 22.42 | AB235: 22.46 | AC235: 22.63 | AD235: 17.42 | AE235: 17.45 | AF235: 17.36 | AG235: 22.89
B236: =CONCATENATE("mit ",ROUND(L238,0)," kg/h wasserseitig, ",ROUND(D238,0)," 1/min Drehzahl") -> mit 202 kg/h wasserseitig, 1146 1/min Drehzahl | C236: 26.1 | D236: 1146 | E236: 23 | F236: 10 | H236: 2017-02-20 | I236: 16:34:14 | J236: TT | K236: VKL800, 4L, ISH-Prototyp | L236: 201.775869 | M236: 13.68 | N236: 16.209 | O236: -2.529 | P236: -592.50475 | Q236: 66.992585 | R236: 346.246661 | S236: 0 | T236: 22.524333 | U236: 17.413667 | V236: 22.524333 | W236: 17.413667 | X236: - | Y236: 0 | Z236: 0 | AA236: 22.46 | AB236: 22.48 | AC236: 22.64 | AD236: 17.42 | AE236: 17.46 | AF236: 17.36 | AG236: 22.89
B237: -> Ventilator läuft instabil (pumpt) | C237: 26.1 | D237: 1146 | E237: 23 | F237: 10 | H237: 2017-02-20 | I237: 16:34:28 | J237: TT | K237: VKL800, 4L, ISH-Prototyp | L237: 202.29921 | M237: 13.681 | N237: 16.221 | O237: -2.54 | P237: -596.625326 | Q237: 67.258229 | R237: 347.002457 | S237: 0 | T237: 22.551667 | U237: 17.416667 | V237: 22.551667 | W237: 17.416667 | X237: - | Y237: 0 | Z237: 0 | AA237: 22.51 | AB237: 22.5 | AC237: 22.65 | AD237: 17.43 | AE237: 17.46 | AF237: 17.36 | AG237: 22.89
A238: V35 | B238: =B235 -> VKL800; ISH Prototyp; mit Filter, mit 2-2,5cm Schalldämmung | C238: =AVERAGE(C235:C237) -> 26.1 | D238: =AVERAGE(D235:D237) -> 1146 | E238: =AVERAGE(E235:E237) -> 23 | F238: =AVERAGE(F235:F237) -> 10 | H238: =H237 -> 2017-02-20 | J238: =J237 -> TT | L238: =AVERAGE(L235:L237) -> 201.8835583 | M238: 13.68 | N238: 16.213 | O238: -2.533 | P238: -593.760262 | Q238: 67.123442 | R238: 346.8448973 | S238: 0 | T238: 22.52577767 | U238: 17.41311133 | Z238: =AVERAGE(Z235:Z237) -> 0 | AA238: 22.46333333 | AB238: 22.48 | AC238: 22.64 | AD238: 17.42333333 | AE238: 17.45666667 | AF238: 17.36 | AG238: 22.89
B242: VKL800; ISH Prototyp; mit Filter, mit 2-2,5cm Schalldämmung | C242: 25.9 | D242: 737 | E242: 6 | F242: 5.6 | H242: 2017-02-21 | I242: 09:08:47 | J242: TT | K242: VKL800, 4L, ISH-Prototyp | L242: 204.956441 | M242: 13.617 | N242: 15.209 | O242: -1.592 | P242: -378.859704 | Q242: 48.484733 | R242: 210.849261 | S242: 0 | T242: 21.431 | U242: 16.064667 | V242: 21.431 | W242: 16.064667 | X242: - | Y242: 0 | Z242: 0 | AA242: 21.41 | AB242: 21.42 | AC242: 21.46 | AD242: 16.08 | AE242: 16.12 | AF242: 16 | AG242: 21.07
B243: =CONCATENATE("mit ",ROUND(L245,0)," kg/h wasserseitig, ",ROUND(D245,0)," 1/min Drehzahl") -> mit 205 kg/h wasserseitig, 737 1/min Drehzahl | C243: 25.9 | D243: 737 | E243: 6 | F243: 5.6 | H243: 2017-02-21 | I243: 09:09:01 | J243: TT | K243: VKL800, 4L, ISH-Prototyp | L243: 204.954497 | M243: 13.609 | N243: 15.222 | O243: -1.613 | P243: -383.853584 | Q243: 49.029708 | R243: 213.31054 | S243: 0 | T243: 21.438 | U243: 16.063667 | V243: 21.438 | W243: 16.063667 | X243: - | Y243: 0 | Z243: 0 | AA243: 21.43 | AB243: 21.43 | AC243: 21.46 | AD243: 16.08 | AE243: 16.11 | AF243: 16 | AG243: 21.07
C244: 25.9 | D244: 737 | E244: 6 | F244: 5.6 | H244: 2017-02-21 | I244: 09:09:15 | J244: TT | K244: VKL800, 4L, ISH-Prototyp | L244: 204.547689 | M244: 13.604 | N244: 15.209 | O244: -1.605 | P244: -381.191663 | Q244: 48.642067 | R244: 211.686864 | S244: 0 | T244: 21.440667 | U244: 16.062667 | V244: 21.440667 | W244: 16.062667 | X244: - | Y244: 0 | Z244: 0 | AA244: 21.42 | AB244: 21.43 | AC244: 21.47 | AD244: 16.08 | AE244: 16.11 | AF244: 15.99 | AG244: 21.07
A245: V36 | B245: =B242 -> VKL800; ISH Prototyp; mit Filter, mit 2-2,5cm Schalldämmung | C245: =AVERAGE(C242:C244) -> 25.9 | D245: =AVERAGE(D242:D244) -> 737 | E245: =AVERAGE(E242:E244) -> 6 | F245: =AVERAGE(F242:F244) -> 5.6 | H245: =H244 -> 2017-02-21 | J245: =J244 -> TT | L245: =AVERAGE(L242:L244) -> 204.8195423 | M245: 13.61 | N245: 15.21333333 | O245: -1.603333333 | P245: -381.3016503 | Q245: 48.718836 | R245: 211.9488883 | S245: 0 | T245: 21.43655567 | U245: 16.063667 | Z245: =AVERAGE(Z242:Z244) -> 0 | AA245: 21.42 | AB245: 21.42666667 | AC245: 21.46333333 | AD245: 16.08 | AE245: 16.11333333 | AF245: 15.99666667 | AG245: 21.07
B248: VKL800; ISH Prototyp; mit Filter, mit 2-2,5cm Schalldämmung | C248: 25.9 | D248: 1036 | E248: 14 | F248: 8 | H248: 2017-02-21 | I248: 09:15:33 | J248: TT | K248: VKL800, 4L, ISH-Prototyp | L248: 205.364222 | M248: 13.623 | N248: 15.695 | O248: -2.072 | P248: -494.069808 | Q248: 61.561217 | R248: 296.47767 | S248: 0 | T248: 21.648667 | U248: 16.671667 | V248: 21.648667 | W248: 16.671667 | X248: - | Y248: 0 | Z248: 0 | AA248: 21.64 | AB248: 21.62 | AC248: 21.69 | AD248: 16.68 | AE248: 16.71 | AF248: 16.63 | AG248: 21.17
B249: =CONCATENATE("mit ",ROUND(L251,0)," kg/h wasserseitig, ",ROUND(D251,0)," 1/min Drehzahl") -> mit 206 kg/h wasserseitig, 1036 1/min Drehzahl | C249: 25.9 | D249: 1036 | E249: 14 | F249: 8 | H249: 2017-02-21 | I249: 09:16:01 | J249: TT | K249: VKL800, 4L, ISH-Prototyp | L249: 205.362617 | M249: 13.628 | N249: 15.692 | O249: -2.064 | P249: -492.158356 | Q249: 61.338335 | R249: 295.845829 | S249: 0 | T249: 21.651667 | U249: 16.683333 | V249: 21.651667 | W249: 16.683333 | X249: - | Y249: 0 | Z249: 0 | AA249: 21.64 | AB249: 21.61 | AC249: 21.7 | AD249: 16.69 | AE249: 16.72 | AF249: 16.64 | AG249: 21.17
C250: 25.9 | D250: 1036 | E250: 14 | F250: 8 | H250: 2017-02-21 | I250: 09:16:15 | J250: TT | K250: VKL800, 4L, ISH-Prototyp | L250: 205.874021 | M250: 13.638 | N250: 15.687 | O250: -2.049 | P250: -489.798314 | Q250: 61.145809 | R250: 294.664397 | S250: 0 | T250: 21.648333 | U250: 16.684 | V250: 21.648333 | W250: 16.684 | X250: - | Y250: 0 | Z250: 0 | AA250: 21.63 | AB250: 21.61 | AC250: 21.71 | AD250: 16.69 | AE250: 16.72 | AF250: 16.64 | AG250: 21.17
A251: V37 | B251: =B248 -> VKL800; ISH Prototyp; mit Filter, mit 2-2,5cm Schalldämmung | C251: =AVERAGE(C248:C250) -> 25.9 | D251: =AVERAGE(D248:D250) -> 1036 | E251: =AVERAGE(E248:E250) -> 14 | F251: =AVERAGE(F248:F250) -> 8 | H251: =H250 -> 2017-02-21 | J251: =J250 -> TT | L251: =AVERAGE(L248:L250) -> 205.53362 | M251: 13.62966667 | N251: 15.69133333 | O251: -2.061666667 | P251: -492.008826 | Q251: 61.34845367 | R251: 295.662632 | S251: 0 | T251: 21.64955567 | U251: 16.67966667 | Z251: =AVERAGE(Z248:Z250) -> 0 | AA251: 21.63666667 | AB251: 21.61333333 | AC251: 21.7 | AD251: 16.68666667 | AE251: 16.71666667 | AF251: 16.63666667 | AG251: 21.17
B254: 4-4,5cm Schalldämmung, 3,2mm Lamellenabstand, mit Isolierung der Kondensatwanne, mit Filter
B256: VKL800; ISH Prototyp; mit Filter, mit 4-4,5cm Schalldämmung | C256: 25.8 | D256: 737 | E256: 4.5 | F256: 5.6 | H256: 2017-02-21 | I256: 09:48:13 | J256: TT | K256: VKL800, 4L, ISH-Prototyp | L256: 204.438198 | M256: 13.659 | N256: 15.183 | O256: -1.524 | P256: -361.760206 | Q256: 43.547092 | R256: 183.640578 | S256: 0 | T256: 21.966333 | U256: 16.083 | V256: 21.966333 | W256: 16.083 | X256: - | Y256: 0 | Z256: 0 | AA256: 21.97 | AB256: 21.96 | AC256: 21.97 | AD256: 16.07 | AE256: 16.14 | AF256: 16.04 | AG256: 21.63
B257: =CONCATENATE("mit ",ROUND(L259,0)," kg/h wasserseitig, ",ROUND(D259,0)," 1/min Drehzahl") -> mit 205 kg/h wasserseitig, 737 1/min Drehzahl | C257: 25.8 | D257: 737 | E257: 4.5 | F257: 5.6 | H257: 2017-02-21 | I257: 09:48:41 | J257: TT | K257: VKL800, 4L, ISH-Prototyp | L257: 205.164141 | M257: 13.65 | N257: 15.174 | O257: -1.524 | P257: -363.044786 | Q257: 43.565374 | R257: 184.000771 | S257: 0 | T257: 21.983333 | U257: 16.090667 | V257: 21.983333 | W257: 16.090667 | X257: - | Y257: 0 | Z257: 0 | AA257: 21.98 | AB257: 21.98 | AC257: 21.98 | AD257: 16.08 | AE257: 16.14 | AF257: 16.05 | AG257: 21.64
C258: 25.8 | D258: 737 | E258: 4.5 | F258: 5.6 | H258: 2017-02-21 | I258: 09:48:55 | J258: TT | K258: VKL800, 4L, ISH-Prototyp | L258: 204.547553 | M258: 13.641 | N258: 15.168 | O258: -1.527 | P258: -362.666221 | Q258: 43.420947 | R258: 183.621937 | S258: 0 | T258: 21.993333 | U258: 16.094667 | V258: 21.993333 | W258: 16.094667 | X258: - | Y258: 0 | Z258: 0 | AA258: 22 | AB258: 21.99 | AC258: 21.99 | AD258: 16.08 | AE258: 16.15 | AF258: 16.05 | AG258: 21.64
A259: V38 | B259: =B256 -> VKL800; ISH Prototyp; mit Filter, mit 4-4,5cm Schalldämmung | C259: =AVERAGE(C256:C258) -> 25.8 | D259: =AVERAGE(D256:D258) -> 737 | E259: =AVERAGE(E256:E258) -> 4.5 | F259: =AVERAGE(F256:F258) -> 5.6 | H259: =H258 -> 2017-02-21 | J259: =J258 -> TT | L259: =AVERAGE(L256:L258) -> 204.7166307 | M259: 13.65 | N259: 15.175 | O259: -1.525 | P259: -362.4904043 | Q259: 43.51113767 | R259: 183.7544287 | S259: 0 | T259: 21.98099967 | U259: 16.08944467 | Z259: =AVERAGE(Z256:Z258) -> 0 | AA259: 21.98333333 | AB259: 21.97666667 | AC259: 21.98 | AD259: 16.07666667 | AE259: 16.14333333 | AF259: 16.04666667 | AG259: 21.63666667
B262: 3-3,5cm Schalldämmung, 3,2mm Lamellenabstand, mit Isolierung der Kondensatwanne, mit Filter
B264: VKL800; ISH Prototyp; mit Filter, mit 3-3,5cm Schalldämmung | C264: 25.8 | D264: 725 | E264: 5 | F264: 5.6 | H264: 2017-02-21 | I264: 10:06:11 | J264: TT | K264: VKL800, 4L, ISH-Prototyp | L264: 204.955514 | M264: 13.658 | N264: 15.368 | O264: -1.71 | P264: -406.939174 | Q264: 47.647238 | R264: 206.131013 | S264: 0 | T264: 22.198667 | U264: 16.302667 | V264: 22.198667 | W264: 16.302667 | X264: - | Y264: 0 | Z264: 0 | AA264: 22.22 | AB264: 22.18 | AC264: 22.2 | AD264: 16.29 | AE264: 16.35 | AF264: 16.27 | AG264: 21.92
B265: =CONCATENATE("mit ",ROUND(L267,0)," kg/h wasserseitig, ",ROUND(D267,0)," 1/min Drehzahl") -> mit 205 kg/h wasserseitig, 725 1/min Drehzahl | C265: 25.8 | D265: 725 | E265: 5 | F265: 5.6 | H265: 2017-02-21 | I265: 10:06:25 | J265: TT | K265: VKL800, 4L, ISH-Prototyp | L265: 204.033164 | M265: 13.658 | N265: 15.367 | O265: -1.709 | P265: -404.870943 | Q265: 47.360712 | R265: 205.013828 | S265: 0 | T265: 22.206667 | U265: 16.308667 | V265: 22.206667 | W265: 16.308667 | X265: - | Y265: 0 | Z265: 0 | AA265: 22.24 | AB265: 22.18 | AC265: 22.2 | AD265: 16.3 | AE265: 16.36 | AF265: 16.27 | AG265: 21.93
C266: 25.8 | D266: 725 | E266: 5 | F266: 5.6 | H266: 2017-02-21 | I266: 10:06:39 | J266: TT | K266: VKL800, 4L, ISH-Prototyp | L266: 204.749669 | M266: 13.651 | N266: 15.381 | O266: -1.73 | P266: -411.285209 | Q266: 48.039855 | R266: 208.097157 | S266: 0 | T266: 22.212333 | U266: 16.309667 | V266: 22.212333 | W266: 16.309667 | X266: - | Y266: 0 | Z266: 0 | AA266: 22.25 | AB266: 22.18 | AC266: 22.2 | AD266: 16.29 | AE266: 16.36 | AF266: 16.28 | AG266: 21.93
A267: V39 | B267: =B264 -> VKL800; ISH Prototyp; mit Filter, mit 3-3,5cm Schalldämmung | C267: =AVERAGE(C264:C266) -> 25.8 | D267: =AVERAGE(D264:D266) -> 725 | E267: =AVERAGE(E264:E266) -> 5 | F267: =AVERAGE(F264:F266) -> 5.6 | H267: =H266 -> 2017-02-21 | J267: =J266 -> TT | L267: =AVERAGE(L264:L266) -> 204.579449 | M267: 13.65566667 | N267: 15.372 | O267: -1.716333333 | P267: -407.698442 | Q267: 47.68260167 | R267: 206.4139993 | S267: 0 | T267: 22.205889 | U267: 16.30700033 | Z267: =AVERAGE(Z264:Z266) -> 0 | AA267: 22.23666667 | AB267: 22.18 | AC267: 22.2 | AD267: 16.29333333 | AE267: 16.35666667 | AF267: 16.27333333 | AG267: 21.92666667
B270: Drehzahlvariation - mit 3-3,5cm Schalldämmung, 3,2mm Lamellenabstand, mit Isolierung der Kondensatwanne, mit Filter, mit 3D-Strömung
B271: immer mit 3,2mm Lamellenabstand und Isolierung der Kondensatwanne
B274: VKL800; ISH Prototyp; mit Filter, mit 3-3,5cm Schalldämmung, mit 3D-Strömung | C274: 25.8 | D274: 725 | E274: 6 | F274: 5.6 | H274: 2017-02-21 | I274: 13:12:47 | J274: TT | K274: VKL800, 4L, ISH-Prototyp | L274: 204.031876 | M274: 13.698 | N274: 15.521 | O274: -1.823 | P274: -431.875405 | Q274: 47.058921 | R274: 201.377364 | S274: 0 | T274: 22.875333 | U274: 16.470333 | V274: 22.875333 | W274: 16.470333 | X274: - | Y274: 0 | Z274: 0 | AA274: 22.8 | AB274: 22.9 | AC274: 22.92 | AD274: 16.52 | AE274: 16.56 | AF274: 16.33 | AG274: 23.21
B275: =CONCATENATE("mit ",ROUND(L277,0)," kg/h wasserseitig, ",ROUND(D277,0)," 1/min Drehzahl") -> mit 204 kg/h wasserseitig, 725 1/min Drehzahl | C275: 25.8 | D275: 725 | E275: 6 | F275: 5.6 | H275: 2017-02-21 | I275: 13:13:01 | J275: TT | K275: VKL800, 4L, ISH-Prototyp | L275: 204.44099 | M275: 13.698 | N275: 15.516 | O275: -1.818 | P275: -431.554486 | Q275: 47.070113 | R275: 201.626465 | S275: 0 | T275: 22.866333 | U275: 16.474 | V275: 22.866333 | W275: 16.474 | X275: - | Y275: 0 | Z275: 0 | AA275: 22.81 | AB275: 22.87 | AC275: 22.92 | AD275: 16.52 | AE275: 16.56 | AF275: 16.34 | AG275: 23.2
C276: 25.8 | D276: 725 | E276: 6 | F276: 5.6 | H276: 2017-02-21 | I276: 13:13:15 | J276: TT | K276: VKL800, 4L, ISH-Prototyp | L276: 204.031401 | M276: 13.697 | N276: 15.534 | O276: -1.837 | P276: -435.191044 | Q276: 47.47884 | R276: 203.505904 | S276: 0 | T276: 22.863 | U276: 16.476333 | V276: 22.863 | W276: 16.476333 | X276: - | Y276: 0 | Z276: 0 | AA276: 22.8 | AB276: 22.85 | AC276: 22.93 | AD276: 16.52 | AE276: 16.56 | AF276: 16.34 | AG276: 23.22
A277: V40 | B277: =B274 -> VKL800; ISH Prototyp; mit Filter, mit 3-3,5cm Schalldämmung, mit 3D-Strömung | C277: =AVERAGE(C274:C276) -> 25.8 | D277: =AVERAGE(D274:D276) -> 725 | E277: =AVERAGE(E274:E276) -> 6 | F277: =AVERAGE(F274:F276) -> 5.6 | H277: =H276 -> 2017-02-21 | J277: =J276 -> TT | L277: =AVERAGE(L274:L276) -> 204.168089 | M277: 13.69766667 | N277: 15.52366667 | O277: -1.826 | P277: -432.873645 | Q277: 47.20262467 | R277: 202.169911 | S277: 0 | T277: 22.868222 | U277: 16.47355533 | Z277: =AVERAGE(Z274:Z276) -> 0 | AA277: 22.80333333 | AB277: 22.87333333 | AC277: 22.92333333 | AD277: 16.52 | AE277: 16.56 | AF277: 16.33666667 | AG277: 23.21
B280: VKL800; ISH Prototyp; mit Filter, mit 3-3,5cm Schalldämmung, mit 3D-Strömung | C280: 25.8 | D280: 477 | E280: 2.5 | F280: 3.5 | H280: 2017-02-21 | I280: 13:31:27 | J280: TT | K280: VKL800, 4L, ISH-Prototyp | L280: 204.032961 | M280: 13.688 | N280: 14.927 | O280: -1.239 | P280: -293.525218 | Q280: 32.137798 | R280: 128.550809 | S280: 0 | T280: 22.821333 | U280: 16.002 | V280: 22.821333 | W280: 16.002 | X280: - | Y280: 0 | Z280: 0 | AA280: 22.82 | AB280: 22.82 | AC280: 22.83 | AD280: 16.08 | AE280: 16.13 | AF280: 15.79 | AG280: 23.28
B281: =CONCATENATE("mit ",ROUND(L283,0)," kg/h wasserseitig, ",ROUND(D283,0)," 1/min Drehzahl") -> mit 204 kg/h wasserseitig, 477 1/min Drehzahl | C281: 25.8 | D281: 477 | E281: 2.5 | F281: 3.5 | H281: 2017-02-21 | I281: 13:31:41 | J281: TT | K281: VKL800, 4L, ISH-Prototyp | L281: 204.232556 | M281: 13.694 | N281: 14.922 | O281: -1.228 | P281: -291.203855 | Q281: 31.895274 | R281: 127.546626 | S281: 0 | T281: 22.824 | U281: 16.005333 | V281: 22.824 | W281: 16.005333 | X281: - | Y281: 0 | Z281: 0 | AA281: 22.82 | AB281: 22.82 | AC281: 22.84 | AD281: 16.08 | AE281: 16.14 | AF281: 15.8 | AG281: 23.28
C282: 25.8 | D282: 477 | E282: 2.5 | F282: 3.5 | H282: 2017-02-21 | I282: 13:31:55 | J282: TT | K282: VKL800, 4L, ISH-Prototyp | L282: 204.74916 | M282: 13.697 | N282: 14.934 | O282: -1.237 | P282: -294.080081 | Q282: 32.216186 | R282: 128.743469 | S282: 0 | T282: 22.825333 | U282: 16.003333 | V282: 22.825333 | W282: 16.003333 | X282: - | Y282: 0 | Z282: 0 | AA282: 22.81 | AB282: 22.83 | AC282: 22.84 | AD282: 16.08 | AE282: 16.13 | AF282: 15.79 | AG282: 23.28
A283: V41 | B283: =B280 -> VKL800; ISH Prototyp; mit Filter, mit 3-3,5cm Schalldämmung, mit 3D-Strömung | C283: =AVERAGE(C280:C282) -> 25.8 | D283: =AVERAGE(D280:D282) -> 477 | E283: =AVERAGE(E280:E282) -> 2.5 | F283: =AVERAGE(F280:F282) -> 3.5 | H283: =H282 -> 2017-02-21 | J283: =J282 -> TT | L283: =AVERAGE(L280:L282) -> 204.3382257 | M283: 13.693 | N283: 14.92766667 | O283: -1.234666667 | P283: -292.9363847 | Q283: 32.083086 | R283: 128.2803013 | S283: 0 | T283: 22.82355533 | U283: 16.00355533 | Z283: =AVERAGE(Z280:Z282) -> 0 | AA283: 22.81666667 | AB283: 22.82333333 | AC283: 22.83666667 | AD283: 16.08 | AE283: 16.13333333 | AF283: 15.79333333 | AG283: 23.28
B286: VKL800; ISH Prototyp; mit Filter, mit 3-3,5cm Schalldämmung, mit 3D-Strömung | C286: 25.2 | D286: 1037 | E286: 15 | F286: 8 | H286: 2017-02-21 | I286: 14:15:48 | J286: TT | K286: VKL800, 4L, ISH-Prototyp | L286: 201.376917 | M286: 13.714 | N286: 16.194 | O286: -2.48 | P286: -579.876019 | Q286: 62.171761 | R286: 302.680128 | S286: 0 | T286: 23.041 | U286: 17.319333 | V286: 23.041 | W286: 17.319333 | X286: - | Y286: 0 | Z286: 0 | AA286: 22.99 | AB286: 23.09 | AC286: 23.04 | AD286: 17.36 | AE286: 17.37 | AF286: 17.23 | AG286: 23.27
B287: =CONCATENATE("mit ",ROUND(L289,0)," kg/h wasserseitig, ",ROUND(D289,0)," 1/min Drehzahl") -> mit 202 kg/h wasserseitig, 1037 1/min Drehzahl | C287: 25.2 | D287: 1037 | E287: 15 | F287: 8 | H287: 2017-02-21 | I287: 14:16:02 | J287: TT | K287: VKL800, 4L, ISH-Prototyp | L287: 201.776536 | M287: 13.715 | N287: 16.201 | O287: -2.486 | P287: -582.432454 | Q287: 62.365612 | R287: 303.484108 | S287: 0 | T287: 23.054 | U287: 17.322333 | V287: 23.054 | W287: 17.322333 | X287: - | Y287: 0 | Z287: 0 | AA287: 23.01 | AB287: 23.1 | AC287: 23.05 | AD287: 17.36 | AE287: 17.38 | AF287: 17.23 | AG287: 23.27
C288: 25.2 | D288: 1037 | E288: 15 | F288: 8 | H288: 2017-02-21 | I288: 14:16:16 | J288: TT | K288: VKL800, 4L, ISH-Prototyp | L288: 202.702989 | M288: 13.719 | N288: 16.194 | O288: -2.475 | P288: -582.517714 | Q288: 62.330247 | R288: 303.158292 | S288: 0 | T288: 23.064667 | U288: 17.326 | V288: 23.064667 | W288: 17.326 | X288: - | Y288: 0 | Z288: 0 | AA288: 23.03 | AB288: 23.11 | AC288: 23.06 | AD288: 17.36 | AE288: 17.38 | AF288: 17.23 | AG288: 23.28
A289: V42 | B289: =B286 -> VKL800; ISH Prototyp; mit Filter, mit 3-3,5cm Schalldämmung, mit 3D-Strömung | C289: =AVERAGE(C286:C288) -> 25.2 | D289: =AVERAGE(D286:D288) -> 1037 | E289: =AVERAGE(E286:E288) -> 15 | F289: =AVERAGE(F286:F288) -> 8 | H289: =H288 -> 2017-02-21 | J289: =J288 -> TT | L289: =AVERAGE(L286:L288) -> 201.9521473 | M289: 13.716 | N289: 16.19633333 | O289: -2.480333333 | P289: -581.608729 | Q289: 62.28920667 | R289: 303.1075093 | S289: 0 | T289: 23.05322233 | U289: 17.32255533 | Z289: =AVERAGE(Z286:Z288) -> 0 | AA289: 23.01 | AB289: 23.1 | AC289: 23.05 | AD289: 17.36 | AE289: 17.37666667 | AF289: 17.23 | AG289: 23.27333333
B292: VKL800; ISH Prototyp; mit Filter, mit 3-3,5cm Schalldämmung, mit 3D-Strömung | C292: 25.2 | D292: 1145 | E292: 19 | F292: 10 | H292: 2017-02-21 | I292: 14:26:32 | J292: TT | K292: VKL800, 4L, ISH-Prototyp | L292: 204.438266 | M292: 13.721 | N292: 16.347 | O292: -2.626 | P292: -623.348174 | Q292: 66.507025 | R292: 337.972833 | S292: 0 | T292: 23.093667 | U292: 17.585333 | V292: 23.093667 | W292: 17.585333 | X292: - | Y292: 0 | Z292: 0 | AA292: 22.91 | AB292: 23.18 | AC292: 23.2 | AD292: 17.62 | AE292: 17.64 | AF292: 17.49 | AG292: 23.3
B293: =CONCATENATE("mit ",ROUND(L295,0)," kg/h wasserseitig, ",ROUND(D295,0)," 1/min Drehzahl") -> mit 204 kg/h wasserseitig, 1145 1/min Drehzahl | C293: 25.2 | D293: 1145 | E293: 19 | F293: 10 | H293: 2017-02-21 | I293: 14:26:46 | J293: TT | K293: VKL800, 4L, ISH-Prototyp | L293: 204.030078 | M293: 13.726 | N293: 16.365 | O293: -2.639 | P293: -625.183299 | Q293: 66.707565 | R293: 338.701366 | S293: 0 | T293: 23.098 | U293: 17.585333 | V293: 23.098 | W293: 17.585333 | X293: - | Y293: 0 | Z293: 0 | AA293: 22.92 | AB293: 23.18 | AC293: 23.2 | AD293: 17.62 | AE293: 17.64 | AF293: 17.49 | AG293: 23.3
C294: 25.2 | D294: 1145 | E294: 19 | F294: 10 | H294: 2017-02-21 | I294: 14:27:00 | J294: TT | K294: VKL800, 4L, ISH-Prototyp | L294: 203.423189 | M294: 13.726 | N294: 16.369 | O294: -2.643 | P294: -624.268474 | Q294: 66.550777 | R294: 338.083091 | S294: 0 | T294: 23.106333 | U294: 17.591667 | V294: 23.106333 | W294: 17.591667 | X294: - | Y294: 0 | Z294: 0 | AA294: 22.94 | AB294: 23.18 | AC294: 23.2 | AD294: 17.63 | AE294: 17.65 | AF294: 17.5 | AG294: 23.3
... 547 more rows

Sheet Auslegung_BG1000_kondensierend (hidden)
A1: T_VL | B1: =IF(ISERROR(D1),1,ROUND(D1,0)) -> 6 | C1: °C | D1: =VKL!$I$8 -> 6 | E1: Vorlauf | H1: Volumenstrom | I1: Wassermassenstrom | AC1: T_VL | AD1: =IF(ISERROR(AF1),1,ROUND(AF1,0)) -> 6 | AE1: °C | AF1: =$D$1 -> 6 | AG1: Vorlauf | BB1: T_VL | BC1: =IF(ISERROR(BE1),1,ROUND(BE1,0)) -> 6 | BD1: °C | BE1: =$D$1 -> 6 | BF1: Vorlauf | CB1: T_VL | CC1: =IF(ISERROR(CE1),1,ROUND(CE1,0)) -> 6 | CD1: °C | CE1: =$D$1 -> 6 | CF1: Vorlauf | DB1: T_VL | DC1: =IF(ISERROR(DE1),1,ROUND(DE1,0)) -> 6 | DD1: °C | DE1: =$D$1 -> 6 | DF1: Vorlauf | EA1: T_VL | EB1: =IF(ISERROR(ED1),1,ROUND(ED1,0)) -> 6 | EC1: °C | ED1: =D1 -> 6 | EE1: Vorlauf | EH1: Volumenstrom | EI1: Wassermassenstrom | FC1: T_VL | FD1: =IF(ISERROR(FF1),1,ROUND(FF1,0)) -> 6 | FE1: °C | FF1: =$D$1 -> 6 | FG1: Vorlauf | GB1: T_VL | GC1: =IF(ISERROR(GE1),1,ROUND(GE1,0)) -> 6 | GD1: °C | GE1: =$D$1 -> 6 | GF1: Vorlauf | HB1: T_VL | HC1: =IF(ISERROR(HE1),1,ROUND(HE1,0)) -> 6 | HD1: °C | HE1: =$D$1 -> 6 | HF1: Vorlauf | IB1: T_VL | IC1: =IF(ISERROR(IE1),1,ROUND(IE1,0)) -> 6 | ID1: °C | IE1: =$D$1 -> 6 | IF1: Vorlauf | JB1: T_VL | JC1: =IF(ISERROR(JE1),1,ROUND(JE1,0)) -> 6 | JD1: °C | JE1: =D1 -> 6 | JF1: Vorlauf | JI1: Volumenstrom | JJ1: Wassermassenstrom | KD1: T_VL | KE1: =IF(ISERROR(KG1),1,ROUND(KG1,0)) -> 6 | KF1: °C | KG1: =$D$1 -> 6 | KH1: Vorlauf | LC1: T_VL | LD1: =IF(ISERROR(LF1),1,ROUND(LF1,0)) -> 6 | LE1: °C | LF1: =$D$1 -> 6 | LG1: Vorlauf | MC1: T_VL | MD1: =IF(ISERROR(MF1),1,ROUND(MF1,0)) -> 6 | ME1: °C | MF1: =$D$1 -> 6 | MG1: Vorlauf | NC1: T_VL | ND1: =IF(ISERROR(NF1),1,ROUND(NF1,0)) -> 6 | NE1: °C | NF1: =$D$1 -> 6 | NG1: Vorlauf
A2: m_KW | B2: =IF(ISERROR(D2),1,D2) -> 70 | C2: kg/h | D2: =I2 -> 70 | E2: Kühlwasser | H2: 101 | I2: 70 | AC2: m_KW | AD2: =IF(ISERROR(AF2),1,AF2) -> 70 | AE2: kg/h | AF2: =$D$2 -> 70 | AG2: Kühlwasser | BB2: m_KW | BC2: =IF(ISERROR(BE2),1,BE2) -> 70 | BD2: kg/h | BE2: =$D$2 -> 70 | BF2: Kühlwasser | CB2: m_KW | CC2: =IF(ISERROR(CE2),1,CE2) -> 70 | CD2: kg/h | CE2: =$D$2 -> 70 | CF2: Kühlwasser | DB2: m_KW | DC2: =IF(ISERROR(DE2),1,DE2) -> 70 | DD2: kg/h | DE2: =$D$2 -> 70 | DF2: Kühlwasser | EA2: m_KW | EB2: =IF(ISERROR(ED2),1,ED2) -> 200 | EC2: kg/h | ED2: =$EI$3 -> 200 | EE2: Kühlwasser | EH2: =H2 -> 101 | EI2: =I2 -> 70 | FC2: m_KW | FD2: =IF(ISERROR(FF2),1,FF2) -> 200 | FE2: kg/h | FF2: =ED2 -> 200 | FG2: Kühlwasser | GB2: m_KW | GC2: =IF(ISERROR(GE2),1,GE2) -> 200 | GD2: kg/h | GE2: =FF2 -> 200 | GF2: Kühlwasser | HB2: m_KW | HC2: =IF(ISERROR(HE2),1,HE2) -> 200 | HD2: kg/h | HE2: =GE2 -> 200 | HF2: Kühlwasser | IB2: m_KW | IC2: =IF(ISERROR(IE2),1,IE2) -> 200 | ID2: kg/h | IE2: =HE2 -> 200 | IF2: Kühlwasser | JB2: m_KW | JC2: =IF(ISERROR(JE2),1,JE2) -> 330 | JD2: kg/h | JE2: =JJ4 -> 330 | JF2: Kühlwasser | JI2: =H2 -> 101 | JJ2: =I2 -> 70 | KD2: m_KW | KE2: =IF(ISERROR(KG2),1,KG2) -> 330 | KF2: kg/h | KG2: =JE2 -> 330 | KH2: Kühlwasser | LC2: m_KW | LD2: =IF(ISERROR(LF2),1,LF2) -> 330 | LE2: kg/h | LF2: =KG2 -> 330 | LG2: Kühlwasser | MC2: m_KW | MD2: =IF(ISERROR(MF2),1,MF2) -> 330 | ME2: kg/h | MF2: =LF2 -> 330 | MG2: Kühlwasser | NC2: m_KW | ND2: =IF(ISERROR(NF2),1,NF2) -> 330 | NE2: kg/h | NF2: =MF2 -> 330 | NG2: Kühlwasser
A3: V | B3: =IF(ISERROR(D3),1,ROUND(D3,0)) -> 101 | C3: m³/h | D3: =H2 -> 101 | E3: Volumenstrom | H3: 171 | I3: 200 | AC3: V | AD3: =IF(ISERROR(AF3),1,ROUND(AF3,0)) -> 171 | AE3: m³/h | AF3: =H3 -> 171 | AG3: Volumenstrom | BB3: V | BC3: =IF(ISERROR(BE3),1,ROUND(BE3,0)) -> 241 | BD3: m³/h | BE3: =H4 -> 241 | BF3: Volumenstrom | CB3: V | CC3: =IF(ISERROR(CE3),1,ROUND(CE3,0)) -> 311 | CD3: m³/h | CE3: =H5 -> 311 | CF3: Volumenstrom | DB3: V | DC3: =IF(ISERROR(DE3),1,ROUND(DE3,0)) -> 381 | DD3: m³/h | DE3: =H6 -> 381 | DF3: Volumenstrom | EA3: V | EB3: =IF(ISERROR(ED3),1,ROUND(ED3,0)) -> 101 | EC3: m³/h | ED3: =EH2 -> 101 | EE3: Volumenstrom | EH3: =H3 -> 171 | EI3: 200 | FC3: V | FD3: =IF(ISERROR(FF3),1,ROUND(FF3,0)) -> 171 | FE3: m³/h | FF3: =EH3 -> 171 | FG3: Volumenstrom | GB3: V | GC3: =IF(ISERROR(GE3),1,ROUND(GE3,0)) -> 241 | GD3: m³/h | GE3: =EH4 -> 241 | GF3: Volumenstrom | HB3: V | HC3: =IF(ISERROR(HE3),1,ROUND(HE3,0)) -> 311 | HD3: m³/h | HE3: =EH5 -> 311 | HF3: Volumenstrom | IB3: V | IC3: =IF(ISERROR(IE3),1,ROUND(IE3,0)) -> 381 | ID3: m³/h | IE3: =EH6 -> 381 | IF3: Volumenstrom | JB3: V | JC3: =IF(ISERROR(JE3),1,ROUND(JE3,0)) -> 101 | JD3: m³/h | JE3: =JI2 -> 101 | JF3: Volumenstrom | JI3: =H3 -> 171 | JJ3: 200 | KD3: V | KE3: =IF(ISERROR(KG3),1,ROUND(KG3,0)) -> 171 | KF3: m³/h | KG3: =JI3 -> 171 | KH3: Volumenstrom | LC3: V | LD3: =IF(ISERROR(LF3),1,ROUND(LF3,0)) -> 241 | LE3: m³/h | LF3: =JI4 -> 241 | LG3: Volumenstrom | MC3: V | MD3: =IF(ISERROR(MF3),1,ROUND(MF3,0)) -> 311 | ME3: m³/h | MF3: =JI5 -> 311 | MG3: Volumenstrom | NC3: V | ND3: =IF(ISERROR(NF3),1,ROUND(NF3,0)) -> 381 | NE3: m³/h | NF3: =JI6 -> 381 | NG3: Volumenstrom
A4: rel.Feuchte | B4: 1 | C4: % | H4: 241 | I4: 330 | J4: rel Feuchte | K4: korrektur totale Leistung | M4: korrektur sens. Leistung | AC4: rel.Feuchte | AD4: 1 | AE4: % | AK4: 4 | AL4: rel Feuchte | AM4: korrektur totale Leistung | AO4: korrektur sens. Leistung | BB4: rel.Feuchte | BC4: 1 | BD4: % | BJ4: 4 | BK4: rel Feuchte | BL4: korrektur totale Leistung | BN4: korrektur sens. Leistung | CB4: rel.Feuchte | CC4: 1 | CD4: % | CJ4: 4 | CK4: rel Feuchte | CL4: korrektur totale Leistung | CN4: korrektur sens. Leistung | DB4: rel.Feuchte | DC4: 1 | DD4: % | DJ4: 4 | DK4: rel Feuchte | DL4: korrektur totale Leistung | DN4: korrektur sens. Leistung | EA4: rel.Feuchte | EB4: 1 | EC4: % | EH4: 241 | EI4: 330 | EJ4: rel Feuchte | EK4: korrektur totale Leistung | EM4: korrektur sens. Leistung | FC4: rel.Feuchte | FD4: 1 | FE4: % | FK4: 4 | FL4: rel Feuchte | FM4: korrektur totale Leistung | FO4: korrektur sens. Leistung | GB4: rel.Feuchte | GC4: 1 | GD4: % | GJ4: 4 | GK4: rel Feuchte | GL4: korrektur totale Leistung | GN4: korrektur sens. Leistung | HB4: rel.Feuchte | HC4: 1 | HD4: % | HJ4: 4 | HK4: rel Feuchte | HL4: korrektur totale Leistung | HN4: korrektur sens. Leistung | IB4: rel.Feuchte | IC4: 1 | ID4: % | IJ4: 4 | IK4: rel Feuchte | IL4: korrektur totale Leistung | IN4: korrektur sens. Leistung | JB4: rel.Feuchte | JC4: 1 | JD4: % | JI4: 241 | JJ4: 330 | JK4: rel Feuchte | JL4: korrektur totale Leistung | JN4: korrektur sens. Leistung | KD4: rel.Feuchte | KE4: 1 | KF4: % | KL4: 4 | KM4: rel Feuchte | KN4: korrektur totale Leistung | KP4: korrektur sens. Leistung | LC4: rel.Feuchte | LD4: 1 | LE4: % | LK4: 4 | LL4: rel Feuchte | LM4: korrektur totale Leistung | LO4: korrektur sens. Leistung | MC4: rel.Feuchte | MD4: 1 | ME4: % | MK4: 4 | ML4: rel Feuchte | MM4: korrektur totale Leistung | MO4: korrektur sens. Leistung | NC4: rel.Feuchte | ND4: 1 | NE4: % | NK4: 4 | NL4: rel Feuchte | NM4: korrektur totale Leistung | NO4: korrektur sens. Leistung
B5: 50 | C5: % | E5: =CONCATENATE(B1, " ",C1, " ",E1, "; ") -> 6 °C Vorlauf; | H5: 311 | L5: =J18*M5+K18 -> 35.68137302 | M5: 1 | AD5: 50 | AE5: % | AG5: =CONCATENATE(AD1, " ",AE1, " ",AG1, "; ") -> 6 °C Vorlauf; | AN5: =AL18*AO5+AM18 -> 47.3565386 | AO5: 1 | BC5: 50 | BD5: % | BF5: =CONCATENATE(BC1, " ",BD1, " ",BF1, "; ") -> 6 °C Vorlauf; | BM5: =BK18*BN5+BL18 -> 56.429503 | BN5: 1 | CC5: 50 | CD5: % | CF5: =CONCATENATE(CC1, " ",CD1, " ",CF1, "; ") -> 6 °C Vorlauf; | CM5: =CK18*CN5+CL18 -> 61.5832444 | CN5: 1 | DC5: 50 | DD5: % | DF5: =CONCATENATE(DC1, " ",DD1, " ",DF1, "; ") -> 6 °C Vorlauf; | DM5: =DK18*DN5+DL18 -> 65.54568278 | DN5: 1 | EB5: 50 | EC5: % | EE5: =CONCATENATE(EB1, " ",EC1, " ",EE1, "; ") -> 6 °C Vorlauf; | EH5: 311 | EL5: =EJ18*EM5+EK18 -> 28.37613826 | EM5: 1 | FD5: 50 | FE5: % | FG5: =CONCATENATE(FD1, " ",FE1, " ",FG1, "; ") -> 6 °C Vorlauf; | FN5: =FL18*FO5+FM18 -> 31.47658776 | FO5: 1 | GC5: 50 | GD5: % | GF5: =CONCATENATE(GC1, " ",GD1, " ",GF1, "; ") -> 6 °C Vorlauf; | GM5: =GK18*GN5+GL18 -> 33.52909859 | GN5: 1 | HC5: 50 | HD5: % | HF5: =CONCATENATE(HC1, " ",HD1, " ",HF1, "; ") -> 6 °C Vorlauf; | HM5: =HK18*HN5+HL18 -> 36.01459222 | HN5: 1 | IC5: 50 | ID5: % | IF5: =CONCATENATE(IC1, " ",ID1, " ",IF1, "; ") -> 6 °C Vorlauf; | IM5: =IK18*IN5+IL18 -> 38.10677282 | IN5: 1 | JC5: 50 | JD5: % | JF5: =CONCATENATE(JC1, " ",JD1, " ",JF1, "; ") -> 6 °C Vorlauf; | JI5: 311 | JM5: =JK18*JN5+JL18 -> 28.51472471 | JN5: 1 | KE5: 50 | KF5: % | KH5: =CONCATENATE(KE1, " ",KF1, " ",KH1, "; ") -> 6 °C Vorlauf; | KO5: =KM18*KP5+KN18 -> 29.55719557 | KP5: 1 | LD5: 50 | LE5: % | LG5: =CONCATENATE(LD1, " ",LE1, " ",LG1, "; ") -> 6 °C Vorlauf; | LN5: =LL18*LO5+LM18 -> 30.927113 | LO5: 1 | MD5: 50 | ME5: % | MG5: =CONCATENATE(MD1, " ",ME1, " ",MG1, "; ") -> 6 °C Vorlauf; | MN5: =ML18*MO5+MM18 -> 32.13330128 | MO5: 1 | ND5: 50 | NE5: % | NG5: =CONCATENATE(ND1, " ",NE1, " ",NG1, "; ") -> 6 °C Vorlauf; | NN5: =NL18*NO5+NM18 -> 33.16839664 | NO5: 1
B6: 60 | C6: % | E6: =CONCATENATE(B2, " ",C2, " ",E2, "; ") -> 70 kg/h Kühlwasser; | H6: 381 | J6: =IF(C13=1,J7,B5) -> 60 | K6: =IF(C13=1,K7,C13) -> 1.459016393 | L6: =IF(C14=1,L7,B5) -> 50 | M6: =IF(C14=1,M7,C14) -> 0.8524590164 | AD6: 60 | AE6: % | AG6: =CONCATENATE(AD2, " ",AE2, " ",AG2, "; ") -> 70 kg/h Kühlwasser; | AL6: =IF(AE13=1,AL7,AD5) -> 60 | AM6: =IF(AE13=1,AM7,AE13) -> 1.172413793 | AN6: =IF(AE14=1,AN7,AD5) -> 50 | AO6: =IF(AE14=1,AO7,AE14) -> 0.816091954 | BC6: 60 | BD6: % | BF6: =CONCATENATE(BC2, " ",BD2, " ",BF2, "; ") -> 70 kg/h Kühlwasser; | BK6: =IF(BD13=1,BK7,BC5) -> 60 | BL6: =IF(BD13=1,BL7,BD13) -> 1.039215686 | BM6: =IF(BD14=1,BM7,BC5) -> 50 | BN6: =IF(BD14=1,BN7,BD14) -> 0.8431372549 | CC6: 60 | CD6: % | CF6: =CONCATENATE(CC2, " ",CD2, " ",CF2, "; ") -> 70 kg/h Kühlwasser; | CK6: =IF(CD13=1,CK7,CC5) -> 60 | CL6: =IF(CD13=1,CL7,CD13) -> 0.981981982 | CM6: =IF(CD14=1,CM7,CC5) -> 60 | CN6: =IF(CD14=1,CN7,CD14) -> 0.7747747748 | DC6: 60 | DD6: % | DF6: =CONCATENATE(DC2, " ",DD2, " ",DF2, "; ") -> 70 kg/h Kühlwasser; | DK6: =IF(DD13=1,DK7,DC5) -> 60 | DL6: =IF(DD13=1,DL7,DD13) -> 0.9401709402 | DM6: =IF(DD14=1,DM7,DC5) -> 60 | DN6: =IF(DD14=1,DN7,DD14) -> 0.811965812 | EB6: 60 | EC6: % | EE6: =CONCATENATE(EB2, " ",EC2, " ",EE2, "; ") -> 200 kg/h Kühlwasser; | EH6: 381 | EJ6: =IF(EC13=1,EJ7,EB5) -> 60 | EK6: =IF(EC13=1,EK7,EC13) -> 1.815384615 | EL6: =IF(EC14=1,EL7,EB5) -> 50 | EM6: =IF(EC14=1,EM7,EC14) -> 0.9692307692 | FD6: 60 | FE6: % | FG6: =CONCATENATE(FD2, " ",FE2, " ",FG2, "; ") -> 200 kg/h Kühlwasser; | FL6: =IF(FE13=1,FL7,FD5) -> 60 | FM6: =IF(FE13=1,FM7,FE13) -> 1.682692308 | FN6: =IF(FE14=1,FN7,FD5) -> 50 | FO6: =IF(FE14=1,FO7,FE14) -> 0.9326923077 | GC6: 60 | GD6: % | GF6: =CONCATENATE(GC2, " ",GD2, " ",GF2, "; ") -> 200 kg/h Kühlwasser; | GK6: =IF(GD13=1,GK7,GC5) -> 60 | GL6: =IF(GD13=1,GL7,GD13) -> 1.57037037 | GM6: =IF(GD14=1,GM7,GC5) -> 50 | GN6: =IF(GD14=1,GN7,GD14) -> 0.8962962963 | HC6: 60 | HD6: % | HF6: =CONCATENATE(HC2, " ",HD2, " ",HF2, "; ") -> 200 kg/h Kühlwasser; | HK6: =IF(HD13=1,HK7,HC5) -> 60 | HL6: =IF(HD13=1,HL7,HD13) -> 1.46875 | HM6: =IF(HD14=1,HM7,HC5) -> 50 | HN6: =IF(HD14=1,HN7,HD14) -> 0.875 | IC6: 60 | ID6: % | IF6: =CONCATENATE(IC2, " ",ID2, " ",IF2, "; ") -> 200 kg/h Kühlwasser; | IK6: =IF(ID13=1,IK7,IC5) -> 60 | IL6: =IF(ID13=1,IL7,ID13) -> 1.394444444 | IM6: =IF(ID14=1,IM7,IC5) -> 50 | IN6: =IF(ID14=1,IN7,ID14) -> 0.8611111111 | JC6: 60 | JD6: % | JF6: =CONCATENATE(JC2, " ",JD2, " ",JF2, "; ") -> 330 kg/h Kühlwasser; | JI6: 381 | JK6: =IF(JD13=1,JK7,JC5) -> 60 | JL6: =IF(JD13=1,JL7,JD13) -> 1.818181818 | JM6: =IF(JD14=1,JM7,JC5) -> 50 | JN6: =IF(JD14=1,JN7,JD14) -> 0.9696969697 | KE6: 60 | KF6: % | KH6: =CONCATENATE(KE2, " ",KF2, " ",KH2, "; ") -> 330 kg/h Kühlwasser; | KM6: =IF(KF13=1,KM7,KE5) -> 60 | KN6: =IF(KF13=1,KN7,KF13) -> 1.76635514 | KO6: =IF(KF14=1,KO7,KE5) -> 50 | KP6: =IF(KF14=1,KP7,KF14) -> 0.953271028 | LD6: 60 | LE6: % | LG6: =CONCATENATE(LD2, " ",LE2, " ",LG2, "; ") -> 330 kg/h Kühlwasser; | LL6: =IF(LE13=1,LL7,LD5) -> 60 | LM6: =IF(LE13=1,LM7,LE13) -> 1.709219858 | LN6: =IF(LE14=1,LN7,LD5) -> 50 | LO6: =IF(LE14=1,LO7,LE14) -> 0.9361702128 | MD6: 60 | ME6: % | MG6: =CONCATENATE(MD2, " ",ME2, " ",MG2, "; ") -> 330 kg/h Kühlwasser; | ML6: =IF(ME13=1,ML7,MD5) -> 60 | MM6: =IF(ME13=1,MM7,ME13) -> 1.647058824 | MN6: =IF(ME14=1,MN7,MD5) -> 50 | MO6: =IF(ME14=1,MO7,ME14) -> 0.9176470588 | ND6: 60 | NE6: % | NG6: =CONCATENATE(ND2, " ",NE2, " ",NG2, "; ") -> 330 kg/h Kühlwasser; | NL6: =IF(NE13=1,NL7,ND5) -> 60 | NM6: =IF(NE13=1,NM7,NE13) -> 1.597938144 | NN6: =IF(NE14=1,NN7,ND5) -> 50 | NO6: =IF(NE14=1,NO7,NE14) -> 0.9072164948
B7: 70 | C7: % | E7: =CONCATENATE(B3, " ",C3, " ",E3, "; ") -> 101 m³/h Volumenstrom; | J7: =IF(D13=1,J8,B6) -> 60 | K7: =IF(D13=1,K8,D13) -> 1.459016393 | L7: =IF(D14=1,L8,B6) -> 60 | M7: =IF(D14=1,M8,D14) -> 0.8196721311 | AD7: 70 | AE7: % | AG7: =CONCATENATE(AD3, " ",AE3, " ",AG3, "; ") -> 171 m³/h Volumenstrom; | AL7: =IF(AF13=1,AL8,AD6) -> 60 | AM7: =IF(AF13=1,AM8,AF13) -> 1.172413793 | AN7: =IF(AF14=1,AN8,AD6) -> 60 | AO7: =IF(AF14=1,AO8,AF14) -> 0.7471264368 | BC7: 70 | BD7: % | BF7: =CONCATENATE(BC3, " ",BD3, " ",BF3, "; ") -> 241 m³/h Volumenstrom; | BK7: =IF(BE13=1,BK8,BC6) -> 60 | BL7: =IF(BE13=1,BL8,BE13) -> 1.039215686 | BM7: =IF(BE14=1,BM8,BC6) -> 60 | BN7: =IF(BE14=1,BN8,BE14) -> 0.7450980392 | CC7: 70 | CD7: % | CF7: =CONCATENATE(CC3, " ",CD3, " ",CF3, "; ") -> 311 m³/h Volumenstrom; | CK7: =IF(CE13=1,CK8,CC6) -> 60 | CL7: =IF(CE13=1,CL8,CE13) -> 0.981981982 | CM7: =IF(CE14=1,CM8,CC6) -> 60 | CN7: =IF(CE14=1,CN8,CE14) -> 0.7747747748 | DC7: 70 | DD7: % | DF7: =CONCATENATE(DC3, " ",DD3, " ",DF3, "; ") -> 381 m³/h Volumenstrom; | DK7: =IF(DE13=1,DK8,DC6) -> 60 | DL7: =IF(DE13=1,DL8,DE13) -> 0.9401709402 | DM7: =IF(DE14=1,DM8,DC6) -> 60 | DN7: =IF(DE14=1,DN8,DE14) -> 0.811965812 | EB7: 70 | EC7: % | EE7: =CONCATENATE(EB3, " ",EC3, " ",EE3, "; ") -> 101 m³/h Volumenstrom; | EJ7: =IF(ED13=1,EJ8,EB6) -> 60 | EK7: =IF(ED13=1,EK8,ED13) -> 1.815384615 | EL7: =IF(ED14=1,EL8,EB6) -> 60 | EM7: =IF(ED14=1,EM8,ED14) -> 0.9692307692 | FD7: 70 | FE7: % | FG7: =CONCATENATE(FD3, " ",FE3, " ",FG3, "; ") -> 171 m³/h Volumenstrom; | FL7: =IF(FF13=1,FL8,FD6) -> 60 | FM7: =IF(FF13=1,FM8,FF13) -> 1.682692308 | FN7: =IF(FF14=1,FN8,FD6) -> 60 | FO7: =IF(FF14=1,FO8,FF14) -> 0.9038461538 | GC7: 70 | GD7: % | GF7: =CONCATENATE(GC3, " ",GD3, " ",GF3, "; ") -> 241 m³/h Volumenstrom; | GK7: =IF(GE13=1,GK8,GC6) -> 60 | GL7: =IF(GE13=1,GL8,GE13) -> 1.57037037 | GM7: =IF(GE14=1,GM8,GC6) -> 60 | GN7: =IF(GE14=1,GN8,GE14) -> 0.8592592593 | HC7: 70 | HD7: % | HF7: =CONCATENATE(HC3, " ",HD3, " ",HF3, "; ") -> 311 m³/h Volumenstrom; | HK7: =IF(HE13=1,HK8,HC6) -> 60 | HL7: =IF(HE13=1,HL8,HE13) -> 1.46875 | HM7: =IF(HE14=1,HM8,HC6) -> 60 | HN7: =IF(HE14=1,HN8,HE14) -> 0.825 | IC7: 70 | ID7: % | IF7: =CONCATENATE(IC3, " ",ID3, " ",IF3, "; ") -> 381 m³/h Volumenstrom; | IK7: =IF(IE13=1,IK8,IC6) -> 60 | IL7: =IF(IE13=1,IL8,IE13) -> 1.394444444 | IM7: =IF(IE14=1,IM8,IC6) -> 60 | IN7: =IF(IE14=1,IN8,IE14) -> 0.8055555556 | JC7: 70 | JD7: % | JF7: =CONCATENATE(JC3, " ",JD3, " ",JF3, "; ") -> 101 m³/h Volumenstrom; | JK7: =IF(JE13=1,JK8,JC6) -> 60 | JL7: =IF(JE13=1,JL8,JE13) -> 1.818181818 | JM7: =IF(JE14=1,JM8,JC6) -> 60 | JN7: =IF(JE14=1,JN8,JE14) -> 0.9696969697 | KE7: 70 | KF7: % | KH7: =CONCATENATE(KE3, " ",KF3, " ",KH3, "; ") -> 171 m³/h Volumenstrom; | KM7: =IF(KG13=1,KM8,KE6) -> 60 | KN7: =IF(KG13=1,KN8,KG13) -> 1.76635514 | KO7: =IF(KG14=1,KO8,KE6) -> 60 | KP7: =IF(KG14=1,KP8,KG14) -> 0.9439252336 | LD7: 70 | LE7: % | LG7: =CONCATENATE(LD3, " ",LE3, " ",LG3, "; ") -> 241 m³/h Volumenstrom; | LL7: =IF(LF13=1,LL8,LD6) -> 60 | LM7: =IF(LF13=1,LM8,LF13) -> 1.709219858 | LN7: =IF(LF14=1,LN8,LD6) -> 60 | LO7: =IF(LF14=1,LO8,LF14) -> 0.914893617 | MD7: 70 | ME7: % | MG7: =CONCATENATE(MD3, " ",ME3, " ",MG3, "; ") -> 311 m³/h Volumenstrom; | ML7: =IF(MF13=1,ML8,MD6) -> 60 | MM7: =IF(MF13=1,MM8,MF13) -> 1.647058824 | MN7: =IF(MF14=1,MN8,MD6) -> 60 | MO7: =IF(MF14=1,MO8,MF14) -> 0.8882352941 | ND7: 70 | NE7: % | NG7: =CONCATENATE(ND3, " ",NE3, " ",NG3, "; ") -> 381 m³/h Volumenstrom; | NL7: =IF(NF13=1,NL8,ND6) -> 60 | NM7: =IF(NF13=1,NM8,NF13) -> 1.597938144 | NN7: =IF(NF14=1,NN8,ND6) -> 60 | NO7: =IF(NF14=1,NO8,NF14) -> 0.8659793814
B8: 80 | C8: % | E8: =CONCATENATE(B12, " ",C12, " ",A12, "; ") -> 26 °C Ansaugtemp; | J8: =IF(E13=1,J9,B7) -> 70 | K8: =IF(E13=1,K9,E13) -> 1.655737705 | L8: =IF(E14=1,L9,B7) -> 70 | M8: =IF(E14=1,M9,E14) -> 0.7868852459 | AD8: 80 | AE8: % | AG8: =CONCATENATE(AD12, " ",AE12, " ",AC12, "; ") -> 26 °C Ansaugtemp; | AL8: =IF(AG13=1,AL9,AD7) -> 70 | AM8: =IF(AG13=1,AM9,AG13) -> 1.32183908 | AN8: =IF(AG14=1,AN9,AD7) -> 70 | AO8: =IF(AG14=1,AO9,AG14) -> 0.6666666667 | BC8: 80 | BD8: % | BF8: =CONCATENATE(BC12, " ",BD12, " ",BB12, "; ") -> 26 °C Ansaugtemp; | BK8: =IF(BF13=1,BK9,BC7) -> 70 | BL8: =IF(BF13=1,BL9,BF13) -> 1.166666667 | BM8: =IF(BF14=1,BM9,BC7) -> 70 | BN8: =IF(BF14=1,BN9,BF14) -> 0.6470588235 | CC8: 80 | CD8: % | CF8: =CONCATENATE(CC12, " ",CD12, " ",CB12, "; ") -> 26 °C Ansaugtemp; | CK8: =IF(CF13=1,CK9,CC7) -> 70 | CL8: =IF(CF13=1,CL9,CF13) -> 1.09009009 | CM8: =IF(CF14=1,CM9,CC7) -> 70 | CN8: =IF(CF14=1,CN9,CF14) -> 0.6666666667 | DC8: 80 | DD8: % | DF8: =CONCATENATE(DC12, " ",DD12, " ",DB12, "; ") -> 26 °C Ansaugtemp; | DK8: =IF(DF13=1,DK9,DC7) -> 70 | DL8: =IF(DF13=1,DL9,DF13) -> 1.051282051 | DM8: =IF(DF14=1,DM9,DC7) -> 70 | DN8: =IF(DF14=1,DN9,DF14) -> 0.6837606838 | EB8: 80 | EC8: % | EE8: =CONCATENATE(EB12, " ",EC12, " ",EA12, "; ") -> 26 °C Ansaugtemp; | EJ8: =IF(EE13=1,EJ9,EB7) -> 70 | EK8: =IF(EE13=1,EK9,EE13) -> 2.061538462 | EL8: =IF(EE14=1,EL9,EB7) -> 70 | EM8: =IF(EE14=1,EM9,EE14) -> 0.9538461538 | FD8: 80 | FE8: % | FG8: =CONCATENATE(FD12, " ",FE12, " ",FC12, "; ") -> 26 °C Ansaugtemp; | FL8: =IF(FG13=1,FL9,FD7) -> 70 | FM8: =IF(FG13=1,FM9,FG13) -> 1.923076923 | FN8: =IF(FG14=1,FN9,FD7) -> 70 | FO8: =IF(FG14=1,FO9,FG14) -> 0.8846153846 | GC8: 80 | GD8: % | GF8: =CONCATENATE(GC12, " ",GD12, " ",GB12, "; ") -> 26 °C Ansaugtemp; | GK8: =IF(GF13=1,GK9,GC7) -> 70 | GL8: =IF(GF13=1,GL9,GF13) -> 1.785185185 | GM8: =IF(GF14=1,GM9,GC7) -> 70 | GN8: =IF(GF14=1,GN9,GF14) -> 0.8296296296 | HC8: 80 | HD8: % | HF8: =CONCATENATE(HC12, " ",HD12, " ",HB12, "; ") -> 26 °C Ansaugtemp; | HK8: =IF(HF13=1,HK9,HC7) -> 70 | HL8: =IF(HF13=1,HL9,HF13) -> 1.66875 | HM8: =IF(HF14=1,HM9,HC7) -> 70 | HN8: =IF(HF14=1,HN9,HF14) -> 0.78125 | IC8: 80 | ID8: % | IF8: =CONCATENATE(IC12, " ",ID12, " ",IB12, "; ") -> 26 °C Ansaugtemp; | IK8: =IF(IF13=1,IK9,IC7) -> 70 | IL8: =IF(IF13=1,IL9,IF13) -> 1.583333333 | IM8: =IF(IF14=1,IM9,IC7) -> 70 | IN8: =IF(IF14=1,IN9,IF14) -> 0.75 | JC8: 80 | JD8: % | JF8: =CONCATENATE(JC12, " ",JD12, " ",JB12, "; ") -> 26 °C Ansaugtemp; | JK8: =IF(JF13=1,JK9,JC7) -> 70 | JL8: =IF(JF13=1,JL9,JF13) -> 2.075757576 | JM8: =IF(JF14=1,JM9,JC7) -> 70 | JN8: =IF(JF14=1,JN9,JF14) -> 0.9696969697 | KE8: 80 | KF8: % | KH8: =CONCATENATE(KE12, " ",KF12, " ",KD12, "; ") -> 26 °C Ansaugtemp; | KM8: =IF(KH13=1,KM9,KE7) -> 70 | KN8: =IF(KH13=1,KN9,KH13) -> 2.018691589 | KO8: =IF(KH14=1,KO9,KE7) -> 70 | KP8: =IF(KH14=1,KP9,KH14) -> 0.9345794393 | LD8: 80 | LE8: % | LG8: =CONCATENATE(LD12, " ",LE12, " ",LC12, "; ") -> 26 °C Ansaugtemp; | LL8: =IF(LG13=1,LL9,LD7) -> 70 | LM8: =IF(LG13=1,LM9,LG13) -> 1.95035461 | LN8: =IF(LG14=1,LN9,LD7) -> 70 | LO8: =IF(LG14=1,LO9,LG14) -> 0.8936170213 | MD8: 80 | ME8: % | MG8: =CONCATENATE(MD12, " ",ME12, " ",MC12, "; ") -> 26 °C Ansaugtemp; | ML8: =IF(MG13=1,ML9,MD7) -> 70 | MM8: =IF(MG13=1,MM9,MG13) -> 1.882352941 | MN8: =IF(MG14=1,MN9,MD7) -> 70 | MO8: =IF(MG14=1,MO9,MG14) -> 0.8588235294 | ND8: 80 | NE8: % | NG8: =CONCATENATE(ND12, " ",NE12, " ",NC12, "; ") -> 26 °C Ansaugtemp; | NL8: =IF(NG13=1,NL9,ND7) -> 70 | NM8: =IF(NG13=1,NM9,NG13) -> 1.824742268 | NN8: =IF(NG14=1,NN9,ND7) -> 70 | NO8: =IF(NG14=1,NO9,NG14) -> 0.8298969072
B9: 90 | C9: % | E9: =CONCATENATE(E5,E6,E7,E8) -> 6 °C Vorlauf; 70 kg/h Kühlwasser; 101 m³/h Volumenstrom; 26 °C Ansaugtemp; | J9: =IF(F13=1,J10,B8) -> 80 | K9: =IF(F13=1,K10,F13) -> 1.836065574 | L9: =IF(F14=1,L10,B8) -> 80 | M9: =IF(F14=1,M10,F14) -> 0.737704918 | AD9: 90 | AE9: % | AG9: =CONCATENATE(AG5,AG6,AG7,AG8) -> 6 °C Vorlauf; 70 kg/h Kühlwasser; 171 m³/h Volumenstrom; 26 °C Ansaugtemp; | AL9: =IF(AH13=1,AL10,AD8) -> 80 | AM9: =IF(AH13=1,AM10,AH13) -> 1.459770115 | AN9: =IF(AH14=1,AN10,AD8) -> 80 | AO9: =IF(AH14=1,AO10,AH14) -> 0.5977011494 | BC9: 90 | BD9: % | BF9: =CONCATENATE(BF5,BF6,BF7,BF8) -> 6 °C Vorlauf; 70 kg/h Kühlwasser; 241 m³/h Volumenstrom; 26 °C Ansaugtemp; | BK9: =IF(BG13=1,BK10,BC8) -> 80 | BL9: =IF(BG13=1,BL10,BG13) -> 1.284313725 | BM9: =IF(BG14=1,BM10,BC8) -> 80 | BN9: =IF(BG14=1,BN10,BG14) -> 0.5588235294 | CC9: 90 | CD9: % | CF9: =CONCATENATE(CF5,CF6,CF7,CF8) -> 6 °C Vorlauf; 70 kg/h Kühlwasser; 311 m³/h Volumenstrom; 26 °C Ansaugtemp; | CK9: =IF(CG13=1,CK10,CC8) -> 80 | CL9: =IF(CG13=1,CL10,CG13) -> 1.207207207 | CM9: =IF(CG14=1,CM10,CC8) -> 80 | CN9: =IF(CG14=1,CN10,CG14) -> 0.5585585586 | DC9: 90 | DD9: % | DF9: =CONCATENATE(DF5,DF6,DF7,DF8) -> 6 °C Vorlauf; 70 kg/h Kühlwasser; 381 m³/h Volumenstrom; 26 °C Ansaugtemp; | DK9: =IF(DG13=1,DK10,DC8) -> 80 | DL9: =IF(DG13=1,DL10,DG13) -> 1.153846154 | DM9: =IF(DG14=1,DM10,DC8) -> 80 | DN9: =IF(DG14=1,DN10,DG14) -> 0.5641025641 | EB9: 90 | EC9: % | EE9: =CONCATENATE(EE5,EE6,EE7,EE8) -> 6 °C Vorlauf; 200 kg/h Kühlwasser; 101 m³/h Volumenstrom; 26 °C Ansaugtemp; | EJ9: =IF(EF13=1,EJ10,EB8) -> 80 | EK9: =IF(EF13=1,EK10,EF13) -> 2.323076923 | EL9: =IF(EF14=1,EL10,EB8) -> 80 | EM9: =IF(EF14=1,EM10,EF14) -> 0.9538461538 | FD9: 90 | FE9: % | FG9: =CONCATENATE(FG5,FG6,FG7,FG8) -> 6 °C Vorlauf; 200 kg/h Kühlwasser; 171 m³/h Volumenstrom; 26 °C Ansaugtemp; | FL9: =IF(FH13=1,FL10,FD8) -> 80 | FM9: =IF(FH13=1,FM10,FH13) -> 2.163461538 | FN9: =IF(FH14=1,FN10,FD8) -> 80 | FO9: =IF(FH14=1,FO10,FH14) -> 0.8653846154 | GC9: 90 | GD9: % | GF9: =CONCATENATE(GF5,GF6,GF7,GF8) -> 6 °C Vorlauf; 200 kg/h Kühlwasser; 241 m³/h Volumenstrom; 26 °C Ansaugtemp; | GK9: =IF(GG13=1,GK10,GC8) -> 80 | GL9: =IF(GG13=1,GL10,GG13) -> 2 | GM9: =IF(GG14=1,GM10,GC8) -> 80 | GN9: =IF(GG14=1,GN10,GG14) -> 0.7925925926 | HC9: 90 | HD9: % | HF9: =CONCATENATE(HF5,HF6,HF7,HF8) -> 6 °C Vorlauf; 200 kg/h Kühlwasser; 311 m³/h Volumenstrom; 26 °C Ansaugtemp; | HK9: =IF(HG13=1,HK10,HC8) -> 80 | HL9: =IF(HG13=1,HL10,HG13) -> 1.86875 | HM9: =IF(HG14=1,HM10,HC8) -> 80 | HN9: =IF(HG14=1,HN10,HG14) -> 0.73125 | IC9: 90 | ID9: % | IF9: =CONCATENATE(IF5,IF6,IF7,IF8) -> 6 °C Vorlauf; 200 kg/h Kühlwasser; 381 m³/h Volumenstrom; 26 °C Ansaugtemp; | IK9: =IF(IG13=1,IK10,IC8) -> 80 | IL9: =IF(IG13=1,IL10,IG13) -> 1.766666667 | IM9: =IF(IG14=1,IM10,IC8) -> 80 | IN9: =IF(IG14=1,IN10,IG14) -> 0.6944444444 | JC9: 90 | JD9: % | JF9: =CONCATENATE(JF5,JF6,JF7,JF8) -> 6 °C Vorlauf; 330 kg/h Kühlwasser; 101 m³/h Volumenstrom; 26 °C Ansaugtemp; | JK9: =IF(JG13=1,JK10,JC8) -> 80 | JL9: =IF(JG13=1,JL10,JG13) -> 2.333333333 | JM9: =IF(JG14=1,JM10,JC8) -> 80 | JN9: =IF(JG14=1,JN10,JG14) -> 0.9545454545 | KE9: 90 | KF9: % | KH9: =CONCATENATE(KH5,KH6,KH7,KH8) -> 6 °C Vorlauf; 330 kg/h Kühlwasser; 171 m³/h Volumenstrom; 26 °C Ansaugtemp; | KM9: =IF(KI13=1,KM10,KE8) -> 80 | KN9: =IF(KI13=1,KN10,KI13) -> 2.271028037 | KO9: =IF(KI14=1,KO10,KE8) -> 80 | KP9: =IF(KI14=1,KP10,KI14) -> 0.9158878505 | LD9: 90 | LE9: % | LG9: =CONCATENATE(LG5,LG6,LG7,LG8) -> 6 °C Vorlauf; 330 kg/h Kühlwasser; 241 m³/h Volumenstrom; 26 °C Ansaugtemp; | LL9: =IF(LH13=1,LL10,LD8) -> 80 | LM9: =IF(LH13=1,LM10,LH13) -> 2.19858156 | LN9: =IF(LH14=1,LN10,LD8) -> 80 | LO9: =IF(LH14=1,LO10,LH14) -> 0.8723404255 | MD9: 90 | ME9: % | MG9: =CONCATENATE(MG5,MG6,MG7,MG8) -> 6 °C Vorlauf; 330 kg/h Kühlwasser; 311 m³/h Volumenstrom; 26 °C Ansaugtemp; | ML9: =IF(MH13=1,ML10,MD8) -> 80 | MM9: =IF(MH13=1,MM10,MH13) -> 2.111764706 | MN9: =IF(MH14=1,MN10,MD8) -> 80 | MO9: =IF(MH14=1,MO10,MH14) -> 0.8294117647 | ND9: 90 | NE9: % | NG9: =CONCATENATE(NG5,NG6,NG7,NG8) -> 6 °C Vorlauf; 330 kg/h Kühlwasser; 381 m³/h Volumenstrom; 26 °C Ansaugtemp; | NL9: =IF(NH13=1,NL10,ND8) -> 80 | NM9: =IF(NH13=1,NM10,NH13) -> 2.046391753 | NN9: =IF(NH14=1,NN10,ND8) -> 80 | NO9: =IF(NH14=1,NO10,NH14) -> 0.793814433
B10: 99 | C10: % | J10: =IF(G13=1,J11,B9) -> 90 | K10: =IF(G13=1,K11,G13) -> 2.032786885 | L10: =IF(G14=1,L11,B9) -> 90 | M10: =IF(G14=1,M11,G14) -> 0.6885245902 | AD10: 99 | AE10: % | AL10: =IF(AI13=1,AL11,AD9) -> 90 | AM10: =IF(AI13=1,AM11,AI13) -> 1.597701149 | AN10: =IF(AI14=1,AN11,AD9) -> 90 | AO10: =IF(AI14=1,AO11,AI14) -> 0.5287356322 | BC10: 99 | BD10: % | BK10: =IF(BH13=1,BK11,BC9) -> 90 | BL10: =IF(BH13=1,BL11,BH13) -> 1.401960784 | BM10: =IF(BH14=1,BM11,BC9) -> 90 | BN10: =IF(BH14=1,BN11,BH14) -> 0.4705882353 | CC10: 99 | CD10: % | CK10: =IF(CH13=1,CK11,CC9) -> 90 | CL10: =IF(CH13=1,CL11,CH13) -> 1.306306306 | CM10: =IF(CH14=1,CM11,CC9) -> 90 | CN10: =IF(CH14=1,CN11,CH14) -> 0.4504504505 | DC10: 99 | DD10: % | DK10: =IF(DH13=1,DK11,DC9) -> 90 | DL10: =IF(DH13=1,DL11,DH13) -> 1.247863248 | DM10: =IF(DH14=1,DM11,DC9) -> 90 | DN10: =IF(DH14=1,DN11,DH14) -> 0.4444444444 | EB10: 99 | EC10: % | EJ10: =IF(EG13=1,EJ11,EB9) -> 90 | EK10: =IF(EG13=1,EK11,EG13) -> 2.584615385 | EL10: =IF(EG14=1,EL11,EB9) -> 90 | EM10: =IF(EG14=1,EM11,EG14) -> 0.9384615385 | FD10: 99 | FE10: % | FL10: =IF(FI13=1,FL11,FD9) -> 90 | FM10: =IF(FI13=1,FM11,FI13) -> 2.403846154 | FN10: =IF(FI14=1,FN11,FD9) -> 90 | FO10: =IF(FI14=1,FO11,FI14) -> 0.8461538462 | GC10: 99 | GD10: % | GK10: =IF(GH13=1,GK11,GC9) -> 90 | GL10: =IF(GH13=1,GL11,GH13) -> 2.222222222 | GM10: =IF(GH14=1,GM11,GC9) -> 90 | GN10: =IF(GH14=1,GN11,GH14) -> 0.7555555556 | HC10: 99 | HD10: % | HK10: =IF(HH13=1,HK11,HC9) -> 90 | HL10: =IF(HH13=1,HL11,HH13) -> 2.0625 | HM10: =IF(HH14=1,HM11,HC9) -> 90 | HN10: =IF(HH14=1,HN11,HH14) -> 0.6875 | IC10: 99 | ID10: % | IK10: =IF(IH13=1,IK11,IC9) -> 90 | IL10: =IF(IH13=1,IL11,IH13) -> 1.944444444 | IM10: =IF(IH14=1,IM11,IC9) -> 90 | IN10: =IF(IH14=1,IN11,IH14) -> 0.6333333333 | JC10: 99 | JD10: % | JK10: =IF(JH13=1,JK11,JC9) -> 90 | JL10: =IF(JH13=1,JL11,JH13) -> 2.590909091 | JM10: =IF(JH14=1,JM11,JC9) -> 90 | JN10: =IF(JH14=1,JN11,JH14) -> 0.9545454545 | KE10: 99 | KF10: % | KM10: =IF(KJ13=1,KM11,KE9) -> 90 | KN10: =IF(KJ13=1,KN11,KJ13) -> 2.523364486 | KO10: =IF(KJ14=1,KO11,KE9) -> 90 | KP10: =IF(KJ14=1,KP11,KJ14) -> 0.9065420561 | LD10: 99 | LE10: % | LL10: =IF(LI13=1,LL11,LD9) -> 90 | LM10: =IF(LI13=1,LM11,LI13) -> 2.439716312 | LN10: =IF(LI14=1,LN11,LD9) -> 90 | LO10: =IF(LI14=1,LO11,LI14) -> 0.8510638298 | MD10: 99 | ME10: % | ML10: =IF(MI13=1,ML11,MD9) -> 90 | MM10: =IF(MI13=1,MM11,MI13) -> 2.347058824 | MN10: =IF(MI14=1,MN11,MD9) -> 90 | MO10: =IF(MI14=1,MO11,MI14) -> 0.8 | ND10: 99 | NE10: % | NL10: =IF(NI13=1,NL11,ND9) -> 90 | NM10: =IF(NI13=1,NM11,NI13) -> 2.268041237 | NN10: =IF(NI14=1,NN11,ND9) -> 90 | NO10: =IF(NI14=1,NO11,NI14) -> 0.7577319588
B11: =ROUND(D11,0) -> 50 | C11: % | D11: =VKL!$I$9 -> 50 | E11: rel Feuchte | J11: =IF(H13=1,J12,B10) -> 99 | K11: =IF(H13=1,K12,H13) -> 2.196721311 | L11: =IF(H14=1,L12,B10) -> 99 | M11: =IF(H14=1,M12,H14) -> 0.6557377049 | AD11: =ROUND(AF11,0) -> 50 | AE11: % | AF11: =$D$11 -> 50 | AG11: rel Feuchte | AL11: =IF(AJ13=1,AL12,AD10) -> 99 | AM11: =IF(AJ13=1,AM12,AJ13) -> 1.712643678 | AN11: =IF(AJ14=1,AN12,AD10) -> 99 | AO11: =IF(AJ14=1,AO12,AJ14) -> 0.4712643678 | BC11: =ROUND(BE11,0) -> 50 | BD11: % | BE11: =$D$11 -> 50 | BF11: rel Feuchte | BK11: =IF(BI13=1,BK12,BC10) -> 99 | BL11: =IF(BI13=1,BL12,BI13) -> 1.5 | BM11: =IF(BI14=1,BM12,BC10) -> 99 | BN11: =IF(BI14=1,BN12,BI14) -> 0.4019607843 | CC11: =ROUND(CE11,0) -> 50 | CD11: % | CE11: =$D$11 -> 50 | CF11: rel Feuchte | CK11: =IF(CI13=1,CK12,CC10) -> 99 | CL11: =IF(CI13=1,CL12,CI13) -> 1.405405405 | CM11: =IF(CI14=1,CM12,CC10) -> 99 | CN11: =IF(CI14=1,CN12,CI14) -> 0.3603603604 | DC11: =ROUND(DE11,0) -> 50 | DD11: % | DE11: =$D$11 -> 50 | DF11: rel Feuchte | DK11: =IF(DI13=1,DK12,DC10) -> 99 | DL11: =IF(DI13=1,DL12,DI13) -> 1.341880342 | DM11: =IF(DI14=1,DM12,DC10) -> 99 | DN11: =IF(DI14=1,DN12,DI14) -> 0.3418803419 | EB11: =ROUND(ED11,0) -> 50 | EC11: % | ED11: =D11 -> 50 | EE11: rel Feuchte | EJ11: =IF(EH13=1,EJ12,EB10) -> 99 | EK11: =IF(EH13=1,EK12,EH13) -> 2.815384615 | EL11: =IF(EH14=1,EL12,EB10) -> 99 | EM11: =IF(EH14=1,EM12,EH14) -> 0.9384615385 | FD11: =ROUND(FF11,0) -> 50 | FE11: % | FF11: =$D$11 -> 50 | FG11: rel Feuchte | FL11: =IF(FJ13=1,FL12,FD10) -> 99 | FM11: =IF(FJ13=1,FM12,FJ13) -> 2.615384615 | FN11: =IF(FJ14=1,FN12,FD10) -> 99 | FO11: =IF(FJ14=1,FO12,FJ14) -> 0.8269230769 | GC11: =ROUND(GE11,0) -> 50 | GD11: % | GE11: =$D$11 -> 50 | GF11: rel Feuchte | GK11: =IF(GI13=1,GK12,GC10) -> 99 | GL11: =IF(GI13=1,GL12,GI13) -> 2.407407407 | GM11: =IF(GI14=1,GM12,GC10) -> 99 | GN11: =IF(GI14=1,GN12,GI14) -> 0.7259259259 | HC11: =ROUND(HE11,0) -> 50 | HD11: % | HE11: =$D$11 -> 50 | HF11: rel Feuchte | HK11: =IF(HI13=1,HK12,HC10) -> 99 | HL11: =IF(HI13=1,HL12,HI13) -> 2.23125 | HM11: =IF(HI14=1,HM12,HC10) -> 99 | HN11: =IF(HI14=1,HN12,HI14) -> 0.64375 | IC11: =ROUND(IE11,0) -> 50 | ID11: % | IE11: =$D$11 -> 50 | IF11: rel Feuchte | IK11: =IF(II13=1,IK12,IC10) -> 99 | IL11: =IF(II13=1,IL12,II13) -> 2.1 | IM11: =IF(II14=1,IM12,IC10) -> 99 | IN11: =IF(II14=1,IN12,II14) -> 0.5833333333 | JC11: =ROUND(JE11,0) -> 50 | JD11: % | JE11: =D11 -> 50 | JF11: rel Feuchte | JK11: =IF(JI13=1,JK12,JC10) -> 99 | JL11: =IF(JI13=1,JL12,JI13) -> 2.833333333 | JM11: =IF(JI14=1,JM12,JC10) -> 99 | JN11: =IF(JI14=1,JN12,JI14) -> 0.9545454545 | KE11: =ROUND(KG11,0) -> 50 | KF11: % | KG11: =$D$11 -> 50 | KH11: rel Feuchte | KM11: =IF(KK13=1,KM12,KE10) -> 99 | KN11: =IF(KK13=1,KN12,KK13) -> 2.747663551 | KO11: =IF(KK14=1,KO12,KE10) -> 99 | KP11: =IF(KK14=1,KP12,KK14) -> 0.8971962617 | LD11: =ROUND(LF11,0) -> 50 | LE11: % | LF11: =$D$11 -> 50 | LG11: rel Feuchte | LL11: =IF(LJ13=1,LL12,LD10) -> 99 | LM11: =IF(LJ13=1,LM12,LJ13) -> 2.659574468 | LN11: =IF(LJ14=1,LN12,LD10) -> 99 | LO11: =IF(LJ14=1,LO12,LJ14) -> 0.829787234 | MD11: =ROUND(MF11,0) -> 50 | ME11: % | MF11: =$D$11 -> 50 | MG11: rel Feuchte | ML11: =IF(MJ13=1,ML12,MD10) -> 99 | MM11: =IF(MJ13=1,MM12,MJ13) -> 2.552941176 | MN11: =IF(MJ14=1,MN12,MD10) -> 99 | MO11: =IF(MJ14=1,MO12,MJ14) -> 0.7705882353 | ND11: =ROUND(NF11,0) -> 50 | NE11: % | NF11: =$D$11 -> 50 | NG11: rel Feuchte | NL11: =IF(NJ13=1,NL12,ND10) -> 99 | NM11: =IF(NJ13=1,NM12,NJ13) -> 2.469072165 | NN11: =IF(NJ14=1,NN12,ND10) -> 99 | NO11: =IF(NJ14=1,NO12,NJ14) -> 0.7268041237
A12: Ansaugtemp | B12: =ROUND(D12,0) -> 26 | C12: °C | D12: =VKL!$I$6 -> 26 | E12: Ansaugtemperatur | L12: 100 | M12: 1 | AC12: Ansaugtemp | AD12: =ROUND(AF12,0) -> 26 | AE12: °C | AF12: =$D$12 -> 26 | AG12: Ansaugtemperatur | AN12: 100 | AO12: 1 | BB12: Ansaugtemp | BC12: =ROUND(BE12,0) -> 26 | BD12: °C | BE12: =$D$12 -> 26 | BF12: Ansaugtemperatur | BM12: 100 | BN12: 1 | CB12: Ansaugtemp | CC12: =ROUND(CE12,0) -> 26 | CD12: °C | CE12: =$D$12 -> 26 | CF12: Ansaugtemperatur | CM12: 100 | CN12: 1 | DB12: Ansaugtemp | DC12: =ROUND(DE12,0) -> 26 | DD12: °C | DE12: =$D$12 -> 26 | DF12: Ansaugtemperatur | DM12: 100 | DN12: 1 | EA12: Ansaugtemp | EB12: =ROUND(ED12,0) -> 26 | EC12: °C | ED12: =D12 -> 26 | EE12: Ansaugtemperatur | EL12: 100 | EM12: 1 | FC12: Ansaugtemp | FD12: =ROUND(FF12,0) -> 26 | FE12: °C | FF12: =$D$12 -> 26 | FG12: Ansaugtemperatur | FN12: 100 | FO12: 1 | GB12: Ansaugtemp | GC12: =ROUND(GE12,0) -> 26 | GD12: °C | GE12: =$D$12 -> 26 | GF12: Ansaugtemperatur | GM12: 100 | GN12: 1 | HB12: Ansaugtemp | HC12: =ROUND(HE12,0) -> 26 | HD12: °C | HE12: =$D$12 -> 26 | HF12: Ansaugtemperatur | HM12: 100 | HN12: 1 | IB12: Ansaugtemp | IC12: =ROUND(IE12,0) -> 26 | ID12: °C | IE12: =$D$12 -> 26 | IF12: Ansaugtemperatur | IM12: 100 | IN12: 1 | JB12: Ansaugtemp | JC12: =ROUND(JE12,0) -> 26 | JD12: °C | JE12: =D12 -> 26 | JF12: Ansaugtemperatur | JM12: 100 | JN12: 1 | KD12: Ansaugtemp | KE12: =ROUND(KG12,0) -> 26 | KF12: °C | KG12: =$D$12 -> 26 | KH12: Ansaugtemperatur | KO12: 100 | KP12: 1 | LC12: Ansaugtemp | LD12: =ROUND(LF12,0) -> 26 | LE12: °C | LF12: =$D$12 -> 26 | LG12: Ansaugtemperatur | LN12: 100 | LO12: 1 | MC12: Ansaugtemp | MD12: =ROUND(MF12,0) -> 26 | ME12: °C | MF12: =$D$12 -> 26 | MG12: Ansaugtemperatur | MN12: 100 | MO12: 1 | NC12: Ansaugtemp | ND12: =ROUND(NF12,0) -> 26 | NE12: °C | NF12: =$D$12 -> 26 | NG12: Ansaugtemperatur | NN12: 100 | NO12: 1
A13: Korrekturfaktor totale Leistung | B13: =INDEX($K$22:$K$12516,MATCH(B1&B2&B3&B4&B12,$A$22:$A$12516&$H$22:$H$12516&$C$22:$C$12516&$E$22:$E$12516&$D$22:$D$12516,0)) -> 1 | C13: =INDEX($K$22:$K$12516,MATCH(B1&B2&B3&B4&B12,$A$22:$A$12516&$H$22:$H$12516&$C$22:$C$12516&$E$22:$E$12516&$D$22:$D$12516,0)) -> 1 | D13: =INDEX($K$22:$K$12516,MATCH(B1&B2&B3&B6&B12,$A$22:$A$12516&$H$22:$H$12516&$C$22:$C$12516&$E$22:$E$12516&$D$22:$D$12516,0)) -> 1.459016393 | E13: =INDEX($K$22:$K$12516,MATCH(B1&B2&B3&B7&B12,$A$22:$A$12516&$H$22:$H$12516&$C$22:$C$12516&$E$22:$E$12516&$D$22:$D$12516,0)) -> 1.655737705 | F13: =INDEX($K$22:$K$12516,MATCH(B1&B2&B3&B8&B12,$A$22:$A$12516&$H$22:$H$12516&$C$22:$C$12516&$E$22:$E$12516&$D$22:$D$12516,0)) -> 1.836065574 | G13: =INDEX($K$22:$K$12516,MATCH(B1&B2&B3&B9&B12,$A$22:$A$12516&$H$22:$H$12516&$C$22:$C$12516&$E$22:$E$12516&$D$22:$D$12516,0)) -> 2.032786885 | H13: =INDEX($K$22:$K$12516,MATCH(B1&B2&B3&B10&B12,$A$22:$A$12516&$H$22:$H$12516&$C$22:$C$12516&$E$22:$E$12516&$D$22:$D$12516,0)) -> 2.196721311 | AC13: Korrekturfaktor totale Leistung | AD13: =INDEX($K$22:$K$12516,MATCH(AD1&AD2&AD3&AD4&AD12,$A$22:$A$12516&$H$22:$H$12516&$C$22:$C$12516&$E$22:$E$12516&$D$22:$D$12516,0)) -> 1 | AE13: =INDEX($K$22:$K$12516,MATCH(AD1&AD2&AD3&AD4&AD12,$A$22:$A$12516&$H$22:$H$12516&$C$22:$C$12516&$E$22:$E$12516&$D$22:$D$12516,0)) -> 1 | AF13: =INDEX($K$22:$K$12516,MATCH(AD1&AD2&AD3&AD6&AD12,$A$22:$A$12516&$H$22:$H$12516&$C$22:$C$12516&$E$22:$E$12516&$D$22:$D$12516,0)) -> 1.172413793 | AG13: =INDEX($K$22:$K$12516,MATCH(AD1&AD2&AD3&AD7&AD12,$A$22:$A$12516&$H$22:$H$12516&$C$22:$C$12516&$E$22:$E$12516&$D$22:$D$12516,0)) -> 1.32183908 | AH13: =INDEX($K$22:$K$12516,MATCH(AD1&AD2&AD3&AD8&AD12,$A$22:$A$12516&$H$22:$H$12516&$C$22:$C$12516&$E$22:$E$12516&$D$22:$D$12516,0)) -> 1.459770115 | AI13: =INDEX($K$22:$K$12516,MATCH(AD1&AD2&AD3&AD9&AD12,$A$22:$A$12516&$H$22:$H$12516&$C$22:$C$12516&$E$22:$E$12516&$D$22:$D$12516,0)) -> 1.597701149 | AJ13: =INDEX($K$22:$K$12516,MATCH(AD1&AD2&AD3&AD10&AD12,$A$22:$A$12516&$H$22:$H$12516&$C$22:$C$12516&$E$22:$E$12516&$D$22:$D$12516,0)) -> 1.712643678 | BB13: Korrekturfaktor totale Leistung | BC13: =INDEX($K$22:$K$12516,MATCH(BC1&BC2&BC3&BC4&BC12,$A$22:$A$12516&$H$22:$H$12516&$C$22:$C$12516&$E$22:$E$12516&$D$22:$D$12516,0)) -> 1 | BD13: =INDEX($K$22:$K$12516,MATCH(BC1&BC2&BC3&BC4&BC12,$A$22:$A$12516&$H$22:$H$12516&$C$22:$C$12516&$E$22:$E$12516&$D$22:$D$12516,0)) -> 1 | BE13: =INDEX($K$22:$K$12516,MATCH(BC1&BC2&BC3&BC6&BC12,$A$22:$A$12516&$H$22:$H$12516&$C$22:$C$12516&$E$22:$E$12516&$D$22:$D$12516,0)) -> 1.039215686 | BF13: =INDEX($K$22:$K$12516,MATCH(BC1&BC2&BC3&BC7&BC12,$A$22:$A$12516&$H$22:$H$12516&$C$22:$C$12516&$E$22:$E$12516&$D$22:$D$12516,0)) -> 1.166666667 | BG13: =INDEX($K$22:$K$12516,MATCH(BC1&BC2&BC3&BC8&BC12,$A$22:$A$12516&$H$22:$H$12516&$C$22:$C$12516&$E$22:$E$12516&$D$22:$D$12516,0)) -> 1.284313725 | BH13: =INDEX($K$22:$K$12516,MATCH(BC1&BC2&BC3&BC9&BC12,$A$22:$A$12516&$H$22:$H$12516&$C$22:$C$12516&$E$22:$E$12516&$D$22:$D$12516,0)) -> 1.401960784 | BI13: =INDEX($K$22:$K$12516,MATCH(BC1&BC2&BC3&BC10&BC12,$A$22:$A$12516&$H$22:$H$12516&$C$22:$C$12516&$E$22:$E$12516&$D$22:$D$12516,0)) -> 1.5 | CB13: Korrekturfaktor totale Leistung | CC13: =INDEX($K$22:$K$12516,MATCH(CC1&CC2&CC3&CC4&CC12,$A$22:$A$12516&$H$22:$H$12516&$C$22:$C$12516&$E$22:$E$12516&$D$22:$D$12516,0)) -> 1 | CD13: =INDEX($K$22:$K$12516,MATCH(CC1&CC2&CC3&CC4&CC12,$A$22:$A$12516&$H$22:$H$12516&$C$22:$C$12516&$E$22:$E$12516&$D$22:$D$12516,0)) -> 1 | CE13: =INDEX($K$22:$K$12516,MATCH(CC1&CC2&CC3&CC6&CC12,$A$22:$A$12516&$H$22:$H$12516&$C$22:$C$12516&$E$22:$E$12516&$D$22:$D$12516,0)) -> 0.981981982 | CF13: =INDEX($K$22:$K$12516,MATCH(CC1&CC2&CC3&CC7&CC12,$A$22:$A$12516&$H$22:$H$12516&$C$22:$C$12516&$E$22:$E$12516&$D$22:$D$12516,0)) -> 1.09009009 | CG13: =INDEX($K$22:$K$12516,MATCH(CC1&CC2&CC3&CC8&CC12,$A$22:$A$12516&$H$22:$H$12516&$C$22:$C$12516&$E$22:$E$12516&$D$22:$D$12516,0)) -> 1.207207207 | CH13: =INDEX($K$22:$K$12516,MATCH(CC1&CC2&CC3&CC9&CC12,$A$22:$A$12516&$H$22:$H$12516&$C$22:$C$12516&$E$22:$E$12516&$D$22:$D$12516,0)) -> 1.306306306 | CI13: =INDEX($K$22:$K$12516,MATCH(CC1&CC2&CC3&CC10&CC12,$A$22:$A$12516&$H$22:$H$12516&$C$22:$C$12516&$E$22:$E$12516&$D$22:$D$12516,0)) -> 1.405405405 | DB13: Korrekturfaktor totale Leistung | DC13: =INDEX($K$22:$K$12516,MATCH(DC1&DC2&DC3&DC4&DC12,$A$22:$A$12516&$H$22:$H$12516&$C$22:$C$12516&$E$22:$E$12516&$D$22:$D$12516,0)) -> 1 | DD13: =INDEX($K$22:$K$12516,MATCH(DC1&DC2&DC3&DC4&DC12,$A$22:$A$12516&$H$22:$H$12516&$C$22:$C$12516&$E$22:$E$12516&$D$22:$D$12516,0)) -> 1 | DE13: =INDEX($K$22:$K$12516,MATCH(DC1&DC2&DC3&DC6&DC12,$A$22:$A$12516&$H$22:$H$12516&$C$22:$C$12516&$E$22:$E$12516&$D$22:$D$12516,0)) -> 0.9401709402 | DF13: =INDEX($K$22:$K$12516,MATCH(DC1&DC2&DC3&DC7&DC12,$A$22:$A$12516&$H$22:$H$12516&$C$22:$C$12516&$E$22:$E$12516&$D$22:$D$12516,0)) -> 1.051282051 | DG13: =INDEX($K$22:$K$12516,MATCH(DC1&DC2&DC3&DC8&DC12,$A$22:$A$12516&$H$22:$H$12516&$C$22:$C$12516&$E$22:$E$12516&$D$22:$D$12516,0)) -> 1.153846154 | DH13: =INDEX($K$22:$K$12516,MATCH(DC1&DC2&DC3&DC9&DC12,$A$22:$A$12516&$H$22:$H$12516&$C$22:$C$12516&$E$22:$E$12516&$D$22:$D$12516,0)) -> 1.247863248 | DI13: =INDEX($K$22:$K$12516,MATCH(DC1&DC2&DC3&DC10&DC12,$A$22:$A$12516&$H$22:$H$12516&$C$22:$C$12516&$E$22:$E$12516&$D$22:$D$12516,0)) -> 1.341880342 | EA13: Korrekturfaktor totale Leistung | EB13: =INDEX($K$22:$K$12516,MATCH(EB1&EB2&EB3&EB4&EB12,$A$22:$A$12516&$H$22:$H$12516&$C$22:$C$12516&$E$22:$E$12516&$D$22:$D$12516,0)) -> 1 | EC13: =INDEX($K$22:$K$12516,MATCH(EB1&EB2&EB3&EB4&EB12,$A$22:$A$12516&$H$22:$H$12516&$C$22:$C$12516&$E$22:$E$12516&$D$22:$D$12516,0)) -> 1 | ED13: =INDEX($K$22:$K$12516,MATCH(EB1&EB2&EB3&EB6&EB12,$A$22:$A$12516&$H$22:$H$12516&$C$22:$C$12516&$E$22:$E$12516&$D$22:$D$12516,0)) -> 1.815384615 | EE13: =INDEX($K$22:$K$12516,MATCH(EB1&EB2&EB3&EB7&EB12,$A$22:$A$12516&$H$22:$H$12516&$C$22:$C$12516&$E$22:$E$12516&$D$22:$D$12516,0)) -> 2.061538462 | EF13: =INDEX($K$22:$K$12516,MATCH(EB1&EB2&EB3&EB8&EB12,$A$22:$A$12516&$H$22:$H$12516&$C$22:$C$12516&$E$22:$E$12516&$D$22:$D$12516,0)) -> 2.323076923 | EG13: =INDEX($K$22:$K$12516,MATCH(EB1&EB2&EB3&EB9&EB12,$A$22:$A$12516&$H$22:$H$12516&$C$22:$C$12516&$E$22:$E$12516&$D$22:$D$12516,0)) -> 2.584615385 | EH13: =INDEX($K$22:$K$12516,MATCH(EB1&EB2&EB3&EB10&EB12,$A$22:$A$12516&$H$22:$H$12516&$C$22:$C$12516&$E$22:$E$12516&$D$22:$D$12516,0)) -> 2.815384615 | FC13: Korrekturfaktor totale Leistung | FD13: =INDEX($K$22:$K$12516,MATCH(FD1&FD2&FD3&FD4&FD12,$A$22:$A$12516&$H$22:$H$12516&$C$22:$C$12516&$E$22:$E$12516&$D$22:$D$12516,0)) -> 1 | FE13: =INDEX($K$22:$K$12516,MATCH(FD1&FD2&FD3&FD4&FD12,$A$22:$A$12516&$H$22:$H$12516&$C$22:$C$12516&$E$22:$E$12516&$D$22:$D$12516,0)) -> 1 | FF13: =INDEX($K$22:$K$12516,MATCH(FD1&FD2&FD3&FD6&FD12,$A$22:$A$12516&$H$22:$H$12516&$C$22:$C$12516&$E$22:$E$12516&$D$22:$D$12516,0)) -> 1.682692308 | FG13: =INDEX($K$22:$K$12516,MATCH(FD1&FD2&FD3&FD7&FD12,$A$22:$A$12516&$H$22:$H$12516&$C$22:$C$12516&$E$22:$E$12516&$D$22:$D$12516,0)) -> 1.923076923 | FH13: =INDEX($K$22:$K$12516,MATCH(FD1&FD2&FD3&FD8&FD12,$A$22:$A$12516&$H$22:$H$12516&$C$22:$C$12516&$E$22:$E$12516&$D$22:$D$12516,0)) -> 2.163461538 | FI13: =INDEX($K$22:$K$12516,MATCH(FD1&FD2&FD3&FD9&FD12,$A$22:$A$12516&$H$22:$H$12516&$C$22:$C$12516&$E$22:$E$12516&$D$22:$D$12516,0)) -> 2.403846154 | FJ13: =INDEX($K$22:$K$12516,MATCH(FD1&FD2&FD3&FD10&FD12,$A$22:$A$12516&$H$22:$H$12516&$C$22:$C$12516&$E$22:$E$12516&$D$22:$D$12516,0)) -> 2.615384615 | GB13: Korrekturfaktor totale Leistung | GC13: =INDEX($K$22:$K$12516,MATCH(GC1&GC2&GC3&GC4&GC12,$A$22:$A$12516&$H$22:$H$12516&$C$22:$C$12516&$E$22:$E$12516&$D$22:$D$12516,0)) -> 1 | GD13: =INDEX($K$22:$K$12516,MATCH(GC1&GC2&GC3&GC4&GC12,$A$22:$A$12516&$H$22:$H$12516&$C$22:$C$12516&$E$22:$E$12516&$D$22:$D$12516,0)) -> 1 | GE13: =INDEX($K$22:$K$12516,MATCH(GC1&GC2&GC3&GC6&GC12,$A$22:$A$12516&$H$22:$H$12516&$C$22:$C$12516&$E$22:$E$12516&$D$22:$D$12516,0)) -> 1.57037037 | GF13: =INDEX($K$22:$K$12516,MATCH(GC1&GC2&GC3&GC7&GC12,$A$22:$A$12516&$H$22:$H$12516&$C$22:$C$12516&$E$22:$E$12516&$D$22:$D$12516,0)) -> 1.785185185 | GG13: =INDEX($K$22:$K$12516,MATCH(GC1&GC2&GC3&GC8&GC12,$A$22:$A$12516&$H$22:$H$12516&$C$22:$C$12516&$E$22:$E$12516&$D$22:$D$12516,0)) -> 2 | GH13: =INDEX($K$22:$K$12516,MATCH(GC1&GC2&GC3&GC9&GC12,$A$22:$A$12516&$H$22:$H$12516&$C$22:$C$12516&$E$22:$E$12516&$D$22:$D$12516,0)) -> 2.222222222 | GI13: =INDEX($K$22:$K$12516,MATCH(GC1&GC2&GC3&GC10&GC12,$A$22:$A$12516&$H$22:$H$12516&$C$22:$C$12516&$E$22:$E$12516&$D$22:$D$12516,0)) -> 2.407407407 | HB13: Korrekturfaktor totale Leistung | HC13: =INDEX($K$22:$K$12516,MATCH(HC1&HC2&HC3&HC4&HC12,$A$22:$A$12516&$H$22:$H$12516&$C$22:$C$12516&$E$22:$E$12516&$D$22:$D$12516,0)) -> 1 | HD13: =INDEX($K$22:$K$12516,MATCH(HC1&HC2&HC3&HC4&HC12,$A$22:$A$12516&$H$22:$H$12516&$C$22:$C$12516&$E$22:$E$12516&$D$22:$D$12516,0)) -> 1 | HE13: =INDEX($K$22:$K$12516,MATCH(HC1&HC2&HC3&HC6&HC12,$A$22:$A$12516&$H$22:$H$12516&$C$22:$C$12516&$E$22:$E$12516&$D$22:$D$12516,0)) -> 1.46875 | HF13: =INDEX($K$22:$K$12516,MATCH(HC1&HC2&HC3&HC7&HC12,$A$22:$A$12516&$H$22:$H$12516&$C$22:$C$12516&$E$22:$E$12516&$D$22:$D$12516,0)) -> 1.66875 | HG13: =INDEX($K$22:$K$12516,MATCH(HC1&HC2&HC3&HC8&HC12,$A$22:$A$12516&$H$22:$H$12516&$C$22:$C$12516&$E$22:$E$12516&$D$22:$D$12516,0)) -> 1.86875 | HH13: =INDEX($K$22:$K$12516,MATCH(HC1&HC2&HC3&HC9&HC12,$A$22:$A$12516&$H$22:$H$12516&$C$22:$C$12516&$E$22:$E$12516&$D$22:$D$12516,0)) -> 2.0625 | HI13: =INDEX($K$22:$K$12516,MATCH(HC1&HC2&HC3&HC10&HC12,$A$22:$A$12516&$H$22:$H$12516&$C$22:$C$12516&$E$22:$E$12516&$D$22:$D$12516,0)) -> 2.23125 | IB13: Korrekturfaktor totale Leistung | IC13: =INDEX($K$22:$K$12516,MATCH(IC1&IC2&IC3&IC4&IC12,$A$22:$A$12516&$H$22:$H$12516&$C$22:$C$12516&$E$22:$E$12516&$D$22:$D$12516,0)) -> 1 | ID13: =INDEX($K$22:$K$12516,MATCH(IC1&IC2&IC3&IC4&IC12,$A$22:$A$12516&$H$22:$H$12516&$C$22:$C$12516&$E$22:$E$12516&$D$22:$D$12516,0)) -> 1 | IE13: =INDEX($K$22:$K$12516,MATCH(IC1&IC2&IC3&IC6&IC12,$A$22:$A$12516&$H$22:$H$12516&$C$22:$C$12516&$E$22:$E$12516&$D$22:$D$12516,0)) -> 1.394444444 | IF13: =INDEX($K$22:$K$12516,MATCH(IC1&IC2&IC3&IC7&IC12,$A$22:$A$12516&$H$22:$H$12516&$C$22:$C$12516&$E$22:$E$12516&$D$22:$D$12516,0)) -> 1.583333333 | IG13: =INDEX($K$22:$K$12516,MATCH(IC1&IC2&IC3&IC8&IC12,$A$22:$A$12516&$H$22:$H$12516&$C$22:$C$12516&$E$22:$E$12516&$D$22:$D$12516,0)) -> 1.766666667 | IH13: =INDEX($K$22:$K$12516,MATCH(IC1&IC2&IC3&IC9&IC12,$A$22:$A$12516&$H$22:$H$12516&$C$22:$C$12516&$E$22:$E$12516&$D$22:$D$12516,0)) -> 1.944444444 | II13: =INDEX($K$22:$K$12516,MATCH(IC1&IC2&IC3&IC10&IC12,$A$22:$A$12516&$H$22:$H$12516&$C$22:$C$12516&$E$22:$E$12516&$D$22:$D$12516,0)) -> 2.1 | JB13: Korrekturfaktor totale Leistung | JC13: =INDEX($K$22:$K$12516,MATCH(JC1&JC2&JC3&JC4&JC12,$A$22:$A$12516&$H$22:$H$12516&$C$22:$C$12516&$E$22:$E$12516&$D$22:$D$12516,0)) -> 1 | JD13: =INDEX($K$22:$K$12516,MATCH(JC1&JC2&JC3&JC4&JC12,$A$22:$A$12516&$H$22:$H$12516&$C$22:$C$12516&$E$22:$E$12516&$D$22:$D$12516,0)) -> 1 | JE13: =INDEX($K$22:$K$12516,MATCH(JC1&JC2&JC3&JC6&JC12,$A$22:$A$12516&$H$22:$H$12516&$C$22:$C$12516&$E$22:$E$12516&$D$22:$D$12516,0)) -> 1.818181818 | JF13: =INDEX($K$22:$K$12516,MATCH(JC1&JC2&JC3&JC7&JC12,$A$22:$A$12516&$H$22:$H$12516&$C$22:$C$12516&$E$22:$E$12516&$D$22:$D$12516,0)) -> 2.075757576 | JG13: =INDEX($K$22:$K$12516,MATCH(JC1&JC2&JC3&JC8&JC12,$A$22:$A$12516&$H$22:$H$12516&$C$22:$C$12516&$E$22:$E$12516&$D$22:$D$12516,0)) -> 2.333333333 | JH13: =INDEX($K$22:$K$12516,MATCH(JC1&JC2&JC3&JC9&JC12,$A$22:$A$12516&$H$22:$H$12516&$C$22:$C$12516&$E$22:$E$12516&$D$22:$D$12516,0)) -> 2.590909091 | JI13: =INDEX($K$22:$K$12516,MATCH(JC1&JC2&JC3&JC10&JC12,$A$22:$A$12516&$H$22:$H$12516&$C$22:$C$12516&$E$22:$E$12516&$D$22:$D$12516,0)) -> 2.833333333 | KD13: Korrekturfaktor totale Leistung | KE13: =INDEX($K$22:$K$12516,MATCH(KE1&KE2&KE3&KE4&KE12,$A$22:$A$12516&$H$22:$H$12516&$C$22:$C$12516&$E$22:$E$12516&$D$22:$D$12516,0)) -> 1 | KF13: =INDEX($K$22:$K$12516,MATCH(KE1&KE2&KE3&KE4&KE12,$A$22:$A$12516&$H$22:$H$12516&$C$22:$C$12516&$E$22:$E$12516&$D$22:$D$12516,0)) -> 1 | KG13: =INDEX($K$22:$K$12516,MATCH(KE1&KE2&KE3&KE6&KE12,$A$22:$A$12516&$H$22:$H$12516&$C$22:$C$12516&$E$22:$E$12516&$D$22:$D$12516,0)) -> 1.76635514 | KH13: =INDEX($K$22:$K$12516,MATCH(KE1&KE2&KE3&KE7&KE12,$A$22:$A$12516&$H$22:$H$12516&$C$22:$C$12516&$E$22:$E$12516&$D$22:$D$12516,0)) -> 2.018691589 | KI13: =INDEX($K$22:$K$12516,MATCH(KE1&KE2&KE3&KE8&KE12,$A$22:$A$12516&$H$22:$H$12516&$C$22:$C$12516&$E$22:$E$12516&$D$22:$D$12516,0)) -> 2.271028037 | KJ13: =INDEX($K$22:$K$12516,MATCH(KE1&KE2&KE3&KE9&KE12,$A$22:$A$12516&$H$22:$H$12516&$C$22:$C$12516&$E$22:$E$12516&$D$22:$D$12516,0)) -> 2.523364486 | KK13: =INDEX($K$22:$K$12516,MATCH(KE1&KE2&KE3&KE10&KE12,$A$22:$A$12516&$H$22:$H$12516&$C$22:$C$12516&$E$22:$E$12516&$D$22:$D$12516,0)) -> 2.747663551 | LC13: Korrekturfaktor totale Leistung | LD13: =INDEX($K$22:$K$12516,MATCH(LD1&LD2&LD3&LD4&LD12,$A$22:$A$12516&$H$22:$H$12516&$C$22:$C$12516&$E$22:$E$12516&$D$22:$D$12516,0)) -> 1 | LE13: =INDEX($K$22:$K$12516,MATCH(LD1&LD2&LD3&LD4&LD12,$A$22:$A$12516&$H$22:$H$12516&$C$22:$C$12516&$E$22:$E$12516&$D$22:$D$12516,0)) -> 1 | LF13: =INDEX($K$22:$K$12516,MATCH(LD1&LD2&LD3&LD6&LD12,$A$22:$A$12516&$H$22:$H$12516&$C$22:$C$12516&$E$22:$E$12516&$D$22:$D$12516,0)) -> 1.709219858 | LG13: =INDEX($K$22:$K$12516,MATCH(LD1&LD2&LD3&LD7&LD12,$A$22:$A$12516&$H$22:$H$12516&$C$22:$C$12516&$E$22:$E$12516&$D$22:$D$12516,0)) -> 1.95035461 | LH13: =INDEX($K$22:$K$12516,MATCH(LD1&LD2&LD3&LD8&LD12,$A$22:$A$12516&$H$22:$H$12516&$C$22:$C$12516&$E$22:$E$12516&$D$22:$D$12516,0)) -> 2.19858156 | LI13: =INDEX($K$22:$K$12516,MATCH(LD1&LD2&LD3&LD9&LD12,$A$22:$A$12516&$H$22:$H$12516&$C$22:$C$12516&$E$22:$E$12516&$D$22:$D$12516,0)) -> 2.439716312 | LJ13: =INDEX($K$22:$K$12516,MATCH(LD1&LD2&LD3&LD10&LD12,$A$22:$A$12516&$H$22:$H$12516&$C$22:$C$12516&$E$22:$E$12516&$D$22:$D$12516,0)) -> 2.659574468 | MC13: Korrekturfaktor totale Leistung | MD13: =INDEX($K$22:$K$12516,MATCH(MD1&MD2&MD3&MD4&MD12,$A$22:$A$12516&$H$22:$H$12516&$C$22:$C$12516&$E$22:$E$12516&$D$22:$D$12516,0)) -> 1 | ME13: =INDEX($K$22:$K$12516,MATCH(MD1&MD2&MD3&MD4&MD12,$A$22:$A$12516&$H$22:$H$12516&$C$22:$C$12516&$E$22:$E$12516&$D$22:$D$12516,0)) -> 1 | MF13: =INDEX($K$22:$K$12516,MATCH(MD1&MD2&MD3&MD6&MD12,$A$22:$A$12516&$H$22:$H$12516&$C$22:$C$12516&$E$22:$E$12516&$D$22:$D$12516,0)) -> 1.647058824 | MG13: =INDEX($K$22:$K$12516,MATCH(MD1&MD2&MD3&MD7&MD12,$A$22:$A$12516&$H$22:$H$12516&$C$22:$C$12516&$E$22:$E$12516&$D$22:$D$12516,0)) -> 1.882352941 | MH13: =INDEX($K$22:$K$12516,MATCH(MD1&MD2&MD3&MD8&MD12,$A$22:$A$12516&$H$22:$H$12516&$C$22:$C$12516&$E$22:$E$12516&$D$22:$D$12516,0)) -> 2.111764706 | MI13: =INDEX($K$22:$K$12516,MATCH(MD1&MD2&MD3&MD9&MD12,$A$22:$A$12516&$H$22:$H$12516&$C$22:$C$12516&$E$22:$E$12516&$D$22:$D$12516,0)) -> 2.347058824 | MJ13: =INDEX($K$22:$K$12516,MATCH(MD1&MD2&MD3&MD10&MD12,$A$22:$A$12516&$H$22:$H$12516&$C$22:$C$12516&$E$22:$E$12516&$D$22:$D$12516,0)) -> 2.552941176 | NC13: Korrekturfaktor totale Leistung | ND13: =INDEX($K$22:$K$12516,MATCH(ND1&ND2&ND3&ND4&ND12,$A$22:$A$12516&$H$22:$H$12516&$C$22:$C$12516&$E$22:$E$12516&$D$22:$D$12516,0)) -> 1 | NE13: =INDEX($K$22:$K$12516,MATCH(ND1&ND2&ND3&ND4&ND12,$A$22:$A$12516&$H$22:$H$12516&$C$22:$C$12516&$E$22:$E$12516&$D$22:$D$12516,0)) -> 1 | NF13: =INDEX($K$22:$K$12516,MATCH(ND1&ND2&ND3&ND6&ND12,$A$22:$A$12516&$H$22:$H$12516&$C$22:$C$12516&$E$22:$E$12516&$D$22:$D$12516,0)) -> 1.597938144 | NG13: =INDEX($K$22:$K$12516,MATCH(ND1&ND2&ND3&ND7&ND12,$A$22:$A$12516&$H$22:$H$12516&$C$22:$C$12516&$E$22:$E$12516&$D$22:$D$12516,0)) -> 1.824742268 | NH13: =INDEX($K$22:$K$12516,MATCH(ND1&ND2&ND3&ND8&ND12,$A$22:$A$12516&$H$22:$H$12516&$C$22:$C$12516&$E$22:$E$12516&$D$22:$D$12516,0)) -> 2.046391753 | NI13: =INDEX($K$22:$K$12516,MATCH(ND1&ND2&ND3&ND9&ND12,$A$22:$A$12516&$H$22:$H$12516&$C$22:$C$12516&$E$22:$E$12516&$D$22:$D$12516,0)) -> 2.268041237 | NJ13: =INDEX($K$22:$K$12516,MATCH(ND1&ND2&ND3&ND10&ND12,$A$22:$A$12516&$H$22:$H$12516&$C$22:$C$12516&$E$22:$E$12516&$D$22:$D$12516,0)) -> 2.469072165
A14: Korrekturfaktor sensible Leistung | B14: =INDEX($L$19:$L$12516,MATCH(B1&B2&B3&B4&B12,$A$19:$A$12516&$H$19:$H$12516&$C$19:$C$12516&$E$19:$E$12516&$D$19:$D$12516,0)) -> 1 | C14: =INDEX($L$19:$L$12516,MATCH(B1&B2&B3&B5&B12,$A$19:$A$12516&$H$19:$H$12516&$C$19:$C$12516&$E$19:$E$12516&$D$19:$D$12516,0)) -> 0.8524590164 | D14: =INDEX($L$19:$L$12516,MATCH(B1&B2&B3&B6&B12,$A$19:$A$12516&$H$19:$H$12516&$C$19:$C$12516&$E$19:$E$12516&$D$19:$D$12516,0)) -> 0.8196721311 | E14: =INDEX($L$19:$L$12516,MATCH(B1&B2&B3&B7&B12,$A$19:$A$12516&$H$19:$H$12516&$C$19:$C$12516&$E$19:$E$12516&$D$19:$D$12516,0)) -> 0.7868852459 | F14: =INDEX($L$19:$L$12516,MATCH(B1&B2&B3&B8&B12,$A$19:$A$12516&$H$19:$H$12516&$C$19:$C$12516&$E$19:$E$12516&$D$19:$D$12516,0)) -> 0.737704918 | G14: =INDEX($L$19:$L$12516,MATCH(B1&B2&B3&B9&B12,$A$19:$A$12516&$H$19:$H$12516&$C$19:$C$12516&$E$19:$E$12516&$D$19:$D$12516,0)) -> 0.6885245902 | H14: =INDEX($L$19:$L$12516,MATCH(B1&B2&B3&B10&B12,$A$19:$A$12516&$H$19:$H$12516&$C$19:$C$12516&$E$19:$E$12516&$D$19:$D$12516,0)) -> 0.6557377049 | J14: Polynom | AC14: Korrekturfaktor sensible Leistung | AD14: =INDEX($L$19:$L$12516,MATCH(AD1&AD2&AD3&AD4&AD12,$A$19:$A$12516&$H$19:$H$12516&$C$19:$C$12516&$E$19:$E$12516&$D$19:$D$12516,0)) -> 1 | AE14: =INDEX($L$19:$L$12516,MATCH(AD1&AD2&AD3&AD5&AD12,$A$19:$A$12516&$H$19:$H$12516&$C$19:$C$12516&$E$19:$E$12516&$D$19:$D$12516,0)) -> 0.816091954 | AF14: =INDEX($L$19:$L$12516,MATCH(AD1&AD2&AD3&AD6&AD12,$A$19:$A$12516&$H$19:$H$12516&$C$19:$C$12516&$E$19:$E$12516&$D$19:$D$12516,0)) -> 0.7471264368 | AG14: =INDEX($L$19:$L$12516,MATCH(AD1&AD2&AD3&AD7&AD12,$A$19:$A$12516&$H$19:$H$12516&$C$19:$C$12516&$E$19:$E$12516&$D$19:$D$12516,0)) -> 0.6666666667 | AH14: =INDEX($L$19:$L$12516,MATCH(AD1&AD2&AD3&AD8&AD12,$A$19:$A$12516&$H$19:$H$12516&$C$19:$C$12516&$E$19:$E$12516&$D$19:$D$12516,0)) -> 0.5977011494 | AI14: =INDEX($L$19:$L$12516,MATCH(AD1&AD2&AD3&AD9&AD12,$A$19:$A$12516&$H$19:$H$12516&$C$19:$C$12516&$E$19:$E$12516&$D$19:$D$12516,0)) -> 0.5287356322 | AJ14: =INDEX($L$19:$L$12516,MATCH(AD1&AD2&AD3&AD10&AD12,$A$19:$A$12516&$H$19:$H$12516&$C$19:$C$12516&$E$19:$E$12516&$D$19:$D$12516,0)) -> 0.4712643678 | AL14: Polynom | BB14: Korrekturfaktor sensible Leistung | BC14: =INDEX($L$19:$L$12516,MATCH(BC1&BC2&BC3&BC4&BC12,$A$19:$A$12516&$H$19:$H$12516&$C$19:$C$12516&$E$19:$E$12516&$D$19:$D$12516,0)) -> 1 | BD14: =INDEX($L$19:$L$12516,MATCH(BC1&BC2&BC3&BC5&BC12,$A$19:$A$12516&$H$19:$H$12516&$C$19:$C$12516&$E$19:$E$12516&$D$19:$D$12516,0)) -> 0.8431372549 | BE14: =INDEX($L$19:$L$12516,MATCH(BC1&BC2&BC3&BC6&BC12,$A$19:$A$12516&$H$19:$H$12516&$C$19:$C$12516&$E$19:$E$12516&$D$19:$D$12516,0)) -> 0.7450980392 | BF14: =INDEX($L$19:$L$12516,MATCH(BC1&BC2&BC3&BC7&BC12,$A$19:$A$12516&$H$19:$H$12516&$C$19:$C$12516&$E$19:$E$12516&$D$19:$D$12516,0)) -> 0.6470588235 | BG14: =INDEX($L$19:$L$12516,MATCH(BC1&BC2&BC3&BC8&BC12,$A$19:$A$12516&$H$19:$H$12516&$C$19:$C$12516&$E$19:$E$12516&$D$19:$D$12516,0)) -> 0.5588235294 | BH14: =INDEX($L$19:$L$12516,MATCH(BC1&BC2&BC3&BC9&BC12,$A$19:$A$12516&$H$19:$H$12516&$C$19:$C$12516&$E$19:$E$12516&$D$19:$D$12516,0)) -> 0.4705882353 | BI14: =INDEX($L$19:$L$12516,MATCH(BC1&BC2&BC3&BC10&BC12,$A$19:$A$12516&$H$19:$H$12516&$C$19:$C$12516&$E$19:$E$12516&$D$19:$D$12516,0)) -> 0.4019607843 | BK14: Polynom | CB14: Korrekturfaktor sensible Leistung | CC14: =INDEX($L$19:$L$12516,MATCH(CC1&CC2&CC3&CC4&CC12,$A$19:$A$12516&$H$19:$H$12516&$C$19:$C$12516&$E$19:$E$12516&$D$19:$D$12516,0)) -> 1 | CD14: =INDEX($L$19:$L$12516,MATCH(CC1&CC2&CC3&CC5&CC12,$A$19:$A$12516&$H$19:$H$12516&$C$19:$C$12516&$E$19:$E$12516&$D$19:$D$12516,0)) -> 1 | CE14: =INDEX($L$19:$L$12516,MATCH(CC1&CC2&CC3&CC6&CC12,$A$19:$A$12516&$H$19:$H$12516&$C$19:$C$12516&$E$19:$E$12516&$D$19:$D$12516,0)) -> 0.7747747748 | CF14: =INDEX($L$19:$L$12516,MATCH(CC1&CC2&CC3&CC7&CC12,$A$19:$A$12516&$H$19:$H$12516&$C$19:$C$12516&$E$19:$E$12516&$D$19:$D$12516,0)) -> 0.6666666667 | CG14: =INDEX($L$19:$L$12516,MATCH(CC1&CC2&CC3&CC8&CC12,$A$19:$A$12516&$H$19:$H$12516&$C$19:$C$12516&$E$19:$E$12516&$D$19:$D$12516,0)) -> 0.5585585586 | CH14: =INDEX($L$19:$L$12516,MATCH(CC1&CC2&CC3&CC9&CC12,$A$19:$A$12516&$H$19:$H$12516&$C$19:$C$12516&$E$19:$E$12516&$D$19:$D$12516,0)) -> 0.4504504505 | CI14: =INDEX($L$19:$L$12516,MATCH(CC1&CC2&CC3&CC10&CC12,$A$19:$A$12516&$H$19:$H$12516&$C$19:$C$12516&$E$19:$E$12516&$D$19:$D$12516,0)) -> 0.3603603604 | CK14: Polynom | DB14: Korrekturfaktor sensible Leistung | DC14: =INDEX($L$19:$L$12516,MATCH(DC1&DC2&DC3&DC4&DC12,$A$19:$A$12516&$H$19:$H$12516&$C$19:$C$12516&$E$19:$E$12516&$D$19:$D$12516,0)) -> 1 | DD14: =INDEX($L$19:$L$12516,MATCH(DC1&DC2&DC3&DC5&DC12,$A$19:$A$12516&$H$19:$H$12516&$C$19:$C$12516&$E$19:$E$12516&$D$19:$D$12516,0)) -> 1 | DE14: =INDEX($L$19:$L$12516,MATCH(DC1&DC2&DC3&DC6&DC12,$A$19:$A$12516&$H$19:$H$12516&$C$19:$C$12516&$E$19:$E$12516&$D$19:$D$12516,0)) -> 0.811965812 | DF14: =INDEX($L$19:$L$12516,MATCH(DC1&DC2&DC3&DC7&DC12,$A$19:$A$12516&$H$19:$H$12516&$C$19:$C$12516&$E$19:$E$12516&$D$19:$D$12516,0)) -> 0.6837606838 | DG14: =INDEX($L$19:$L$12516,MATCH(DC1&DC2&DC3&DC8&DC12,$A$19:$A$12516&$H$19:$H$12516&$C$19:$C$12516&$E$19:$E$12516&$D$19:$D$12516,0)) -> 0.5641025641 | DH14: =INDEX($L$19:$L$12516,MATCH(DC1&DC2&DC3&DC9&DC12,$A$19:$A$12516&$H$19:$H$12516&$C$19:$C$12516&$E$19:$E$12516&$D$19:$D$12516,0)) -> 0.4444444444 | DI14: =INDEX($L$19:$L$12516,MATCH(DC1&DC2&DC3&DC10&DC12,$A$19:$A$12516&$H$19:$H$12516&$C$19:$C$12516&$E$19:$E$12516&$D$19:$D$12516,0)) -> 0.3418803419 | DK14: Polynom | EA14: Korrekturfaktor sensible Leistung | EB14: =INDEX($L$19:$L$12516,MATCH(EB1&EB2&EB3&EB4&EB12,$A$19:$A$12516&$H$19:$H$12516&$C$19:$C$12516&$E$19:$E$12516&$D$19:$D$12516,0)) -> 1 | EC14: =INDEX($L$19:$L$12516,MATCH(EB1&EB2&EB3&EB5&EB12,$A$19:$A$12516&$H$19:$H$12516&$C$19:$C$12516&$E$19:$E$12516&$D$19:$D$12516,0)) -> 0.9692307692 | ED14: =INDEX($L$19:$L$12516,MATCH(EB1&EB2&EB3&EB6&EB12,$A$19:$A$12516&$H$19:$H$12516&$C$19:$C$12516&$E$19:$E$12516&$D$19:$D$12516,0)) -> 0.9692307692 | EE14: =INDEX($L$19:$L$12516,MATCH(EB1&EB2&EB3&EB7&EB12,$A$19:$A$12516&$H$19:$H$12516&$C$19:$C$12516&$E$19:$E$12516&$D$19:$D$12516,0)) -> 0.9538461538 | EF14: =INDEX($L$19:$L$12516,MATCH(EB1&EB2&EB3&EB8&EB12,$A$19:$A$12516&$H$19:$H$12516&$C$19:$C$12516&$E$19:$E$12516&$D$19:$D$12516,0)) -> 0.9538461538 | EG14: =INDEX($L$19:$L$12516,MATCH(EB1&EB2&EB3&EB9&EB12,$A$19:$A$12516&$H$19:$H$12516&$C$19:$C$12516&$E$19:$E$12516&$D$19:$D$12516,0)) -> 0.9384615385 | EH14: =INDEX($L$19:$L$12516,MATCH(EB1&EB2&EB3&EB10&EB12,$A$19:$A$12516&$H$19:$H$12516&$C$19:$C$12516&$E$19:$E$12516&$D$19:$D$12516,0)) -> 0.9384615385 | EJ14: Polynom | FC14: Korrekturfaktor sensible Leistung | FD14: =INDEX($L$19:$L$12516,MATCH(FD1&FD2&FD3&FD4&FD12,$A$19:$A$12516&$H$19:$H$12516&$C$19:$C$12516&$E$19:$E$12516&$D$19:$D$12516,0)) -> 1 | FE14: =INDEX($L$19:$L$12516,MATCH(FD1&FD2&FD3&FD5&FD12,$A$19:$A$12516&$H$19:$H$12516&$C$19:$C$12516&$E$19:$E$12516&$D$19:$D$12516,0)) -> 0.9326923077 | FF14: =INDEX($L$19:$L$12516,MATCH(FD1&FD2&FD3&FD6&FD12,$A$19:$A$12516&$H$19:$H$12516&$C$19:$C$12516&$E$19:$E$12516&$D$19:$D$12516,0)) -> 0.9038461538 | FG14: =INDEX($L$19:$L$12516,MATCH(FD1&FD2&FD3&FD7&FD12,$A$19:$A$12516&$H$19:$H$12516&$C$19:$C$12516&$E$19:$E$12516&$D$19:$D$12516,0)) -> 0.8846153846 | FH14: =INDEX($L$19:$L$12516,MATCH(FD1&FD2&FD3&FD8&FD12,$A$19:$A$12516&$H$19:$H$12516&$C$19:$C$12516&$E$19:$E$12516&$D$19:$D$12516,0)) -> 0.8653846154 | FI14: =INDEX($L$19:$L$12516,MATCH(FD1&FD2&FD3&FD9&FD12,$A$19:$A$12516&$H$19:$H$12516&$C$19:$C$12516&$E$19:$E$12516&$D$19:$D$12516,0)) -> 0.8461538462 | FJ14: =INDEX($L$19:$L$12516,MATCH(FD1&FD2&FD3&FD10&FD12,$A$19:$A$12516&$H$19:$H$12516&$C$19:$C$12516&$E$19:$E$12516&$D$19:$D$12516,0)) -> 0.8269230769 | FL14: Polynom | GB14: Korrekturfaktor sensible Leistung | GC14: =INDEX($L$19:$L$12516,MATCH(GC1&GC2&GC3&GC4&GC12,$A$19:$A$12516&$H$19:$H$12516&$C$19:$C$12516&$E$19:$E$12516&$D$19:$D$12516,0)) -> 1 | GD14: =INDEX($L$19:$L$12516,MATCH(GC1&GC2&GC3&GC5&GC12,$A$19:$A$12516&$H$19:$H$12516&$C$19:$C$12516&$E$19:$E$12516&$D$19:$D$12516,0)) -> 0.8962962963 | GE14: =INDEX($L$19:$L$12516,MATCH(GC1&GC2&GC3&GC6&GC12,$A$19:$A$12516&$H$19:$H$12516&$C$19:$C$12516&$E$19:$E$12516&$D$19:$D$12516,0)) -> 0.8592592593 | GF14: =INDEX($L$19:$L$12516,MATCH(GC1&GC2&GC3&GC7&GC12,$A$19:$A$12516&$H$19:$H$12516&$C$19:$C$12516&$E$19:$E$12516&$D$19:$D$12516,0)) -> 0.8296296296 | GG14: =INDEX($L$19:$L$12516,MATCH(GC1&GC2&GC3&GC8&GC12,$A$19:$A$12516&$H$19:$H$12516&$C$19:$C$12516&$E$19:$E$12516&$D$19:$D$12516,0)) -> 0.7925925926 | GH14: =INDEX($L$19:$L$12516,MATCH(GC1&GC2&GC3&GC9&GC12,$A$19:$A$12516&$H$19:$H$12516&$C$19:$C$12516&$E$19:$E$12516&$D$19:$D$12516,0)) -> 0.7555555556 | GI14: =INDEX($L$19:$L$12516,MATCH(GC1&GC2&GC3&GC10&GC12,$A$19:$A$12516&$H$19:$H$12516&$C$19:$C$12516&$E$19:$E$12516&$D$19:$D$12516,0)) -> 0.7259259259 | GK14: Polynom | HB14: Korrekturfaktor sensible Leistung | HC14: =INDEX($L$19:$L$12516,MATCH(HC1&HC2&HC3&HC4&HC12,$A$19:$A$12516&$H$19:$H$12516&$C$19:$C$12516&$E$19:$E$12516&$D$19:$D$12516,0)) -> 1 | HD14: =INDEX($L$19:$L$12516,MATCH(HC1&HC2&HC3&HC5&HC12,$A$19:$A$12516&$H$19:$H$12516&$C$19:$C$12516&$E$19:$E$12516&$D$19:$D$12516,0)) -> 0.875 | HE14: =INDEX($L$19:$L$12516,MATCH(HC1&HC2&HC3&HC6&HC12,$A$19:$A$12516&$H$19:$H$12516&$C$19:$C$12516&$E$19:$E$12516&$D$19:$D$12516,0)) -> 0.825 | HF14: =INDEX($L$19:$L$12516,MATCH(HC1&HC2&HC3&HC7&HC12,$A$19:$A$12516&$H$19:$H$12516&$C$19:$C$12516&$E$19:$E$12516&$D$19:$D$12516,0)) -> 0.78125 | HG14: =INDEX($L$19:$L$12516,MATCH(HC1&HC2&HC3&HC8&HC12,$A$19:$A$12516&$H$19:$H$12516&$C$19:$C$12516&$E$19:$E$12516&$D$19:$D$12516,0)) -> 0.73125 | HH14: =INDEX($L$19:$L$12516,MATCH(HC1&HC2&HC3&HC9&HC12,$A$19:$A$12516&$H$19:$H$12516&$C$19:$C$12516&$E$19:$E$12516&$D$19:$D$12516,0)) -> 0.6875 | HI14: =INDEX($L$19:$L$12516,MATCH(HC1&HC2&HC3&HC10&HC12,$A$19:$A$12516&$H$19:$H$12516&$C$19:$C$12516&$E$19:$E$12516&$D$19:$D$12516,0)) -> 0.64375 | HK14: Polynom | IB14: Korrekturfaktor sensible Leistung | IC14: =INDEX($L$19:$L$12516,MATCH(IC1&IC2&IC3&IC4&IC12,$A$19:$A$12516&$H$19:$H$12516&$C$19:$C$12516&$E$19:$E$12516&$D$19:$D$12516,0)) -> 1 | ID14: =INDEX($L$19:$L$12516,MATCH(IC1&IC2&IC3&IC5&IC12,$A$19:$A$12516&$H$19:$H$12516&$C$19:$C$12516&$E$19:$E$12516&$D$19:$D$12516,0)) -> 0.8611111111 | IE14: =INDEX($L$19:$L$12516,MATCH(IC1&IC2&IC3&IC6&IC12,$A$19:$A$12516&$H$19:$H$12516&$C$19:$C$12516&$E$19:$E$12516&$D$19:$D$12516,0)) -> 0.8055555556 | IF14: =INDEX($L$19:$L$12516,MATCH(IC1&IC2&IC3&IC7&IC12,$A$19:$A$12516&$H$19:$H$12516&$C$19:$C$12516&$E$19:$E$12516&$D$19:$D$12516,0)) -> 0.75 | IG14: =INDEX($L$19:$L$12516,MATCH(IC1&IC2&IC3&IC8&IC12,$A$19:$A$12516&$H$19:$H$12516&$C$19:$C$12516&$E$19:$E$12516&$D$19:$D$12516,0)) -> 0.6944444444 | IH14: =INDEX($L$19:$L$12516,MATCH(IC1&IC2&IC3&IC9&IC12,$A$19:$A$12516&$H$19:$H$12516&$C$19:$C$12516&$E$19:$E$12516&$D$19:$D$12516,0)) -> 0.6333333333 | II14: =INDEX($L$19:$L$12516,MATCH(IC1&IC2&IC3&IC10&IC12,$A$19:$A$12516&$H$19:$H$12516&$C$19:$C$12516&$E$19:$E$12516&$D$19:$D$12516,0)) -> 0.5833333333 | IK14: Polynom | JB14: Korrekturfaktor sensible Leistung | JC14: =INDEX($L$19:$L$12516,MATCH(JC1&JC2&JC3&JC4&JC12,$A$19:$A$12516&$H$19:$H$12516&$C$19:$C$12516&$E$19:$E$12516&$D$19:$D$12516,0)) -> 1 | JD14: =INDEX($L$19:$L$12516,MATCH(JC1&JC2&JC3&JC5&JC12,$A$19:$A$12516&$H$19:$H$12516&$C$19:$C$12516&$E$19:$E$12516&$D$19:$D$12516,0)) -> 0.9696969697 | JE14: =INDEX($L$19:$L$12516,MATCH(JC1&JC2&JC3&JC6&JC12,$A$19:$A$12516&$H$19:$H$12516&$C$19:$C$12516&$E$19:$E$12516&$D$19:$D$12516,0)) -> 0.9696969697 | JF14: =INDEX($L$19:$L$12516,MATCH(JC1&JC2&JC3&JC7&JC12,$A$19:$A$12516&$H$19:$H$12516&$C$19:$C$12516&$E$19:$E$12516&$D$19:$D$12516,0)) -> 0.9696969697 | JG14: =INDEX($L$19:$L$12516,MATCH(JC1&JC2&JC3&JC8&JC12,$A$19:$A$12516&$H$19:$H$12516&$C$19:$C$12516&$E$19:$E$12516&$D$19:$D$12516,0)) -> 0.9545454545 | JH14: =INDEX($L$19:$L$12516,MATCH(JC1&JC2&JC3&JC9&JC12,$A$19:$A$12516&$H$19:$H$12516&$C$19:$C$12516&$E$19:$E$12516&$D$19:$D$12516,0)) -> 0.9545454545 | JI14: =INDEX($L$19:$L$12516,MATCH(JC1&JC2&JC3&JC10&JC12,$A$19:$A$12516&$H$19:$H$12516&$C$19:$C$12516&$E$19:$E$12516&$D$19:$D$12516,0)) -> 0.9545454545 | JK14: Polynom | KD14: Korrekturfaktor sensible Leistung | KE14: =INDEX($L$19:$L$12516,MATCH(KE1&KE2&KE3&KE4&KE12,$A$19:$A$12516&$H$19:$H$12516&$C$19:$C$12516&$E$19:$E$12516&$D$19:$D$12516,0)) -> 1 | KF14: =INDEX($L$19:$L$12516,MATCH(KE1&KE2&KE3&KE5&KE12,$A$19:$A$12516&$H$19:$H$12516&$C$19:$C$12516&$E$19:$E$12516&$D$19:$D$12516,0)) -> 0.953271028 | KG14: =INDEX($L$19:$L$12516,MATCH(KE1&KE2&KE3&KE6&KE12,$A$19:$A$12516&$H$19:$H$12516&$C$19:$C$12516&$E$19:$E$12516&$D$19:$D$12516,0)) -> 0.9439252336 | KH14: =INDEX($L$19:$L$12516,MATCH(KE1&KE2&KE3&KE7&KE12,$A$19:$A$12516&$H$19:$H$12516&$C$19:$C$12516&$E$19:$E$12516&$D$19:$D$12516,0)) -> 0.9345794393 | KI14: =INDEX($L$19:$L$12516,MATCH(KE1&KE2&KE3&KE8&KE12,$A$19:$A$12516&$H$19:$H$12516&$C$19:$C$12516&$E$19:$E$12516&$D$19:$D$12516,0)) -> 0.9158878505 | KJ14: =INDEX($L$19:$L$12516,MATCH(KE1&KE2&KE3&KE9&KE12,$A$19:$A$12516&$H$19:$H$12516&$C$19:$C$12516&$E$19:$E$12516&$D$19:$D$12516,0)) -> 0.9065420561 | KK14: =INDEX($L$19:$L$12516,MATCH(KE1&KE2&KE3&KE10&KE12,$A$19:$A$12516&$H$19:$H$12516&$C$19:$C$12516&$E$19:$E$12516&$D$19:$D$12516,0)) -> 0.8971962617 | KM14: Polynom | LC14: Korrekturfaktor sensible Leistung | LD14: =INDEX($L$19:$L$12516,MATCH(LD1&LD2&LD3&LD4&LD12,$A$19:$A$12516&$H$19:$H$12516&$C$19:$C$12516&$E$19:$E$12516&$D$19:$D$12516,0)) -> 1 | LE14: =INDEX($L$19:$L$12516,MATCH(LD1&LD2&LD3&LD5&LD12,$A$19:$A$12516&$H$19:$H$12516&$C$19:$C$12516&$E$19:$E$12516&$D$19:$D$12516,0)) -> 0.9361702128 | LF14: =INDEX($L$19:$L$12516,MATCH(LD1&LD2&LD3&LD6&LD12,$A$19:$A$12516&$H$19:$H$12516&$C$19:$C$12516&$E$19:$E$12516&$D$19:$D$12516,0)) -> 0.914893617 | LG14: =INDEX($L$19:$L$12516,MATCH(LD1&LD2&LD3&LD7&LD12,$A$19:$A$12516&$H$19:$H$12516&$C$19:$C$12516&$E$19:$E$12516&$D$19:$D$12516,0)) -> 0.8936170213 | LH14: =INDEX($L$19:$L$12516,MATCH(LD1&LD2&LD3&LD8&LD12,$A$19:$A$12516&$H$19:$H$12516&$C$19:$C$12516&$E$19:$E$12516&$D$19:$D$12516,0)) -> 0.8723404255 | LI14: =INDEX($L$19:$L$12516,MATCH(LD1&LD2&LD3&LD9&LD12,$A$19:$A$12516&$H$19:$H$12516&$C$19:$C$12516&$E$19:$E$12516&$D$19:$D$12516,0)) -> 0.8510638298 | LJ14: =INDEX($L$19:$L$12516,MATCH(LD1&LD2&LD3&LD10&LD12,$A$19:$A$12516&$H$19:$H$12516&$C$19:$C$12516&$E$19:$E$12516&$D$19:$D$12516,0)) -> 0.829787234 | LL14: Polynom | MC14: Korrekturfaktor sensible Leistung | MD14: =INDEX($L$19:$L$12516,MATCH(MD1&MD2&MD3&MD4&MD12,$A$19:$A$12516&$H$19:$H$12516&$C$19:$C$12516&$E$19:$E$12516&$D$19:$D$12516,0)) -> 1 | ME14: =INDEX($L$19:$L$12516,MATCH(MD1&MD2&MD3&MD5&MD12,$A$19:$A$12516&$H$19:$H$12516&$C$19:$C$12516&$E$19:$E$12516&$D$19:$D$12516,0)) -> 0.9176470588 | MF14: =INDEX($L$19:$L$12516,MATCH(MD1&MD2&MD3&MD6&MD12,$A$19:$A$12516&$H$19:$H$12516&$C$19:$C$12516&$E$19:$E$12516&$D$19:$D$12516,0)) -> 0.8882352941 | MG14: =INDEX($L$19:$L$12516,MATCH(MD1&MD2&MD3&MD7&MD12,$A$19:$A$12516&$H$19:$H$12516&$C$19:$C$12516&$E$19:$E$12516&$D$19:$D$12516,0)) -> 0.8588235294 | MH14: =INDEX($L$19:$L$12516,MATCH(MD1&MD2&MD3&MD8&MD12,$A$19:$A$12516&$H$19:$H$12516&$C$19:$C$12516&$E$19:$E$12516&$D$19:$D$12516,0)) -> 0.8294117647 | MI14: =INDEX($L$19:$L$12516,MATCH(MD1&MD2&MD3&MD9&MD12,$A$19:$A$12516&$H$19:$H$12516&$C$19:$C$12516&$E$19:$E$12516&$D$19:$D$12516,0)) -> 0.8 | MJ14: =INDEX($L$19:$L$12516,MATCH(MD1&MD2&MD3&MD10&MD12,$A$19:$A$12516&$H$19:$H$12516&$C$19:$C$12516&$E$19:$E$12516&$D$19:$D$12516,0)) -> 0.7705882353 | ML14: Polynom | NC14: Korrekturfaktor sensible Leistung | ND14: =INDEX($L$19:$L$12516,MATCH(ND1&ND2&ND3&ND4&ND12,$A$19:$A$12516&$H$19:$H$12516&$C$19:$C$12516&$E$19:$E$12516&$D$19:$D$12516,0)) -> 1 | NE14: =INDEX($L$19:$L$12516,MATCH(ND1&ND2&ND3&ND5&ND12,$A$19:$A$12516&$H$19:$H$12516&$C$19:$C$12516&$E$19:$E$12516&$D$19:$D$12516,0)) -> 0.9072164948 | NF14: =INDEX($L$19:$L$12516,MATCH(ND1&ND2&ND3&ND6&ND12,$A$19:$A$12516&$H$19:$H$12516&$C$19:$C$12516&$E$19:$E$12516&$D$19:$D$12516,0)) -> 0.8659793814 | NG14: =INDEX($L$19:$L$12516,MATCH(ND1&ND2&ND3&ND7&ND12,$A$19:$A$12516&$H$19:$H$12516&$C$19:$C$12516&$E$19:$E$12516&$D$19:$D$12516,0)) -> 0.8298969072 | NH14: =INDEX($L$19:$L$12516,MATCH(ND1&ND2&ND3&ND8&ND12,$A$19:$A$12516&$H$19:$H$12516&$C$19:$C$12516&$E$19:$E$12516&$D$19:$D$12516,0)) -> 0.793814433 | NI14: =INDEX($L$19:$L$12516,MATCH(ND1&ND2&ND3&ND9&ND12,$A$19:$A$12516&$H$19:$H$12516&$C$19:$C$12516&$E$19:$E$12516&$D$19:$D$12516,0)) -> 0.7577319588 | NJ14: =INDEX($L$19:$L$12516,MATCH(ND1&ND2&ND3&ND10&ND12,$A$19:$A$12516&$H$19:$H$12516&$C$19:$C$12516&$E$19:$E$12516&$D$19:$D$12516,0)) -> 0.7268041237 | NL14: Polynom
I15: x=rel.Feuchte y=Korrektur Total | J15: =LINEST(K6:K11,J6:J11^{0,1},0,0) -> 0.01893999682 | K15: 0.3243142872 | AK15: x=rel.Feuchte y=Korrektur Total | AL15: =LINEST(AM6:AM11,AL6:AL11^{0,1},0,0) -> 0.01392701707 | AM15: 0.340713462 | BJ15: x=rel.Feuchte y=Korrektur Total | BK15: =LINEST(BL6:BL11,BK6:BK11^{0,1},0,0) -> 0.01187892633 | BL15: 0.3298242274 | CJ15: x=rel.Feuchte y=Korrektur Total | CK15: =LINEST(CL6:CL11,CK6:CK11^{0,1},0,0) -> 0.01086678912 | CL15: 0.3308527945 | DJ15: x=rel.Feuchte y=Korrektur Total | DK15: =LINEST(DL6:DL11,DK6:DK11^{0,1},0,0) -> 0.01026636794 | DL15: 0.3271584654 | EI15: x=rel.Feuchte y=Korrektur Total | EJ15: =LINEST(EK6:EK11,EJ6:EJ11^{0,1},0,0) -> 0.02567886482 | EK15: 0.2714642768 | FK15: x=rel.Feuchte y=Korrektur Total | FL15: =LINEST(FM6:FM11,FL6:FL11^{0,1},0,0) -> 0.02395444361 | FM15: 0.2460107045 | GJ15: x=rel.Feuchte y=Korrektur Total | GK15: =LINEST(GL6:GL11,GK6:GK11^{0,1},0,0) -> 0.0215462064 | GL15: 0.2776411363 | HJ15: x=rel.Feuchte y=Korrektur Total | HK15: =LINEST(HL6:HL11,HK6:HK11^{0,1},0,0) -> 0.01962864078 | HL15: 0.2932006472 | IJ15: x=rel.Feuchte y=Korrektur Total | IK15: =LINEST(IL6:IL11,IK6:IK11^{0,1},0,0) -> 0.01815533981 | IL15: 0.3083387271 | JJ15: x=rel.Feuchte y=Korrektur Total | JK15: =LINEST(JL6:JL11,JK6:JK11^{0,1},0,0) -> 0.02594292439 | JL15: 0.2603157792 | KL15: x=rel.Feuchte y=Korrektur Total | KM15: =LINEST(KN6:KN11,KM6:KM11^{0,1},0,0) -> 0.02518464749 | KN15: 0.2556174576 | LK15: x=rel.Feuchte y=Korrektur Total | LL15: =LINEST(LM6:LM11,LL6:LL11^{0,1},0,0) -> 0.02438063761 | LM15: 0.245992334 | MK15: x=rel.Feuchte y=Korrektur Total | ML15: =LINEST(MM6:MM11,ML6:ML11^{0,1},0,0) -> 0.02324614506 | MM15: 0.2530424519 | NK15: x=rel.Feuchte y=Korrektur Total | NL15: =LINEST(NM6:NM11,NL6:NL11^{0,1},0,0) -> 0.02232409168 | NM15: 0.2595609382
I16: exponent | J16: 2 | K16: 1 | L16: 0 | M16: 0 | AL16: 2 | AM16: 1 | AN16: 0 | AO16: 0 | BK16: 2 | BL16: 1 | BM16: 0 | BN16: 0 | CK16: 2 | CL16: 1 | CM16: 0 | CN16: 0 | DK16: 2 | DL16: 1 | DM16: 0 | DN16: 0 | EI16: exponent | EJ16: 2 | EK16: 1 | EL16: 0 | EM16: 0 | FL16: 2 | FM16: 1 | FN16: 0 | FO16: 0 | GK16: 2 | GL16: 1 | GM16: 0 | GN16: 0 | HK16: 2 | HL16: 1 | HM16: 0 | HN16: 0 | IK16: 2 | IL16: 1 | IM16: 0 | IN16: 0 | JJ16: exponent | JK16: 2 | JL16: 1 | JM16: 0 | JN16: 0 | KM16: 2 | KN16: 1 | KO16: 0 | KP16: 0 | LL16: 2 | LM16: 1 | LN16: 0 | LO16: 0 | ML16: 2 | MM16: 1 | MN16: 0 | MO16: 0 | NL16: 2 | NM16: 1 | NN16: 0 | NO16: 0
A17: Korrekturfaktor totale Leistung | B17: =IF(ISNA(B13),1,IF(J15*B11+K15<1,1,J15*B11+K15)) -> 1.271314128 | C17: =IF(B17<1,1,B17) -> 1.271314128 | I17: x=rel.Feuchte y=Korrektur Sensibel | J17: =LINEST(M5:M11,L5:L11^{0,1,2},0,0) -> 3.980926927e-05 | K17: -0.01043068104 | L17: 1.305792831 | M17: 0 | AC17: Korrekturfaktor totale Leistung | AD17: =IF(ISNA(AD13),1,IF(AL15*AD11+AM15<1,1,AL15*AD11+AM15)) -> 1.037064316 | AE17: =IF(AD17<1,1,AD17) -> 1.037064316 | AK17: x=rel.Feuchte y=Korrektur Sensibel | AL17: =LINEST(AO5:AO11,AN5:AN11^{0,1,2},0,0) -> 0.0001096466041 | AM17: -0.02462192551 | AN17: 1.847472443 | AO17: 0 | BB17: Korrekturfaktor totale Leistung | BC17: =IF(ISNA(BC13),1,IF(BK15*BC11+BL15<1,1,BK15*BC11+BL15)) -> 1 | BD17: =IF(BC17<1,1,BC17) -> 1 | BJ17: x=rel.Feuchte y=Korrektur Sensibel | BK17: =LINEST(BN5:BN11,BM5:BM11^{0,1,2},0,0) -> 4.745213961e-05 | BL17: -0.01786325445 | BM17: 1.695581884 | BN17: 0 | CB17: Korrekturfaktor totale Leistung | CC17: =IF(ISNA(CC13),1,IF(CK15*CC11+CL15<1,1,CK15*CC11+CL15)) -> 1 | CD17: =IF(CC17<1,1,CC17) -> 1 | CJ17: x=rel.Feuchte y=Korrektur Sensibel | CK17: =LINEST(CN5:CN11,CM5:CM11^{0,1,2},0,0) -> 8.491336303e-05 | CL17: -0.02603900734 | CM17: 2.104013085 | CN17: 0 | DB17: Korrekturfaktor totale Leistung | DC17: =IF(ISNA(DC13),1,IF(DK15*DC11+DL15<1,1,DK15*DC11+DL15)) -> 1 | DD17: =IF(DC17<1,1,DC17) -> 1 | DJ17: x=rel.Feuchte y=Korrektur Sensibel | DK17: =LINEST(DN5:DN11,DM5:DM11^{0,1,2},0,0) -> -5.501519911e-05 | DL17: -0.005200501616 | DM17: 1.374998129 | DN17: 0 | EA17: Korrekturfaktor totale Leistung | EB17: =IF(ISNA(EB13),1,IF(EJ15*EB11+EK15<1,1,EJ15*EB11+EK15)) -> 1.555407518 | EC17: =IF(EB17<1,1,EB17) -> 1.555407518 | EI17: x=rel.Feuchte y=Korrektur Sensibel | EJ17: =LINEST(EM5:EM11,EL5:EL11^{0,1,2},0,0) -> 5.447502006e-06 | EK17: -0.001559199124 | EL17: 1.038673251 | EM17: 0 | FC17: Korrekturfaktor totale Leistung | FD17: =IF(ISNA(FD13),1,IF(FL15*FD11+FM15<1,1,FL15*FD11+FM15)) -> 1.443732885 | FE17: =IF(FD17<1,1,FD17) -> 1.443732885 | FK17: x=rel.Feuchte y=Korrektur Sensibel | FL17: =LINEST(FO5:FO11,FN5:FN11^{0,1,2},0,0) -> 1.758160035e-05 | FM17: -0.004769652683 | FN17: 1.130464905 | FO17: 0 | GB17: Korrekturfaktor totale Leistung | GC17: =IF(ISNA(GC13),1,IF(GK15*GC11+GL15<1,1,GK15*GC11+GL15)) -> 1.354951456 | GD17: =IF(GC17<1,1,GC17) -> 1.354951456 | GJ17: x=rel.Feuchte y=Korrektur Sensibel | GK17: =LINEST(GN5:GN11,GM5:GM11^{0,1,2},0,0) -> 2.354691499e-05 | GL17: -0.007140456111 | GM17: 1.20671943 | GN17: 0 | HB17: Korrekturfaktor totale Leistung | HC17: =IF(ISNA(HC13),1,IF(HK15*HC11+HL15<1,1,HK15*HC11+HL15)) -> 1.274632686 | HD17: =IF(HC17<1,1,HC17) -> 1.274632686 | HJ17: x=rel.Feuchte y=Korrektur Sensibel | HK17: =LINEST(HN5:HN11,HM5:HM11^{0,1,2},0,0) -> 3.444413688e-05 | HL17: -0.0100410995 | HM17: 1.30760593 | HN17: 0 | IB17: Korrekturfaktor totale Leistung | IC17: =IF(ISNA(IC13),1,IF(IK15*IC11+IL15<1,1,IK15*IC11+IL15)) -> 1.216105717 | ID17: =IF(IC17<1,1,IC17) -> 1.216105717 | IJ17: x=rel.Feuchte y=Korrektur Sensibel | IK17: =LINEST(IN5:IN11,IM5:IM11^{0,1,2},0,0) -> 3.984822936e-05 | IL17: -0.01193769027 | IM17: 1.382594366 | IN17: 0 | JB17: Korrekturfaktor totale Leistung | JC17: =IF(ISNA(JC13),1,IF(JK15*JC11+JL15<1,1,JK15*JC11+JL15)) -> 1.557461999 | JD17: =IF(JC17<1,1,JC17) -> 1.557461999 | JJ17: x=rel.Feuchte y=Korrektur Sensibel | JK17: =LINEST(JN5:JN11,JM5:JM11^{0,1,2},0,0) -> 8.399245617e-06 | JL17: -0.001694749339 | JM17: 1.039809133 | JN17: 0 | KD17: Korrekturfaktor totale Leistung | KE17: =IF(ISNA(KE13),1,IF(KM15*KE11+KN15<1,1,KM15*KE11+KN15)) -> 1.514849832 | KF17: =IF(KE17<1,1,KE17) -> 1.514849832 | KL17: x=rel.Feuchte y=Korrektur Sensibel | KM17: =LINEST(KP5:KP11,KO5:KO11^{0,1,2},0,0) -> 9.15032237e-06 | KN17: -0.002611171429 | KO17: 1.067141034 | KP17: 0 | LC17: Korrekturfaktor totale Leistung | LD17: =IF(ISNA(LD13),1,IF(LL15*LD11+LM15<1,1,LL15*LD11+LM15)) -> 1.465024214 | LE17: =IF(LD17<1,1,LD17) -> 1.465024214 | LK17: x=rel.Feuchte y=Korrektur Sensibel | LL17: =LINEST(LO5:LO11,LN5:LN11^{0,1,2},0,0) -> 1.013464451e-05 | LM17: -0.0037348239 | LN17: 1.103265551 | LO17: 0 | MC17: Korrekturfaktor totale Leistung | MD17: =IF(ISNA(MD13),1,IF(ML15*MD11+MM15<1,1,ML15*MD11+MM15)) -> 1.415349705 | ME17: =IF(MD17<1,1,MD17) -> 1.415349705 | MK17: x=rel.Feuchte y=Korrektur Sensibel | ML17: =LINEST(MO5:MO11,MN5:MN11^{0,1,2},0,0) -> 1.343845648e-05 | MM17: -0.005078002312 | MN17: 1.145662154 | MO17: 0 | NC17: Korrekturfaktor totale Leistung | ND17: =IF(ISNA(ND13),1,IF(NL15*ND11+NM15<1,1,NL15*ND11+NM15)) -> 1.375765522 | NE17: =IF(ND17<1,1,ND17) -> 1.375765522 | NK17: x=rel.Feuchte y=Korrektur Sensibel | NL17: =LINEST(NO5:NO11,NN5:NN11^{0,1,2},0,0) -> 1.902620501e-05 | NM17: -0.006573259299 | NN17: 1.194040799 | NO17: 0
A18: Korrekturfaktor sensible Leistung | B18: =IF(ISNA(B14),1,IF(J17*B11^J16+K17*B11^K16+L17*B11^L16+M17>1,1,J17*B11^J16+K17*B11^K16+L17*B11^L16+M17)) -> 0.883781952 | C18: =IF(OR(B18>1,B17=1),1,B18) -> 0.883781952 | D18: wenn B17 größer 1 oder B16 =1 dann C17 = 1 sonst B17 | I18: x=KorrekturTotal; y=rel.Feuchte | J18: =LINEST(J6:J11,K6:K11^{0,1},0,0) -> 52.79016775 | K18: -17.10879473 | AC18: Korrekturfaktor sensible Leistung | AD18: =IF(ISNA(AD14),1,IF(AL17*AD11^AL16+AM17*AD11^AM16+AN17*AD11^AN16+AO17>1,1,AL17*AD11^AL16+AM17*AD11^AM16+AN17*AD11^AN16+AO17)) -> 0.890492678 | AE18: =IF(OR(AD18>1,AD17=1),1,AD18) -> 0.890492678 | AF18: wenn B17 größer 1 oder B16 =1 dann C17 = 1 sonst B17 | AK18: x=KorrekturTotal; y=rel.Feuchte | AL18: =LINEST(AL6:AL11,AM6:AM11^{0,1},0,0) -> 71.75890025 | AM18: -24.40236165 | BB18: Korrekturfaktor sensible Leistung | BC18: =IF(ISNA(BC14),1,IF(BK17*BC11^BK16+BL17*BC11^BL16+BM17*BC11^BM16+BN17>1,1,BK17*BC11^BK16+BL17*BC11^BL16+BM17*BC11^BM16+BN17)) -> 0.9210495105 | BD18: =IF(OR(BC18>1,BC17=1),1,BC18) -> 1 | BE18: wenn B17 größer 1 oder B16 =1 dann C17 = 1 sonst B17 | BJ18: x=KorrekturTotal; y=rel.Feuchte | BK18: =LINEST(BK6:BK11,BL6:BL11^{0,1},0,0) -> 84.13112443 | BL18: -27.70162143 | CB18: Korrekturfaktor sensible Leistung | CC18: =IF(ISNA(CC14),1,IF(CK17*CC11^CK16+CL17*CC11^CL16+CM17*CC11^CM16+CN17>1,1,CK17*CC11^CK16+CL17*CC11^CL16+CM17*CC11^CM16+CN17)) -> 1 | CD18: =IF(OR(CC18>1,CC17=1),1,CC18) -> 1 | CE18: wenn B17 größer 1 oder B16 =1 dann C17 = 1 sonst B17 | CJ18: x=KorrekturTotal; y=rel.Feuchte | CK18: =LINEST(CK6:CK11,CL6:CL11^{0,1},0,0) -> 91.98665955 | CL18: -30.40341515 | DB18: Korrekturfaktor sensible Leistung | DC18: =IF(ISNA(DC14),1,IF(DK17*DC11^DK16+DL17*DC11^DL16+DM17*DC11^DM16+DN17>1,1,DK17*DC11^DK16+DL17*DC11^DL16+DM17*DC11^DM16+DN17)) -> 0.97743505 | DD18: =IF(OR(DC18>1,DC17=1),1,DC18) -> 1 | DE18: wenn B17 größer 1 oder B16 =1 dann C17 = 1 sonst B17 | DJ18: x=KorrekturTotal; y=rel.Feuchte | DK18: =LINEST(DK6:DK11,DL6:DL11^{0,1},0,0) -> 97.34089483 | DL18: -31.79521205 | EA18: Korrekturfaktor sensible Leistung | EB18: =IF(ISNA(EB14),1,IF(EJ17*EB11^EJ16+EK17*EB11^EK16+EL17*EB11^EL16+EM17>1,1,EJ17*EB11^EJ16+EK17*EB11^EK16+EL17*EB11^EL16+EM17)) -> 0.9743320494 | EC18: =IF(OR(EB18>1,EB17=1),1,EB18) -> 0.9743320494 | ED18: wenn B17 größer 1 oder B16 =1 dann C17 = 1 sonst B17 | EI18: x=KorrekturTotal; y=rel.Feuchte | EJ18: =LINEST(EJ6:EJ11,EK6:EK11^{0,1},0,0) -> 38.93839435 | EK18: -10.56225609 | FC18: Korrekturfaktor sensible Leistung | FD18: =IF(ISNA(FD14),1,IF(FL17*FD11^FL16+FM17*FD11^FM16+FN17*FD11^FN16+FO17>1,1,FL17*FD11^FL16+FM17*FD11^FM16+FN17*FD11^FN16+FO17)) -> 0.9359362719 | FE18: =IF(OR(FD18>1,FD17=1),1,FD18) -> 0.9359362719 | FF18: wenn B17 größer 1 oder B16 =1 dann C17 = 1 sonst B17 | FK18: x=KorrekturTotal; y=rel.Feuchte | FL18: =LINEST(FL6:FL11,FM6:FM11^{0,1},0,0) -> 41.74533319 | FM18: -10.26874544 | GB18: Korrekturfaktor sensible Leistung | GC18: =IF(ISNA(GC14),1,IF(GK17*GC11^GK16+GL17*GC11^GL16+GM17*GC11^GM16+GN17>1,1,GK17*GC11^GK16+GL17*GC11^GL16+GM17*GC11^GM16+GN17)) -> 0.9085639121 | GD18: =IF(OR(GC18>1,GC17=1),1,GC18) -> 0.9085639121 | GE18: wenn B17 größer 1 oder B16 =1 dann C17 = 1 sonst B17 | GJ18: x=KorrekturTotal; y=rel.Feuchte | GK18: =LINEST(GK6:GK11,GL6:GL11^{0,1},0,0) -> 46.40857353 | GL18: -12.87947494 | HB18: Korrekturfaktor sensible Leistung | HC18: =IF(ISNA(HC14),1,IF(HK17*HC11^HK16+HL17*HC11^HL16+HM17*HC11^HM16+HN17>1,1,HK17*HC11^HK16+HL17*HC11^HL16+HM17*HC11^HM16+HN17)) -> 0.8916612967 | HD18: =IF(OR(HC18>1,HC17=1),1,HC18) -> 0.8916612967 | HE18: wenn B17 größer 1 oder B16 =1 dann C17 = 1 sonst B17 | HJ18: x=KorrekturTotal; y=rel.Feuchte | HK18: =LINEST(HK6:HK11,HL6:HL11^{0,1},0,0) -> 50.93838987 | HL18: -14.92379765 | IB18: Korrekturfaktor sensible Leistung | IC18: =IF(ISNA(IC14),1,IF(IK17*IC11^IK16+IL17*IC11^IL16+IM17*IC11^IM16+IN17>1,1,IK17*IC11^IK16+IL17*IC11^IL16+IM17*IC11^IM16+IN17)) -> 0.8853304256 | ID18: =IF(OR(IC18>1,IC17=1),1,IC18) -> 0.8853304256 | IE18: wenn B17 größer 1 oder B16 =1 dann C17 = 1 sonst B17 | IJ18: x=KorrekturTotal; y=rel.Feuchte | IK18: =LINEST(IK6:IK11,IL6:IL11^{0,1},0,0) -> 55.0659832 | IL18: -16.95921038 | JB18: Korrekturfaktor sensible Leistung | JC18: =IF(ISNA(JC14),1,IF(JK17*JC11^JK16+JL17*JC11^JL16+JM17*JC11^JM16+JN17>1,1,JK17*JC11^JK16+JL17*JC11^JL16+JM17*JC11^JM16+JN17)) -> 0.9760697798 | JD18: =IF(OR(JC18>1,JC17=1),1,JC18) -> 0.9760697798 | JE18: wenn B17 größer 1 oder B16 =1 dann C17 = 1 sonst B17 | JJ18: x=KorrekturTotal; y=rel.Feuchte | JK18: =LINEST(JK6:JK11,JL6:JL11^{0,1},0,0) -> 38.54395338 | JL18: -10.02922866 | KD18: Korrekturfaktor sensible Leistung | KE18: =IF(ISNA(KE14),1,IF(KM17*KE11^KM16+KN17*KE11^KN16+KO17*KE11^KO16+KP17>1,1,KM17*KE11^KM16+KN17*KE11^KN16+KO17*KE11^KO16+KP17)) -> 0.9594582687 | KF18: =IF(OR(KE18>1,KE17=1),1,KE18) -> 0.9594582687 | KG18: wenn B17 größer 1 oder B16 =1 dann C17 = 1 sonst B17 | KL18: x=KorrekturTotal; y=rel.Feuchte | KM18: =LINEST(KM6:KM11,KN6:KN11^{0,1},0,0) -> 39.70656185 | KN18: -10.14936628 | LC18: Korrekturfaktor sensible Leistung | LD18: =IF(ISNA(LD14),1,IF(LL17*LD11^LL16+LM17*LD11^LM16+LN17*LD11^LN16+LO17>1,1,LL17*LD11^LL16+LM17*LD11^LM16+LN17*LD11^LN16+LO17)) -> 0.9418609674 | LE18: =IF(OR(LD18>1,LD17=1),1,LD18) -> 0.9418609674 | LF18: wenn B17 größer 1 oder B16 =1 dann C17 = 1 sonst B17 | LK18: x=KorrekturTotal; y=rel.Feuchte | LL18: =LINEST(LL6:LL11,LM6:LM11^{0,1},0,0) -> 41.0155983 | LM18: -10.0884853 | MC18: Korrekturfaktor sensible Leistung | MD18: =IF(ISNA(MD14),1,IF(ML17*MD11^ML16+MM17*MD11^MM16+MN17*MD11^MN16+MO17>1,1,ML17*MD11^ML16+MM17*MD11^MM16+MN17*MD11^MN16+MO17)) -> 0.92535818 | ME18: =IF(OR(MD18>1,MD17=1),1,MD18) -> 0.92535818 | MF18: wenn B17 größer 1 oder B16 =1 dann C17 = 1 sonst B17 | MK18: x=KorrekturTotal; y=rel.Feuchte | ML18: =LINEST(ML6:ML11,MM6:MM11^{0,1},0,0) -> 43.01714134 | MM18: -10.88384006 | NC18: Korrekturfaktor sensible Leistung | ND18: =IF(ISNA(ND14),1,IF(NL17*ND11^NL16+NM17*ND11^NM16+NN17*ND11^NN16+NO17>1,1,NL17*ND11^NL16+NM17*ND11^NM16+NN17*ND11^NN16+NO17)) -> 0.9129433469 | NE18: =IF(OR(ND18>1,ND17=1),1,ND18) -> 0.9129433469 | NF18: wenn B17 größer 1 oder B16 =1 dann C17 = 1 sonst B17 | NK18: x=KorrekturTotal; y=rel.Feuchte | NL18: =LINEST(NL6:NL11,NM6:NM11^{0,1},0,0) -> 44.79394876 | NM18: -11.62555212
A21: TWI [°C] | B21: TWO [°C] | C21: QA [m³/h] | D21: TAI [°C] | E21: UR [%] | F21: PT [kW] | G21: PS [kW] | H21: m [kg/h] | I21: Kondensat ja/nein | J21: Total Basis (trocken) | K21: Faktor Total | L21: Faktor Sensibel
A22: 3 | B22: 9.9 | C22: 101 | D22: 21 | E22: 1 | F22: 0.56 | G22: 0.56 | H22: 70 | I22: =IF(F22<>G22,1,0) -> 0 | J22: =IF(F22/G22=1,F22,J21) -> 0.56 | K22: =F22/J22 -> 1 | L22: =G22/J22 -> 1 | N22: Volumenstrom | O22: Korrekturfaktor totale Leistung | P22: Korrekturfaktor sensible Leistung | Q22: Koeffizienten Total | R22: exponent | S22: Koeffizienten Sensibel | T22: exponent | EN22: Volumenstrom | EO22: Korrekturfaktor totale Leistung | EP22: Korrekturfaktor sensible Leistung | EQ22: Koeffizienten Total | ER22: exponent | ES22: Koeffizienten Sensibel | ET22: exponent | JO22: Volumenstrom | JP22: Korrekturfaktor totale Leistung | JQ22: Korrekturfaktor sensible Leistung | JR22: Koeffizienten Total | JS22: exponent | JT22: Koeffizienten Sensibel | JU22: exponent
A23: 3 | B23: 11.1 | C23: 101 | D23: 21 | E23: 50 | F23: 0.66 | G23: 0.5 | H23: 70 | I23: 1 | J23: =IF(F23/G23=1,F23,J22) -> 0.56 | K23: 1.178571429 | L23: =G23/J23 -> 0.8928571429 | N23: =B3 -> 101 | O23: =C17 -> 1.271314128 | P23: =C18 -> 0.883781952 | Q23: =TRANSPOSE(LINEST(O23:O27,N23:N27^{0,1,2,3},0,0)) -> -4.790706914e-08 | R23: 3 | S23: =TRANSPOSE(LINEST(P23:P27,N23:N27^{0,1,2,3},0,0)) -> -2.497487753e-08 | T23: 3 | U23: a | EN23: =EB3 -> 101 | EO23: =EC17 -> 1.555407518 | EP23: =EC18 -> 0.9743320494 | EQ23: =TRANSPOSE(LINEST(EO23:EO27,EN23:EN27^{0,1,2,3},0,0)) -> -2.675904697e-10 | ER23: 3 | ES23: =TRANSPOSE(LINEST(EP23:EP27,EN23:EN27^{0,1,2,3},0,0)) -> -1.097360195e-10 | ET23: 3 | EU23: a | JO23: =JC3 -> 101 | JP23: =JD17 -> 1.557461999 | JQ23: =JD18 -> 0.9760697798 | JR23: =TRANSPOSE(LINEST(JP23:JP27,JO23:JO27^{0,1,2,3},0,0)) -> 4.204027719e-09 | JS23: 3 | JT23: =TRANSPOSE(LINEST(JQ23:JQ27,JO23:JO27^{0,1,2,3},0,0)) -> 1.232688149e-09 | JU23: 3 | JV23: a
A24: 3 | B24: 12.2 | C24: 101 | D24: 21 | E24: 60 | F24: 0.75 | G24: 0.48 | H24: 70 | I24: 1 | J24: =IF(F24/G24=1,F24,J23) -> 0.56 | K24: 1.339285714 | L24: 0.8571428571 | N24: =AD3 -> 171 | O24: =AE17 -> 1.037064316 | P24: =AE18 -> 0.890492678 | Q24: 4.200654773e-05 | R24: 2 | S24: 1.626487182e-05 | T24: 2 | U24: b | EN24: =FD3 -> 171 | EO24: =FE17 -> 1.443732885 | EP24: =FE18 -> 0.9359362719 | EQ24: 1.866324861e-06 | ER24: 2 | ES24: 1.166796243e-06 | ET24: 2 | EU24: b | JO24: =KE3 -> 171 | JP24: =KF17 -> 1.514849832 | JQ24: =KF18 -> 0.9594582687 | JR24: -2.949029886e-06 | JS24: 2 | JT24: -7.529263891e-07 | JU24: 2 | JV24: b
A25: 3 | B25: 13.4 | C25: 101 | D25: 21 | E25: 70 | F25: 0.85 | G25: 0.46 | H25: 70 | I25: 1 | J25: =IF(F25/G25=1,F25,J24) -> 0.56 | K25: 1.517857143 | L25: 0.8214285714 | N25: =BC3 -> 241 | O25: =BD17 -> 1 | P25: =BD18 -> 1 | Q25: -0.01192968503 | R25: 1 | S25: -0.002583398574 | T25: 1 | U25: c | EN25: =GC3 -> 241 | EO25: =GD17 -> 1.354951456 | EP25: =GD18 -> 0.9085639121 | EQ25: -0.002059490189 | ER25: 1 | ES25: -0.0008589871722 | ET25: 1 | EU25: c | JO25: =LD3 -> 241 | JP25: =LE17 -> 1.465024214 | JQ25: =LE18 -> 0.9418609674 | JR25: -4.24049272e-05 | JS25: 1 | JT25: -0.0001014889952 | JU25: 1 | JV25: c
A26: 3 | B26: 14.6 | C26: 101 | D26: 21 | E26: 80 | F26: 0.94 | G26: 0.44 | H26: 70 | I26: 1 | J26: 0.56 | K26: 1.678571429 | L26: 0.7857142857 | N26: =CC3 -> 311 | O26: =CD17 -> 1 | P26: =CD18 -> 1 | Q26: 2.095304269 | R26: 0 | S26: 0.9999215885 | T26: 0 | U26: d | EN26: =HC3 -> 311 | EO26: =HD17 -> 1.274632686 | EP26: =HD18 -> 0.8916612967 | EQ26: 1.744256779 | ER26: 0 | ES26: 1.04929096 | ET26: 0 | EU26: d | JO26: =MD3 -> 311 | JP26: =ME17 -> 1.415349705 | JQ26: =ME18 -> 0.92535818 | JR26: 1.587459755 | JS26: 0 | JT26: 0.9927176857 | JU26: 0 | JV26: d
A27: 3 | B27: 15.7 | C27: 101 | D27: 21 | E27: 90 | F27: 1.04 | G27: 0.42 | H27: 70 | I27: 1 | J27: 0.56 | K27: 1.857142857 | L27: 0.75 | N27: =DC3 -> 381 | O27: =DD17 -> 1 | P27: =DD18 -> 1 | Q27: 0 | R27: 0 | S27: 0 | T27: 0 | U27: e | EN27: =IC3 -> 381 | EO27: =ID17 -> 1.216105717 | EP27: =ID18 -> 0.8853304256 | EQ27: 0 | ER27: 0 | ES27: 0 | ET27: 0 | EU27: e | JO27: =ND3 -> 381 | JP27: =NE17 -> 1.375765522 | JQ27: =NE18 -> 0.9129433469 | JR27: 0 | JS27: 0 | JT27: 0 | JU27: 0 | JV27: e
A28: 3 | B28: 16.7 | C28: 101 | D28: 21 | E28: 99 | F28: 1.12 | G28: 0.41 | H28: 70 | I28: 1 | J28: =IF(F28/G28=1,F28,J27) -> 0.56 | K28: 2 | L28: 0.7321428571
A29: 3 | B29: 5.6 | C29: 101 | D29: 21 | E29: 1 | F29: 0.6 | G29: 0.6 | H29: 200 | I29: 0 | J29: 0.6 | K29: 1 | L29: 1 | X29: Wassermassenstrom wk | Y29: Korrektur
A30: 3 | B30: 6.5 | C30: 101 | D30: 21 | E30: 50 | F30: 0.83 | G30: 0.58 | H30: 200 | I30: 1 | J30: 0.6 | K30: =F30/J30 -> 1.383333333 | L30: 0.9666666667 | Y30: Total | Z30: Total | AA30: Total | AB30: Sensibel | AC30: Sensibel | AD30: Sensibel | AE30: Koeffizienten Total | AH30: Korrektur Total bei wk | AI30: Koeffizienten Total | AL30: Korrektur Sensibel bei wk
A31: 3 | B31: 7.1 | C31: 101 | D31: 21 | E31: 60 | F31: 0.95 | G31: 0.58 | H31: 200 | I31: 1 | J31: =IF(F31/G31=1,F31,J30) -> 0.6 | K31: =F31/J31 -> 1.583333333 | L31: 0.9666666667 | N31: x = Volumenstrom | Q31: y = Total | S31: y = Sensibel | Y31: =I2 -> 70 | Z31: =I3 -> 200 | AA31: =I4 -> 330 | AB31: =I2 -> 70 | AC31: =I3 -> 200 | AD31: =I4 -> 330 | EN31: x = Volumenstrom | EQ31: y = Total | ES31: y = Sensibel | JO31: x = Volumenstrom | JR31: y = Total | JT31: y = Sensibel
A32: 3 | B32: 7.6 | C32: 101 | D32: 21 | E32: 70 | F32: 1.08 | G32: 0.57 | H32: 200 | I32: 1 | J32: 0.6 | K32: =F32/J32 -> 1.8 | L32: 0.95 | N32: ='Master-Auswertung_V120-V127'!F252 -> 231.0765233 | Q32: =IF(Q$23*$N32^R$23+Q$24*$N32^R$24+Q$25*$N32^R$25+Q$26*$N32^R$26+Q$27*$N32^R$27<1,1,Q$23*$N32^R$23+Q$24*$N32^R$24+Q$25*$N32^R$25+Q$26*$N32^R$26+Q$27*$N32^R$27) -> 1 | S32: =IF(S$23*$N32^T$23+S$24*$N32^T$24+S$25*$N32^T$25+S$26*$N32^T$26+S$27*$N32^T$27>1,1,S$23*$N32^T$23+S$24*$N32^T$24+S$25*$N32^T$25+S$26*$N32^T$26+S$27*$N32^T$27) -> 0.9632876212 | V32: ='Master-Auswertung_V120-V127'!$A$247 -> Baugröße 630 | X32: =VKL!$I$13 -> 200 | Y32: =Q32 -> 1 | Z32: =EQ32 -> 1.364710196 | AA32: =JR32 -> 1.472065518 | AB32: =S32 -> 0.9632876212 | AC32: =ES32 -> 0.9117478684 | AD32: =JT32 -> 0.944272135 | AE32: =LINEST(TRANSPOSE(Y32:AA32),TRANSPOSE($Y$31:$AA$31)^{0,1,2},0,0) -> -7.614049522e-06 | AF32: 0.004861256417 | AG32: 0.6970208935 | AH32: =AE32*X32^2+AF32*X32+AG32 -> 1.364710196 | AI32: =LINEST(TRANSPOSE(AB32:AD32),TRANSPOSE($AB$31:$AD$31)^{0,1,2},0,0) -> 2.487101165e-06 | AJ32: -0.001067976952 | AK32: 1.025859212 | AL32: =AI32*X32^2+AJ32*X32+AK32 -> 0.9117478684 | EN32: =$N32 -> 231.0765233 | EQ32: =IF(EQ$23*$N32^ER$23+EQ$24*$N32^ER$24+EQ$25*$N32^ER$25+EQ$26*$N32^ER$26+EQ$27*$N32^ER$27<1,1,EQ$23*$N32^ER$23+EQ$24*$N32^ER$24+EQ$25*$N32^ER$25+EQ$26*$N32^ER$26+EQ$27*$N32^ER$27) -> 1.364710196 | ES32: =IF(ES$23*$N32^ET$23+ES$24*$N32^ET$24+ES$25*$N32^ET$25+ES$26*$N32^ET$26+ES$27*$N32^ET$27>1,1,ES$23*$N32^ET$23+ES$24*$N32^ET$24+ES$25*$N32^ET$25+ES$26*$N32^ET$26+ES$27*$N32^ET$27) -> 0.9117478684 | EV32: ='Master-Auswertung_V120-V127'!$A$247 -> Baugröße 630 | JO32: =$N32 -> 231.0765233 | JR32: =IF(JR$23*$N32^JS$23+JR$24*$N32^JS$24+JR$25*$N32^JS$25+JR$26*$N32^JS$26+JR$27*$N32^JS$27<1,1,JR$23*$N32^JS$23+JR$24*$N32^JS$24+JR$25*$N32^JS$25+JR$26*$N32^JS$26+JR$27*$N32^JS$27) -> 1.472065518 | JT32: =IF(JT$23*$N32^JU$23+JT$24*$N32^JU$24+JT$25*$N32^JU$25+JT$26*$N32^JU$26+JT$27*$N32^JU$27>1,1,JT$23*$N32^JU$23+JT$24*$N32^JU$24+JT$25*$N32^JU$25+JT$26*$N32^JU$26+JT$27*$N32^JU$27) -> 0.944272135 | JW32: ='Master-Auswertung_V120-V127'!$A$247 -> Baugröße 630
A33: 3 | B33: 8.2 | C33: 101 | D33: 21 | E33: 80 | F33: 1.21 | G33: 0.57 | H33: 200 | I33: 1 | J33: 0.6 | K33: 2.016666667 | L33: 0.95 | N33: ='Master-Auswertung_V120-V127'!F253 -> 285.6752136 | Q33: 1 | S33: 1 | V33: ='Master-Auswertung_V120-V127'!$A$247 -> Baugröße 630 | X33: =VKL!$I$13 -> 200 | Y33: =Q33 -> 1 | Z33: =EQ33 -> 1.301984246 | AA33: =JR33 -> 1.432687327 | AB33: =S33 -> 1 | AC33: =ES33 -> 0.8965638487 | AD33: =JT33 -> 0.9310171765 | AE33: =LINEST(TRANSPOSE(Y33:AA33),TRANSPOSE($Y$31:$AA$31)^{0,1,2},0,0) -> -5.067490091e-06 | AF33: 0.003691178062 | AG33: 0.7664482371 | AH33: 1.301984246 | AI33: =LINEST(TRANSPOSE(AB33:AD33),TRANSPOSE($AB$31:$AD$31)^{0,1,2},0,0) -> 4.079570384e-06 | AJ33: -0.001897146706 | AK33: 1.112810375 | AL33: 0.8965638487 | EN33: =$N33 -> 285.6752136 | EQ33: 1.301984246 | ES33: 0.8965638487 | EV33: ='Master-Auswertung_V120-V127'!$A$247 -> Baugröße 630 | JO33: =$N33 -> 285.6752136 | JR33: 1.432687327 | JT33: 0.9310171765 | JW33: ='Master-Auswertung_V120-V127'!$A$247 -> Baugröße 630
A34: 3 | B34: 8.7 | C34: 101 | D34: 21 | E34: 90 | F34: 1.33 | G34: 0.57 | H34: 200 | I34: 1 | J34: 0.6 | K34: 2.216666667 | L34: 0.95 | N34: ='Master-Auswertung_V120-V127'!F254 -> 349.0350921 | Q34: 1.011819689 | S34: 1 | V34: ='Master-Auswertung_V120-V127'!$A$247 -> Baugröße 630 | X34: =VKL!$I$13 -> 200 | Y34: =Q34 -> 1.011819689 | Z34: 1.241410068 | AA34: 1.392152952 | AB34: =S34 -> 1 | AC34: 0.8869536972 | AD34: 0.9179844272 | AE34: =LINEST(TRANSPOSE(Y34:AA34),TRANSPOSE($Y$31:$AA$31)^{0,1,2},0,0) -> -2.332766145e-06 | AF34: 0.002395926699 | AG34: 0.8555353741 | AH34: 1.241410068 | AI34: =LINEST(TRANSPOSE(AB34:AD34),TRANSPOSE($AB$31:$AD$31)^{0,1,2},0,0) -> 4.262634104e-06 | AJ34: -0.002020498153 | AK34: 1.120547964 | AL34: 0.8869536972 | EN34: 349.0350921 | EQ34: 1.241410068 | ES34: 0.8869536972 | EV34: ='Master-Auswertung_V120-V127'!$A$247 -> Baugröße 630 | JO34: 349.0350921 | JR34: 1.392152952 | JT34: 0.9179844272 | JW34: ='Master-Auswertung_V120-V127'!$A$247 -> Baugröße 630
A35: 3 | B35: 9.2 | C35: 101 | D35: 21 | E35: 99 | F35: 1.44 | G35: 0.56 | H35: 200 | I35: 1 | J35: 0.6 | K35: 2.4 | L35: 0.9333333333 | N35: ='Master-Auswertung_V120-V127'!F255 -> 425.2965363 | Q35: 1 | S35: 0.9219266946 | V35: ='Master-Auswertung_V120-V127'!$A$247 -> Baugröße 630 | X35: =VKL!$I$13 -> 200 | Y35: =Q35 -> 1 | Z35: 1.185353468 | AA35: 1.359413798 | AB35: =S35 -> 0.9219266946 | AC35: 0.886571863 | AD35: 0.9081938825 | AE35: =LINEST(TRANSPOSE(Y35:AA35),TRANSPOSE($Y$31:$AA$31)^{0,1,2},0,0) -> -3.341165075e-07 | AF35: 0.001516007363 | AG35: 0.8955166555 | AH35: 1.185353468 | AI35: =LINEST(TRANSPOSE(AB35:AD35),TRANSPOSE($AB$31:$AD$31)^{0,1,2},0,0) -> 1.685705653e-06 | AJ35: -0.0007271007695 | AK35: 0.9645637908 | AL35: 0.886571863 | EN35: 425.2965363 | EQ35: 1.185353468 | ES35: 0.886571863 | EV35: ='Master-Auswertung_V120-V127'!$A$247 -> Baugröße 630 | JO35: 425.2965363 | JR35: 1.359413798 | JT35: 0.9081938825 | JW35: ='Master-Auswertung_V120-V127'!$A$247 -> Baugröße 630
A36: 3 | B36: 4.6 | C36: 101 | D36: 21 | E36: 1 | F36: 0.6 | G36: 0.6 | H36: 330 | I36: 0 | J36: 0.6 | K36: 1 | L36: 1 | N36: ='Master-Auswertung_V120-V127'!F266 -> 217.5211532 | Q36: 1 | S36: 0.9505132854 | V36: ='Master-Auswertung_V120-V127'!$A$261 -> Baugröße 800 | X36: =VKL!$I$13 -> 200 | Y36: =Q36 -> 1 | Z36: 1.381826032 | AA36: 1.481969427 | AB36: =S36 -> 0.9505132854 | AC36: 0.9165211558 | AD36: 0.9477035941 | AE36: =LINEST(TRANSPOSE(Y36:AA36),TRANSPOSE($Y$31:$AA$31)^{0,1,2},0,0) -> -8.333805796e-06 | AF36: 0.005187250885 | AG36: 0.6777280865 | AH36: 1.381826032 | AI36: =LINEST(TRANSPOSE(AB36:AD36),TRANSPOSE($AB$31:$AD$31)^{0,1,2},0,0) -> 1.928241654e-06 | AJ36: -0.0007821031665 | AK36: 0.9958121229 | AL36: 0.9165211558 | EN36: 217.5211532 | EQ36: 1.381826032 | ES36: 0.9165211558 | EV36: ='Master-Auswertung_V120-V127'!$A$261 -> Baugröße 800 | JO36: 217.5211532 | JR36: 1.481969427 | JT36: 0.9477035941 | JW36: ='Master-Auswertung_V120-V127'!$A$261 -> Baugröße 800
A37: 3 | B37: 5.2 | C37: 101 | D37: 21 | E37: 50 | F37: 0.84 | G37: 0.59 | H37: 330 | I37: 1 | J37: 0.6 | K37: 1.4 | L37: 0.9833333333 | N37: ='Master-Auswertung_V120-V127'!F267 -> 270.15754 | Q37: 1 | S37: 0.9966487217 | V37: ='Master-Auswertung_V120-V127'!$A$261 -> Baugröße 800 | X37: =VKL!$I$13 -> 200 | Y37: 1 | Z37: 1.318807668 | AA37: 1.443661322 | AB37: 0.9966487217 | AC37: 0.9002241176 | AD37: 0.93465276 | AE37: =LINEST(TRANSPOSE(Y37:AA37),TRANSPOSE($Y$31:$AA$31)^{0,1,2},0,0) -> -5.738284426e-06 | AF37: 0.004001703469 | AG37: 0.7479983509 | AH37: 1.318807668 | AI37: =LINEST(TRANSPOSE(AB37:AD37),TRANSPOSE($AB$31:$AD$31)^{0,1,2},0,0) -> 3.87139783e-06 | AJ37: -0.001787005139 | AK37: 1.102769232 | AL37: 0.9002241176 | EN37: 270.15754 | EQ37: 1.318807668 | ES37: 0.9002241176 | EV37: ='Master-Auswertung_V120-V127'!$A$261 -> Baugröße 800 | JO37: 270.15754 | JR37: 1.443661322 | JT37: 0.93465276 | JW37: ='Master-Auswertung_V120-V127'!$A$261 -> Baugröße 800
A38: 3 | B38: 5.5 | C38: 101 | D38: 21 | E38: 60 | F38: 0.97 | G38: 0.59 | H38: 330 | I38: 1 | J38: 0.6 | K38: 1.616666667 | L38: 0.9833333333 | N38: ='Master-Auswertung_V120-V127'!F268 -> 330.8656731 | Q38: 1.011504954 | S38: 1 | V38: ='Master-Auswertung_V120-V127'!$A$261 -> Baugröße 800 | X38: =VKL!$I$13 -> 200 | Y38: 1.011504954 | Z38: 1.257460385 | AA38: 1.402865174 | AB38: 1 | AC38: 0.8888385185 | AD38: 0.9213626854 | AE38: =LINEST(TRANSPOSE(Y38:AA38),TRANSPOSE($Y$31:$AA$31)^{0,1,2},0,0) -> -2.974871077e-06 | AF38: 0.002695180049 | AG38: 0.8374192185 | AH38: 1.257460385 | AI38: =LINEST(TRANSPOSE(AB38:AD38),TRANSPOSE($AB$31:$AD$31)^{0,1,2},0,0) -> 4.251054685e-06 | AJ38: -0.002002873084 | AK38: 1.119370948 | AL38: 0.8888385185 | EN38: 330.8656731 | EQ38: 1.257460385 | ES38: 0.8888385185 | EV38: ='Master-Auswertung_V120-V127'!$A$261 -> Baugröße 800 | JO38: 330.8656731 | JR38: 1.402865174 | JT38: 0.9213626854 | JW38: ='Master-Auswertung_V120-V127'!$A$261 -> Baugröße 800
A39: 3 | B39: 5.9 | C39: 101 | D39: 21 | E39: 70 | F39: 1.1 | G39: 0.59 | H39: 330 | I39: 1 | J39: 0.6 | K39: 1.833333333 | L39: 0.9833333333 | N39: ='Master-Auswertung_V120-V127'!F269 -> 403.0315198 | Q39: 1 | S39: 0.9656953614 | V39: ='Master-Auswertung_V120-V127'!$A$261 -> Baugröße 800 | X39: =VKL!$I$13 -> 200 | Y39: 1 | Z39: 1.199854561 | AA39: 1.366566974 | AB39: 0.9656953614 | AC39: 0.8854359102 | AD39: 0.9102126621 | AE39: =LINEST(TRANSPOSE(Y39:AA39),TRANSPOSE($Y$31:$AA$31)^{0,1,2},0,0) -> -9.805369197e-07 | AF39: 0.001802087745 | AG39: 0.8786584888 | AH39: 1.199854561 | AI39: =LINEST(TRANSPOSE(AB39:AD39),TRANSPOSE($AB$31:$AD$31)^{0,1,2},0,0) -> 3.10757997e-06 | AJ39: -0.001456426985 | AK39: 1.052418108 | AL39: 0.8854359102 | EN39: 403.0315198 | EQ39: 1.199854561 | ES39: 0.8854359102 | EV39: ='Master-Auswertung_V120-V127'!$A$261 -> Baugröße 800 | JO39: 403.0315198 | JR39: 1.366566974 | JT39: 0.9102126621 | JW39: ='Master-Auswertung_V120-V127'!$A$261 -> Baugröße 800
A40: 3 | B40: 6.2 | C40: 101 | D40: 21 | E40: 80 | F40: 1.23 | G40: 0.58 | H40: 330 | I40: 1 | J40: 0.6 | K40: 2.05 | L40: 0.9666666667 | N40: ='Master-Auswertung_V120-V127'!F280 -> 208.6644551 | Q40: 1 | S40: 0.9421370849 | V40: ='Master-Auswertung_V120-V127'!$A$275 -> Baugröße 1000 | X40: =VKL!$I$13 -> 200 | Y40: 1 | Z40: 1.393344587 | AA40: 1.488403466 | AB40: 0.9421370849 | AC40: 0.9198571765 | AD40: 0.9499569816 | AE40: =LINEST(TRANSPOSE(Y40:AA40),TRANSPOSE($Y$31:$AA$31)^{0,1,2},0,0) -> -8.825020911e-06 | AF40: 0.005408483236 | AG40: 0.664648776 | AH40: 1.393344587 | AI40: =LINEST(TRANSPOSE(AB40:AD40),TRANSPOSE($AB$31:$AD$31)^{0,1,2},0,0) -> 1.549695664e-06 | AJ40: -0.0005898017399 | AK40: 0.975829698 | AL40: 0.9198571765 | EN40: 208.6644551 | EQ40: 1.393344587 | ES40: 0.9198571765 | EV40: ='Master-Auswertung_V120-V127'!$A$275 -> Baugröße 1000 | JO40: 208.6644551 | JR40: 1.488403466 | JT40: 0.9499569816 | JW40: ='Master-Auswertung_V120-V127'!$A$275 -> Baugröße 1000
A41: 3 | B41: 6.5 | C41: 101 | D41: 21 | E41: 90 | F41: 1.36 | G41: 0.58 | H41: 330 | I41: 1 | J41: 0.6 | K41: 2.266666667 | L41: 0.9666666667 | N41: ='Master-Auswertung_V120-V127'!F281 -> 260.0700126 | Q41: 1 | S41: 0.9888415011 | V41: ='Master-Auswertung_V120-V127'!$A$275 -> Baugröße 1000 | X41: =VKL!$I$13 -> 200 | Y41: 1 | Z41: 1.330169685 | AA41: 1.450919405 | AB41: 0.9888415011 | AC41: 0.902881787 | AD41: 0.9370814364 | AE41: =LINEST(TRANSPOSE(Y41:AA41),TRANSPOSE($Y$31:$AA$31)^{0,1,2},0,0) -> -6.195856969e-06 | AF41: 0.004212648191 | AG41: 0.7354743258 | AH41: 1.330169685 | AI41: =LINEST(TRANSPOSE(AB41:AD41),TRANSPOSE($AB$31:$AD$31)^{0,1,2},0,0) -> 3.555010755e-06 | AJ41: -0.001621081474 | AK41: 1.084897652 | AL41: 0.902881787 | EN41: 260.0700126 | EQ41: 1.330169685 | ES41: 0.902881787 | EV41: ='Master-Auswertung_V120-V127'!$A$275 -> Baugröße 1000 | JO41: 260.0700126 | JR41: 1.450919405 | JT41: 0.9370814364 | JW41: ='Master-Auswertung_V120-V127'!$A$275 -> Baugröße 1000
A42: 3 | B42: 6.8 | C42: 101 | D42: 21 | E42: 99 | F42: 1.47 | G42: 0.58 | H42: 330 | I42: 1 | J42: 0.6 | K42: 2.45 | L42: 0.9666666667 | N42: ='Master-Auswertung_V120-V127'!F282 -> 319.1112601 | Q42: 1.009242557 | S42: 1 | V42: ='Master-Auswertung_V120-V127'!$A$275 -> Baugröße 1000 | X42: =VKL!$I$13 -> 200 | Y42: 1.009242557 | Z42: 1.268406307 | AA42: 1.410235243 | AB42: 1 | AC42: 0.8904297187 | AD42: 0.9237165168 | AE42: =LINEST(TRANSPOSE(Y42:AA42),TRANSPOSE($Y$31:$AA$31)^{0,1,2},0,0) -> -3.471444191e-06 | AF42: 0.002930857238 | AG42: 0.8210926266 | AH42: 1.268406307 | AI42: =LINEST(TRANSPOSE(AB42:AD42),TRANSPOSE($AB$31:$AD$31)^{0,1,2},0,0) -> 4.226540809e-06 | AJ42: -0.001984014336 | AK42: 1.118170954 | AL42: 0.8904297187 | EN42: 319.1112601 | EQ42: 1.268406307 | ES42: 0.8904297187 | EV42: ='Master-Auswertung_V120-V127'!$A$275 -> Baugröße 1000 | JO42: 319.1112601 | JR42: 1.410235243 | JT42: 0.9237165168 | JW42: ='Master-Auswertung_V120-V127'!$A$275 -> Baugröße 1000
A43: 3 | B43: 10.2 | C43: 101 | D43: 22 | E43: 1 | F43: 0.59 | G43: 0.59 | H43: 70 | I43: 0 | J43: 0.59 | K43: 1 | L43: 1 | N43: ='Master-Auswertung_V120-V127'!F283 -> 388.8352286 | Q43: 1 | S43: 0.9862867078 | V43: ='Master-Auswertung_V120-V127'!$A$275 -> Baugröße 1000 | X43: =VKL!$I$13 -> 200 | Y43: 1 | Z43: 1.209897984 | AA43: 1.372250045 | AB43: 0.9862867078 | AC43: 0.8852464362 | AD43: 0.9118867413 | AE43: =LINEST(TRANSPOSE(Y43:AA43),TRANSPOSE($Y$31:$AA$31)^{0,1,2},0,0) -> -1.406684126e-06 | AF43: 0.001994404594 | AG43: 0.8672844307 | AH43: 1.209897984 | AI43: =LINEST(TRANSPOSE(AB43:AD43),TRANSPOSE($AB$31:$AD$31)^{0,1,2},0,0) -> 3.777531856e-06 | AJ43: -0.00179716646 | AK43: 1.093578454 | AL43: 0.8852464362 | EN43: 388.8352286 | EQ43: 1.209897984 | ES43: 0.8852464362 | EV43: ='Master-Auswertung_V120-V127'!$A$275 -> Baugröße 1000 | JO43: 388.8352286 | JR43: 1.372250045 | JT43: 0.9118867413 | JW43: ='Master-Auswertung_V120-V127'!$A$275 -> Baugröße 1000
A44: 3 | B44: 11.7 | C44: 101 | D44: 22 | E44: 50 | F44: 0.71 | G44: 0.52 | H44: 70 | I44: 1 | J44: 0.59 | K44: 1.203389831 | L44: 0.8813559322 | N44: ='Master-Auswertung_V120-V127'!F294 -> 300.9560367 | Q44: 1.003820549 | S44: 1 | V44: ='Master-Auswertung_V120-V127'!$A$289 -> Baugröße 1200 | X44: =VKL!$I$13 -> 200 | Y44: =Q44 -> 1.003820549 | Z44: 1.286188046 | AA44: 1.422188118 | AB44: =S44 -> 1 | AC44: 0.8934643241 | AD44: 0.9275797904 | AE44: =LINEST(TRANSPOSE(Y44:AA44),TRANSPOSE($Y$31:$AA$31)^{0,1,2},0,0) -> -4.330397196e-06 | AF44: 0.003341264916 | AG44: 0.791150951 | AH44: =AE44*X44^2+AF44*X44+AG44 -> 1.286188046 | AI44: =LINEST(TRANSPOSE(AB44:AD44),TRANSPOSE($AB$31:$AD$31)^{0,1,2},0,0) -> 4.161276397e-06 | AJ44: -0.001943049826 | AK44: 1.115623233 | AL44: =AI44*X44^2+AJ44*X44+AK44 -> 0.8934643241 | EN44: 300.9560367 | EQ44: 1.286188046 | ES44: 0.8934643241 | EV44: ='Master-Auswertung_V120-V127'!$A$289 -> Baugröße 1200 | JO44: 300.9560367 | JR44: 1.422188118 | JT44: 0.9275797904 | JW44: ='Master-Auswertung_V120-V127'!$A$289 -> Baugröße 1200
A45: 3 | B45: 13 | C45: 101 | D45: 22 | E45: 60 | F45: 0.81 | G45: 0.5 | H45: 70 | I45: 1 | J45: 0.59 | K45: 1.372881356 | L45: 0.8474576271 | N45: ='Master-Auswertung_V120-V127'!F295 -> 300.9560367 | Q45: 1.003820549 | S45: 1 | V45: ='Master-Auswertung_V120-V127'!$A$289 -> Baugröße 1200 | X45: =VKL!$I$13 -> 200 | Y45: =Q45 -> 1.003820549 | Z45: 1.286188046 | AA45: 1.422188118 | AB45: =S45 -> 1 | AC45: 0.8934643241 | AD45: 0.9275797904 | AE45: =LINEST(TRANSPOSE(Y45:AA45),TRANSPOSE($Y$31:$AA$31)^{0,1,2},0,0) -> -4.330397196e-06 | AF45: 0.003341264916 | AG45: 0.791150951 | AH45: =AE45*X45^2+AF45*X45+AG45 -> 1.286188046 | AI45: =LINEST(TRANSPOSE(AB45:AD45),TRANSPOSE($AB$31:$AD$31)^{0,1,2},0,0) -> 4.161276397e-06 | AJ45: -0.001943049826 | AK45: 1.115623233 | AL45: =AI45*X45^2+AJ45*X45+AK45 -> 0.8934643241 | EN45: 300.9560367 | EQ45: 1.286188046 | ES45: 0.8934643241 | EV45: ='Master-Auswertung_V120-V127'!$A$289 -> Baugröße 1200 | JO45: 300.9560367 | JR45: 1.422188118 | JT45: 0.9275797904 | JW45: ='Master-Auswertung_V120-V127'!$A$289 -> Baugröße 1200
A46: 3 | B46: 14.2 | C46: 101 | D46: 22 | E46: 70 | F46: 0.91 | G46: 0.48 | H46: 70 | I46: 1 | J46: 0.59 | K46: 1.542372881 | L46: 0.813559322 | N46: ='Master-Auswertung_V120-V127'!F296 -> 300.9560367 | Q46: 1.003820549 | S46: 1 | V46: ='Master-Auswertung_V120-V127'!$A$289 -> Baugröße 1200 | X46: =VKL!$I$13 -> 200 | Y46: =Q46 -> 1.003820549 | Z46: 1.286188046 | AA46: 1.422188118 | AB46: =S46 -> 1 | AC46: 0.8934643241 | AD46: 0.9275797904 | AE46: =LINEST(TRANSPOSE(Y46:AA46),TRANSPOSE($Y$31:$AA$31)^{0,1,2},0,0) -> -4.330397196e-06 | AF46: 0.003341264916 | AG46: 0.791150951 | AH46: =AE46*X46^2+AF46*X46+AG46 -> 1.286188046 | AI46: =LINEST(TRANSPOSE(AB46:AD46),TRANSPOSE($AB$31:$AD$31)^{0,1,2},0,0) -> 4.161276397e-06 | AJ46: -0.001943049826 | AK46: 1.115623233 | AL46: =AI46*X46^2+AJ46*X46+AK46 -> 0.8934643241 | EN46: 300.9560367 | EQ46: 1.286188046 | ES46: 0.8934643241 | EV46: ='Master-Auswertung_V120-V127'!$A$289 -> Baugröße 1200 | JO46: 300.9560367 | JR46: 1.422188118 | JT46: 0.9275797904 | JW46: ='Master-Auswertung_V120-V127'!$A$289 -> Baugröße 1200
A47: 3 | B47: 15.4 | C47: 101 | D47: 22 | E47: 80 | F47: 1.01 | G47: 0.46 | H47: 70 | I47: 1 | J47: 0.59 | K47: 1.711864407 | L47: 0.7796610169 | N47: ='Master-Auswertung_V120-V127'!F297 -> 300.9560367 | Q47: 1.003820549 | S47: 1 | V47: ='Master-Auswertung_V120-V127'!$A$289 -> Baugröße 1200 | X47: =VKL!$I$13 -> 200 | Y47: =Q47 -> 1.003820549 | Z47: 1.286188046 | AA47: 1.422188118 | AB47: =S47 -> 1 | AC47: 0.8934643241 | AD47: 0.9275797904 | AE47: =LINEST(TRANSPOSE(Y47:AA47),TRANSPOSE($Y$31:$AA$31)^{0,1,2},0,0) -> -4.330397196e-06 | AF47: 0.003341264916 | AG47: 0.791150951 | AH47: =AE47*X47^2+AF47*X47+AG47 -> 1.286188046 | AI47: =LINEST(TRANSPOSE(AB47:AD47),TRANSPOSE($AB$31:$AD$31)^{0,1,2},0,0) -> 4.161276397e-06 | AJ47: -0.001943049826 | AK47: 1.115623233 | AL47: =AI47*X47^2+AJ47*X47+AK47 -> 0.8934643241 | EN47: 300.9560367 | EQ47: 1.286188046 | ES47: 0.8934643241 | EV47: ='Master-Auswertung_V120-V127'!$A$289 -> Baugröße 1200 | JO47: 300.9560367 | JR47: 1.422188118 | JT47: 0.9275797904 | JW47: ='Master-Auswertung_V120-V127'!$A$289 -> Baugröße 1200
A48: 3 | B48: 16.6 | C48: 101 | D48: 22 | E48: 90 | F48: 1.11 | G48: 0.44 | H48: 70 | I48: 1 | J48: 0.59 | K48: 1.881355932 | L48: 0.7457627119
A49: 3 | B49: 17.7 | C49: 101 | D49: 22 | E49: 99 | F49: 1.2 | G49: 0.42 | H49: 70 | I49: 1 | J49: 0.59 | K49: 2.033898305 | L49: 0.7118644068
A50: 3 | B50: 5.7 | C50: 101 | D50: 22 | E50: 1 | F50: 0.63 | G50: 0.63 | H50: 200 | I50: 0 | J50: 0.63 | K50: 1 | L50: 1
A51: 3 | B51: 6.8 | C51: 101 | D51: 22 | E51: 50 | F51: 0.9 | G51: 0.61 | H51: 200 | I51: 1 | J51: 0.63 | K51: 1.428571429 | L51: 0.9682539683
A52: 3 | B52: 7.4 | C52: 101 | D52: 22 | E52: 60 | F52: 1.03 | G52: 0.61 | H52: 200 | I52: 1 | J52: 0.63 | K52: 1.634920635 | L52: 0.9682539683
A53: 3 | B53: 8 | C53: 101 | D53: 22 | E53: 70 | F53: 1.16 | G53: 0.6 | H53: 200 | I53: 1 | J53: 0.63 | K53: 1.841269841 | L53: 0.9523809524
A54: 3 | B54: 8.6 | C54: 101 | D54: 22 | E54: 80 | F54: 1.3 | G54: 0.6 | H54: 200 | I54: 1 | J54: 0.63 | K54: 2.063492063 | L54: 0.9523809524
A55: 3 | B55: 9.1 | C55: 101 | D55: 22 | E55: 90 | F55: 1.43 | G55: 0.6 | H55: 200 | I55: 1 | J55: 0.63 | K55: 2.26984127 | L55: 0.9523809524
A56: 3 | B56: 9.6 | C56: 101 | D56: 22 | E56: 99 | F56: 1.55 | G56: 0.59 | H56: 200 | I56: 1 | J56: 0.63 | K56: 2.46031746 | L56: 0.9365079365
A57: 3 | B57: 4.6 | C57: 101 | D57: 22 | E57: 1 | F57: 0.63 | G57: 0.63 | H57: 330 | I57: 0 | J57: 0.63 | K57: 1 | L57: 1
A58: 3 | B58: 5.4 | C58: 101 | D58: 22 | E58: 50 | F58: 0.91 | G58: 0.62 | H58: 330 | I58: 1 | J58: 0.63 | K58: 1.444444444 | L58: 0.9841269841
A59: 3 | B59: 5.7 | C59: 101 | D59: 22 | E59: 60 | F59: 1.05 | G59: 0.62 | H59: 330 | I59: 1 | J59: 0.63 | K59: 1.666666667 | L59: 0.9841269841
A60: 3 | B60: 6.1 | C60: 101 | D60: 22 | E60: 70 | F60: 1.19 | G60: 0.62 | H60: 330 | I60: 1 | J60: 0.63 | K60: 1.888888889 | L60: 0.9841269841 | AQ60: 4 | AR60: 3 | AS60: 2 | AT60: 1 | AU60: 0
A61: 3 | B61: 6.4 | C61: 101 | D61: 22 | E61: 80 | F61: 1.32 | G61: 0.61 | H61: 330 | I61: 1 | J61: 0.63 | K61: 2.095238095 | L61: 0.9682539683 | AQ61: 2.309898583e-08 | AR61: -6.076207189e-06 | AS61: 0.0005740636335 | AT61: -0.001221298505 | AU61: 0.61172224 | AW61: y = 0,00000002309898583302x4 - 0,00000607620718899582x3 + 0,00057406363346773600x2 - 0,00122129850538766000x + 0,61172223999672900000 R² = 0,99999798376960600000 | BB61: R² = 0,99999798376960600000
A62: 3 | B62: 6.8 | C62: 101 | D62: 22 | E62: 90 | F62: 1.46 | G62: 0.61 | H62: 330 | I62: 1 | J62: 0.63 | K62: 2.317460317 | L62: 0.9682539683 | AQ62: 4 | AR62: 3 | AS62: 2 | AT62: 1 | AU62: 0 | AW62: y = 0,00000000219901325220x4 - 0,00000229974268309632x3 + 0,00052359233017303100x2 - 0,04991694757763310000x + 2,09643715232244000000 R² = 0,99999052809959700000 | BB62: R² = 0,99999052809959700000
A63: 3 | B63: 7.1 | C63: 101 | D63: 22 | E63: 99 | F63: 1.58 | G63: 0.61 | H63: 330 | I63: 1 | J63: 0.63 | K63: 2.507936508 | L63: 0.9682539683 | AQ63: 2.199013252e-09 | AR63: -2.299742683e-06 | AS63: 0.0005235923302 | AT63: -0.04991694758 | AU63: 2.096437152
A64: 3 | B64: 10.6 | C64: 101 | D64: 23 | E64: 1 | F64: 0.62 | G64: 0.62 | H64: 70 | I64: 0 | J64: 0.62 | K64: 1 | L64: 1
A65: 3 | B65: 12.4 | C65: 101 | D65: 23 | E65: 50 | F65: 0.77 | G65: 0.54 | H65: 70 | I65: 1 | J65: 0.62 | K65: 1.241935484 | L65: 0.8709677419
A66: 3 | B66: 13.7 | C66: 101 | D66: 23 | E66: 60 | F66: 0.87 | G66: 0.52 | H66: 70 | I66: 1 | J66: 0.62 | K66: 1.403225806 | L66: 0.8387096774 | N66: =CONCATENATE(E5,E6,B11, " % relFeuchte; ",E8) -> 6 °C Vorlauf; 70 kg/h Kühlwasser; 50 % relFeuchte; 26 °C Ansaugtemp;
A67: 3 | B67: 15 | C67: 101 | D67: 23 | E67: 70 | F67: 0.98 | G67: 0.5 | H67: 70 | I67: 1 | J67: 0.62 | K67: 1.580645161 | L67: 0.8064516129
A68: 3 | B68: 16.3 | C68: 101 | D68: 23 | E68: 80 | F68: 1.08 | G68: 0.48 | H68: 70 | I68: 1 | J68: 0.62 | K68: 1.741935484 | L68: 0.7741935484 | N68: BG800
A69: 3 | B69: 17.5 | C69: 101 | D69: 23 | E69: 90 | F69: 1.19 | G69: 0.46 | H69: 70 | I69: 1 | J69: 0.62 | K69: 1.919354839 | L69: 0.7419354839 | N69: =CONCATENATE(N68,"; ",E5,B11, " % relFeuchte; ",E8) -> BG800; 6 °C Vorlauf; 50 % relFeuchte; 26 °C Ansaugtemp;
A70: 3 | B70: 18.6 | C70: 101 | D70: 23 | E70: 99 | F70: 1.28 | G70: 0.44 | H70: 70 | I70: 1 | J70: 0.62 | K70: 2.064516129 | L70: 0.7096774194
A71: 3 | B71: 5.8 | C71: 101 | D71: 23 | E71: 1 | F71: 0.66 | G71: 0.66 | H71: 200 | I71: 0 | J71: 0.66 | K71: 1 | L71: 1
A72: 3 | B72: 7.1 | C72: 101 | D72: 23 | E72: 50 | F72: 0.97 | G72: 0.64 | H72: 200 | I72: 1 | J72: 0.66 | K72: 1.46969697 | L72: 0.9696969697
A73: 3 | B73: 7.8 | C73: 101 | D73: 23 | E73: 60 | F73: 1.11 | G73: 0.64 | H73: 200 | I73: 1 | J73: 0.66 | K73: 1.681818182 | L73: 0.9696969697 | O73: Ansaugtemperatur: | P73: Kühlwasservorlauf1): | Q73: Kühlwasservorlauf kondensierender Betrieb2): | R73: relative Feuchte: | S73: Nennkühlwassermenge wOK: | T73: Ist-Kühlwassermenge wK:
A74: 3 | B74: 8.4 | C74: 101 | D74: 23 | E74: 70 | F74: 1.25 | G74: 0.63 | H74: 200 | I74: 1 | J74: 0.66 | K74: 1.893939394 | L74: 0.9545454545 | N74: Minimal | O74: =MIN(D$22:D$10221) -> 21 | Q74: =MIN(A$22:A$10221) -> 3 | R74: 1
A75: 3 | B75: 9 | C75: 101 | D75: 23 | E75: 80 | F75: 1.39 | G75: 0.63 | H75: 200 | I75: 1 | J75: 0.66 | K75: 2.106060606 | L75: 0.9545454545 | N75: Maximal | O75: =MAX(D$22:D$80091) -> 28 | Q75: =MAX(A$22:A$80091) -> 19 | R75: 99
A76: 3 | B76: 9.6 | C76: 101 | D76: 23 | E76: 90 | F76: 1.53 | G76: 0.62 | H76: 200 | I76: 1 | J76: 0.66 | K76: 2.318181818 | L76: 0.9393939394
A77: 3 | B77: 10.1 | C77: 101 | D77: 23 | E77: 99 | F77: 1.66 | G77: 0.62 | H77: 200 | I77: 1 | J77: 0.66 | K77: 2.515151515 | L77: 0.9393939394
A78: 3 | B78: 4.7 | C78: 101 | D78: 23 | E78: 1 | F78: 0.66 | G78: 0.66 | H78: 330 | I78: 0 | J78: 0.66 | K78: 1 | L78: 1
A79: 3 | B79: 5.6 | C79: 101 | D79: 23 | E79: 50 | F79: 0.99 | G79: 0.65 | H79: 330 | I79: 1 | J79: 0.66 | K79: 1.5 | L79: 0.9848484848
A80: 3 | B80: 5.9 | C80: 101 | D80: 23 | E80: 60 | F80: 1.13 | G80: 0.65 | H80: 330 | I80: 1 | J80: 0.66 | K80: 1.712121212 | L80: 0.9848484848
A81: 3 | B81: 6.3 | C81: 101 | D81: 23 | E81: 70 | F81: 1.28 | G81: 0.65 | H81: 330 | I81: 1 | J81: 0.66 | K81: 1.939393939 | L81: 0.9848484848
A82: 3 | B82: 6.7 | C82: 101 | D82: 23 | E82: 80 | F82: 1.42 | G82: 0.64 | H82: 330 | I82: 1 | J82: 0.66 | K82: 2.151515152 | L82: 0.9696969697
A83: 3 | B83: 7.1 | C83: 101 | D83: 23 | E83: 90 | F83: 1.56 | G83: 0.64 | H83: 330 | I83: 1 | J83: 0.66 | K83: 2.363636364 | L83: 0.9696969697
A84: 3 | B84: 7.4 | C84: 101 | D84: 23 | E84: 99 | F84: 1.69 | G84: 0.64 | H84: 330 | I84: 1 | J84: 0.66 | K84: 2.560606061 | L84: 0.9696969697
A85: 3 | B85: 10.9 | C85: 101 | D85: 24 | E85: 1 | F85: 0.65 | G85: 0.65 | H85: 70 | I85: 0 | J85: 0.65 | K85: 1 | L85: 1
A86: 3 | B86: 13.1 | C86: 101 | D86: 24 | E86: 50 | F86: 0.82 | G86: 0.56 | H86: 70 | I86: =IF(F86<>G86,1,0) -> 1 | J86: 0.65 | K86: =F86/J86 -> 1.261538462 | L86: 0.8615384615
A87: 3 | B87: 14.5 | C87: 101 | D87: 24 | E87: 60 | F87: 0.94 | G87: 0.54 | H87: 70 | I87: 1 | J87: 0.65 | K87: 1.446153846 | L87: =G87/J87 -> 0.8307692308
A88: 3 | B88: 15.8 | C88: 101 | D88: 24 | E88: 70 | F88: 1.05 | G88: 0.52 | H88: 70 | I88: 1 | J88: 0.65 | K88: 1.615384615 | L88: 0.8
A89: 3 | B89: 17.2 | C89: 101 | D89: 24 | E89: 80 | F89: 1.16 | G89: 0.49 | H89: 70 | I89: 1 | J89: =IF(F89/G89=1,F89,J88) -> 0.65 | K89: 1.784615385 | L89: 0.7538461538
A90: 3 | B90: 18.5 | C90: 101 | D90: 24 | E90: 90 | F90: 1.26 | G90: 0.47 | H90: 70 | I90: 1 | J90: 0.65 | K90: 1.938461538 | L90: 0.7230769231
A91: 3 | B91: 19.6 | C91: 101 | D91: 24 | E91: 99 | F91: 1.36 | G91: 0.45 | H91: 70 | I91: 1 | J91: 0.65 | K91: 2.092307692 | L91: 0.6923076923
A92: 3 | B92: 6 | C92: 101 | D92: 24 | E92: 1 | F92: 0.69 | G92: 0.69 | H92: 200 | I92: 0 | J92: 0.69 | K92: 1 | L92: 1
A93: 3 | B93: 7.5 | C93: 101 | D93: 24 | E93: 50 | F93: 1.04 | G93: 0.67 | H93: 200 | I93: 1 | J93: 0.69 | K93: 1.507246377 | L93: 0.9710144928
A94: 3 | B94: 8.1 | C94: 101 | D94: 24 | E94: 60 | F94: 1.19 | G94: 0.67 | H94: 200 | I94: 1 | J94: 0.69 | K94: 1.724637681 | L94: 0.9710144928
A95: 3 | B95: 8.7 | C95: 101 | D95: 24 | E95: 70 | F95: 1.34 | G95: 0.66 | H95: 200 | I95: 1 | J95: 0.69 | K95: 1.942028986 | L95: 0.9565217391
A96: 3 | B96: 9.4 | C96: 101 | D96: 24 | E96: 80 | F96: 1.49 | G96: 0.66 | H96: 200 | I96: 1 | J96: 0.69 | K96: 2.15942029 | L96: 0.9565217391
A97: 3 | B97: 10 | C97: 101 | D97: 24 | E97: 90 | F97: 1.64 | G97: 0.65 | H97: 200 | I97: 1 | J97: 0.69 | K97: 2.376811594 | L97: 0.9420289855
A98: 3 | B98: 10.6 | C98: 101 | D98: 24 | E98: 99 | F98: 1.77 | G98: 0.65 | H98: 200 | I98: 1 | J98: 0.69 | K98: 2.565217391 | L98: 0.9420289855
A99: 3 | B99: 4.8 | C99: 101 | D99: 24 | E99: 1 | F99: 0.7 | G99: 0.7 | H99: 330 | I99: 0 | J99: 0.7 | K99: 1 | L99: 1
A100: 3 | B100: 5.8 | C100: 101 | D100: 24 | E100: 50 | F100: 1.06 | G100: 0.68 | H100: 330 | I100: 1 | J100: 0.7 | K100: 1.514285714 | L100: 0.9714285714
A101: 3 | B101: 6.1 | C101: 101 | D101: 24 | E101: 60 | F101: 1.21 | G101: 0.68 | H101: 330 | I101: 1 | J101: 0.7 | K101: 1.728571429 | L101: 0.9714285714
A102: 3 | B102: 6.5 | C102: 101 | D102: 24 | E102: 70 | F102: 1.36 | G102: 0.67 | H102: 330 | I102: 1 | J102: 0.7 | K102: 1.942857143 | L102: 0.9571428571
A103: 3 | B103: 6.9 | C103: 101 | D103: 24 | E103: 80 | F103: 1.52 | G103: 0.67 | H103: 330 | I103: 1 | J103: 0.7 | K103: 2.171428571 | L103: 0.9571428571
A104: 3 | B104: 7.3 | C104: 101 | D104: 24 | E104: 90 | F104: 1.67 | G104: 0.67 | H104: 330 | I104: 1 | J104: 0.7 | K104: 2.385714286 | L104: 0.9571428571
A105: 3 | B105: 7.7 | C105: 101 | D105: 24 | E105: 99 | F105: 1.81 | G105: 0.67 | H105: 330 | I105: 1 | J105: 0.7 | K105: 2.585714286 | L105: 0.9571428571
A106: 3 | B106: 11.3 | C106: 101 | D106: 25 | E106: 1 | F106: 0.68 | G106: 0.68 | H106: 70 | I106: 0 | J106: 0.68 | K106: 1 | L106: 1
A107: 3 | B107: 13.8 | C107: 101 | D107: 25 | E107: 50 | F107: 0.88 | G107: 0.58 | H107: 70 | I107: 1 | J107: 0.68 | K107: 1.294117647 | L107: 0.8529411765
A108: 3 | B108: 15.3 | C108: 101 | D108: 25 | E108: 60 | F108: 1 | G108: 0.56 | H108: 70 | I108: 1 | J108: 0.68 | K108: 1.470588235 | L108: 0.8235294118
A109: 3 | B109: 16.7 | C109: 101 | D109: 25 | E109: 70 | F109: 1.12 | G109: 0.53 | H109: 70 | I109: 1 | J109: 0.68 | K109: 1.647058824 | L109: 0.7794117647
A110: 3 | B110: 18.1 | C110: 101 | D110: 25 | E110: 80 | F110: 1.23 | G110: 0.51 | H110: 70 | I110: 1 | J110: 0.68 | K110: 1.808823529 | L110: 0.75
A111: 3 | B111: 19.5 | C111: 101 | D111: 25 | E111: 90 | F111: 1.34 | G111: 0.49 | H111: 70 | I111: 1 | J111: 0.68 | K111: 1.970588235 | L111: 0.7205882353
A112: 3 | B112: 20.7 | C112: 101 | D112: 25 | E112: 99 | F112: 1.44 | G112: 0.46 | H112: 70 | I112: 1 | J112: 0.68 | K112: 2.117647059 | L112: 0.6764705882
A113: 3 | B113: 6.1 | C113: 101 | D113: 25 | E113: 1 | F113: 0.72 | G113: 0.72 | H113: 200 | I113: 0 | J113: 0.72 | K113: 1 | L113: 1
A114: 3 | B114: 7.8 | C114: 101 | D114: 25 | E114: 50 | F114: 1.12 | G114: 0.7 | H114: 200 | I114: 1 | J114: 0.72 | K114: 1.555555556 | L114: 0.9722222222
A115: 3 | B115: 8.5 | C115: 101 | D115: 25 | E115: 60 | F115: 1.27 | G115: 0.69 | H115: 200 | I115: 1 | J115: 0.72 | K115: 1.763888889 | L115: 0.9583333333
A116: 3 | B116: 9.1 | C116: 101 | D116: 25 | E116: 70 | F116: 1.43 | G116: 0.69 | H116: 200 | I116: 1 | J116: 0.72 | K116: 1.986111111 | L116: 0.9583333333
A117: 3 | B117: 9.8 | C117: 101 | D117: 25 | E117: 80 | F117: 1.59 | G117: 0.68 | H117: 200 | I117: 1 | J117: 0.72 | K117: 2.208333333 | L117: 0.9444444444
A118: 3 | B118: 10.5 | C118: 101 | D118: 25 | E118: 90 | F118: 1.75 | G118: 0.68 | H118: 200 | I118: 1 | J118: 0.72 | K118: 2.430555556 | L118: 0.9444444444
A119: 3 | B119: 11.1 | C119: 101 | D119: 25 | E119: 99 | F119: 1.89 | G119: 0.67 | H119: 200 | I119: 1 | J119: 0.72 | K119: 2.625 | L119: 0.9305555556
A120: 3 | B120: 4.9 | C120: 101 | D120: 25 | E120: 1 | F120: 0.73 | G120: 0.73 | H120: 330 | I120: 0 | J120: 0.73 | K120: 1 | L120: 1
A121: 3 | B121: 6 | C121: 101 | D121: 25 | E121: 50 | F121: 1.14 | G121: 0.71 | H121: 330 | I121: 1 | J121: 0.73 | K121: 1.561643836 | L121: 0.9726027397
A122: 3 | B122: 6.4 | C122: 101 | D122: 25 | E122: 60 | F122: 1.3 | G122: 0.71 | H122: 330 | I122: 1 | J122: 0.73 | K122: 1.780821918 | L122: 0.9726027397
A123: 3 | B123: 6.8 | C123: 101 | D123: 25 | E123: 70 | F123: 1.46 | G123: 0.7 | H123: 330 | I123: 1 | J123: 0.73 | K123: 2 | L123: 0.9589041096
A124: 3 | B124: 7.2 | C124: 101 | D124: 25 | E124: 80 | F124: 1.62 | G124: 0.7 | H124: 330 | I124: 1 | J124: 0.73 | K124: 2.219178082 | L124: 0.9589041096
A125: 3 | B125: 7.6 | C125: 101 | D125: 25 | E125: 90 | F125: 1.78 | G125: 0.7 | H125: 330 | I125: 1 | J125: 0.73 | K125: 2.438356164 | L125: 0.9589041096
A126: 3 | B126: 8 | C126: 101 | D126: 25 | E126: 99 | F126: 1.93 | G126: 0.69 | H126: 330 | I126: 1 | J126: 0.73 | K126: 2.643835616 | L126: 0.9452054795
A127: 3 | B127: 11.7 | C127: 101 | D127: 26 | E127: 1 | F127: 0.71 | G127: 0.71 | H127: 70 | I127: 0 | J127: 0.71 | K127: 1 | L127: 1
A128: 3 | B128: 14.5 | C128: 101 | D128: 26 | E128: 50 | F128: 0.94 | G128: 0.6 | H128: 70 | I128: 1 | J128: 0.71 | K128: 1.323943662 | L128: 0.8450704225
A129: 3 | B129: 16 | C129: 101 | D129: 26 | E129: 60 | F129: 1.06 | G129: 0.58 | H129: 70 | I129: 1 | J129: 0.71 | K129: 1.492957746 | L129: 0.8169014085
A130: 3 | B130: 17.5 | C130: 101 | D130: 26 | E130: 70 | F130: 1.19 | G130: 0.55 | H130: 70 | I130: 1 | J130: 0.71 | K130: 1.676056338 | L130: 0.7746478873
A131: 3 | B131: 19 | C131: 101 | D131: 26 | E131: 80 | F131: 1.31 | G131: 0.52 | H131: 70 | I131: 1 | J131: 0.71 | K131: 1.845070423 | L131: 0.7323943662
A132: 3 | B132: 20.5 | C132: 101 | D132: 26 | E132: 90 | F132: 1.42 | G132: 0.5 | H132: 70 | I132: 1 | J132: 0.71 | K132: 2 | L132: 0.7042253521
A133: 3 | B133: 21.7 | C133: 101 | D133: 26 | E133: 99 | F133: 1.52 | G133: 0.47 | H133: 70 | I133: 1 | J133: 0.71 | K133: 2.14084507 | L133: 0.661971831
A134: 3 | B134: 6.2 | C134: 101 | D134: 26 | E134: 1 | F134: 0.75 | G134: 0.75 | H134: 200 | I134: 0 | J134: 0.75 | K134: 1 | L134: 1
A135: 3 | B135: 8.1 | C135: 101 | D135: 26 | E135: 50 | F135: 1.19 | G135: 0.73 | H135: 200 | I135: 1 | J135: 0.75 | K135: 1.586666667 | L135: 0.9733333333
A136: 3 | B136: 8.8 | C136: 101 | D136: 26 | E136: 60 | F136: 1.36 | G136: 0.72 | H136: 200 | I136: 1 | J136: 0.75 | K136: 1.813333333 | L136: 0.96
A137: 3 | B137: 9.6 | C137: 101 | D137: 26 | E137: 70 | F137: 1.53 | G137: 0.72 | H137: 200 | I137: 1 | J137: 0.75 | K137: 2.04 | L137: 0.96
A138: 3 | B138: 10.3 | C138: 101 | D138: 26 | E138: 80 | F138: 1.7 | G138: 0.71 | H138: 200 | I138: 1 | J138: 0.75 | K138: 2.266666667 | L138: 0.9466666667
A139: 3 | B139: 11 | C139: 101 | D139: 26 | E139: 90 | F139: 1.86 | G139: 0.71 | H139: 200 | I139: 1 | J139: 0.75 | K139: 2.48 | L139: 0.9466666667
A140: 3 | B140: 11.6 | C140: 101 | D140: 26 | E140: 99 | F140: 2.01 | G140: 0.7 | H140: 200 | I140: 1 | J140: 0.75 | K140: 2.68 | L140: 0.9333333333
A141: 3 | B141: 5 | C141: 101 | D141: 26 | E141: 1 | F141: 0.76 | G141: 0.76 | H141: 330 | I141: 0 | J141: 0.76 | K141: 1 | L141: 1
A142: 3 | B142: 6.2 | C142: 101 | D142: 26 | E142: 50 | F142: 1.22 | G142: 0.74 | H142: 330 | I142: 1 | J142: 0.76 | K142: 1.605263158 | L142: 0.9736842105
A143: 3 | B143: 6.6 | C143: 101 | D143: 26 | E143: 60 | F143: 1.39 | G143: 0.74 | H143: 330 | I143: 1 | J143: 0.76 | K143: 1.828947368 | L143: 0.9736842105
A144: 3 | B144: 7 | C144: 101 | D144: 26 | E144: 70 | F144: 1.56 | G144: 0.73 | H144: 330 | I144: 1 | J144: 0.76 | K144: 2.052631579 | L144: 0.9605263158
A145: 3 | B145: 7.5 | C145: 101 | D145: 26 | E145: 80 | F145: 1.73 | G145: 0.73 | H145: 330 | I145: 1 | J145: 0.76 | K145: 2.276315789 | L145: 0.9605263158
A146: 3 | B146: 7.9 | C146: 101 | D146: 26 | E146: 90 | F146: 1.9 | G146: 0.72 | H146: 330 | I146: 1 | J146: 0.76 | K146: 2.5 | L146: 0.9473684211
A147: 3 | B147: 8.3 | C147: 101 | D147: 26 | E147: 99 | F147: 2.05 | G147: 0.72 | H147: 330 | I147: 1 | J147: 0.76 | K147: 2.697368421 | L147: 0.9473684211
A148: 3 | B148: 12 | C148: 101 | D148: 27 | E148: 1 | F148: 0.74 | G148: 0.74 | H148: 70 | I148: 0 | J148: 0.74 | K148: 1 | L148: 1
A149: 3 | B149: 15.3 | C149: 101 | D149: 27 | E149: 50 | F149: 1 | G149: 0.62 | H149: 70 | I149: 1 | J149: 0.74 | K149: 1.351351351 | L149: 0.8378378378
A150: 3 | B150: 16.9 | C150: 101 | D150: 27 | E150: 60 | F150: 1.13 | G150: 0.59 | H150: 70 | I150: =IF(F150<>G150,1,0) -> 1 | J150: 0.74 | K150: =F150/J150 -> 1.527027027 | L150: 0.7972972973
A151: 3 | B151: 18.4 | C151: 101 | D151: 27 | E151: 70 | F151: 1.26 | G151: 0.57 | H151: 70 | I151: 1 | J151: 0.74 | K151: 1.702702703 | L151: =G151/J151 -> 0.7702702703
A152: 3 | B152: 20 | C152: 101 | D152: 27 | E152: 80 | F152: 1.38 | G152: 0.54 | H152: 70 | I152: 1 | J152: 0.74 | K152: 1.864864865 | L152: 0.7297297297
A153: 3 | B153: 21.5 | C153: 101 | D153: 27 | E153: 90 | F153: 1.5 | G153: 0.51 | H153: 70 | I153: 1 | J153: =IF(F153/G153=1,F153,J152) -> 0.74 | K153: 2.027027027 | L153: 0.6891891892
A154: 3 | B154: 22.8 | C154: 101 | D154: 27 | E154: 99 | F154: 1.61 | G154: 0.48 | H154: 70 | I154: 1 | J154: 0.74 | K154: 2.175675676 | L154: 0.6486486486
A155: 3 | B155: 6.4 | C155: 101 | D155: 27 | E155: 1 | F155: 0.78 | G155: 0.78 | H155: 200 | I155: 0 | J155: 0.78 | K155: 1 | L155: 1
A156: 3 | B156: 8.5 | C156: 101 | D156: 27 | E156: 50 | F156: 1.27 | G156: 0.76 | H156: 200 | I156: 1 | J156: 0.78 | K156: 1.628205128 | L156: 0.9743589744
A157: 3 | B157: 9.2 | C157: 101 | D157: 27 | E157: 60 | F157: 1.45 | G157: 0.75 | H157: 200 | I157: 1 | J157: 0.78 | K157: 1.858974359 | L157: 0.9615384615
A158: 3 | B158: 10 | C158: 101 | D158: 27 | E158: 70 | F158: 1.63 | G158: 0.74 | H158: 200 | I158: 1 | J158: 0.78 | K158: 2.08974359 | L158: 0.9487179487
A159: 3 | B159: 10.7 | C159: 101 | D159: 27 | E159: 80 | F159: 1.81 | G159: 0.74 | H159: 200 | I159: 1 | J159: 0.78 | K159: 2.320512821 | L159: 0.9487179487
A160: 3 | B160: 11.5 | C160: 101 | D160: 27 | E160: 90 | F160: 1.98 | G160: 0.73 | H160: 200 | I160: 1 | J160: 0.78 | K160: 2.538461538 | L160: 0.9358974359
A161: 3 | B161: 12.2 | C161: 101 | D161: 27 | E161: 99 | F161: 2.14 | G161: 0.73 | H161: 200 | I161: 1 | J161: 0.78 | K161: 2.743589744 | L161: 0.9358974359
A162: 3 | B162: 5 | C162: 101 | D162: 27 | E162: 1 | F162: 0.79 | G162: 0.79 | H162: 330 | I162: 0 | J162: 0.79 | K162: 1 | L162: 1
A163: 3 | B163: 6.4 | C163: 101 | D163: 27 | E163: 50 | F163: 1.3 | G163: 0.77 | H163: 330 | I163: 1 | J163: 0.79 | K163: 1.64556962 | L163: 0.9746835443
A164: 3 | B164: 6.8 | C164: 101 | D164: 27 | E164: 60 | F164: 1.48 | G164: 0.76 | H164: 330 | I164: 1 | J164: 0.79 | K164: 1.873417722 | L164: 0.9620253165
A165: 3 | B165: 7.3 | C165: 101 | D165: 27 | E165: 70 | F165: 1.66 | G165: 0.76 | H165: 330 | I165: 1 | J165: 0.79 | K165: 2.101265823 | L165: 0.9620253165
A166: 3 | B166: 7.8 | C166: 101 | D166: 27 | E166: 80 | F166: 1.84 | G166: 0.76 | H166: 330 | I166: 1 | J166: 0.79 | K166: 2.329113924 | L166: 0.9620253165
A167: 3 | B167: 8.2 | C167: 101 | D167: 27 | E167: 90 | F167: 2.02 | G167: 0.75 | H167: 330 | I167: 1 | J167: 0.79 | K167: 2.556962025 | L167: 0.9493670886
A168: 3 | B168: 8.7 | C168: 101 | D168: 27 | E168: 99 | F168: 2.18 | G168: 0.75 | H168: 330 | I168: 1 | J168: 0.79 | K168: 2.759493671 | L168: 0.9493670886
A169: 3 | B169: 12.4 | C169: 101 | D169: 28 | E169: 1 | F169: 0.76 | G169: 0.76 | H169: 70 | I169: 0 | J169: 0.76 | K169: 1 | L169: 1
A170: 3 | B170: 16 | C170: 101 | D170: 28 | E170: 50 | F170: 1.06 | G170: 0.64 | H170: 70 | I170: 1 | J170: 0.76 | K170: 1.394736842 | L170: 0.8421052632
A171: 3 | B171: 17.7 | C171: 101 | D171: 28 | E171: 60 | F171: 1.2 | G171: 0.61 | H171: 70 | I171: 1 | J171: 0.76 | K171: 1.578947368 | L171: 0.8026315789
A172: 3 | B172: 19.3 | C172: 101 | D172: 28 | E172: 70 | F172: 1.33 | G172: 0.58 | H172: 70 | I172: 1 | J172: 0.76 | K172: 1.75 | L172: 0.7631578947
A173: 3 | B173: 20.9 | C173: 101 | D173: 28 | E173: 80 | F173: 1.46 | G173: 0.55 | H173: 70 | I173: 1 | J173: 0.76 | K173: 1.921052632 | L173: 0.7236842105
A174: 3 | B174: 22.5 | C174: 101 | D174: 28 | E174: 90 | F174: 1.59 | G174: 0.52 | H174: 70 | I174: 1 | J174: 0.76 | K174: 2.092105263 | L174: 0.6842105263
A175: 3 | B175: 23.9 | C175: 101 | D175: 28 | E175: 99 | F175: 1.7 | G175: 0.49 | H175: 70 | I175: 1 | J175: 0.76 | K175: 2.236842105 | L175: 0.6447368421
A176: 3 | B176: 6.5 | C176: 101 | D176: 28 | E176: 1 | F176: 0.81 | G176: 0.81 | H176: 200 | I176: 0 | J176: 0.81 | K176: 1 | L176: 1
A177: 3 | B177: 8.8 | C177: 101 | D177: 28 | E177: 50 | F177: 1.35 | G177: 0.78 | H177: 200 | I177: 1 | J177: 0.81 | K177: 1.666666667 | L177: 0.962962963
A178: 3 | B178: 9.6 | C178: 101 | D178: 28 | E178: 60 | F178: 1.54 | G178: 0.78 | H178: 200 | I178: 1 | J178: 0.81 | K178: 1.901234568 | L178: 0.962962963
A179: 3 | B179: 10.4 | C179: 101 | D179: 28 | E179: 70 | F179: 1.73 | G179: 0.77 | H179: 200 | I179: 1 | J179: 0.81 | K179: 2.135802469 | L179: 0.950617284
A180: 3 | B180: 11.2 | C180: 101 | D180: 28 | E180: 80 | F180: 1.92 | G180: 0.77 | H180: 200 | I180: 1 | J180: 0.81 | K180: 2.37037037 | L180: 0.950617284
A181: 3 | B181: 12 | C181: 101 | D181: 28 | E181: 90 | F181: 2.1 | G181: 0.76 | H181: 200 | I181: 1 | J181: 0.81 | K181: 2.592592593 | L181: 0.9382716049
A182: 3 | B182: 12.8 | C182: 101 | D182: 28 | E182: 99 | F182: 2.27 | G182: 0.75 | H182: 200 | I182: 1 | J182: 0.81 | K182: 2.802469136 | L182: 0.9259259259
A183: 3 | B183: 5.1 | C183: 101 | D183: 28 | E183: 1 | F183: 0.82 | G183: 0.82 | H183: 330 | I183: 0 | J183: 0.82 | K183: 1 | L183: 1
A184: 3 | B184: 6.6 | C184: 101 | D184: 28 | E184: 50 | F184: 1.38 | G184: 0.8 | H184: 330 | I184: 1 | J184: 0.82 | K184: 1.682926829 | L184: 0.9756097561
A185: 3 | B185: 7.1 | C185: 101 | D185: 28 | E185: 60 | F185: 1.57 | G185: 0.79 | H185: 330 | I185: 1 | J185: 0.82 | K185: 1.914634146 | L185: 0.9634146341
A186: 3 | B186: 7.6 | C186: 101 | D186: 28 | E186: 70 | F186: 1.76 | G186: 0.79 | H186: 330 | I186: 1 | J186: 0.82 | K186: 2.146341463 | L186: 0.9634146341
A187: 3 | B187: 8.1 | C187: 101 | D187: 28 | E187: 80 | F187: 1.95 | G187: 0.78 | H187: 330 | I187: 1 | J187: 0.82 | K187: 2.37804878 | L187: 0.9512195122
A188: 3 | B188: 8.6 | C188: 101 | D188: 28 | E188: 90 | F188: 2.14 | G188: 0.78 | H188: 330 | I188: 1 | J188: 0.82 | K188: 2.609756098 | L188: 0.9512195122
A189: 3 | B189: 9 | C189: 101 | D189: 28 | E189: 99 | F189: 2.32 | G189: 0.78 | H189: 330 | I189: 1 | J189: 0.82 | K189: 2.829268293 | L189: 0.9512195122
A190: 3 | B190: 12.6 | C190: 171 | D190: 21 | E190: 1 | F190: 0.79 | G190: 0.79 | H190: 70 | I190: 0 | J190: 0.79 | K190: 1 | L190: 1
A191: 3 | B191: 12.5 | C191: 171 | D191: 21 | E191: 50 | F191: 0.78 | G191: 0.67 | H191: 70 | I191: 1 | J191: 0.79 | K191: 0.9873417722 | L191: 0.8481012658
A192: 3 | B192: 13.9 | C192: 171 | D192: 21 | E192: 60 | F192: 0.89 | G192: 0.62 | H192: 70 | I192: 1 | J192: 0.79 | K192: 1.126582278 | L192: 0.7848101266
A193: 3 | B193: 15.2 | C193: 171 | D193: 21 | E193: 70 | F193: 0.99 | G193: 0.57 | H193: 70 | I193: 1 | J193: 0.79 | K193: 1.253164557 | L193: 0.7215189873
A194: 3 | B194: 16.5 | C194: 171 | D194: 21 | E194: 80 | F194: 1.1 | G194: 0.52 | H194: 70 | I194: 1 | J194: 0.79 | K194: 1.392405063 | L194: 0.6582278481
A195: 3 | B195: 17.7 | C195: 171 | D195: 21 | E195: 90 | F195: 1.2 | G195: 0.48 | H195: 70 | I195: 1 | J195: 0.79 | K195: 1.518987342 | L195: 0.6075949367
A196: 3 | B196: 18.8 | C196: 171 | D196: 21 | E196: 99 | F196: 1.29 | G196: 0.43 | H196: 70 | I196: 1 | J196: 0.79 | K196: 1.632911392 | L196: 0.5443037975
A197: 3 | B197: 7.1 | C197: 171 | D197: 21 | E197: 1 | F197: 0.95 | G197: 0.95 | H197: 200 | I197: 0 | J197: 0.95 | K197: 1 | L197: 1
A198: 3 | B198: 8.3 | C198: 171 | D198: 21 | E198: 50 | F198: 1.24 | G198: 0.89 | H198: 200 | I198: 1 | J198: 0.95 | K198: 1.305263158 | L198: 0.9368421053
A199: 3 | B199: 9.1 | C199: 171 | D199: 21 | E199: 60 | F199: 1.43 | G199: 0.88 | H199: 200 | I199: 1 | J199: 0.95 | K199: 1.505263158 | L199: 0.9263157895
A200: 3 | B200: 9.9 | C200: 171 | D200: 21 | E200: 70 | F200: 1.62 | G200: 0.86 | H200: 200 | I200: 1 | J200: 0.95 | K200: 1.705263158 | L200: 0.9052631579
A201: 3 | B201: 10.7 | C201: 171 | D201: 21 | E201: 80 | F201: 1.81 | G201: 0.85 | H201: 200 | I201: 1 | J201: 0.95 | K201: 1.905263158 | L201: 0.8947368421
A202: 3 | B202: 11.6 | C202: 171 | D202: 21 | E202: 90 | F202: 2 | G202: 0.83 | H202: 200 | I202: 1 | J202: 0.95 | K202: 2.105263158 | L202: 0.8736842105
... 4298 more rows

Sheet Master-Auslegung_V120-V127 (hidden)
B1: VKL1000 | C1: Nullseriengerät | D1: 2L | E1: 12style/3 | F1: mit Filter | G1: 2. Variable | H1: Drehzahl [1/min] | I1: Drehzahl | J1: 1/min | K1: =CONCATENATE(B1,"; ", C1, "; ", D1, "; ", F1) -> VKL1000; Nullseriengerät; 2L; mit Filter | AB1: Bemerkung: | AY1: 1 | AZ1: kühlen
B2: kühlen | AB2: mit 3D Strömung | AH2: Auslegung bei gleichem Volumenstrom | AN2: Auslegung bei gleicher Drehzahl | AY2: 2 | AZ2: heizen
B3: w_soll für Auslegung 1 und 2 | C3: =VKL!I13 -> 200 | D3: kg/h | N3: Messung | O3: Messung - Kontrolle | P3: Drehzahl | Q3: q Sek | R3: Wasser-Massenstrom [kg/h] | S3: =H7 -> Sekundärvolumenstrom - Kalorik [m³/h] | T3: Abweichung zu Auslegung 1 | U3: Vergleichstext 1 | V3: Abweichung zu Auslegung 2 | W3: Vergleichstext 2 | X3: Druckverlust Kasten [Pa] | Y3: Bemerkung | Z3: Bemerkung | AB3: Messung | AC3: Messung - Kontrolle | AD3: Drehzahl | AE3: q Sek | AF3: Wasser-Massenstrom [kg/h] | AG3: =$H$7 -> Sekundärvolumenstrom - Kalorik [m³/h] | AH3: =$H$7 -> Sekundärvolumenstrom - Kalorik [m³/h] | AI3: =AD3 -> Drehzahl | AJ3: =CONCATENATE("Abweichung ", AI3) -> Abweichung Drehzahl | AK3: q_1 (Volumenstrom) | AL3: Abweichung q zu Auslegung 1 | AM3: Vergleichstext 1 | AN3: =AD3 -> Drehzahl | AO3: =AG3 -> Sekundärvolumenstrom - Kalorik [m³/h] | AP3: =CONCATENATE("Abweichung ", AO3) -> Abweichung Sekundärvolumenstrom - Kalorik [m³/h] | AQ3: q_2 (Drehzahl) | AR3: Abweichung q zu Auslegung 2 | AS3: Vergleichstext 2 | AT3: Druckverlust Kasten [Pa] | AU3: Bemerkung | AV3: Bemerkung | AY3: Abfrage | AZ3: =IF(B2="heizen",2,1) -> 1
B4: Nennwassermenge | C4: 200 | D4: kg/h | P4: [1/min] | Q4: [W/K] | Z4: [-] | AD4: [1/min] | AE4: [W/K] | AG4: [m³/h] | AH4: =AG4 -> [m³/h] | AI4: =AD4 -> [1/min] | AN4: [1/min] | AO4: =AG4 -> [m³/h] | AV4: [-]
N5: V72 | O5: =VLOOKUP($N5,Matrix_Rohdaten,1,0) -> V72 | P5: =VLOOKUP($N5,Matrix_Rohdaten,4,0) -> 1039 | Q5: =VLOOKUP($N5,Matrix_Rohdaten,17,0) -> 60.46388567 | R5: =VLOOKUP($N5,Matrix_Rohdaten,12,0) -> 201.1336133 | S5: =VLOOKUP($N5,Matrix_Rohdaten,18,0) -> 287.061498 | T5: =Q5/$D$9-1 -> 0.2782671754 | U5: =IF(T5>0,CONCATENATE("+", ROUND(AVERAGE(T5)*100,0), " % Kühlleistung ", " im Vergleich zur Auslegung 1"), CONCATENATE(ROUND(AVERAGE(T5)*100,0), " % Kühlleistung ", " im Vergleich zur Auslegung 1")) -> +28 % Kühlleistung im Vergleich zur Auslegung 1 | V5: =Q5/$I$9-1 -> -0.3518956448 | W5: =IF(V5>0,CONCATENATE("+", ROUND(AVERAGE(V5)*100,0), " % Kühlleistung ", " im Vergleich zur Auslegung 2"), CONCATENATE(ROUND(AVERAGE(V5)*100,0), " % Kühlleistung ", " im Vergleich zur Auslegung 2")) -> -35 % Kühlleistung im Vergleich zur Auslegung 2 | X5: =VLOOKUP($N5,Matrix_Rohdaten,5,0) -> 12 | Y5: =VLOOKUP($N5,Matrix_Rohdaten,2,0) -> VKL800; ISH Prototyp; mit Filter, 2MR, mit 3-3,5cm Schalldämm., mit 3D-Strömung | Z5: =CONCATENATE(O5, ": ",Y5, "; q Sek bei wok ",ROUND(R5,0), " kg/h; ",ROUND(P5,0), " 1/min; ", ROUND(S5,0), " m³/h") -> V72: VKL800; ISH Prototyp; mit Filter, 2MR, mit 3-3,5cm Schalldämm., mit 3D-Strömung; q Sek bei wok 201 kg/h; 1039 1/min; 287 m³/h | AB5: V71 | AC5: =VLOOKUP($AB5,Matrix_Rohdaten,1,0) -> V71 | AD5: =VLOOKUP($AB5,Matrix_Rohdaten,4,0) -> 489 | AE5: =VLOOKUP($AB5,Matrix_Rohdaten,17,0) -> 32.01288767 | AF5: =VLOOKUP($AB5,Matrix_Rohdaten,12,0) -> 201.0265493 | AG5: =VLOOKUP($AB5,Matrix_Rohdaten,18,0) -> 124.165886 | AH5: =AG5 -> 124.165886 | AI5: 468.3073012 | AJ5: =1/AD5*AI5-1 -> -0.04231635752 | AK5: 31.93751438 | AL5: =AE5/AK5-1 -> 0.00236002356 | AM5: =IF(AL5>0,CONCATENATE("+", ROUND(AVERAGE(AL5)*100,0), " % Kühlleistung ", " im Vergleich zur Auslegung 1"), CONCATENATE(ROUND(AVERAGE(AL5)*100,0), " % Kühlleistung ", " im Vergleich zur Auslegung 1")) -> +0 % Kühlleistung im Vergleich zur Auslegung 1 | AN5: 489 | AO5: 130.6596954 | AP5: =1/AG5*AO5-1 -> 0.05229946529 | AQ5: 33.40293492 | AR5: =AE5/AQ5-1 -> -0.04161452457 | AS5: =IF(AR5>0,CONCATENATE("+", ROUND(AVERAGE(AR5)*100,0), " % Kühlleistung ", " im Vergleich zur Auslegung 2"), CONCATENATE(ROUND(AVERAGE(AR5)*100,0), " % Kühlleistung ", " im Vergleich zur Auslegung 2")) -> -4 % Kühlleistung im Vergleich zur Auslegung 2 | AT5: =VLOOKUP($AB5,Matrix_Rohdaten,5,0) -> 1.9 | AU5: =VLOOKUP($AB5,Matrix_Rohdaten,2,0) -> VKL800; ISH Prototyp; mit Filter, 2MR, mit 3-3,5cm Schalldämm., mit 3D-Strömung | AV5: =CONCATENATE(AC5, ": ",AU5, "; q Sek bei wok ",ROUND(AF5,0), " kg/h; ",ROUND(AD5,0), " 1/min; ", ROUND(AG5,0), " m³/h") -> V71: VKL800; ISH Prototyp; mit Filter, 2MR, mit 3-3,5cm Schalldämm., mit 3D-Strömung; q Sek bei wok 201 kg/h; 489 1/min; 124 m³/h
B6: Auslegung 1 - Volumenstrom einstellbar | D6: =CONCATENATE("Auslegung 2; ", 'Master-Auswertung_V120-V127'!$F$1, " ", ROUND($C$3,0), " kg/h ;",ROUND(B9,0), " ", B8) -> Auslegung 2; Nullseriengerät 200 kg/h ;200 m³/h | G6: =CONCATENATE("Auslegung 2 - ", 'Master-Auslegung_V120-V127'!C7," einstellbar") -> Auslegung 2 - Drehzahl einstellbar | I6: =CONCATENATE("Auslegung 2; ", 'Master-Auswertung_V120-V127'!$F$1, " ", ROUND($C$3,0), " kg/h ;", G9, " ", G8) -> Auslegung 2; Nullseriengerät 200 kg/h ;1145 1/min | AB6: V70 | AC6: =VLOOKUP($AB6,Matrix_Rohdaten,1,0) -> V70 | AD6: =VLOOKUP($AB6,Matrix_Rohdaten,4,0) -> 734 | AE6: =VLOOKUP($AB6,Matrix_Rohdaten,17,0) -> 47.23117433 | AF6: =VLOOKUP($AB6,Matrix_Rohdaten,12,0) -> 205.2275413 | AG6: =VLOOKUP($AB6,Matrix_Rohdaten,18,0) -> 199.2992107 | AH6: =AG6 -> 199.2992107 | AI6: 699.6406298 | AJ6: =1/AD6*AI6-1 -> -0.046811131 | AK6: 46.71658752 | AL6: =AE6/AK6-1 -> 0.01101507709 | AM6: =IF(AL6>0,CONCATENATE("+", ROUND(AVERAGE(AL6)*100,0), " % Kühlleistung ", " im Vergleich zur Auslegung 1"), CONCATENATE(ROUND(AVERAGE(AL6)*100,0), " % Kühlleistung ", " im Vergleich zur Auslegung 1")) -> +1 % Kühlleistung im Vergleich zur Auslegung 1 | AN6: 734 | AO6: 210.8865499 | AP6: =1/AG6*AO6-1 -> 0.05814041702 | AQ6: 48.60018764 | AR6: =AE6/AQ6-1 -> -0.02816888937 | AS6: =IF(AR6>0,CONCATENATE("+", ROUND(AVERAGE(AR6)*100,0), " % Kühlleistung ", " im Vergleich zur Auslegung 2"), CONCATENATE(ROUND(AVERAGE(AR6)*100,0), " % Kühlleistung ", " im Vergleich zur Auslegung 2")) -> -3 % Kühlleistung im Vergleich zur Auslegung 2 | AT6: =VLOOKUP($AB6,Matrix_Rohdaten,5,0) -> 5 | AU6: =VLOOKUP($AB6,Matrix_Rohdaten,2,0) -> VKL800; ISH Prototyp; mit Filter, 2MR, mit 3-3,5cm Schalldämm., mit 3D-Strömung | AV6: =CONCATENATE(AC6, ": ",AU6, "; q Sek bei wok ",ROUND(AF6,0), " kg/h; ",ROUND(AD6,0), " 1/min; ", ROUND(AG6,0), " m³/h") -> V70: VKL800; ISH Prototyp; mit Filter, 2MR, mit 3-3,5cm Schalldämm., mit 3D-Strömung; q Sek bei wok 205 kg/h; 734 1/min; 199 m³/h
B7: V_Soll | C7: ='Master-Auswertung_V120-V127'!E2 -> Drehzahl | D7: q Sek | G7: ='Master-Auswertung_V120-V127'!E2 -> Drehzahl | H7: ='Master-Auswertung_V120-V127'!K6 -> Sekundärvolumenstrom - Kalorik [m³/h] | I7: q Sek | AB7: V72 | AC7: =VLOOKUP($AB7,Matrix_Rohdaten,1,0) -> V72 | AD7: =VLOOKUP($AB7,Matrix_Rohdaten,4,0) -> 1039 | AE7: =VLOOKUP($AB7,Matrix_Rohdaten,17,0) -> 60.46388567 | AF7: =VLOOKUP($AB7,Matrix_Rohdaten,12,0) -> 201.1336133 | AG7: =VLOOKUP($AB7,Matrix_Rohdaten,18,0) -> 287.061498 | AH7: =AG7 -> 287.061498 | AI7: 953.4911342 | AJ7: =1/AD7*AI7-1 -> -0.08229919708 | AK7: 59.9797485 | AL7: =AE7/AK7-1 -> 0.008071677191 | AM7: =IF(AL7>0,CONCATENATE("+", ROUND(AVERAGE(AL7)*100,0), " % Kühlleistung ", " im Vergleich zur Auslegung 1"), CONCATENATE(ROUND(AVERAGE(AL7)*100,0), " % Kühlleistung ", " im Vergleich zur Auslegung 1")) -> +1 % Kühlleistung im Vergleich zur Auslegung 1 | AN7: 1039 | AO7: 317.6416034 | AP7: =1/AG7*AO7-1 -> 0.1065280631 | AQ7: 63.88301116 | AR7: =AE7/AQ7-1 -> -0.05352167078 | AS7: =IF(AR7>0,CONCATENATE("+", ROUND(AVERAGE(AR7)*100,0), " % Kühlleistung ", " im Vergleich zur Auslegung 2"), CONCATENATE(ROUND(AVERAGE(AR7)*100,0), " % Kühlleistung ", " im Vergleich zur Auslegung 2")) -> -5 % Kühlleistung im Vergleich zur Auslegung 2 | AT7: =VLOOKUP($AB7,Matrix_Rohdaten,5,0) -> 12 | AU7: =VLOOKUP($AB7,Matrix_Rohdaten,2,0) -> VKL800; ISH Prototyp; mit Filter, 2MR, mit 3-3,5cm Schalldämm., mit 3D-Strömung | AV7: =CONCATENATE(AC7, ": ",AU7, "; q Sek bei wok ",ROUND(AF7,0), " kg/h; ",ROUND(AD7,0), " 1/min; ", ROUND(AG7,0), " m³/h") -> V72: VKL800; ISH Prototyp; mit Filter, 2MR, mit 3-3,5cm Schalldämm., mit 3D-Strömung; q Sek bei wok 201 kg/h; 1039 1/min; 287 m³/h
B8: m³/h | C8: ='Master-Auswertung_V120-V127'!C2 -> 1/min | D8: W/K | G8: ='Master-Auswertung_V120-V127'!C2 -> 1/min | H8: m³/h | I8: W/K | AB8: V73 | AC8: =VLOOKUP($AB8,Matrix_Rohdaten,1,0) -> V73 | AD8: =VLOOKUP($AB8,Matrix_Rohdaten,4,0) -> 1146 | AE8: =VLOOKUP($AB8,Matrix_Rohdaten,17,0) -> 65.427913 | AF8: =VLOOKUP($AB8,Matrix_Rohdaten,12,0) -> 201.1999377 | AG8: =VLOOKUP($AB8,Matrix_Rohdaten,18,0) -> 325.3430097 | AH8: =AG8 -> 325.3430097 | AI8: 1060.32727 | AJ8: =1/AD8*AI8-1 -> -0.0747580543 | AK8: 64.71609043 | AL8: =AE8/AK8-1 -> 0.01099915905 | AM8: =IF(AL8>0,CONCATENATE("+", ROUND(AVERAGE(AL8)*100,0), " % Kühlleistung ", " im Vergleich zur Auslegung 1"), CONCATENATE(ROUND(AVERAGE(AL8)*100,0), " % Kühlleistung ", " im Vergleich zur Auslegung 1")) -> +1 % Kühlleistung im Vergleich zur Auslegung 1 | AN8: 1146 | AO8: 356.5442666 | AP8: =1/AG8*AO8-1 -> 0.09590265046 | AQ8: 68.1122766 | AR8: =AE8/AQ8-1 -> -0.03941086298 | AS8: =IF(AR8>0,CONCATENATE("+", ROUND(AVERAGE(AR8)*100,0), " % Kühlleistung ", " im Vergleich zur Auslegung 2"), CONCATENATE(ROUND(AVERAGE(AR8)*100,0), " % Kühlleistung ", " im Vergleich zur Auslegung 2")) -> -4 % Kühlleistung im Vergleich zur Auslegung 2 | AT8: =VLOOKUP($AB8,Matrix_Rohdaten,5,0) -> 18 | AU8: =VLOOKUP($AB8,Matrix_Rohdaten,2,0) -> VKL800; ISH Prototyp; mit Filter, 2MR, mit 3-3,5cm Schalldämm., mit 3D-Strömung | AV8: =CONCATENATE(AC8, ": ",AU8, "; q Sek bei wok ",ROUND(AF8,0), " kg/h; ",ROUND(AD8,0), " 1/min; ", ROUND(AG8,0), " m³/h") -> V73: VKL800; ISH Prototyp; mit Filter, 2MR, mit 3-3,5cm Schalldämm., mit 3D-Strömung; q Sek bei wok 201 kg/h; 1146 1/min; 325 m³/h
B9: 200 | C9: ='Master-Auswertung_V120-V127'!I33 -> 525.3461171 | D9: ='Master-Auswertung_V120-V127'!C56 -> 47.30144592 | G9: 1145 | H9: ='Master-Auswertung_V120-V127'!M33 -> 502.1833142 | I9: ='Master-Auswertung_V120-V127'!C77 -> 93.29344137 | L9: =I9*20*0.916 -> 1709.135846
Z12: Text für Diagramme
Z15: =CONCATENATE('Master-Auswertung_V120-V127'!B1, "; ", ROUND($C$3,0), " ", $D$3) -> VKL1000; Nullseriengerät; 2L; 12style/3; mit Filter; 200 kg/h
Z16: =CONCATENATE("A1; ",'Master-Auswertung_V120-V127'!B1, "; ", ROUND($C$3,0), " ", $D$3, "; ", ROUND(C9,0), " ",C8, "; ",ROUND(B9,0), " ", B8) -> A1; VKL1000; Nullseriengerät; 2L; 12style/3; mit Filter; 200 kg/h; 525 1/min; 200 m³/h | AE16: aus Masterauswertung
Z17: =CONCATENATE("A2; ",'Master-Auswertung_V120-V127'!B1, "; ", ROUND($C$3,0), " ", $D$3, "; ", ROUND(G9,0), " ",G8, "; ",ROUND(H9,0), " ", H8) -> A2; VKL1000; Nullseriengerät; 2L; 12style/3; mit Filter; 200 kg/h; 1145 1/min; 502 m³/h | AE17: y = | AF17: mxb
AE18: =INDEX(LOGEST(AG5:AG8,LN(AD5:AD8),,TRUE),1,2) -> 0.1214359569 | AF18: =LN(INDEX(LOGEST(AG5:AG8,LN(AD5:AD8),,TRUE),1,1)) -> 1.119994274
B33: Basis der Auslegung
C34: 1 | D34: 4 | E34: 18 | F34: 12 | G34: 17 | H34: 3 | I34: 5
B35: =CONCATENATE($C$7,"variation (bei ca. ", ROUND(AVERAGE(F37:F40),0), " kg/h)") -> Drehzahlvariation (bei ca. 202 kg/h) | N35: Grenzen der Auslegung
B36: Messung | C36: Messung - Kontrolle | D36: ='Master-Auswertung_V120-V127'!$B$2 -> Drehzahl [1/min] | E36: Sekundärvolumenstrom [m³/h] | F36: Wasser-Massenstrom [kg/h] | G36: spez. Kühlleistung [W/K] | H36: Druckverlust wassers. [kPa] | I36: Druckverlust Kasten [Pa] | N36: ='Master-Auswertung_V120-V127'!$B$2 -> Drehzahl [1/min] | O36: Volumenstrom [m³/h]
A37: V93 | B37: V160 | C37: =VLOOKUP($B37,Matrix_Rohdaten,1,0) -> V160 | D37: =VLOOKUP($B37,Matrix_Rohdaten,4,0) -> 421 | E37: =VLOOKUP($B37,Matrix_Rohdaten,18,0) -> 154.100227 | F37: =VLOOKUP($B37,Matrix_Rohdaten,12,0) -> 199.8999737 | G37: =VLOOKUP($B37,Matrix_Rohdaten,17,0) -> 37.30881333 | H37: =VLOOKUP($B37,Matrix_Rohdaten,3,0) -> 37.4 | N37: =MIN(D37:D40)-50 -> 371 | O37: =MIN(E37:E40) -> 154.100227
A38: V94 | B38: V161 | C38: =VLOOKUP($B38,Matrix_Rohdaten,1,0) -> V161 | D38: =VLOOKUP($B38,Matrix_Rohdaten,4,0) -> 650 | E38: =VLOOKUP($B38,Matrix_Rohdaten,18,0) -> 258.0080757 | F38: =VLOOKUP($B38,Matrix_Rohdaten,12,0) -> 202.151267 | G38: =VLOOKUP($B38,Matrix_Rohdaten,17,0) -> 59.115374 | H38: =VLOOKUP($B38,Matrix_Rohdaten,3,0) -> 37.4 | N38: =MAX(D37:D40)+50 -> 1190 | O38: =MAX(E37:E40) -> 503.6468043
A39: V95 | B39: V162 | C39: =VLOOKUP($B39,Matrix_Rohdaten,1,0) -> V162 | D39: =VLOOKUP($B39,Matrix_Rohdaten,4,0) -> 925 | E39: =VLOOKUP($B39,Matrix_Rohdaten,18,0) -> 385.670451 | F39: =VLOOKUP($B39,Matrix_Rohdaten,12,0) -> 203.8955723 | G39: =VLOOKUP($B39,Matrix_Rohdaten,17,0) -> 79.47045833 | H39: =VLOOKUP($B39,Matrix_Rohdaten,3,0) -> 37.4
A40: V96 | B40: V163 | C40: =VLOOKUP($B40,Matrix_Rohdaten,1,0) -> V163 | D40: =VLOOKUP($B40,Matrix_Rohdaten,4,0) -> 1140 | E40: =VLOOKUP($B40,Matrix_Rohdaten,18,0) -> 503.6468043 | F40: =VLOOKUP($B40,Matrix_Rohdaten,12,0) -> 203.8957757 | G40: =VLOOKUP($B40,Matrix_Rohdaten,17,0) -> 93.50783467 | H40: =VLOOKUP($B40,Matrix_Rohdaten,3,0) -> 37.4
B42: =CONCATENATE("Wassermassenstromvariation (bei Drehzahl von ", ROUND(AVERAGE(D44:D47),0), " 1/min)") -> Wassermassenstromvariation (bei Drehzahl von 671 1/min) | N42: Grenzen der Auslegung
B43: Messung | C43: Messung - Kontrolle | D43: ='Master-Auswertung_V120-V127'!$B$2 -> Drehzahl [1/min] | E43: Sekundärvolumenstrom [m³/h] | F43: Wasser-Massenstrom [kg/h] | G43: spez. Kühlleistung [W/K] | H43: Druckverlust wassers. [kPa] | N43: Wasser-Massenstrom [kg/h]
B44: V150 | C44: =VLOOKUP($B44,Matrix_Rohdaten,1,0) -> V150 | D44: =VLOOKUP($B44,Matrix_Rohdaten,4,0) -> 671 | E44: =VLOOKUP($B44,Matrix_Rohdaten,18,0) -> 252.3325297 | F44: =VLOOKUP($B44,Matrix_Rohdaten,12,0) -> 51.93565267 | G44: =VLOOKUP($B44,Matrix_Rohdaten,17,0) -> 36.642991 | H44: =VLOOKUP($B44,Matrix_Rohdaten,3,0) -> 3 | N44: =MIN(F44:F47) -> 51.93565267
B45: V151 | C45: =VLOOKUP($B45,Matrix_Rohdaten,1,0) -> V151 | D45: =VLOOKUP($B45,Matrix_Rohdaten,4,0) -> 671 | E45: =VLOOKUP($B45,Matrix_Rohdaten,18,0) -> 269.5275567 | F45: =VLOOKUP($B45,Matrix_Rohdaten,12,0) -> 115.4997767 | G45: =VLOOKUP($B45,Matrix_Rohdaten,17,0) -> 53.39189633 | H45: =VLOOKUP($B45,Matrix_Rohdaten,3,0) -> 13.7 | N45: =MAX(F44:F47) -> 276.2662937
B46: V152 | C46: =VLOOKUP($B46,Matrix_Rohdaten,1,0) -> V152 | D46: =VLOOKUP($B46,Matrix_Rohdaten,4,0) -> 671 | E46: =VLOOKUP($B46,Matrix_Rohdaten,18,0) -> 274.0292187 | F46: =VLOOKUP($B46,Matrix_Rohdaten,12,0) -> 200.9830513 | G46: =VLOOKUP($B46,Matrix_Rohdaten,17,0) -> 61.26018 | H46: =VLOOKUP($B46,Matrix_Rohdaten,3,0) -> 37
B47: V153 | C47: =VLOOKUP($B47,Matrix_Rohdaten,1,0) -> V153 | D47: =VLOOKUP($B47,Matrix_Rohdaten,4,0) -> 671 | E47: =VLOOKUP($B47,Matrix_Rohdaten,18,0) -> 265.7046163 | F47: =VLOOKUP($B47,Matrix_Rohdaten,12,0) -> 276.2662937 | G47: =VLOOKUP($B47,Matrix_Rohdaten,17,0) -> 63.35571533 | H47: =VLOOKUP($B47,Matrix_Rohdaten,3,0) -> 66
B48: V154 | C48: =VLOOKUP($B48,Matrix_Rohdaten,1,0) -> V154 | D48: =VLOOKUP($B48,Matrix_Rohdaten,4,0) -> 671 | E48: =VLOOKUP($B48,Matrix_Rohdaten,18,0) -> 269.604242 | F48: =VLOOKUP($B48,Matrix_Rohdaten,12,0) -> 356.0705853 | G48: =VLOOKUP($B48,Matrix_Rohdaten,17,0) -> 65.324441 | H48: =VLOOKUP($B48,Matrix_Rohdaten,3,0) -> 105
B52: =CONCATENATE("Wassermassenstromvariation (bei ",$C$7, " von ", ROUND(AVERAGE(D54:D57),0), " 1/min)") -> Wassermassenstromvariation (bei Drehzahl von 429 1/min)
B53: Messung | C53: Messung - Kontrolle | D53: ='Master-Auswertung_V120-V127'!$B$2 -> Drehzahl [1/min] | E53: Sekundärvolumenstrom [m³/h] | F53: Wasser-Massenstrom [kg/h] | G53: spez. Kühlleistung [W/K] | H53: Druckverlust wassers. [kPa]
B54: V145 | C54: =VLOOKUP($B54,Matrix_Rohdaten,1,0) -> V145 | D54: =VLOOKUP($B54,Matrix_Rohdaten,4,0) -> 428 | E54: =VLOOKUP($B54,Matrix_Rohdaten,18,0) -> 147.3429767 | F54: =VLOOKUP($B54,Matrix_Rohdaten,12,0) -> 45.972973 | G54: =VLOOKUP($B54,Matrix_Rohdaten,17,0) -> 25.602513 | H54: =VLOOKUP($B54,Matrix_Rohdaten,3,0) -> 2.7
B55: V146 | C55: =VLOOKUP($B55,Matrix_Rohdaten,1,0) -> V146 | D55: =VLOOKUP($B55,Matrix_Rohdaten,4,0) -> 428 | E55: =VLOOKUP($B55,Matrix_Rohdaten,18,0) -> 160.9293453 | F55: =VLOOKUP($B55,Matrix_Rohdaten,12,0) -> 107.5728173 | G55: =VLOOKUP($B55,Matrix_Rohdaten,17,0) -> 35.41655 | H55: =VLOOKUP($B55,Matrix_Rohdaten,3,0) -> 12.2
B56: V147 | C56: =VLOOKUP($B56,Matrix_Rohdaten,1,0) -> V147 | D56: =VLOOKUP($B56,Matrix_Rohdaten,4,0) -> 428 | E56: =VLOOKUP($B56,Matrix_Rohdaten,18,0) -> 158.249719 | F56: =VLOOKUP($B56,Matrix_Rohdaten,12,0) -> 196.321048 | G56: =VLOOKUP($B56,Matrix_Rohdaten,17,0) -> 38.29430733 | H56: =VLOOKUP($B56,Matrix_Rohdaten,3,0) -> 35.9
B57: V148 | C57: =VLOOKUP($B57,Matrix_Rohdaten,1,0) -> V148 | D57: =VLOOKUP($B57,Matrix_Rohdaten,4,0) -> 433 | E57: =VLOOKUP($B57,Matrix_Rohdaten,18,0) -> 158.345179 | F57: =VLOOKUP($B57,Matrix_Rohdaten,12,0) -> 275.6963643 | G57: =VLOOKUP($B57,Matrix_Rohdaten,17,0) -> 39.39444333 | H57: =VLOOKUP($B57,Matrix_Rohdaten,3,0) -> 66
B58: V149 | C58: =VLOOKUP($B58,Matrix_Rohdaten,1,0) -> V149 | D58: =VLOOKUP($B58,Matrix_Rohdaten,4,0) -> 428 | E58: =VLOOKUP($B58,Matrix_Rohdaten,18,0) -> 161.4388093 | F58: =VLOOKUP($B58,Matrix_Rohdaten,12,0) -> 356.0723827 | G58: =VLOOKUP($B58,Matrix_Rohdaten,17,0) -> 40.794478 | H58: =VLOOKUP($B58,Matrix_Rohdaten,3,0) -> 105
B60: =CONCATENATE("Wassermassenstromvariation (bei ",$C$7, " von ", ROUND(AVERAGE(D62:D65),0), " 1/min)") -> Wassermassenstromvariation (bei Drehzahl von 1139 1/min)
B61: Messung | C61: Messung - Kontrolle | D61: ='Master-Auswertung_V120-V127'!$B$2 -> Drehzahl [1/min] | E61: Sekundärvolumenstrom [m³/h] | F61: Wasser-Massenstrom [kg/h] | G61: spez. Kühlleistung [W/K] | H61: Druckverlust wassers. [kPa]
B62: V155 | C62: =VLOOKUP($B62,Matrix_Rohdaten,1,0) -> V155 | D62: =VLOOKUP($B62,Matrix_Rohdaten,4,0) -> 1139 | E62: =VLOOKUP($B62,Matrix_Rohdaten,18,0) -> 510.6462593 | F62: =VLOOKUP($B62,Matrix_Rohdaten,12,0) -> 51.917915 | G62: =VLOOKUP($B62,Matrix_Rohdaten,17,0) -> 46.259151 | H62: =VLOOKUP($B62,Matrix_Rohdaten,3,0) -> 3
B63: V156 | C63: =VLOOKUP($B63,Matrix_Rohdaten,1,0) -> V156 | D63: =VLOOKUP($B63,Matrix_Rohdaten,4,0) -> 1139 | E63: =VLOOKUP($B63,Matrix_Rohdaten,18,0) -> 511.499919 | F63: =VLOOKUP($B63,Matrix_Rohdaten,12,0) -> 117.593986 | G63: =VLOOKUP($B63,Matrix_Rohdaten,17,0) -> 76.87648633 | H63: =VLOOKUP($B63,Matrix_Rohdaten,3,0) -> 14
B64: V157 | C64: =VLOOKUP($B64,Matrix_Rohdaten,1,0) -> V157 | D64: =VLOOKUP($B64,Matrix_Rohdaten,4,0) -> 1139 | E64: =VLOOKUP($B64,Matrix_Rohdaten,18,0) -> 506.8626683 | F64: =VLOOKUP($B64,Matrix_Rohdaten,12,0) -> 198.572952 | G64: =VLOOKUP($B64,Matrix_Rohdaten,17,0) -> 92.82709967 | H64: =VLOOKUP($B64,Matrix_Rohdaten,3,0) -> 36.5
B65: V158 | C65: =VLOOKUP($B65,Matrix_Rohdaten,1,0) -> V158 | D65: =VLOOKUP($B65,Matrix_Rohdaten,4,0) -> 1139 | E65: =VLOOKUP($B65,Matrix_Rohdaten,18,0) -> 491.117894 | F65: =VLOOKUP($B65,Matrix_Rohdaten,12,0) -> 279.0884877 | G65: =VLOOKUP($B65,Matrix_Rohdaten,17,0) -> 99.777601 | H65: =VLOOKUP($B65,Matrix_Rohdaten,3,0) -> 66
B66: V159 | C66: =VLOOKUP($B66,Matrix_Rohdaten,1,0) -> V159 | D66: =VLOOKUP($B66,Matrix_Rohdaten,4,0) -> 1139 | E66: =VLOOKUP($B66,Matrix_Rohdaten,18,0) -> 500.6763257 | F66: =VLOOKUP($B66,Matrix_Rohdaten,12,0) -> 356.1907697 | G66: =VLOOKUP($B66,Matrix_Rohdaten,17,0) -> 105.0213053 | H66: =VLOOKUP($B66,Matrix_Rohdaten,3,0) -> 105
Q68: y = | R68: mxb
Q69: =INDEX(LOGEST(I37:I40,LN(D37:D40),,TRUE),1,2) ->  | R69: =LN(INDEX(LOGEST(I37:I40,LN(D37:D40),,TRUE),1,1)) -> 
Q70: =G7 -> Drehzahl | R70: =I36 -> Druckverlust Kasten [Pa]
Q71: =P5 -> 1039 | R71: =Q69*Q71^R69 -> 
I114: Bei L_WA 40dB(A)
H115: Sek Vol | I115: 175 | J115: m³/h
H116: Drehzahl | I116: 622 | J116: 1/min
H117: spez. Leistung trocken | I117: 41.05129901 | J117: W/K
H119: sens. Leistung bei dT 20 K, 50 %rF | I119: =20*I117*I123 -> 748.8478721 | J119: Watt | K119: mit Filter
H120: sens. Leistung bei dT 20 K, 50 %rF | I120: =I119*1.1 -> 823.7326593 | J120: Watt | K120: ohne Filter
H123: Sens Faktor | I123: =J132/J131 -> 0.9120879121
H124: Total Faktor | I124: =I132/I131 -> 1.384615385
B126: 2017-02-20
B127: Auslegung euCalc
B129: QA | C129: VA | D129: DPA | E129: TAI | F129: RH | G129: TAO | H129: RH | I129: QTOT | J129: QSEN | K129: QW | L129: VW | M129: TWI | N129: TWO | O129: GLI | P129: DPW
B130: m3/h | C130: m/s | D130: Pa | E130: °C | F130: % | G130: °C | H130: % | I130: kW | J130: kW | K130: l/h | L130: m/s | M130: °C | N130: °C | O130: % | P130: kPa
B131: 175 | C131: 0.35 | D131: 1 | E131: 26 | F131: 1 | G131: 10 | H131: 2 | I131: 0.91 | J131: 0.91 | K131: 200 | L131: 0.8 | M131: 6 | N131: 9.9 | O131: 0 | P131: 20
B132: 175 | C132: 0.35 | D132: 1 | E132: 26 | F132: 50 | G132: 11 | H132: 90 | I132: 1.26 | J132: 0.83 | K132: 200 | L132: 0.8 | M132: 6 | N132: 11.4 | O132: 0 | P132: 20
B136: QA | C136: VA | D136: DPA | E136: TAI | F136: RH | G136: TAO | H136: RH | I136: QTOT | J136: QSEN | K136: QW | L136: VW | M136: TWI | N136: TWO | O136: GLI | P136: DPW
B137: m3/h | C137: m/s | D137: Pa | E137: °C | F137: % | G137: °C | H137: % | I137: kW | J137: kW | K137: l/h | L137: m/s | M137: °C | N137: °C | O137: % | P137: kPa
B138: 175 | C138: 0.35 | D138: 1 | E138: 26 | F138: 50 | G138: 11 | H138: 90 | I138: 1.26 | J138: 0.83 | K138: 200 | L138: 0.8 | M138: 6 | N138: 11.4 | O138: 0 | P138: 20

Sheet Master-Auswertung_V120-V127 (hidden)
B1: =CONCATENATE('Master-Auslegung_V120-V127'!B1, "; ", 'Master-Auslegung_V120-V127'!C1, "; ", 'Master-Auslegung_V120-V127'!D1, "; ",'Master-Auslegung_V120-V127'!E1, "; ", 'Master-Auslegung_V120-V127'!F1) -> VKL1000; Nullseriengerät; 2L; 12style/3; mit Filter | F1: ='Master-Auslegung_V120-V127'!C1 -> Nullseriengerät | I1: 1 | J1: 4 | K1: 26 | L1: 12 | M1: 17 | N1: 3 | O1: 6
B2: ='Master-Auslegung_V120-V127'!H1 -> Drehzahl [1/min] | C2: ='Master-Auslegung_V120-V127'!J1 -> 1/min | D2: -> 2. Variable | E2: ='Master-Auslegung_V120-V127'!I1 -> Drehzahl
H3: Aus Kalorikmessung vom | J3: =VLOOKUP($H8,Matrix_Rohdaten,8,0) -> 2017-11-10
B4: w_soll (Kühlwasser) | C4: Volumenstrom Auslegung 1 | D4: q Auslegung 1 | E4: =CONCATENATE(B2, "; Auslegung 2") -> Drehzahl [1/min]; Auslegung 2 | F4: q Auslegung 2 | H4: Gemessen von | J4: =VLOOKUP($H8,Matrix_Rohdaten,10,0) -> TT
B5: [kg/h] | C5: [m³/h] | D5: [W/K] | E5: [Pa] | F5: [W/K] | H5: =CONCATENATE(E2,"variation (bei ca. ", ROUND(AVERAGE(L7:L10),0), " kg/h)") -> Drehzahlvariation (bei ca. 202 kg/h) | Q5: =J144 -> Baugröße 1000 3D-Strömung | R5: Baugröße 1000 3D-Strömung | S5: Baugröße 1000 3D-Strömung
B6: ='Master-Auslegung_V120-V127'!C3 -> 200 | C6: ='Master-Auslegung_V120-V127'!B9 -> 200 | D6: =C56 -> 47.30144592 | E6: ='Master-Auslegung_V120-V127'!G9 -> 1145 | F6: =C77 -> 93.29344137 | H6: Messung | I6: Messung | J6: =B2 -> Drehzahl [1/min] | K6: Sekundärvolumenstrom - Kalorik [m³/h] | L6: Wasser-Massenstrom | M6: spez. Kühlleistung [W/K] | N6: Druckverlust wassers. | O6: Steuerspannung [V] | Q6: Drehzahl [1/min] | R6: Sekundärvolumenstrom - Kalorik [m³/h] | S6: Steuerspannung [V]
J7: =C2 -> 1/min | K7: m³/h | L7: kg/h | M7: W/K | N7: kPa | O7: V | Q7: 1/min | R7: m³/h | S7: V
B8: =CONCATENATE("w_soll = ", ROUND(B11,0)," kg/h") -> w_soll = 200 kg/h | H8: ='Master-Auslegung_V120-V127'!B37 -> V160 | I8: =VLOOKUP($H8,Matrix_Rohdaten,1,0) -> V160 | J8: =VLOOKUP($H8,Matrix_Rohdaten,4,0) -> 421 | K8: =VLOOKUP($H8,Matrix_Rohdaten,18,0) -> 154.100227 | L8: =VLOOKUP($H8,Matrix_Rohdaten,12,0) -> 199.8999737 | M8: =VLOOKUP($H8,Matrix_Rohdaten,17,0) -> 37.30881333 | N8: =VLOOKUP($H8,Matrix_Rohdaten,3,0) -> 37.4 | O8: =VLOOKUP($H8,Matrix_Rohdaten,6,0) -> 3.3 | Q8: 485 | R8: 146.888793 | S8: 3.5
B9: wsoll | C9: Faktor: Wassermenge zu Nennwassermenge | D9: Kühlleistung Korrekturfaktor für w_soll ≠ w_ok | E9: =B2 -> Drehzahl [1/min] | F9: =$N$88 -> Sekundärvolumenstrom - Kalorik | H9: ='Master-Auslegung_V120-V127'!B38 -> V161 | I9: =VLOOKUP($H9,Matrix_Rohdaten,1,0) -> V161 | J9: =VLOOKUP($H9,Matrix_Rohdaten,4,0) -> 650 | K9: =VLOOKUP($H9,Matrix_Rohdaten,18,0) -> 258.0080757 | L9: =VLOOKUP($H9,Matrix_Rohdaten,12,0) -> 202.151267 | M9: =VLOOKUP($H9,Matrix_Rohdaten,17,0) -> 59.115374 | N9: =VLOOKUP($H9,Matrix_Rohdaten,3,0) -> 37.4 | O9: =VLOOKUP($H9,Matrix_Rohdaten,6,0) -> 5.2 | Q9: 717 | R9: 227.9015803 | S9: 5.5
B10: [kg/h] | C10: [-] | D10: [-] | H10: ='Master-Auslegung_V120-V127'!B39 -> V162 | I10: =VLOOKUP($H10,Matrix_Rohdaten,1,0) -> V162 | J10: =VLOOKUP($H10,Matrix_Rohdaten,4,0) -> 925 | K10: =VLOOKUP($H10,Matrix_Rohdaten,18,0) -> 385.670451 | L10: =VLOOKUP($H10,Matrix_Rohdaten,12,0) -> 203.8955723 | M10: =VLOOKUP($H10,Matrix_Rohdaten,17,0) -> 79.47045833 | N10: =VLOOKUP($H10,Matrix_Rohdaten,3,0) -> 37.4 | O10: =VLOOKUP($H10,Matrix_Rohdaten,6,0) -> 7.7 | Q10: 1044 | R10: 350.783252 | S10: 8
B11: =$B$6 -> 200 | C11: =B11/$H$84 -> 1 | D11: =$H$123*C11^$H$122+$I$123*C11^$I$122+$J$123*C11^$J$122+$K$123*C11^$K$122+$L$123 -> 1 | E11: =$M$90 -> 671 | F11: =AVERAGE($N$90:$N$93) -> 265.3984803 | G11: =$L$31*E11^$M$31 -> 267.0833858 | H11: ='Master-Auslegung_V120-V127'!B40 -> V163 | I11: =VLOOKUP($H11,Matrix_Rohdaten,1,0) -> V163 | J11: =VLOOKUP($H11,Matrix_Rohdaten,4,0) -> 1140 | K11: =VLOOKUP($H11,Matrix_Rohdaten,18,0) -> 503.6468043 | L11: =VLOOKUP($H11,Matrix_Rohdaten,12,0) -> 203.8957757 | M11: =VLOOKUP($H11,Matrix_Rohdaten,17,0) -> 93.50783467 | N11: =VLOOKUP($H11,Matrix_Rohdaten,3,0) -> 37.4 | O11: =VLOOKUP($H11,Matrix_Rohdaten,6,0) -> 10 | Q11: 1145 | R11: 392.7183727 | S11: 10 | T11: y = | U11: mxb
B12: =$B$6 -> 200 | C12: =B12/$H$84 -> 1 | D12: =IFERROR($Q$123*C12^$Q$122+$R$123*C12^$R$122+$S$123*C12^$S$122+$T$123*C12^$T$122+$U$123,D11) -> 1 | E12: =IFERROR(IF($V$90=0,E11,$V$90),E11) -> 428 | F12: =IFERROR(IF($W$90=0,F11,$W$90),F11) -> 147.3429767 | G12: =$L$31*E12^$M$31 -> 157.0063204 | T12: =INDEX(LOGEST(J8:J11,LN(O8:O11),,TRUE),1,2) -> 144.941776 | U12: =LN(INDEX(LOGEST(J8:J11,LN(O8:O11),,TRUE),1,1)) -> 0.9021020498
B13: =$B$6 -> 200 | C13: =B13/$H$84 -> 1 | D13: =IFERROR($Z$123*C13^$Z$122+$AA$123*C13^$AA$122+$AB$123*C13^$AB$122+$AC$123*C13^$AC$122+$AD$123,D11) -> 1 | E13: =IFERROR(IF($AE$90=0,E11,$AE$90),E11) -> 1139 | F13: =IFERROR(IF($AF$90=0,F11,$AF$90),F11) -> 510.6462593 | G13: =$L$31*E13^$M$31 -> 499.0755382 | T13: x = Drehzahl | U13: y = Steuerspannung
T14: 2 | U14: =T12*T14^U12 -> 270.8652892
B15: y = | C15: axn+bx(n-1)+...+nx+m | F15: Korrektur Wassermenge | T15: 10 | U15: =T12*T15^U12 -> 1156.899487
B16: Polynom | C16: 3 | D16: Ordnung | E16: Auslegung 1 | F16: =B19*H33^2+C19*H33+D19 -> 1
B17: a = | C17: b = | D17: m = | E17: Auslegung 2 | F17: =B19*M33^2+C19*M33+D19 -> 1
B18: 2 | C18: 1 | D18: 0
B19: =LINEST(D11:D13,F11:F13^{0,1,2},0,0) -> -2.45827306e-21 | C19: 2.78039832e-18 | D19: 1
Q28: Makro Zielwertsuche - für Grenzwerte
Q29: Aus Drehzahl
H30: y = | I30: mxb | L30: y = | M30: mxb | Q30: y = | R30: mxb | T30: y = | U30: mxb
